Workbook

Sheet Instructions
A1: Fertilizer Cost Comparison Tool (Vegetables)
A4: Template by: Jon LaPorte, Farm Management Educator
A5: Michigan State University Extension
A6: 120 N. Broadway, Suite 116, Cassopolis, MI 49031
A7: Phone: (269) 445-4356 Email: laportej@msu.edu
A10: 1) | B10: Each TAB represents an important aspect of fertilizer planning (i.e., nutrient management, sources of fertilizer, and overall fertilizer plan for each commodity grown). Click on a TAB to enter specific information.
B11: These include:
C13: Nutrient Management | D13: - | E13: Input yield goals, soil test based nutrient recommendations, manure nutrient analysis, and nutrient credits. This section will determine the total amount of nutrients that will need to be supplied through commercial fertilizer products.
C15: Cover Crops in Step 5: Nutrient Credit | E15: For "Nitrogen Credit" of Step 5, cover crops must be manually typed into "Select Previous Crop" field. Under the Nitrogen Value, enter amount of credit based on provided chart.
E17: This section provides detailed information for use with the Fertilizer Plan sections to determine how much commercial fertilizer will need to be applied.
C18: Fertilizer Products & Pricing | D18: - | E18: Input the products and prices for fertilizer, lime, and nitrogen stabilizers to use in the Fertilizer Plan. Common fertilizer products are already provided.
E19: Each crop has its own tab (i.e. Fertilizer - Corn)
C20: Fertilizer Plan Tabs | D20: - | E20: Choose the fertilizer from the drop-down menu and enter product/acre to be used. (i.e. 100lbs/acre of 9-23-30 = 50lbs 18-46-0 & 50lbs 0-0-62lbs)
C21: (Vegetable 1, Vegetable 2, Vegetable 3) | E21: Note: Includes an in-depth assessment of nutrients provided at each application of the farm's fertilizer program.
C22: Tri-State Recommendations | D22: - | E22: This section allows for calculating of P and K values needed to meet yield goals based on Tri-State Recommendations. The information can be transferred to the Nutrient Management page for use in commercial fertilizer cost comparison.
E24: Note: This section is not a replacement for recommendations from a soil test analysis obtained from soil test laboratories.
E25: For soil test based recommendations, visit the MSU Soil and Plant Nutrient Laboratory: | P25: https://www.canr.msu.edu/spnl/
C26: Simple Fertilizer Calculator | D26: - | E26: This section contains a calculation for finding cost per acre on select fertilizer products. There are also calculators to extract nitrogen and sulfur costs from combination fertilizer products.
C29: Manure Applications ---START HERE | E29: Do you plan to include manure cost in your fertilizer plan? Go to the Fertilizer Products & Pricing worksheet
E30: Note: There is a Manure Calculator to input nutrient analysis values. The calculator will adjust values based on selected number of days before manure is expected to be incorporated. Retention factors used to adjust values are based on 2022 proposed MI GAAMPS charts.
E32: Do you plan to include only commercial fertilizer products in your fertilizer plan? Go to the Nutrient Management worksheet
E33: Note: Step 4 provides an area to include values of manure, preferably based on a nutrient analysis. Values can also be adjusted based on selected number of days before manure is expected to be incorporated. Retention factors used to adjust values are based on 2022 proposed MI GAAMPS charts.
A36: 2) | B36: Only items that are colored in BLUE should be altered in each TAB. Changing the value of an item not marked BLUE can cause the formulas in the spreadsheet to stop working.
A38: 3) | B38: The Nutrient Management and Fertilizer Plan Tabs can be printed for your farm records. The Fertilizer Plan Tab also allows for printing of three different plans for your chosen commodity. This allows for comparison of different fertilizer sources to identify the best way to meet nutrient needs at the lowest possible cost.

Sheet Nutrient Management
B1: Nutrient Management | P1: Additional Resources:
A2: Drop Down Menu ---> | B2: Select Crop | F2: Select Crop | J2: Select Crop | P2: For more information on Fertilizer Recommendations, see:
P3: MSU Bulletin E-2934, Nutrient Recommendations for Vegetables in Michigan
A4: Step 1: | B4: Yield Goal:
C5: (Enter Below) | D5: (Enter Below) | G5: (Enter Below) | H5: (Enter Below) | K5: (Enter Below) | L5: (Enter Below) | P5: MSU Fertilizer Recommendation Program
C6: 0 | D6: Unit | G6: 0 | H6: Unit | K6: 0 | L6: Unit | P6: https://www.canr.msu.edu/fertrec/
D7: (tons, cwt, etc.) | H7: (tons, cwt, etc.) | L7: (tons, cwt, etc.)
A8: Step 2: | B8: Soil Test Based Recommendations: | P8: PPM to Pounds (Lbs) Conversion Calculator
B9: Obtained from MSU Fertilizer Recommendation Program or your local soil lab. | P9: (Enter Below)
B10: (Enter Below) | C10: (Enter Below) | D10: (Enter Below) | F10: (Enter Below) | G10: (Enter Below) | H10: (Enter Below) | J10: (Enter Below) | K10: (Enter Below) | L10: (Enter Below) | P10: PPM | R10: Pounds (Lbs)
B11: N | C11: P | D11: K | F11: N | G11: P | H11: K | J11: N | K11: P | L11: K | P11: 0 | Q11: x 2 | R11: =P11*2 -> 0
B12: 0 | C12: 0 | D12: 0 | F12: 0 | G12: 0 | H12: 0 | J12: 0 | K12: 0 | L12: 0
B13: S | C13: Ca | D13: Mag | F13: S | G13: Ca | H13: Mag | J13: S | K13: Ca | L13: Mag | N13: More
B14: 0 | C14: 0 | D14: 0 | F14: 0 | G14: 0 | H14: 0 | J14: 0 | K14: 0 | L14: 0 | N14: Below | P14: Note:
B15: Z | C15: B | D15: Mn | F15: Z | G15: B | H15: Mn | J15: Z | K15: B | L15: Mn | N15: ¯ | P15: Nutrient removal rates are based on soil nutrients at "maintenance levels." Soil testing is recommended to confirm maintenance levels exist prior to consideration of removal rates.
B16: 0 | C16: 0 | D16: 0 | F16: 0 | G16: 0 | H16: 0 | J16: 0 | K16: 0 | L16: 0
B17: Cu | C17: Mo | D17: Fe | F17: Cu | G17: Mo | H17: Fe | J17: Cu | K17: Mo | L17: Fe
B18: 0 | C18: 0 | D18: 0 | F18: 0 | G18: 0 | H18: 0 | J18: 0 | K18: 0 | L18: 0
B19: Lbs/Acre | C19: Lbs/Acre | D19: Lbs/Acre | F19: Lbs/Acre | G19: Lbs/Acre | H19: Lbs/Acre | J19: Lbs/Acre | K19: Lbs/Acre | L19: Lbs/Acre | N19: ¯
A21: Step 3: | B21: Nutrient Removal
B22: Amount of nutrients being removed based on yield goal.
B24: N | C24: P | D24: K | F24: N | G24: P | H24: K | J24: N | K24: P | L24: K
B25: =VLOOKUP($B$2,'Nutrient Removal Table'!$A$6:$D$40,2,FALSE)*$C$6 -> 0 | C25: =VLOOKUP($B$2,'Nutrient Removal Table'!$A$6:$D$40,4,FALSE)*$C$6 -> 0 | D25: =VLOOKUP($B$2,'Nutrient Removal Table'!$A$6:$D$40,3,FALSE)*$C$6 -> 0 | F25: =VLOOKUP($F$2,'Nutrient Removal Table'!$A$6:$D$40,2,FALSE)*$G$6 -> 0 | G25: =VLOOKUP($F$2,'Nutrient Removal Table'!$A$6:$D$40,4,FALSE)*$G$6 -> 0 | H25: =VLOOKUP($F$2,'Nutrient Removal Table'!$A$6:$D$40,3,FALSE)*$G$6 -> 0 | J25: =VLOOKUP($J$2,'Nutrient Removal Table'!$A$6:$D$40,2,FALSE)*$K$6 -> 0 | K25: =VLOOKUP($J$2,'Nutrient Removal Table'!$A$6:$D$40,4,FALSE)*$K$6 -> 0 | L25: =VLOOKUP($J$2,'Nutrient Removal Table'!$A$6:$D$40,3,FALSE)*$K$6 -> 0
B26: S | C26: Ca | D26: Mag | F26: S | G26: Ca | H26: Mag | J26: S | K26: Ca | L26: Mag
B27: 0 | C27: 0 | D27: 0 | F27: 0 | G27: 0 | H27: 0 | J27: 0 | K27: 0 | L27: 0
B28: Lbs/Acre | C28: Lbs/Acre | D28: Lbs/Acre | F28: Lbs/Acre | G28: Lbs/Acre | H28: Lbs/Acre | J28: Lbs/Acre | K28: Lbs/Acre | L28: Lbs/Acre
A30: Step 3: | B30: Manure Application - This Year
B31: Input nutrients being provided in manure applications "this year" (based on nutrient analysis results).
B32: (Enter Below) | C32: (Enter Below) | D32: (Enter Below) | F32: (Enter Below) | G32: (Enter Below) | H32: (Enter Below) | J32: (Enter Below) | K32: (Enter Below) | L32: (Enter Below)
B33: N | C33: P | D33: K | F33: N | G33: P | H33: K | J33: N | K33: P | L33: K | P33: MSU recommends using soil test-based information to address nutrient needs of your intended yield goals.
B34: 0 | C34: 0 | D34: 0 | F34: 0 | G34: 0 | H34: 0 | J34: 0 | K34: 0 | L34: 0
B35: S | F35: S | J35: S
A36: Note: these values are subtracted in Step 6 | B36: 0 | D36: (Select Below) | F36: 0 | H36: (Select Below) | J36: 0 | L36: (Select Below)
B37: Days Before Incorporation | D37: ---- | F37: Days Before Incorporation | H37: ---- | J37: Days Before Incorporation | L37: ---- | P37: Manure Resources
B38: *for all liquid and solid manure types | F38: *for all liquid and solid manure types | J38: *for all liquid and solid manure types | P38: Manure application methods and nitrogen losses (University of Minnesota)
P39: Michigan GAAMPS | R39: ← See table A4 in Manure Mgmt & Utilization section for approximate manure values in place of nutrient analysis
A40: Step 4: | B40: Nutrient Credit: Manure - Previous Year(s)
B41: Input nutrients being provided in manure applications from previous year(s). | P41: Note:
B42: (Enter Below) | C42: (Enter Below) | D42: (Enter Below) | F42: (Enter Below) | G42: (Enter Below) | H42: (Enter Below) | J42: (Enter Below) | K42: (Enter Below) | L42: (Enter Below) | N42: More | P42: If you are using manure or compost, for best results a nutrient analysis is highly recommended.
B43: N | C43: P | D43: K | F43: N | G43: P | H43: K | J43: N | K43: P | L43: K | N43: Below
A44: Note: these values are subtracted in Step 6 | B44: 0 | C44: 0 | D44: 0 | F44: 0 | G44: 0 | H44: 0 | J44: 20 | K44: 32 | L44: 25 | N44: ¯
A46: Step 5: | B46: Nutrient Credit: Previous Crop | P46: For use with Step 5 (per MSU Bulletin: E-2904) | U46: For use with Step 5 (per Managing Cover Crops Profitability from SARE)
B47: Input nutrients being credited from legume crops planted in previous year. | U47: Cover Crop | V47: Lb./Acre
B48: (Select Below) | D48: N | F48: (Select Below) | H48: N | J48: (Select Below) | L48: N | U48: Mustard | V48: 30-120 | X48: Type in "Cover Crop" in "Select Previous Crop" field and enter Nitrogen value from chart range
A49: Note: these values are subtracted in Step 6 | B49: Select Previous Crop | D49: =VLOOKUP(B49,'Manure and Nutrient Credits'!$A$3:$B$16,2,FALSE) -> 0 | F49: Select Previous Crop | H49: =VLOOKUP(F49,'Manure and Nutrient Credits'!$A$3:$B$16,2,FALSE) -> 0 | J49: Select Previous Crop | L49: =VLOOKUP(J49,'Manure and Nutrient Credits'!$A$3:$B$16,2,FALSE) -> 0 | U49: Radish | V49: 50-200
U50: Rapeseed | V50: 40-160
A51: Step 6: | B51: Total Nutrient Needs | U51: Berseem Clover | V51: 75-220
B52: Based on comparison of soil test recommendations minus any manure or nutrient credits. | U52: Cowpea | V52: 100-150
U53: Crimson Clover | V53: 70-130
B54: N | C54: P | D54: K | F54: N | G54: P | H54: K | J54: N | K54: P | L54: K | U54: Field Pea | V54: 90-150
B55: =B12-(B34*'Manure and Nutrient Credits'!$D$27)-B44-D49 -> 0 | C55: =C12-(C34*'Manure and Nutrient Credits'!$D$27)-C44 -> 0 | D55: =D12-(D34*'Manure and Nutrient Credits'!$D$27)-D44 -> 0 | F55: =F12-(F34*'Manure and Nutrient Credits'!$D$30)-F44-H49 -> 0 | G55: =G12-(G34*'Manure and Nutrient Credits'!$D$30)-G44 -> 0 | H55: =H12-(H34*'Manure and Nutrient Credits'!$D$30)-H44 -> 0 | J55: =J12-(J34*'Manure and Nutrient Credits'!$D$33)-J44-L49 -> -20 | K55: =K12-(K34*'Manure and Nutrient Credits'!$D$33)-K44 -> -32 | L55: =L12-(L34*'Manure and Nutrient Credits'!$D$33)-L44 -> -25 | U55: Hairy Vetch | V55: 90-200
B56: =MAX(0,B55) -> 0 | C56: =MAX(0,C55) -> 0 | D56: 0 | F56: =MAX(0,F55) -> 0 | G56: =MAX(0,G55) -> 0 | H56: =MAX(0,H55) -> 0 | J56: =MAX(0,J55) -> 0 | K56: =MAX(0,K55) -> 0 | L56: =MAX(0,L55) -> 0 | U56: Red Clover | V56: 70-150
B57: S | C57: Ca | D57: Mag | F57: S | G57: Ca | H57: Mag | J57: S | K57: Ca | L57: Mag | U57: Sweetclover | V57: 90-170
B58: =B14-(B36*'Manure and Nutrient Credits'!$D$27) -> 0 | C58: =C14 -> 0 | D58: =D14 -> 0 | F58: =F14-(F36*'Manure and Nutrient Credits'!$D$30) -> 0 | G58: =G14 -> 0 | H58: =H14 -> 0 | J58: =J14-(J36*'Manure and Nutrient Credits'!$D$33) -> 0 | K58: =K14 -> 0 | L58: =L14 -> 0 | U58: White Clover | V58: 80-200
B59: =MAX(0,B58) -> 0 | C59: =MAX(0,C58) -> 0 | D59: 0 | F59: =MAX(0,F58) -> 0 | G59: =MAX(0,G58) -> 0 | H59: =MAX(0,H58) -> 0 | J59: =MAX(0,J58) -> 0 | K59: =MAX(0,K58) -> 0 | L59: =MAX(0,L58) -> 0 | U59: White Clover | V59: 80-200
B60: Z | C60: B | D60: Mn | F60: Z | G60: B | H60: Mn | J60: Z | K60: B | L60: Mn
B61: =B16 -> 0 | C61: =C16 -> 0 | D61: 0 | F61: 0 | G61: 0 | H61: 0 | J61: 0 | K61: 0 | L61: 0
B62: Cu | C62: Mo | D62: Fe | F62: Cu | G62: Mo | H62: Fe | J62: Cu | K62: Mo | L62: Fe
B63: =B18 -> 0 | C63: =C18 -> 0 | D63: 0 | F63: 0 | G63: 0 | H63: 0 | J63: 0 | K63: 0 | L63: 0
U64: Chart 2: Performance and Roles
J65: Enter Farm Name | U65: https://www.sare.org/wp-content/uploads/Managing-Cover-Crops-Profitably.pdf
B67: Use this information to help determine the amount of commercial fertilizer needed in the Fertilizer Plan tab.
B69: Soil Test Based Recommendations | F69: Soil Test Based Recommendations | J69: Soil Test Based Recommendations
B70: =B12-(B34*'Manure and Nutrient Credits'!$D$27)-B44-D49 -> 0 | C70: =C12-(C34*'Manure and Nutrient Credits'!$D$27)-C44 -> 0 | D70: =D12-(D34*'Manure and Nutrient Credits'!$D$27)-D44 -> 0 | F70: =F12-(F34*'Manure and Nutrient Credits'!$D$30)-F44-H49 -> 0 | G70: =G12-(G34*'Manure and Nutrient Credits'!$D$30)-G44 -> 0 | H70: =H12-(H34*'Manure and Nutrient Credits'!$D$30)-H44 -> 0 | J70: =J12-(J34*'Manure and Nutrient Credits'!$D$33)-J44-L49 -> -20 | K70: =K12-(K34*'Manure and Nutrient Credits'!$D$33)-K44 -> -32 | L70: =L12-(L34*'Manure and Nutrient Credits'!$D$33)-L44 -> -25
B71: =MAX(0,B70) -> 0 | C71: =MAX(0,C70) -> 0 | D71: 0 | F71: =MAX(0,F70) -> 0 | G71: =MAX(0,G70) -> 0 | H71: =MAX(0,H70) -> 0 | J71: =MAX(0,J70) -> 0 | K71: =MAX(0,K70) -> 0 | L71: =MAX(0,L70) -> 0
B72: =B14-(B36*'Manure and Nutrient Credits'!$D$27) -> 0 | F72: =F14-(F36*'Manure and Nutrient Credits'!$D$30) -> 0 | J72: =J14-(J36*'Manure and Nutrient Credits'!$D$33) -> 0
B73: =MAX(0,B72) -> 0 | F73: =MAX(0,F72) -> 0 | J73: =MAX(0,J72) -> 0
B75: Nutrient Removal | F75: Nutrient Removal | J75: Nutrient Removal
B76: =B25-(B34*'Manure and Nutrient Credits'!$D$27)-B44-D49 -> 0 | C76: =C25-(C34*'Manure and Nutrient Credits'!$D$27)-C44 -> 0 | D76: =D25-(D34*'Manure and Nutrient Credits'!$D$27)-D44 -> 0 | F76: =F25-(F34*'Manure and Nutrient Credits'!$D$30)-F44-H49 -> 0 | G76: =G25-(G34*'Manure and Nutrient Credits'!$D$30)-G44 -> 0 | H76: =H25-(H34*'Manure and Nutrient Credits'!$D$30)-H44 -> 0 | J76: =J25-(J34*'Manure and Nutrient Credits'!$D$33)-J44-L49 -> -20 | K76: =K25-(K34*'Manure and Nutrient Credits'!$D$33)-K44 -> -32 | L76: =L25-(L34*'Manure and Nutrient Credits'!$D$33)-L44 -> -25
B77: =MAX(0,B76) -> 0 | C77: =MAX(0,C76) -> 0 | D77: =MAX(0,D76) -> 0 | F77: =MAX(0,F76) -> 0 | G77: =MAX(0,G76) -> 0 | H77: =MAX(0,H76) -> 0 | J77: =MAX(0,J76) -> 0 | K77: =MAX(0,K76) -> 0 | L77: =MAX(0,L76) -> 0
B78: =B27-(B36*'Manure and Nutrient Credits'!$D$27) -> 0 | F78: =F27-(F36*'Manure and Nutrient Credits'!$D$30) -> 0 | J78: =J27-(J36*'Manure and Nutrient Credits'!$D$33) -> 0
B79: =MAX(0,B78) -> 0 | F79: =MAX(0,F78) -> 0 | J79: =MAX(0,J78) -> 0

Sheet Corn K Calculations (hidden)
A1: 9 | B1: 50 | C1: IF(AND(E8<=50,'Crop Budget (Main)'!C14<=100,D14<=9),125,IF(AND(E8<=50,'Crop Budget (Main)'!C14<=120,D14<=9),130,IF(AND(E8<=50,'Crop Budget (Main)'!C14<=140,D14<=9),135,IF(AND(E8<=50,'Crop Budget (Main)'!C14<=160,D14<=9),140,IF(AND(E8<=50,'Crop Budget (Main)'!C14<=180,D14<=9),145,IF(AND(E8<=50,'Crop Budget (Main)'!C14>180,D14<=9),145
A2: 9 | B2: 100 | C2: IF(AND(E8<=100,'Crop Budget (Main)'!C14<=100,D14<=9),95,IF(AND(E8<=100,'Crop Budget (Main)'!C14<=120,D14<=9),100,IF(AND(E8<=100,'Crop Budget (Main)'!C14<=140,D14<=9),105,IF(AND(E8<=100,'Crop Budget (Main)'!C14<=160,D14<=9),110,IF(AND(E8<=100,'Crop Budget (Main)'!C14<=180,D14<=9),115,IF(AND(E8<=100,'Crop Budget (Main)'!C14>180,D14<=9),115
A3: 9 | B3: 150 | C3: IF(AND(E8<=150,'Crop Budget (Main)'!C14<=100,D14<=9),65,IF(AND(E8<=150,'Crop Budget (Main)'!C14<=120,D14<=9),70,IF(AND(E8<=150,'Crop Budget (Main)'!C14<=140,D14<=9),75,IF(AND(E8<=150,'Crop Budget (Main)'!C14<=160,D14<=9),80,IF(AND(E8<=150,'Crop Budget (Main)'!C14<=180,D14<=9),85,IF(AND(E8<=150,'Crop Budget (Main)'!C14>180,D14<=9),80
A4: 9 | B4: 235
A5: 9 | B5: 260
A6: 9 | B6: 280
A7: 19 | B7: 50 | C7: IF(AND(E8<=50,'Crop Budget (Main)'!C14<=100,D14<=19),160,IF(AND(E8<=50,'Crop Budget (Main)'!C14<=120,D14<=19),165,IF(AND(E8<=50,'Crop Budget (Main)'!C14<=140,D14<=19),170,IF(AND(E8<=50,'Crop Budget (Main)'!C14<=160,D14<=19),175,IF(AND(E8<=50,'Crop Budget (Main)'!C14<=180,D14<=19),180,IF(AND(E8<=50,'Crop Budget (Main)'!C14>180,D14<=19),180
A8: 19 | B8: 100 | C8: IF(AND(E8<=100,'Crop Budget (Main)'!C14<=100,D14<=19),120,IF(AND(E8<=100,'Crop Budget (Main)'!C14<=120,D14<=19),125,IF(AND(E8<=100,'Crop Budget (Main)'!C14<=140,D14<=19),135,IF(AND(E8<=100,'Crop Budget (Main)'!C14<=160,D14<=19),140,IF(AND(E8<=100,'Crop Budget (Main)'!C14<=180,D14<=19),145,IF(AND(E8<=100,'Crop Budget (Main)'!C14>180,D14<=19),145
A9: 19 | B9: 150 | C9: IF(AND(E8<=150,'Crop Budget (Main)'!C14<=100,D14<=19),85,IF(AND(E8<=150,'Crop Budget (Main)'!C14<=120,D14<=19),90,IF(AND(E8<=150,'Crop Budget (Main)'!C14<=140,D14<=19),95,IF(AND(E8<=150,'Crop Budget (Main)'!C14<=160,D14<=19),100,IF(AND(E8<=150,'Crop Budget (Main)'!C14<=180,D14<=19),105,IF(AND(E8<=150,'Crop Budget (Main)'!C14>180,D14<=19),100
A10: 19 | B10: 250 | C10: IF(AND(E8<=250,'Crop Budget (Main)'!C14<=100,D14<=19),45,IF(AND(E8<=250,'Crop Budget (Main)'!C14<=120,D14<=19),50,IF(AND(E8<=250,'Crop Budget (Main)'!C14<=140,D14<=19),60,IF(AND(E8<=250,'Crop Budget (Main)'!C14<=160,D14<=19),65,IF(AND(E8<=250,'Crop Budget (Main)'!C14<=180,D14<=19),70,IF(AND(E8<=250,'Crop Budget (Main)'!C14>180,D14<=19),70
A11: 19 | B11: 280
A12: 19 | B12: 300
A13: 29 | B13: 100 | C13: IF(AND(E8<=100,'Crop Budget (Main)'!C14<=100,D14<=29),195,IF(AND(E8<=100,'Crop Budget (Main)'!C14<=120,D14<=29),200,IF(AND(E8<=100,'Crop Budget (Main)'!C14<=140,D14<=29),210,IF(AND(E8<=100,'Crop Budget (Main)'!C14<=160,D14<=29),215,IF(AND(E8<=100,'Crop Budget (Main)'!C14<=180,D14<=29),220,IF(AND(E8<=100,'Crop Budget (Main)'!C14>180,D14<=29),220
A14: 29 | B14: 150 | C14: IF(AND(E8<=150,'Crop Budget (Main)'!C14<=100,D14<=29),145,IF(AND(E8<=150,'Crop Budget (Main)'!C14<=120,D14<=29),150,IF(AND(E8<=150,'Crop Budget (Main)'!C14<=140,D14<=29),160,IF(AND(E8<=150,'Crop Budget (Main)'!C14<=160,D14<=29),165,IF(AND(E8<=150,'Crop Budget (Main)'!C14<=180,D14<=29),170,IF(AND(E8<=150,'Crop Budget (Main)'!C14>180,D14<=29),170
A15: 29 | B15: 250 | C15: IF(AND(E8<=250,'Crop Budget (Main)'!C14<=100,D14<=29),95,IF(AND(E8<=250,'Crop Budget (Main)'!C14<=120,D14<=29),100,IF(AND(E8<=250,'Crop Budget (Main)'!C14<=140,D14<=29),110,IF(AND(E8<=250,'Crop Budget (Main)'!C14<=160,D14<=29),115,IF(AND(E8<=250,'Crop Budget (Main)'!C14<=180,D14<=29),120,IF(AND(E8<=250,'Crop Budget (Main)'!C14>180,D14<=29),120
A16: 29 | B16: 310
A17: 29 | B17: 330
A18: 29 | B18: 350 | D18: IF(AND(E8<=50,'Crop Budget (Main)'!C14<=100,D14<=9),125,IF(AND(E8<=50,'Crop Budget (Main)'!C14<=120,D14<=9),130,IF(AND(E8<=50,'Crop Budget (Main)'!C14<=140,D14<=9),135,IF(AND(E8<=50,'Crop Budget (Main)'!C14<=160,D14<=9),140,IF(AND(E8<=50,'Crop Budget (Main)'!C14<=180,D14<=9),145,IF(AND(E8<=50,'Crop Budget (Main)'!C14>180,D14<=9),145,IF(AND(E8<=100,'Crop Budget (Main)'!C14<=100,D14<=9),95,IF(AND(E8<=100,'Crop Budget (Main)'!C14<=120,D14<=9),100,IF(AND(E8<=100,'Crop Budget (Main)'!C14<=140,D14<=9),105,IF(AND(E8<=100,'Crop Budget (Main)'!C14<=160,D14<=9),110,IF(AND(E8<=100,'Crop Budget (Main)'!C14<=180,D14<=9),115,IF(AND(E8<=100,'Crop Budget (Main)'!C14>180,D14<=9),115,IF(AND(E8<=150,'Crop Budget (Main)'!C14<=100,D14<=9),65,IF(AND(E8<=150,'Crop Budget (Main)'!C14<=120,D14<=9),70,IF(AND(E8<=150,'Crop Budget (Main)'!C14<=140,D14<=9),75,IF(AND(E8<=150,'Crop Budget (Main)'!C14<=160,D14<=9),80,IF(AND(E8<=150,'Crop Budget (Main)'!C14<=180,D14<=9),85,IF(AND(E8<=150,'Crop Budget (Main)'!C14>180,D14<=9),80,IF(AND(E8<=50,'Crop Budget (Main)'!C14<=100,D14<=19),160,IF(AND(E8<=50,'Crop Budget (Main)'!C14<=120,D14<=19),165,IF(AND(E8<=50,'Crop Budget (Main)'!C14<=140,D14<=19),170,IF(AND(E8<=50,'Crop Budget (Main)'!C14<=160,D14<=19),175,IF(AND(E8<=50,'Crop Budget (Main)'!C14<=180,D14<=19),180,IF(AND(E8<=50,'Crop Budget (Main)'!C14>180,D14<=19),180,IF(AND(E8<=100,'Crop Budget (Main)'!C14<=100,D14<=19),120,IF(AND(E8<=100,'Crop Budget (Main)'!C14<=120,D14<=19),125,IF(AND(E8<=100,'Crop Budget (Main)'!C14<=140,D14<=19),135,IF(AND(E8<=100,'Crop Budget (Main)'!C14<=160,D14<=19),140,IF(AND(E8<=100,'Crop Budget (Main)'!C14<=180,D14<=19),145,IF(AND(E8<=100,'Crop Budget (Main)'!C14>180,D14<=19),145,IF(AND(E8<=150,'Crop Budget (Main)'!C14<=100,D14<=19),85,IF(AND(E8<=150,'Crop Budget (Main)'!C14<=120,D14<=19),90,IF(AND(E8<=150,'Crop Budget (Main)'!C14<=140,D14<=19),95,IF(AND(E8<=150,'Crop Budget (Main)'!C14<=160,D14<=19),100,IF(AND(E8<=150,'Crop Budget (Main)'!C14<=180,D14<=19),105,IF(AND(E8<=150,'Crop Budget (Main)'!C14>180,D14<=19),100,IF(AND(E8<=200,'Crop Budget (Main)'!C14<=100,D14<=19),45,IF(AND(E8<=200,'Crop Budget (Main)'!C14<=120,D14<=19),50,IF(AND(E8<=200,'Crop Budget (Main)'!C14<=140,D14<=19),60,IF(AND(E8<=200,'Crop Budget (Main)'!C14<=160,D14<=19),65,IF(AND(E8<=200,'Crop Budget (Main)'!C14<=180,D14<=19),70,IF(AND(E8<=200,'Crop Budget (Main)'!C14>180,D14<=19),70,IF(AND(E8<=100,'Crop Budget (Main)'!C14<=100,D14<=29),195,IF(AND(E8<=100,'Crop Budget (Main)'!C14<=120,D14<=29),200,IF(AND(E8<=100,'Crop Budget (Main)'!C14<=140,D14<=29),210,IF(AND(E8<=100,'Crop Budget (Main)'!C14<=160,D14<=29),215,IF(AND(E8<=100,'Crop Budget (Main)'!C14<=180,D14<=29),220,IF(AND(E8<=100,'Crop Budget (Main)'!C14>180,D14<=29),220,IF(AND(E8<=150,'Crop Budget (Main)'!C14<=100,D14<=29),145,IF(AND(E8<=150,'Crop Budget (Main)'!C14<=120,D14<=29),150,IF(AND(E8<=150,'Crop Budget (Main)'!C14<=140,D14<=29),160,IF(AND(E8<=150,'Crop Budget (Main)'!C14<=160,D14<=29),165,IF(AND(E8<=150,'Crop Budget (Main)'!C14<=180,D14<=29),170,IF(AND(E8<=150,'Crop Budget (Main)'!C14>180,D14<=29),170,IF(AND(E8<=200,'Crop Budget (Main)'!C14<=100,D14<=29),95,IF(AND(E8<=200,'Crop Budget (Main)'!C14<=120,D14<=29),100,IF(AND(E8<=200,'Crop Budget (Main)'!C14<=140,D14<=29),110,IF(AND(E8<=200,'Crop Budget (Main)'!C14<=160,D14<=29),115,IF(AND(E8<=200,'Crop Budget (Main)'!C14<=180,D14<=29),120,IF(AND(E8<=200,'Crop Budget (Main)'!C14>180,D14<=29),120
A19: 30 | B19: 150
A20: 30 | B20: 200
A21: 30 | B21: 250
A22: 30 | B22: 360
A23: 30 | B23: 380
A24: 30 | B24: 400

Sheet Soybean K Calculations (hidden)
A1: 9 | B1: 50 | C1: IF(AND(I8<=50,'Crop Budget (Main)'!G14<=30,H14<=9),140,IF(AND(I8<=50,'Crop Budget (Main)'!G14<=40,H14<=9),155,IF(AND(I8<=50,'Crop Budget (Main)'!G14<=50,H14<=9),170,IF(AND(I8<=50,'Crop Budget (Main)'!G14<=60,H14<=9),180,IF(AND(I8<=50,'Crop Budget (Main)'!G14<=70,H14<=9),195,IF(AND(I8<=50,'Crop Budget (Main)'!G14>70,H14<=9),195
A2: 9 | B2: 100 | C2: IF(AND(I8<=100,'Crop Budget (Main)'!G14<=30,H14<=9),110,IF(AND(I8<=100,'Crop Budget (Main)'!G14<=40,H14<=9),125,IF(AND(I8<=100,'Crop Budget (Main)'!G14<=50,H14<=9),135,IF(AND(I8<=100,'Crop Budget (Main)'!G14<=60,H14<=9),150,IF(AND(I8<=100,'Crop Budget (Main)'!G14<=70,H14<=9),165,IF(AND(I8<=100,'Crop Budget (Main)'!G14>70,H14<=9),165
A3: 9 | B3: 150 | C3: IF(AND(I8<=150,'Crop Budget (Main)'!G14<=30,H14<=9),80,IF(AND(I8<=150,'Crop Budget (Main)'!G14<=40,H14<=9),90,IF(AND(I8<=150,'Crop Budget (Main)'!G14<=50,H14<=9),105,IF(AND(I8<=150,'Crop Budget (Main)'!G14<=60,H14<=9),105,IF(AND(I8<=150,'Crop Budget (Main)'!G14<=70,H14<=9),120,IF(AND(I8<=150,'Crop Budget (Main)'!G14>70,H14<=9),120
A4: 9 | B4: 235
A5: 9 | B5: 260
A6: 9 | B6: 280
A7: 19 | B7: 50 | C7: IF(AND(I8<=50,'Crop Budget (Main)'!G14<=30,H14<=19),175,IF(AND(I8<=50,'Crop Budget (Main)'!G14<=40,H14<=19),190,IF(AND(I8<=50,'Crop Budget (Main)'!G14<=50,H14<=19),205,IF(AND(I8<=50,'Crop Budget (Main)'!G14<=60,H14<=19),215,IF(AND(I8<=50,'Crop Budget (Main)'!G14<=70,H14<=19),230,IF(AND(I8<=50,'Crop Budget (Main)'!G14>70,H14<=19),230
A8: 19 | B8: 100 | C8: IF(AND(I8<=100,'Crop Budget (Main)'!G14<=30,H14<=19),135,IF(AND(I8<=100,'Crop Budget (Main)'!G14<=40,H14<=19),150,IF(AND(I8<=100,'Crop Budget (Main)'!G14<=50,H14<=19),165,IF(AND(I8<=100,'Crop Budget (Main)'!G14<=60,H14<=19),180,IF(AND(I8<=100,'Crop Budget (Main)'!G14<=70,H14<=19),195,IF(AND(I8<=100,'Crop Budget (Main)'!G14>70,H14<=19),195
A9: 19 | B9: 150 | C9: IF(AND(I8<=150,'Crop Budget (Main)'!G14<=30,H14<=19),100,IF(AND(I8<=150,'Crop Budget (Main)'!G14<=40,H14<=19),115,IF(AND(I8<=150,'Crop Budget (Main)'!G14<=50,H14<=19),130,IF(AND(I8<=150,'Crop Budget (Main)'!G14<=60,H14<=19),140,IF(AND(I8<=150,'Crop Budget (Main)'!G14<=70,H14<=19),155,IF(AND(I8<=150,'Crop Budget (Main)'!G14>70,H14<=19),155
A10: 19 | B10: 250 | C10: IF(AND(I8<=250,'Crop Budget (Main)'!G14<=30,H14<=19),60,IF(AND(I8<=250,'Crop Budget (Main)'!G14<=40,H14<=19),75,IF(AND(I8<=250,'Crop Budget (Main)'!G14<=50,H14<=19),90,IF(AND(I8<=250,'Crop Budget (Main)'!G14<=60,H14<=19),105,IF(AND(I8<=250,'Crop Budget (Main)'!G14<=70,H14<=19),120,IF(AND(I8<=250,'Crop Budget (Main)'!G14>70,H14<=19),120
A11: 19 | B11: 280
A12: 19 | B12: 300
A13: 29 | B13: 100 | C13: IF(AND(I8<=100,'Crop Budget (Main)'!G14<=100,H14<=29),210,IF(AND(I8<=100,'Crop Budget (Main)'!G14<=120,H14<=29),225,IF(AND(I8<=100,'Crop Budget (Main)'!G14<=140,H14<=29),240,IF(AND(I8<=100,'Crop Budget (Main)'!G14<=160,H14<=29),255,IF(AND(I8<=100,'Crop Budget (Main)'!G14<=180,H14<=29),270,IF(AND(I8<=100,'Crop Budget (Main)'!G14>180,H14<=29),270
A14: 29 | B14: 150 | C14: IF(AND(I8<=150,'Crop Budget (Main)'!G14<=100,H14<=29),160,IF(AND(I8<=150,'Crop Budget (Main)'!G14<=120,H14<=29),175,IF(AND(I8<=150,'Crop Budget (Main)'!G14<=140,H14<=29),190,IF(AND(I8<=150,'Crop Budget (Main)'!G14<=160,H14<=29),205,IF(AND(I8<=150,'Crop Budget (Main)'!G14<=180,H14<=29),220,IF(AND(I8<=150,'Crop Budget (Main)'!G14>180,H14<=29),220
A15: 29 | B15: 250 | C15: IF(AND(I8<=250,'Crop Budget (Main)'!G14<=100,H14<=29),110,IF(AND(I8<=250,'Crop Budget (Main)'!G14<=120,H14<=29),125,IF(AND(I8<=250,'Crop Budget (Main)'!G14<=140,H14<=29),140,IF(AND(I8<=250,'Crop Budget (Main)'!G14<=160,H14<=29),155,IF(AND(I8<=250,'Crop Budget (Main)'!G14<=180,H14<=29),170,IF(AND(I8<=250,'Crop Budget (Main)'!G14>180,H14<=29),170
A16: 29 | B16: 310
A17: 29 | B17: 330
A18: 29 | B18: 350 | D18: IF(AND(I8<=50,'Crop Budget (Main)'!G14<=30,H14<=9),140,IF(AND(I8<=50,'Crop Budget (Main)'!G14<=40,H14<=9),155,IF(AND(I8<=50,'Crop Budget (Main)'!G14<=50,H14<=9),170,IF(AND(I8<=50,'Crop Budget (Main)'!G14<=60,H14<=9),180,IF(AND(I8<=50,'Crop Budget (Main)'!G14<=70,H14<=9),195,IF(AND(I8<=50,'Crop Budget (Main)'!G14>70,H14<=9),195,IF(AND(I8<=100,'Crop Budget (Main)'!G14<=30,H14<=9),110,IF(AND(I8<=100,'Crop Budget (Main)'!G14<=40,H14<=9),125,IF(AND(I8<=100,'Crop Budget (Main)'!G14<=50,H14<=9),135,IF(AND(I8<=100,'Crop Budget (Main)'!G14<=60,H14<=9),150,IF(AND(I8<=100,'Crop Budget (Main)'!G14<=70,H14<=9),165,IF(AND(I8<=100,'Crop Budget (Main)'!G14>70,H14<=9),165,IF(AND(I8<=150,'Crop Budget (Main)'!G14<=30,H14<=9),80,IF(AND(I8<=150,'Crop Budget (Main)'!G14<=40,H14<=9),90,IF(AND(I8<=150,'Crop Budget (Main)'!G14<=50,H14<=9),105,IF(AND(I8<=150,'Crop Budget (Main)'!G14<=60,H14<=9),105,IF(AND(I8<=150,'Crop Budget (Main)'!G14<=70,H14<=9),120,IF(AND(I8<=150,'Crop Budget (Main)'!G14>70,H14<=9),120,IF(AND(I8<=50,'Crop Budget (Main)'!G14<=30,H14<=19),175,IF(AND(I8<=50,'Crop Budget (Main)'!G14<=40,H14<=19),190,IF(AND(I8<=50,'Crop Budget (Main)'!G14<=50,H14<=19),205,IF(AND(I8<=50,'Crop Budget (Main)'!G14<=60,H14<=19),215,IF(AND(I8<=50,'Crop Budget (Main)'!G14<=70,H14<=19),230,IF(AND(I8<=50,'Crop Budget (Main)'!G14>70,H14<=19),230,IF(AND(I8<=100,'Crop Budget (Main)'!G14<=30,H14<=19),135,IF(AND(I8<=100,'Crop Budget (Main)'!G14<=40,H14<=19),150,IF(AND(I8<=100,'Crop Budget (Main)'!G14<=50,H14<=19),165,IF(AND(I8<=100,'Crop Budget (Main)'!G14<=60,H14<=19),180,IF(AND(I8<=100,'Crop Budget (Main)'!G14<=70,H14<=19),195,IF(AND(I8<=100,'Crop Budget (Main)'!G14>70,H14<=19),195,IF(AND(I8<=150,'Crop Budget (Main)'!G14<=30,H14<=19),100,IF(AND(I8<=150,'Crop Budget (Main)'!G14<=40,H14<=19),115,IF(AND(I8<=150,'Crop Budget (Main)'!G14<=50,H14<=19),130,IF(AND(I8<=150,'Crop Budget (Main)'!G14<=60,H14<=19),140,IF(AND(I8<=150,'Crop Budget (Main)'!G14<=70,H14<=19),155,IF(AND(I8<=150,'Crop Budget (Main)'!G14>70,H14<=19),155,IF(AND(I8<=250,'Crop Budget (Main)'!G14<=30,H14<=19),60,IF(AND(I8<=250,'Crop Budget (Main)'!G14<=40,H14<=19),75,IF(AND(I8<=250,'Crop Budget (Main)'!G14<=50,H14<=19),90,IF(AND(I8<=250,'Crop Budget (Main)'!G14<=60,H14<=19),105,IF(AND(I8<=250,'Crop Budget (Main)'!G14<=70,H14<=19),120,IF(AND(I8<=250,'Crop Budget (Main)'!G14>70,H14<=19),120,IF(AND(I8<=100,'Crop Budget (Main)'!G14<=100,H14<=29),210,IF(AND(I8<=100,'Crop Budget (Main)'!G14<=120,H14<=29),225,IF(AND(I8<=100,'Crop Budget (Main)'!G14<=140,H14<=29),240,IF(AND(I8<=100,'Crop Budget (Main)'!G14<=160,H14<=29),255,IF(AND(I8<=100,'Crop Budget (Main)'!G14<=180,H14<=29),270,IF(AND(I8<=100,'Crop Budget (Main)'!G14>180,H14<=29),270,IF(AND(I8<=150,'Crop Budget (Main)'!G14<=100,H14<=29),160,IF(AND(I8<=150,'Crop Budget (Main)'!G14<=120,H14<=29),175,IF(AND(I8<=150,'Crop Budget (Main)'!G14<=140,H14<=29),190,IF(AND(I8<=150,'Crop Budget (Main)'!G14<=160,H14<=29),205,IF(AND(I8<=150,'Crop Budget (Main)'!G14<=180,H14<=29),220,IF(AND(I8<=150,'Crop Budget (Main)'!G14>180,H14<=29),220,IF(AND(I8<=250,'Crop Budget (Main)'!G14<=100,H14<=29),110,IF(AND(I8<=250,'Crop Budget (Main)'!G14<=120,H14<=29),125,IF(AND(I8<=250,'Crop Budget (Main)'!G14<=140,H14<=29),140,IF(AND(I8<=250,'Crop Budget (Main)'!G14<=160,H14<=29),155,IF(AND(I8<=250,'Crop Budget (Main)'!G14<=180,H14<=29),170,IF(AND(I8<=250,'Crop Budget (Main)'!G14>180,H14<=29),170
A19: 30 | B19: 150
A20: 30 | B20: 200
A21: 30 | B21: 250
A22: 30 | B22: 360
A23: 30 | B23: 380
A24: 30 | B24: 400

Sheet Wheat K Calculations (hidden)
A1: 9 | B1: 50 | C1: IF(AND(M8<=50,'Crop Budget (Main)'!K14<=50,L14<=9),115,IF(AND(M8<=50,'Crop Budget (Main)'!K14<=60,L14<=9),130,IF(AND(M8<=50,'Crop Budget (Main)'!K14<=70,L14<=9),125,IF(AND(M8<=50,'Crop Budget (Main)'!K14<=80,L14<=9),130,IF(AND(M8<=50,'Crop Budget (Main)'!K14<=90,L14<=9),130,IF(AND(M8<=50,'Crop Budget (Main)'!K14>90,L14<=9),130
A2: 9 | B2: 100 | C2: IF(AND(M8<=100,'Crop Budget (Main)'!K14<=50,L14<=9),85,IF(AND(M8<=100,'Crop Budget (Main)'!K14<=60,L14<=9),90,IF(AND(M8<=100,'Crop Budget (Main)'!K14<=70,L14<=9),95,IF(AND(M8<=100,'Crop Budget (Main)'!K14<=80,L14<=9),95,IF(AND(M8<=100,'Crop Budget (Main)'!K14<=90,L14<=9),100,IF(AND(M8<=100,'Crop Budget (Main)'!K14>90,L14<=9),100
A3: 9 | B3: 150 | C3: IF(AND(M8<=150,'Crop Budget (Main)'!K14<=50,L14<=9),55,IF(AND(M8<=150,'Crop Budget (Main)'!K14<=60,L14<=9),60,IF(AND(M8<=150,'Crop Budget (Main)'!K14<=70,L14<=9),60,IF(AND(M8<=150,'Crop Budget (Main)'!K14<=80,L14<=9),65,IF(AND(M8<=150,'Crop Budget (Main)'!K14<=90,L14<=9),70,IF(AND(M8<=150,'Crop Budget (Main)'!K14>90,L14<=9),70
A4: 9 | B4: 235
A5: 9 | B5: 260
A6: 9 | B6: 280
A7: 19 | B7: 50 | C7: IF(AND(M8<=50,'Crop Budget (Main)'!K14<=50,L14<=19),150,IF(AND(M8<=50,'Crop Budget (Main)'!K14<=60,L14<=19),155,IF(AND(M8<=50,'Crop Budget (Main)'!K14<=70,L14<=19),160,IF(AND(M8<=50,'Crop Budget (Main)'!K14<=80,L14<=19),160,IF(AND(M8<=50,'Crop Budget (Main)'!K14<=90,L14<=19),165,IF(AND(M8<=50,'Crop Budget (Main)'!K14>90,L14<=19),165
A8: 19 | B8: 100 | C8: IF(AND(M8<=100,'Crop Budget (Main)'!K14<=50,L14<=19),115,IF(AND(M8<=100,'Crop Budget (Main)'!K14<=60,L14<=19),115,IF(AND(M8<=100,'Crop Budget (Main)'!K14<=70,L14<=19),120,IF(AND(M8<=100,'Crop Budget (Main)'!K14<=80,L14<=19),125,IF(AND(M8<=100,'Crop Budget (Main)'!K14<=90,L14<=19),130,IF(AND(M8<=100,'Crop Budget (Main)'!K14>90,L14<=19),130
A9: 19 | B9: 150 | C9: IF(AND(M8<=150,'Crop Budget (Main)'!K14<=50,L14<=19),75,IF(AND(M8<=150,'Crop Budget (Main)'!K14<=60,L14<=19),80,IF(AND(M8<=150,'Crop Budget (Main)'!K14<=70,L14<=19),85,IF(AND(M8<=150,'Crop Budget (Main)'!K14<=80,L14<=19),85,IF(AND(M8<=150,'Crop Budget (Main)'!K14<=90,L14<=19),90,IF(AND(M8<=150,'Crop Budget (Main)'!K14>90,L14<=19),90
A10: 19 | B10: 200 | C10: IF(AND(M8<=200,'Crop Budget (Main)'!K14<=50,L14<=19),40,IF(AND(M8<=200,'Crop Budget (Main)'!K14<=60,L14<=19),40,IF(AND(M8<=200,'Crop Budget (Main)'!K14<=70,L14<=19),45,IF(AND(M8<=200,'Crop Budget (Main)'!K14<=80,L14<=19),50,IF(AND(M8<=200,'Crop Budget (Main)'!K14<=90,L14<=19),50,IF(AND(M8<=200,'Crop Budget (Main)'!K14>90,L14<=19),50
A11: 19 | B11: 280
A12: 19 | B12: 300
A13: 29 | B13: 100 | C13: IF(AND(M8<=100,'Crop Budget (Main)'!K14<=50,L14<=29),190,IF(AND(M8<=100,'Crop Budget (Main)'!K14<=60,L14<=29),190,IF(AND(M8<=100,'Crop Budget (Main)'!K14<=70,L14<=29),195,IF(AND(M8<=100,'Crop Budget (Main)'!K14<=80,L14<=29),200,IF(AND(M8<=100,'Crop Budget (Main)'!K14<=90,L14<=29),205,IF(AND(M8<=100,'Crop Budget (Main)'!K14>90,L14<=29),205
A14: 29 | B14: 150 | C14: IF(AND(M8<=150,'Crop Budget (Main)'!K14<=50,L14<=29),140,IF(AND(M8<=150,'Crop Budget (Main)'!K14<=60,L14<=29),140,IF(AND(M8<=150,'Crop Budget (Main)'!K14<=70,L14<=29),145,IF(AND(M8<=150,'Crop Budget (Main)'!K14<=80,L14<=29),150,IF(AND(M8<=150,'Crop Budget (Main)'!K14<=90,L14<=29),155,IF(AND(M8<=150,'Crop Budget (Main)'!K14>90,L14<=29),155
A15: 29 | B15: 200 | C15: IF(AND(M8<=200,'Crop Budget (Main)'!K14<=50,L14<=29),90,IF(AND(M8<=200,'Crop Budget (Main)'!K14<=60,L14<=29),90,IF(AND(M8<=200,'Crop Budget (Main)'!K14<=70,L14<=29),95,IF(AND(M8<=200,'Crop Budget (Main)'!K14<=80,L14<=29),100,IF(AND(M8<=200,'Crop Budget (Main)'!K14<=90,L14<=29),105,IF(AND(M8<=200,'Crop Budget (Main)'!K14>90,L14<=29),105
A16: 29 | B16: 310
A17: 29 | B17: 330
A18: 29 | B18: 350 | D18: IF(AND(M8<=50,'Crop Budget (Main)'!K14<=50,L14<=9),115,IF(AND(M8<=50,'Crop Budget (Main)'!K14<=60,L14<=9),130,IF(AND(M8<=50,'Crop Budget (Main)'!K14<=70,L14<=9),125,IF(AND(M8<=50,'Crop Budget (Main)'!K14<=80,L14<=9),130,IF(AND(M8<=50,'Crop Budget (Main)'!K14<=90,L14<=9),130,IF(AND(M8<=50,'Crop Budget (Main)'!K14>90,L14<=9),130,IF(AND(M8<=100,'Crop Budget (Main)'!K14<=50,L14<=9),85,IF(AND(M8<=100,'Crop Budget (Main)'!K14<=60,L14<=9),90,IF(AND(M8<=100,'Crop Budget (Main)'!K14<=70,L14<=9),95,IF(AND(M8<=100,'Crop Budget (Main)'!K14<=80,L14<=9),95,IF(AND(M8<=100,'Crop Budget (Main)'!K14<=90,L14<=9),100,IF(AND(M8<=100,'Crop Budget (Main)'!K14>90,L14<=9),100,IF(AND(M8<=150,'Crop Budget (Main)'!K14<=50,L14<=9),55,IF(AND(M8<=150,'Crop Budget (Main)'!K14<=60,L14<=9),60,IF(AND(M8<=150,'Crop Budget (Main)'!K14<=70,L14<=9),60,IF(AND(M8<=150,'Crop Budget (Main)'!K14<=80,L14<=9),65,IF(AND(M8<=150,'Crop Budget (Main)'!K14<=90,L14<=9),70,IF(AND(M8<=150,'Crop Budget (Main)'!K14>90,L14<=9),70,IF(AND(M8<=50,'Crop Budget (Main)'!K14<=50,L14<=19),150,IF(AND(M8<=50,'Crop Budget (Main)'!K14<=60,L14<=19),155,IF(AND(M8<=50,'Crop Budget (Main)'!K14<=70,L14<=19),160,IF(AND(M8<=50,'Crop Budget (Main)'!K14<=80,L14<=19),160,IF(AND(M8<=50,'Crop Budget (Main)'!K14<=90,L14<=19),165,IF(AND(M8<=50,'Crop Budget (Main)'!K14>90,L14<=19),165,IF(AND(M8<=100,'Crop Budget (Main)'!K14<=50,L14<=19),115,IF(AND(M8<=100,'Crop Budget (Main)'!K14<=60,L14<=19),115,IF(AND(M8<=100,'Crop Budget (Main)'!K14<=70,L14<=19),120,IF(AND(M8<=100,'Crop Budget (Main)'!K14<=80,L14<=19),125,IF(AND(M8<=100,'Crop Budget (Main)'!K14<=90,L14<=19),130,IF(AND(M8<=100,'Crop Budget (Main)'!K14>90,L14<=19),130,IF(AND(M8<=150,'Crop Budget (Main)'!K14<=50,L14<=19),75,IF(AND(M8<=150,'Crop Budget (Main)'!K14<=60,L14<=19),80,IF(AND(M8<=150,'Crop Budget (Main)'!K14<=70,L14<=19),85,IF(AND(M8<=150,'Crop Budget (Main)'!K14<=80,L14<=19),85,IF(AND(M8<=150,'Crop Budget (Main)'!K14<=90,L14<=19),90,IF(AND(M8<=150,'Crop Budget (Main)'!K14>90,L14<=19),90,IF(AND(M8<=200,'Crop Budget (Main)'!K14<=50,L14<=19),40,IF(AND(M8<=200,'Crop Budget (Main)'!K14<=60,L14<=19),40,IF(AND(M8<=200,'Crop Budget (Main)'!K14<=70,L14<=19),45,IF(AND(M8<=200,'Crop Budget (Main)'!K14<=80,L14<=19),50,IF(AND(M8<=200,'Crop Budget (Main)'!K14<=90,L14<=19),50,IF(AND(M8<=200,'Crop Budget (Main)'!K14>90,L14<=19),50,IF(AND(M8<=100,'Crop Budget (Main)'!K14<=50,L14<=29),190,IF(AND(M8<=100,'Crop Budget (Main)'!K14<=60,L14<=29),190,IF(AND(M8<=100,'Crop Budget (Main)'!K14<=70,L14<=29),195,IF(AND(M8<=100,'Crop Budget (Main)'!K14<=80,L14<=29),200,IF(AND(M8<=100,'Crop Budget (Main)'!K14<=90,L14<=29),205,IF(AND(M8<=100,'Crop Budget (Main)'!K14>90,L14<=29),205,IF(AND(M8<=150,'Crop Budget (Main)'!K14<=50,L14<=29),140,IF(AND(M8<=150,'Crop Budget (Main)'!K14<=60,L14<=29),140,IF(AND(M8<=150,'Crop Budget (Main)'!K14<=70,L14<=29),145,IF(AND(M8<=150,'Crop Budget (Main)'!K14<=80,L14<=29),150,IF(AND(M8<=150,'Crop Budget (Main)'!K14<=90,L14<=29),155,IF(AND(M8<=150,'Crop Budget (Main)'!K14>90,L14<=29),155,IF(AND(M8<=200,'Crop Budget (Main)'!K14<=50,L14<=29),90,IF(AND(M8<=200,'Crop Budget (Main)'!K14<=60,L14<=29),90,IF(AND(M8<=200,'Crop Budget (Main)'!K14<=70,L14<=29),95,IF(AND(M8<=200,'Crop Budget (Main)'!K14<=80,L14<=29),100,IF(AND(M8<=200,'Crop Budget (Main)'!K14<=90,L14<=29),105,IF(AND(M8<=200,'Crop Budget (Main)'!K14>90,L14<=29),105
A19: 30 | B19: 150
A20: 30 | B20: 200
A21: 30 | B21: 250
A22: 30 | B22: 360
A23: 30 | B23: 380
A24: 30 | B24: 400

Sheet Fertilizer Products & Pricing
A1: 1 | B1: 2 | C1: 3 | D1: 4 | E1: 5 | F1: 6 | G1: 7 | H1: 8 | I1: 9 | J1: 10 | K1: 11 | L1: 12 | M1: 13 | N1: 14 | O1: 15 | P1: 16 | Q1: 17 | R1: 18
B2: Pounds per Material | R2: (Enter Below) | T2: Cost Per Lb Calculations | Y2: Lbs Per Purchase Unit | AC2: Total per Ton | AE2: Percentage of Total
A3: Macronutrients | B3: Nitrogen | C3: Phosphorus | D3: Potassium | E3: Sulfur | F3: Magnesium | G3: Calcium | H3: Zinc | I3: Boron | J3: Manganese | K3: Copper | L3: Molybdenum | M3: Iron | N3: Unit Size | O3: App Units | P3: Units/Pkg | Q3: Purchase Units | R3: Price/Unit | T3: N | U3: P | V3: K | W3: S | Y3: N | Z3: P | AA3: K | AB3: S | AD3: Inert Material | AE3: N | AF3: P | AG3: K | AH3: S | AI3: Inert Material
A4: None | P4: 1 | Q4: None | R4: 0
A5: Ammonium polyphosphate (10-34-0) | B5: =N5*0.1 -> 1.17 | C5: =N5*0.34 -> 3.978 | N5: 11.7 | O5: gal | P5: 2000 | Q5: Tons | R5: 0 | T5: =IFERROR($R5/($P5*(B5/$N5))*AE5,0) -> 0 | U5: =IFERROR($R5/($P5*(C5/$N5))*AF5,0) -> 0 | V5: =IFERROR($R5/($P5*(D5/$N5))*AG5,0) -> 0 | W5: =IFERROR($R5/($P5*(E5/$N5))*AH5,0) -> 0 | Y5: =2000*(B5/$N5) -> 200 | Z5: =2000*(C5/$N5) -> 680 | AA5: =2000*(D5/$N5) -> 0 | AB5: =2000*(E5/$N5) -> 0 | AC5: =Y5+Z5+AA5+AB5 -> 880 | AD5: =2000-AC5 -> 1120 | AE5: =Y5/AC5 -> 0.2272727273 | AF5: =Z5/AC5 -> 0.7727272727 | AG5: =AA5/AC5 -> 0 | AH5: =AB5/AC5 -> 0 | AK5: Note: | AL5: All listed product values are based on nutrient analysis from product labels
A6: AMS (21-0-0-24S) | B6: 0.21 | E6: 0.24 | N6: 1 | O6: lbs | P6: 2000 | Q6: Tons | R6: 0 | T6: 0 | U6: 0 | V6: 0 | W6: 0 | Y6: =2000*(B6/$N6) -> 420 | Z6: =2000*(C6/$N6) -> 0 | AA6: =2000*(D6/$N6) -> 0 | AB6: =2000*(E6/$N6) -> 480 | AC6: 900 | AD6: =2000-AC6 -> 1100 | AE6: =Y6/AC6 -> 0.4666666667 | AF6: =Z6/AC6 -> 0 | AG6: =AA6/AC6 -> 0 | AH6: =AB6/AC6 -> 0.5333333333
A7: Anhydrous (82-0-0) | B7: 0.82 | N7: 1 | O7: lbs | P7: 2000 | Q7: Tons | R7: 0 | T7: 0 | U7: 0 | V7: 0 | W7: 0 | Y7: 1640 | Z7: 0 | AA7: 0 | AB7: 0 | AC7: 1640 | AD7: 360 | AE7: 1 | AF7: 0 | AG7: 0 | AH7: 0
A8: DAP (18-46-0) | B8: 0.18 | C8: 0.46 | N8: 1 | O8: lbs | P8: 2000 | Q8: Tons | R8: 0 | T8: 0 | U8: 0 | V8: 0 | W8: 0 | Y8: 360 | Z8: 920 | AA8: 0 | AB8: 0 | AC8: 1280 | AD8: 720 | AE8: 0.28125 | AF8: 0.71875 | AG8: 0 | AH8: 0
A9: ESN (44-0-0) | B9: 0.44 | N9: 1 | O9: lbs | P9: 2000 | Q9: Tons | R9: 0 | T9: 0 | U9: 0 | V9: 0 | W9: 0 | Y9: 880 | Z9: 0 | AA9: 0 | AB9: 0 | AC9: 880 | AD9: 1120 | AE9: 1 | AF9: 0 | AG9: 0 | AH9: 0
A10: Gypsum (0-0-0-17S-21Ca) | E10: 0.17 | G10: 0.21 | N10: 1 | O10: lbs | P10: 2000 | Q10: Tons | R10: 0 | T10: 0 | U10: 0 | V10: 0 | W10: 0 | Y10: 0 | Z10: 0 | AA10: 0 | AB10: 340 | AC10: 340 | AD10: 1660 | AE10: 0 | AF10: 0 | AG10: 0 | AH10: 1
A11: K-Mag (0-0-22-11Mg-21S) | D11: 0.22 | E11: 0.21 | F11: 0.11 | N11: 1 | O11: lbs | P11: 2000 | Q11: Gallons | R11: 0 | T11: 0 | U11: 0 | V11: 0 | W11: 0 | Y11: 0 | Z11: 0 | AA11: 440 | AB11: 420 | AC11: 860 | AD11: 1140 | AE11: 0 | AF11: 0 | AG11: 0.511627907 | AH11: 0.488372093
A12: MAP (11-52-00) | B12: 0.11 | C12: 0.52 | N12: 1 | O12: lbs | P12: 2000 | Q12: Tons | R12: 0 | T12: 0 | U12: 0 | V12: 0 | W12: 0 | Y12: 220 | Z12: 1040 | AA12: 0 | AB12: 0 | AC12: 1260 | AD12: 740 | AE12: 0.1746031746 | AF12: 0.8253968254 | AG12: 0 | AH12: 0
A13: MESZ (12-40-0-10S-1Z) | B13: 0.12 | C13: 0.4 | E13: 0.1 | H13: 0.01 | N13: 1 | O13: lbs | P13: 2000 | Q13: Tons | R13: 0 | T13: 0 | U13: 0 | V13: 0 | W13: 0 | Y13: 240 | Z13: 800 | AA13: 0 | AB13: 200 | AC13: 1240 | AD13: 760 | AE13: 0.1935483871 | AF13: 0.6451612903 | AG13: 0 | AH13: 0.1612903226
A14: Potash (0-0-60) | D14: 0.6 | N14: 1 | O14: lbs | P14: 2000 | Q14: Tons | R14: 0 | T14: 0 | U14: 0 | V14: 0 | W14: 0 | Y14: 0 | Z14: 0 | AA14: 1200 | AB14: 0 | AC14: 1200 | AD14: 800 | AE14: 0 | AF14: 0 | AG14: 1 | AH14: 0
A15: Potassium Acetate (0-0-24) | D15: 0.24 | N15: 10.65 | O15: gal | P15: 2000 | Q15: Gallons | R15: 0 | T15: 0 | U15: 0 | V15: 0 | W15: 0 | Y15: 0 | Z15: 0 | AA15: 45.07042254 | AB15: 0 | AC15: 45.07042254 | AD15: 1954.929577 | AE15: 0 | AF15: 0 | AG15: 1 | AH15: 0
A16: Potassium Sulphate (0-0-52-18S) | D16: 0.52 | E16: 0.18 | N16: 1 | O16: lbs | P16: 2000 | Q16: Tons | R16: 0 | T16: 0 | U16: 0 | V16: 0 | W16: 0 | Y16: 0 | Z16: 0 | AA16: 1040 | AB16: 360 | AC16: 1400 | AD16: 600 | AE16: 0 | AF16: 0 | AG16: 0.7428571429 | AH16: 0.2571428571
A17: SuperU (46-0-0) | B17: 0.46 | N17: 1 | O17: lbs | P17: 2000 | Q17: Tons | R17: 0
A18: Thiosul (12-0-0-26) | B18: =N18*0.12 -> 1.3248 | E18: =N18*0.26 -> 2.8704 | N18: 11.04 | O18: gal | P18: 2000 | Q18: Tons | R18: 0 | T18: 0 | U18: 0 | V18: 0 | W18: 0 | Y18: 240 | Z18: 0 | AA18: 0 | AB18: 520 | AC18: 760 | AD18: 1240 | AE18: 0.3157894737 | AF18: 0 | AG18: 0 | AH18: 0.6842105263
A19: Triple Superphosphate (0-46-0) | C19: 0.46 | N19: 1 | O19: lbs | P19: 2000 | Q19: Tons | R19: 0 | T19: 0 | U19: 0 | V19: 0 | W19: 0 | Y19: 0 | Z19: 920 | AA19: 0 | AB19: 0 | AC19: 920 | AD19: 1080 | AE19: 0 | AF19: 1 | AG19: 0 | AH19: 0
A20: UAN 28% (28-0-0) | B20: =N20*0.28 -> 2.9876 | N20: 10.67 | O20: gal | P20: 2000 | Q20: Tons | R20: 0 | T20: 0 | U20: 0 | V20: 0 | W20: 0 | Y20: 560 | Z20: 0 | AA20: 0 | AB20: 0 | AC20: 560 | AD20: 1440 | AE20: 1 | AF20: 0 | AG20: 0 | AH20: 0
A21: UAN 32% (32-0-0) | B21: =N21*0.32 -> 3.5392 | N21: 11.06 | O21: gal | P21: 2000 | Q21: Tons | R21: 0 | T21: 0 | U21: 0 | V21: 0 | W21: 0 | Y21: 640 | Z21: 0 | AA21: 0 | AB21: 0 | AC21: 640 | AD21: 1360 | AE21: 1 | AF21: 0 | AG21: 0 | AH21: 0
A22: Urea (46-0-0) | B22: =0.46 -> 0.46 | N22: 1 | O22: lbs | P22: 2000 | Q22: Tons | R22: 0 | T22: 0 | U22: 0 | V22: 0 | W22: 0 | Y22: 920 | Z22: 0 | AA22: 0 | AB22: 0 | AC22: 920 | AD22: 1080 | AE22: 1 | AF22: 0 | AG22: 0 | AH22: 0
A23: 9-18-9 (liquid) | B23: 0.9873 | C23: 1.9746 | D23: 0.9873 | N23: 1 | O23: gal | P23: 1 | Q23: Gallons | R23: 0 | T23: 0 | U23: 0 | V23: 0 | W23: 0 | Y23: 1974.6 | Z23: 3949.2 | AA23: 1974.6 | AB23: 0 | AC23: 7898.4 | AD23: -5898.4 | AE23: 0.25 | AF23: 0.5 | AG23: 0.25 | AH23: 0
A24: 6-24-6 (liquid) | B24: 0.6654 | C24: 2.6616 | D24: 0.6654 | N24: 1 | O24: gal | P24: 1 | Q24: Gallons | R24: 0 | T24: 0 | U24: 0 | V24: 0 | W24: 0 | Y24: 1330.8 | Z24: 5323.2 | AA24: 1330.8 | AB24: 0 | AC24: 7984.8 | AD24: -5984.8 | AE24: 0.1666666667 | AF24: 0.6666666667 | AG24: 0.1666666667 | AH24: 0
A25: 6-12-12 (dry) | B25: 0.06 | C25: 0.12 | D25: 0.12 | N25: 1 | O25: lbs | P25: 2000 | Q25: Tons | R25: 0 | T25: 0 | U25: 0 | V25: 0 | W25: 0 | Y25: 120 | Z25: 240 | AA25: 240 | AB25: 0 | AC25: 600 | AD25: 1400 | AE25: 0.2 | AF25: 0.4 | AG25: 0.4 | AH25: 0
A26: 5-10-5 (dry) | B26: 0.05 | C26: 0.1 | D26: 0.05 | N26: 1 | O26: lbs | P26: 2000 | Q26: Tons | R26: 0 | T26: 0 | U26: 0 | V26: 0 | W26: 0 | Y26: 100 | Z26: 200 | AA26: 100 | AB26: 0 | AC26: 400 | AD26: 1600 | AE26: 0.25 | AF26: 0.5 | AG26: 0.25 | AH26: 0
A27: 3-18-18 (liquid) | B27: 0.351 | C27: 2.106 | D27: 2.106 | N27: 1 | O27: gal | P27: 1 | Q27: Gallons | R27: 0 | T27: 0 | U27: 0 | V27: 0 | W27: 0 | Y27: 702 | Z27: 4212 | AA27: 4212 | AB27: 0 | AC27: 9126 | AD27: -7126 | AE27: 0.07692307692 | AF27: 0.4615384615 | AG27: 0.4615384615 | AH27: 0
A28: 19-19-19 (dry) | B28: 0.19 | C28: 0.19 | D28: 0.19 | N28: 1 | O28: lbs | P28: 2000 | Q28: Tons | R28: 0 | T28: 0 | U28: 0 | V28: 0 | W28: 0 | Y28: 380 | Z28: 380 | AA28: 380 | AB28: 0 | AC28: 1140 | AD28: 860 | AE28: 0.3333333333 | AF28: 0.3333333333 | AG28: 0.3333333333 | AH28: 0
A29: 15-15-2 (liquid) | B29: 1.738 | C29: 1.65 | D29: 0.22 | N29: 1 | O29: gal | P29: 1 | Q29: Gallons | R29: 0 | T29: 0 | U29: 0 | V29: 0 | W29: 0 | Y29: 3476 | Z29: 3300 | AA29: 440 | AB29: 0 | AC29: 7216 | AD29: -5216 | AE29: 0.4817073171 | AF29: 0.4573170732 | AG29: 0.06097560976 | AH29: 0
A30: 15-15-15 (dry) | B30: 0.15 | C30: 0.15 | D30: 0.15 | N30: 1 | O30: lbs | P30: 2000 | Q30: Tons | R30: 0 | T30: 0 | U30: 0 | V30: 0 | W30: 0 | Y30: 300 | Z30: 300 | AA30: 300 | AB30: 0 | AC30: 900 | AD30: 1100 | AE30: 0.3333333333 | AF30: 0.3333333333 | AG30: 0.3333333333 | AH30: 0
A31: 12-24-24 (dry) | B31: 0.12 | C31: 0.24 | D31: 0.24 | N31: 1 | O31: lbs | P31: 2000 | Q31: Tons | R31: 0 | T31: 0 | U31: 0 | V31: 0 | W31: 0 | Y31: 240 | Z31: 480 | AA31: 480 | AB31: 0 | AC31: 1200 | AD31: 800 | AE31: 0.2 | AF31: 0.4 | AG31: 0.4 | AH31: 0
A32: 10-10-10 (dry) | B32: 0.1 | C32: 0.1 | D32: 0.1 | N32: 1 | O32: lbs | P32: 2000 | Q32: Tons | R32: 0 | T32: 0 | U32: 0 | V32: 0 | W32: 0 | Y32: 200 | Z32: 200 | AA32: 200 | AB32: 0 | AC32: 600 | AD32: 1400 | AE32: 0.3333333333 | AF32: 0.3333333333 | AG32: 0.3333333333 | AH32: 0
A33: Alfalfa Meal (5-1-2) | B33: 0.1 | C33: 0.02 | D33: 0.04 | N33: 1 | O33: lbs | P33: 50 | Q33: Pound | R33: 0 | Y33: 200 | Z33: 40 | AA33: 80 | AB33: 0 | AC33: 320 | AD33: 1680 | AE33: 0.625 | AF33: 0.125 | AG33: 0.25 | AH33: 0
A34: Blood Meal (15-0-0) | B34: 0.3 | N34: 1 | O34: lbs | P34: 50 | Q34: Pound | R34: 0 | AL34: Manure Resources
A35: Bone Meal (4-21-0) | B35: 0.08 | C35: 0.42 | N35: 1 | O35: lbs | P35: 50 | Q35: Pound | R35: 0 | AL35: Manure application methods and nitrogen losses (University of Minnesota)
A36: Chilean Nitrate (15-0-2) | B36: 0.3 | D36: 0.04 | N36: 1 | O36: lbs | P36: 50 | Q36: Pound | R36: 0 | AL36: Michigan GAAMPS | AN36: ← See table A4 in Manure Mgmt & Utilization section for approximate manure values in place of nutrient analysis
A37: Feather Meal (15-0-0) | B37: 0.3 | N37: 1 | O37: lbs | P37: 50 | Q37: Pound | R37: 0
A38: Greensand (0-1.5-5) | C38: 0.03 | D38: 0.1 | N38: 1 | O38: lbs | P38: 50 | Q38: Pound | R38: 0 | AL38: Note:
A39: Guano (10-3-1) | B39: 0.2 | C39: 0.06 | D39: 0.02 | N39: 1 | O39: lbs | P39: 50 | Q39: Pound | R39: 0 | AL39: If you are using manure or compost, for best results a nutrient analysis is highly recommended.
A40: Hoof & Horn Meal (16-0-0) | B40: 0.32 | N40: 1 | O40: lbs | P40: 50 | Q40: Pound | R40: 0
A41: Kelp Liquid (0-0-1) | D41: 0.12 | N41: 8.49 | O41: cups | P41: 16 | Q41: Gallons | R41: 0 | AL41: Manure Calculator
A42: Kelp Meal (2-1-6) | B42: 0.04 | C42: 0.02 | D42: 0.12 | N42: 1 | O42: lbs | P42: 50 | Q42: Pound | R42: 0 | AL42: Manure (Solid) | AP42: Days of Incorporation %
A43: Re-Vita Pro (5-4-5-9Ca) | B43: 0.1 | C43: 0.08 | D43: 0.1 | F43: 0.02 | N43: 1 | O43: lbs | P43: 50 | Q43: Pound | R43: 0 | AL43: N | AM43: P | AN43: K | AO43: S
A44: Rock Phosphate (0-3-0) | C44: 0.06 | N44: 1 | O44: lbs | P44: 50 | Q44: Pound | R44: 0 | AL44: 42 | AM44: 75 | AN44: 57 | AO44: 8 | AP44: >7 days
A45: Soy Hydrolysate (10-0-0) | B45: 0.02 | N45: 10.5 | O45: gal | P45: 1 | Q45: Gallons | R45: 0 | AL45: ='Manure and Nutrient Credits'!E38 -> 4.2 | AM45: ='Manure and Nutrient Credits'!F38 -> 7.5 | AN45: ='Manure and Nutrient Credits'!G38 -> 5.7 | AO45: ='Manure and Nutrient Credits'!H38 -> 0.8 | AP45: ←Incorporation Adjustment
A46: Safe Green Lawn (10-0-4-0.5S) | B46: 0.2 | D46: 0.08 | E46: 0.01 | N46: 1 | O46: lbs | P46: 50 | Q46: Pound | R46: 0
A47: Worm Castings (0.5-0.5-0.3) | B47: 0.01 | C47: 0.01 | D47: 0.006 | N47: 1 | O47: lbs | P47: 50 | Q47: Pound | R47: 0 | AL47: Manure (Liquid) | AP47: Days of Incorporation %
A48: Manure (solid) | B48: =AL45 -> 4.2 | C48: =AM45 -> 7.5 | D48: =AN45 -> 5.7 | E48: =AO45 -> 0.8 | N48: 2000 | O48: Tons | P48: 2000 | Q48: Tons | R48: 0 | S48: calculator → | T48: 0 | U48: 0 | V48: 0 | W48: 0 | Y48: 4.2 | Z48: 7.5 | AA48: 5.7 | AB48: 0.8 | AC48: 18.2 | AD48: 1981.8 | AE48: 0.2307692308 | AF48: 0.4120879121 | AG48: 0.3131868132 | AH48: 0.04395604396 | AL48: N | AM48: P | AN48: K | AO48: S
A49: Manure (liquid) | B49: =AL50 -> 4.3 | C49: =AM50 -> 1.7 | D49: =AN50 -> 3.8 | E49: =AO50 -> 1 | N49: 1 | O49: 1,000 gal | P49: 1 | Q49: Gallons | R49: 0 | S49: calculator → | AL49: 43 | AM49: 17 | AN49: 38 | AO49: 10 | AP49: >7 days
A50: Compost | B50: 0 | C50: 0 | D50: 0 | E50: 0 | F50: 0 | G50: 0 | H50: 0 | I50: 0 | J50: 0 | K50: 0 | L50: 0 | M50: 0 | N50: 0 | O50: 0 | P50: 0 | Q50: Enter | R50: 0 | T50: 0 | U50: 0 | V50: 0 | W50: 0 | AL50: ='Manure and Nutrient Credits'!E41 -> 4.3 | AM50: ='Manure and Nutrient Credits'!F41 -> 1.7 | AN50: ='Manure and Nutrient Credits'!G41 -> 3.8 | AO50: ='Manure and Nutrient Credits'!H41 -> 1 | AP50: ←Incorporation Adjustment
A51: Enter | B51: 0 | C51: 0 | D51: 0 | E51: 0 | F51: 0 | G51: 0 | H51: 0 | I51: 0 | J51: 0 | K51: 0 | L51: 0 | M51: 0 | N51: 0 | O51: 0 | P51: 0 | Q51: Enter | R51: 0
A52: Enter | B52: 0 | C52: 0 | D52: 0 | E52: 0 | F52: 0 | G52: 0 | H52: 0 | I52: 0 | J52: 0 | K52: 0 | L52: 0 | M52: 0 | N52: 0 | O52: 0 | P52: 0 | Q52: Enter | R52: 0 | AL52: *Do NOT use manure values if already input on Nutrient Management tab. This will double count values in fertilizer plan.
A53: Enter | B53: 0 | C53: 0 | D53: 0 | E53: 0 | F53: 0 | G53: 0 | H53: 0 | I53: 0 | J53: 0 | K53: 0 | L53: 0 | M53: 0 | N53: 0 | O53: 0 | P53: 0 | Q53: Enter | R53: 0
A54: Enter | B54: 0 | C54: 0 | D54: 0 | E54: 0 | F54: 0 | G54: 0 | H54: 0 | I54: 0 | J54: 0 | K54: 0 | L54: 0 | M54: 0 | N54: 0 | O54: 0 | P54: 0 | Q54: Enter | R54: 0 | T54: 0 | U54: 0 | V54: 0 | W54: 0
A55: Enter | B55: 0 | C55: 0 | D55: 0 | E55: 0 | F55: 0 | G55: 0 | H55: 0 | I55: 0 | J55: 0 | K55: 0 | L55: 0 | M55: 0 | N55: 0 | O55: 0 | P55: 0 | Q55: Enter | R55: 0 | T55: 0 | U55: 0 | V55: 0 | W55: 0
A56: Enter | B56: 0 | C56: 0 | D56: 0 | E56: 0 | F56: 0 | G56: 0 | H56: 0 | I56: 0 | J56: 0 | K56: 0 | L56: 0 | M56: 0 | N56: 0 | O56: 0 | P56: 0 | Q56: Enter | R56: 0 | T56: 0 | U56: 0 | V56: 0 | W56: 0
A57: Enter | B57: 0 | C57: 0 | D57: 0 | E57: 0 | F57: 0 | G57: 0 | H57: 0 | I57: 0 | J57: 0 | K57: 0 | L57: 0 | M57: 0 | N57: 0 | O57: Enter | P57: 0 | Q57: Enter | R57: 0 | T57: 0 | U57: 0 | V57: 0 | W57: 0
A60: Micronutrients | B60: Nitrogen | C60: Phosphorus | D60: Potassium | E60: Sulfur | F60: Magnesium | G60: Calcium | H60: Zinc | I60: Boron | J60: Manganese | K60: Copper | L60: Molybdenum | M60: Iron | N60: Unit Size | O60: App Units | P60: Units/Pkg | Q60: Purchase Units | R60: (Enter Below)
A61: None | P61: 1 | Q61: None | R61: 0
A62: Boron (14.3%) | I62: 0.143 | N62: 1 | O62: lbs | P62: 1 | Q62: Pound | R62: 0
A63: Zinc (35.5%) | H63: 0.355 | N63: 1 | O63: lbs | P63: 1 | Q63: Pound | R63: 0
A64: Zinc Liquid (12-0-0-12zn) | B64: 0.318 | H64: 0.318 | N64: 1 | O64: qts | P64: 4 | Q64: Gallons | R64: 0
A65: Boron Liquid (0-0-0-10B) | I65: =(11.12*0.25)*0.1 -> 0.278 | N65: 1 | O65: qts | P65: 4 | Q65: Gallons | R65: 0
A66: Manganese Sulfate | E66: 0.18 | J66: 0.33 | N66: 1 | O66: lbs | P66: 1 | Q66: Pound | R66: 0
A67: Zinc Sulphate | B67: 35.5 | E67: 0.185 | N67: 1 | O67: lbs | P67: 1 | Q67: Pound | R67: 0
A68: Magnesium Sulfate | E68: 0.14 | F68: 0.091 | N68: 1 | O68: lbs | P68: 1 | Q68: Pound | R68: 0
A69: Borosol 10 | I69: 0.1 | N69: 1 | O69: gal | P69: 1 | Q69: Gallons | R69: 0
A70: EDTA ZN (9%) | B70: 0.04 | H70: 0.09 | N70: 1 | O70: gal | P70: 1 | Q70: Gallons | R70: 0
A71: Enter | B71: 0 | C71: 0 | D71: 0 | E71: 0 | F71: 0 | G71: 0 | H71: 0 | I71: 0 | J71: 0 | K71: 0 | L71: 0 | M71: 0 | N71: 0 | O71: Enter | P71: 0 | Q71: Enter | R71: 0
A72: Enter | B72: 0 | C72: 0 | D72: 0 | E72: 0 | F72: 0 | G72: 0 | H72: 0 | I72: 0 | J72: 0 | K72: 0 | L72: 0 | M72: 0 | N72: 0 | O72: Enter | P72: 0 | Q72: Enter | R72: 0
A73: Enter | B73: 0 | C73: 0 | D73: 0 | E73: 0 | F73: 0 | G73: 0 | H73: 0 | I73: 0 | J73: 0 | K73: 0 | L73: 0 | M73: 0 | N73: 0 | O73: 0 | P73: 0 | Q73: Enter | R73: 0
A74: Enter | B74: 0 | C74: 0 | D74: 0 | E74: 0 | F74: 0 | G74: 0 | H74: 0 | I74: 0 | J74: 0 | K74: 0 | L74: 0 | M74: 0 | N74: 0 | O74: 0 | P74: 0 | Q74: Enter | R74: 0
A77: Lime | B77: Nitrogen | C77: Phosphorus | D77: Potassium | E77: Sulfur | F77: Magnesium | G77: Calcium | H77: Zinc | I77: Boron | J77: Manganese | K77: Copper | L77: Molybdenum | M77: Iron | N77: Unit Size | O77: App Units | P77: Units/Pkg | Q77: Purchase Units | R77: (Enter Below)
A78: None | P78: 1 | Q78: None | R78: 0
A79: Pelleted Lime | F79: 0.03 | G79: 0.22 | N79: 1 | O79: lbs | P79: 2000 | Q79: Ton | R79: 0
A80: Sugar Beet Lime | B80: 0.55 | C80: 0.01 | D80: 0.0036 | G80: 29 | N80: 1 | O80: tons | P80: 1 | Q80: Ton | R80: 0
A81: Dolometic | F81: 11 | G81: 42 | N81: 1 | O81: tons | P81: 1 | Q81: Ton | R81: 0
A82: High Calcium | G82: 80 | N82: 1 | O82: tons | P82: 1 | Q82: Ton | R82: 0
A83: Enter | B83: 0 | C83: 0 | D83: 0 | E83: 0 | F83: 0 | G83: 0 | H83: 0 | I83: 0 | J83: 0 | K83: 0 | L83: 0 | M83: 0 | N83: 0 | O83: Enter | P83: 0 | Q83: Enter | R83: 0
A84: Enter | B84: 0 | C84: 0 | D84: 0 | E84: 0 | F84: 0 | G84: 0 | H84: 0 | I84: 0 | J84: 0 | K84: 0 | L84: 0 | M84: 0 | N84: 0 | O84: Enter | P84: 0 | Q84: Enter | R84: 0
A85: Enter | B85: 0 | C85: 0 | D85: 0 | E85: 0 | F85: 0 | G85: 0 | H85: 0 | I85: 0 | J85: 0 | K85: 0 | L85: 0 | M85: 0 | N85: 0 | O85: Enter | P85: 0 | Q85: Enter | R85: 0
A86: Enter | B86: 0 | C86: 0 | D86: 0 | E86: 0 | F86: 0 | G86: 0 | H86: 0 | I86: 0 | J86: 0 | K86: 0 | L86: 0 | M86: 0 | N86: 0 | O86: Enter | P86: 0 | Q86: Enter | R86: 0
A89: Nitrogen Stabilizers | N89: Unit Size | O89: App Units | P89: Units/Pkg | Q89: Purchase Units | R89: (Enter Below)
A90: None | P90: 1 | Q90: None | R90: 0
A91: N-Serve | N91: 1 | O91: ozs | P91: 128 | Q91: Gallons | R91: 0
A92: Instinct | N92: 1 | O92: ozs | P92: 128 | Q92: Gallons | R92: 0
A93: Factor | N93: 1 | O93: qt/ton | P93: 4 | Q93: Gallons | R93: 0
A94: Nutrisphere | N94: 1 | O94: qt/ton | P94: 4 | Q94: Gallons | R94: 0
A95: Agrotain | N95: 1 | O95: qt/ton | P95: 4 | Q95: Gallons | R95: 0
A96: Enter | N96: 0 | O96: Enter | P96: 0 | Q96: Enter | R96: 0
A97: Enter | N97: 0 | O97: Enter | P97: 0 | Q97: Enter | R97: 0
A98: Enter | N98: 0 | O98: Enter | P98: 0 | Q98: Enter | R98: 0
A99: Enter | N99: 0 | O99: Enter | P99: 0 | Q99: Enter | R99: 0

Sheet Manure and Nutrient Credits (hidden)
A3: Select Previous Crop | B3: 0 | L3: Select Option Below
A4: Alfalfa, established | B4: 40 | L4: Nutrient Removal
A5: Alfalfa, seeding | B5: 40 | L5: Soil Test Based Recs
A6: Clover, established | B6: 40
A7: Clover, seeding | B7: 20
A8: Trefoil, established | B8: 40
A9: Barley + legume | B9: 30
A10: Oats + legume | B10: 30
A11: Wheat + legume | B11: 30
A12: Clover-grass hay | B12: 40
A13: Grass hay | B13: 40
A14: Dry edible beans | B14: 20
A15: Soybeans | B15: 30
A16: CRP land | B16: 40
A25: Days Before Incorporation | B25: Retention Factor | D25: Manure Nitrogen Multiplier (corn)
A26: ---- | B26: 1 | D26: Factor | E26: Nitrogen | F26: Phosphorus | G26: Potassium | H26: Sulfur
A27: 0-1 days | B27: 0.7 | D27: =VLOOKUP('Nutrient Management'!D37,'Manure and Nutrient Credits'!A26:B30,2,FALSE) -> 1 | E27: =$D$27*'Nutrient Management'!B34 -> 0 | F27: =$D$27*'Nutrient Management'!C34 -> 0 | G27: =$D$27*'Nutrient Management'!D34 -> 0 | H27: =$D$27*'Nutrient Management'!B36 -> 0
A28: 2-3 days | B28: 0.4 | D28: Manure Nitrogen Multiplier (soybeans)
A29: 4-7 days | B29: 0.2
A30: >7 days | B30: 0.1 | D30: =VLOOKUP('Nutrient Management'!H37,A26:B30,2,FALSE) -> 1 | E30: =$D$30*'Nutrient Management'!F34 -> 0 | F30: =$D$30*'Nutrient Management'!G34 -> 0 | G30: =$D$30*'Nutrient Management'!H34 -> 0 | H30: =$D$30*'Nutrient Management'!F36 -> 0
D31: Manure Nitrogen Multiplier (wheat)
D33: =VLOOKUP('Nutrient Management'!L37,A26:B30,2,FALSE) -> 1 | E33: =$D$33*'Nutrient Management'!J34 -> 0 | F33: =$D$33*'Nutrient Management'!K34 -> 0 | G33: =$D$33*'Nutrient Management'!L34 -> 0 | H33: =$D$33*'Nutrient Management'!J36 -> 0
A35: Fertilizer Products & Pricing
A36: Days Before Incorporation | B36: Retention Factor | D36: Manure (solid)
A37: ---- | B37: 1 | D37: Factor | E37: Nitrogen | F37: Phosphorus | G37: Potassium | H37: Sulfur
A38: 0-1 days | B38: 0.7 | D38: =VLOOKUP('Fertilizer Products & Pricing'!AP44,A37:B41,2,FALSE) -> 0.1 | E38: =$D$38*'Fertilizer Products & Pricing'!AL44 -> 4.2 | F38: =$D$38*'Fertilizer Products & Pricing'!AM44 -> 7.5 | G38: =$D$38*'Fertilizer Products & Pricing'!AN44 -> 5.7 | H38: =$D$38*'Fertilizer Products & Pricing'!AO44 -> 0.8
A39: 2-3 days | B39: 0.4 | D39: Manure (liquid)
A40: 4-7 days | B40: 0.2
A41: >7 days | B41: 0.1 | D41: =VLOOKUP('Fertilizer Products & Pricing'!AP49,A37:B41,2,FALSE) -> 0.1 | E41: =$D$41*'Fertilizer Products & Pricing'!AL49 -> 4.3 | F41: =$D$41*'Fertilizer Products & Pricing'!AM49 -> 1.7 | G41: =$D$41*'Fertilizer Products & Pricing'!AN49 -> 3.8 | H41: =$D$41*'Fertilizer Products & Pricing'!AO49 -> 1

Sheet Fertilizer Plan (Vegetable 1)
A1: ='Nutrient Management'!B2 -> Select Crop | M1: =A1 -> Select Crop | Y1: =A1 -> Select Crop
A2: Comparison Plan 1 | M2: Comparison Plan 2 | Y2: Comparison Plan 3
A3: 1st Application (i.e., Pre-Plant or Broadcast Fertilizer) | M3: 1st Application (i.e., Pre-Plant or Broadcast Fertilizer) | Y3: 1st Application (i.e., Pre-Plant or Broadcast Fertilizer)
A4: Fertilizer Source | B4: Purchase Units | C4: Package Price (Gals, Lbs, etc.) | D4: Units/Pkg | E4: Rate/Acre | F4: Units | G4: Cost | M4: Fertilizer Source | N4: Purchase Units | O4: Package Price (Gals, Lbs, etc.) | P4: Units/Pkg | Q4: Rate/Acre | R4: Units | S4: Cost | Y4: Fertilizer Source | Z4: Purchase Units | AA4: Package Price (Gals, Lbs, etc.) | AB4: Units/Pkg | AC4: Rate/Acre | AD4: Units | AE4: Cost
A5: Macronutrients (drop down menu) | E5: (Enter Below) | I5: N | J5: P | K5: K | M5: Macronutrients (drop down menu) | Q5: (Enter Below) | U5: N | V5: P | W5: K | Y5: Macronutrients (drop down menu) | AC5: (Enter Below) | AG5: N | AH5: P | AI5: K
A6: None | B6: =VLOOKUP(A6,Macronutrients,14,FALSE) -> 0 | C6: =VLOOKUP(A6,Macronutrients,18,FALSE) -> 0 | D6: =VLOOKUP(A6,Macronutrients,16,FALSE) -> 1 | E6: 0 | F6: =VLOOKUP(A6,Macronutrients,15,FALSE) -> 0 | G6: =(E6*VLOOKUP(A6,Macronutrients,14,FALSE)/D6)*C6 -> 0 | I6: =VLOOKUP(A6,Macronutrients,2,FALSE)*E6+VLOOKUP(A7,Macronutrients,2,FALSE)*E7+VLOOKUP(A8,Macronutrients,2,FALSE)*E8+VLOOKUP(A9,Macronutrients,2,FALSE)*E9+VLOOKUP(A10,Macronutrients,2,FALSE)*E10+VLOOKUP(A11,Macronutrients,2,FALSE)*E11+VLOOKUP(A14,Micronutrients,2,FALSE)*E14+VLOOKUP(A15,Micronutrients,2,FALSE)*E15+VLOOKUP(A16,Micronutrients,2,FALSE)*E16+VLOOKUP(A17,Micronutrients,2,FALSE)*E17 -> 0 | J6: =VLOOKUP(A6,Macronutrients,3,FALSE)*E6+VLOOKUP(A7,Macronutrients,3,FALSE)*E7+VLOOKUP(A8,Macronutrients,3,FALSE)*E8+VLOOKUP(A9,Macronutrients,3,FALSE)*E9+VLOOKUP(A10,Macronutrients,3,FALSE)*E10+VLOOKUP(A11,Macronutrients,3,FALSE)*E11+VLOOKUP(A14,Micronutrients,3,FALSE)*E14+VLOOKUP(A15,Micronutrients,3,FALSE)*E15+VLOOKUP(A16,Micronutrients,3,FALSE)*E16+VLOOKUP(A17,Micronutrients,3,FALSE)*E17 -> 0 | K6: =VLOOKUP(A6,Macronutrients,4,FALSE)*E6+VLOOKUP(A7,Macronutrients,4,FALSE)*E7+VLOOKUP(A8,Macronutrients,4,FALSE)*E8+VLOOKUP(A9,Macronutrients,4,FALSE)*E9+VLOOKUP(A10,Macronutrients,4,FALSE)*E10+VLOOKUP(A11,Macronutrients,4,FALSE)*E11+VLOOKUP(A14,Micronutrients,4,FALSE)*E14+VLOOKUP(A15,Micronutrients,4,FALSE)*E15+VLOOKUP(A16,Micronutrients,4,FALSE)*E16+VLOOKUP(A17,Micronutrients,4,FALSE)*E17 -> 0 | M6: None | N6: =VLOOKUP(M6,Macronutrients,14,FALSE) -> 0 | O6: =VLOOKUP(M6,Macronutrients,18,FALSE) -> 0 | P6: =VLOOKUP(M6,Macronutrients,16,FALSE) -> 1 | Q6: 0 | R6: =VLOOKUP(M6,Macronutrients,15,FALSE) -> 0 | S6: =(Q6*VLOOKUP(M6,Macronutrients,14,FALSE)/P6)*O6 -> 0 | U6: =VLOOKUP(M6,Macronutrients,2,FALSE)*Q6+VLOOKUP(M7,Macronutrients,2,FALSE)*Q7+VLOOKUP(M8,Macronutrients,2,FALSE)*Q8+VLOOKUP(M9,Macronutrients,2,FALSE)*Q9+VLOOKUP(M10,Macronutrients,2,FALSE)*Q10+VLOOKUP(M11,Macronutrients,2,FALSE)*Q11+VLOOKUP(M14,Micronutrients,2,FALSE)*Q14+VLOOKUP(M15,Micronutrients,2,FALSE)*Q15+VLOOKUP(M16,Micronutrients,2,FALSE)*Q16+VLOOKUP(M17,Micronutrients,2,FALSE)*Q17 -> 0 | V6: =VLOOKUP(M6,Macronutrients,3,FALSE)*Q6+VLOOKUP(M7,Macronutrients,3,FALSE)*Q7+VLOOKUP(M8,Macronutrients,3,FALSE)*Q8+VLOOKUP(M9,Macronutrients,3,FALSE)*Q9+VLOOKUP(M10,Macronutrients,3,FALSE)*Q10+VLOOKUP(M11,Macronutrients,3,FALSE)*Q11+VLOOKUP(M14,Micronutrients,3,FALSE)*Q14+VLOOKUP(M15,Micronutrients,3,FALSE)*Q15+VLOOKUP(M16,Micronutrients,3,FALSE)*Q16+VLOOKUP(M17,Micronutrients,3,FALSE)*Q17 -> 0 | W6: =VLOOKUP(M6,Macronutrients,4,FALSE)*Q6+VLOOKUP(M7,Macronutrients,4,FALSE)*Q7+VLOOKUP(M8,Macronutrients,4,FALSE)*Q8+VLOOKUP(M9,Macronutrients,4,FALSE)*Q9+VLOOKUP(M10,Macronutrients,4,FALSE)*Q10+VLOOKUP(M11,Macronutrients,4,FALSE)*Q11+VLOOKUP(M14,Micronutrients,4,FALSE)*Q14+VLOOKUP(M15,Micronutrients,4,FALSE)*Q15+VLOOKUP(M16,Micronutrients,4,FALSE)*Q16+VLOOKUP(M17,Micronutrients,4,FALSE)*Q17 -> 0 | Y6: None | Z6: =VLOOKUP(Y6,Macronutrients,14,FALSE) -> 0 | AA6: =VLOOKUP(Y6,Macronutrients,18,FALSE) -> 0 | AB6: =VLOOKUP(Y6,Macronutrients,16,FALSE) -> 1 | AC6: 0 | AD6: =VLOOKUP(Y6,Macronutrients,15,FALSE) -> 0 | AE6: =(AC6*VLOOKUP(Y6,Macronutrients,14,FALSE)/AB6)*AA6 -> 0 | AG6: =VLOOKUP(Y6,Macronutrients,2,FALSE)*AC6+VLOOKUP(Y7,Macronutrients,2,FALSE)*AC7+VLOOKUP(Y8,Macronutrients,2,FALSE)*AC8+VLOOKUP(Y9,Macronutrients,2,FALSE)*AC9+VLOOKUP(Y10,Macronutrients,2,FALSE)*AC10+VLOOKUP(Y11,Macronutrients,2,FALSE)*AC11+VLOOKUP(Y14,Micronutrients,2,FALSE)*AC14+VLOOKUP(Y15,Micronutrients,2,FALSE)*AC15+VLOOKUP(Y16,Micronutrients,2,FALSE)*AC16+VLOOKUP(Y17,Micronutrients,2,FALSE)*AC17 -> 0 | AH6: =VLOOKUP(Y6,Macronutrients,3,FALSE)*AC6+VLOOKUP(Y7,Macronutrients,3,FALSE)*AC7+VLOOKUP(Y8,Macronutrients,3,FALSE)*AC8+VLOOKUP(Y9,Macronutrients,3,FALSE)*AC9+VLOOKUP(Y10,Macronutrients,3,FALSE)*AC10+VLOOKUP(Y11,Macronutrients,3,FALSE)*AC11+VLOOKUP(Y14,Micronutrients,3,FALSE)*AC14+VLOOKUP(Y15,Micronutrients,3,FALSE)*AC15+VLOOKUP(Y16,Micronutrients,3,FALSE)*AC16+VLOOKUP(Y17,Micronutrients,3,FALSE)*AC17 -> 0 | AI6: =VLOOKUP(Y6,Macronutrients,4,FALSE)*AC6+VLOOKUP(Y7,Macronutrients,4,FALSE)*AC7+VLOOKUP(Y8,Macronutrients,4,FALSE)*AC8+VLOOKUP(Y9,Macronutrients,4,FALSE)*AC9+VLOOKUP(Y10,Macronutrients,4,FALSE)*AC10+VLOOKUP(Y11,Macronutrients,4,FALSE)*AC11+VLOOKUP(Y14,Micronutrients,4,FALSE)*AC14+VLOOKUP(Y15,Micronutrients,4,FALSE)*AC15+VLOOKUP(Y16,Micronutrients,4,FALSE)*AC16+VLOOKUP(Y17,Micronutrients,4,FALSE)*AC17 -> 0
A7: None | B7: =VLOOKUP(A7,Macronutrients,14,FALSE) -> 0 | C7: 0 | D7: 1 | E7: 0 | F7: 0 | G7: 0 | M7: None | N7: 0 | O7: 0 | P7: 1 | Q7: 0 | R7: 0 | S7: 0 | Y7: None | Z7: 0 | AA7: 0 | AB7: 1 | AC7: 0 | AD7: 0 | AE7: 0
A8: None | B8: 0 | C8: 0 | D8: 1 | E8: 0 | F8: 0 | G8: 0 | I8: S | J8: Ca | K8: Mg | M8: None | N8: 0 | O8: 0 | P8: 1 | Q8: 0 | R8: 0 | S8: 0 | U8: S | V8: Ca | W8: Mg | Y8: None | Z8: 0 | AA8: 0 | AB8: 1 | AC8: 0 | AD8: 0 | AE8: 0 | AG8: S | AH8: Ca | AI8: Mg
A9: None | B9: 0 | C9: 0 | D9: 1 | E9: 0 | F9: 0 | G9: 0 | I9: =VLOOKUP(A6,Macronutrients,5,FALSE)*E6+VLOOKUP(A7,Macronutrients,5,FALSE)*E7+VLOOKUP(A8,Macronutrients,5,FALSE)*E8+VLOOKUP(A9,Macronutrients,5,FALSE)*E9+VLOOKUP(A10,Macronutrients,5,FALSE)*E10+VLOOKUP(A11,Macronutrients,5,FALSE)*E11+VLOOKUP(A14,Micronutrients,5,FALSE)*E14+VLOOKUP(A15,Micronutrients,5,FALSE)*E15+VLOOKUP(A16,Micronutrients,5,FALSE)*E16+VLOOKUP(A17,Micronutrients,5,FALSE)*E17+VLOOKUP(A20,Lime,5,FALSE)*E20 -> 0 | J9: =VLOOKUP(A6,Macronutrients,7,FALSE)*E6+VLOOKUP(A7,Macronutrients,7,FALSE)*E7+VLOOKUP(A8,Macronutrients,7,FALSE)*E8+VLOOKUP(A9,Macronutrients,7,FALSE)*E9+VLOOKUP(A10,Macronutrients,7,FALSE)*E10+VLOOKUP(A11,Macronutrients,7,FALSE)*E11+VLOOKUP(A14,Micronutrients,7,FALSE)*E14+VLOOKUP(A15,Micronutrients,7,FALSE)*E15+VLOOKUP(A16,Micronutrients,7,FALSE)*E16+VLOOKUP(A17,Micronutrients,7,FALSE)*E17+VLOOKUP(A20,Lime,7,FALSE)*E20 -> 0 | K9: =VLOOKUP($A6,Macronutrients,6,FALSE)*$E$6+VLOOKUP($A7,Macronutrients,6,FALSE)*$E$7+VLOOKUP($A8,Macronutrients,6,FALSE)*$E$8+VLOOKUP($A9,Macronutrients,6,FALSE)*$E$9+VLOOKUP($A10,Macronutrients,6,FALSE)*$E$10+VLOOKUP($A11,Macronutrients,6,FALSE)*$E$11+VLOOKUP($A14,Micronutrients,6,FALSE)*$E$14+VLOOKUP($A15,Micronutrients,6,FALSE)*E15+VLOOKUP($A16,Micronutrients,6,FALSE)*$E$16+VLOOKUP($A17,Micronutrients,6,FALSE)*$E$17+VLOOKUP($A20,Lime,6,FALSE)*E20 -> 0 | M9: None | N9: 0 | O9: 0 | P9: 1 | Q9: 0 | R9: 0 | S9: 0 | U9: =VLOOKUP(M6,Macronutrients,5,FALSE)*Q6+VLOOKUP(M7,Macronutrients,5,FALSE)*Q7+VLOOKUP(M8,Macronutrients,5,FALSE)*Q8+VLOOKUP(M9,Macronutrients,5,FALSE)*Q9+VLOOKUP(M10,Macronutrients,5,FALSE)*Q10+VLOOKUP(M11,Macronutrients,5,FALSE)*Q11+VLOOKUP(M14,Micronutrients,5,FALSE)*Q14+VLOOKUP(M15,Micronutrients,5,FALSE)*Q15+VLOOKUP(M16,Micronutrients,5,FALSE)*Q16+VLOOKUP(M17,Micronutrients,5,FALSE)*Q17+VLOOKUP(M20,Lime,5,FALSE)*Q20 -> 0 | V9: =VLOOKUP(M6,Macronutrients,7,FALSE)*Q6+VLOOKUP(M7,Macronutrients,7,FALSE)*Q7+VLOOKUP(M8,Macronutrients,7,FALSE)*Q8+VLOOKUP(M9,Macronutrients,7,FALSE)*Q9+VLOOKUP(M10,Macronutrients,7,FALSE)*Q10+VLOOKUP(M11,Macronutrients,7,FALSE)*Q11+VLOOKUP(M14,Micronutrients,7,FALSE)*Q14+VLOOKUP(M15,Micronutrients,7,FALSE)*Q15+VLOOKUP(M16,Micronutrients,7,FALSE)*Q16+VLOOKUP(M17,Micronutrients,7,FALSE)*Q17+VLOOKUP(M20,Lime,7,FALSE)*Q20 -> 0 | W9: =VLOOKUP($A6,Macronutrients,6,FALSE)*$E$6+VLOOKUP($A7,Macronutrients,6,FALSE)*$E$7+VLOOKUP($A8,Macronutrients,6,FALSE)*$E$8+VLOOKUP($A9,Macronutrients,6,FALSE)*$E$9+VLOOKUP($A10,Macronutrients,6,FALSE)*$E$10+VLOOKUP($A11,Macronutrients,6,FALSE)*$E$11+VLOOKUP($A14,Micronutrients,6,FALSE)*$E$14+VLOOKUP($A15,Micronutrients,6,FALSE)*Q15+VLOOKUP($A16,Micronutrients,6,FALSE)*$E$16+VLOOKUP($A17,Micronutrients,6,FALSE)*$E$17+VLOOKUP($A20,Lime,6,FALSE)*Q20 -> 0 | Y9: None | Z9: 0 | AA9: 0 | AB9: 1 | AC9: 0 | AD9: 0 | AE9: 0 | AG9: =VLOOKUP(Y6,Macronutrients,5,FALSE)*AC6+VLOOKUP(Y7,Macronutrients,5,FALSE)*AC7+VLOOKUP(Y8,Macronutrients,5,FALSE)*AC8+VLOOKUP(Y9,Macronutrients,5,FALSE)*AC9+VLOOKUP(Y10,Macronutrients,5,FALSE)*AC10+VLOOKUP(Y11,Macronutrients,5,FALSE)*AC11+VLOOKUP(Y14,Micronutrients,5,FALSE)*AC14+VLOOKUP(Y15,Micronutrients,5,FALSE)*AC15+VLOOKUP(Y16,Micronutrients,5,FALSE)*AC16+VLOOKUP(Y17,Micronutrients,5,FALSE)*AC17+VLOOKUP(Y20,Lime,5,FALSE)*AC20 -> 0 | AH9: =VLOOKUP(Y6,Macronutrients,7,FALSE)*AC6+VLOOKUP(Y7,Macronutrients,7,FALSE)*AC7+VLOOKUP(Y8,Macronutrients,7,FALSE)*AC8+VLOOKUP(Y9,Macronutrients,7,FALSE)*AC9+VLOOKUP(Y10,Macronutrients,7,FALSE)*AC10+VLOOKUP(Y11,Macronutrients,7,FALSE)*AC11+VLOOKUP(Y14,Micronutrients,7,FALSE)*AC14+VLOOKUP(Y15,Micronutrients,7,FALSE)*AC15+VLOOKUP(Y16,Micronutrients,7,FALSE)*AC16+VLOOKUP(Y17,Micronutrients,7,FALSE)*AC17+VLOOKUP(Y20,Lime,7,FALSE)*AC20 -> 0 | AI9: =VLOOKUP($A6,Macronutrients,6,FALSE)*$E$6+VLOOKUP($A7,Macronutrients,6,FALSE)*$E$7+VLOOKUP($A8,Macronutrients,6,FALSE)*$E$8+VLOOKUP($A9,Macronutrients,6,FALSE)*$E$9+VLOOKUP($A10,Macronutrients,6,FALSE)*$E$10+VLOOKUP($A11,Macronutrients,6,FALSE)*$E$11+VLOOKUP($A14,Micronutrients,6,FALSE)*$E$14+VLOOKUP($A15,Micronutrients,6,FALSE)*AC15+VLOOKUP($A16,Micronutrients,6,FALSE)*$E$16+VLOOKUP($A17,Micronutrients,6,FALSE)*$E$17+VLOOKUP($A20,Lime,6,FALSE)*AC20 -> 0
A10: None | B10: 0 | C10: 0 | D10: 1 | E10: 0 | F10: 0 | G10: 0 | M10: None | N10: 0 | O10: 0 | P10: 1 | Q10: 0 | R10: 0 | S10: 0 | Y10: None | Z10: 0 | AA10: 0 | AB10: 1 | AC10: 0 | AD10: 0 | AE10: 0
A11: None | B11: 0 | C11: 0 | D11: 1 | E11: 0 | F11: 0 | G11: 0 | I11: Z | J11: B | K11: Mn | M11: None | N11: 0 | O11: 0 | P11: 1 | Q11: 0 | R11: 0 | S11: 0 | U11: Z | V11: B | W11: Mn | Y11: None | Z11: 0 | AA11: 0 | AB11: 1 | AC11: 0 | AD11: 0 | AE11: 0 | AG11: Z | AH11: B | AI11: Mn
I12: =VLOOKUP(A6,Macronutrients,8,FALSE)*E6+VLOOKUP(A7,Macronutrients,8,FALSE)*E7+VLOOKUP(A8,Macronutrients,8,FALSE)*E8+VLOOKUP(A9,Macronutrients,8,FALSE)*E9+VLOOKUP(A10,Macronutrients,8,FALSE)*E10+VLOOKUP(A11,Macronutrients,8,FALSE)*E11+VLOOKUP(A14,Micronutrients,8,FALSE)*E14+VLOOKUP(A15,Micronutrients,8,FALSE)*E15+VLOOKUP(A16,Micronutrients,8,FALSE)*E16+VLOOKUP(A17,Micronutrients,8,FALSE)*E17+VLOOKUP(A20,Lime,8,FALSE)*E20 -> 0 | J12: =VLOOKUP(A6,Macronutrients,9,FALSE)*E6+VLOOKUP(A7,Macronutrients,9,FALSE)*E7+VLOOKUP(A8,Macronutrients,9,FALSE)*E8+VLOOKUP(A9,Macronutrients,9,FALSE)*E9+VLOOKUP(A10,Macronutrients,9,FALSE)*E10+VLOOKUP(A11,Macronutrients,9,FALSE)*E11+VLOOKUP(A14,Micronutrients,9,FALSE)*E14+VLOOKUP(A15,Micronutrients,9,FALSE)*E15+VLOOKUP(A16,Micronutrients,9,FALSE)*E16+VLOOKUP(A17,Micronutrients,9,FALSE)*E17+VLOOKUP(A20,Lime,9,FALSE)*E20 -> 0 | K12: =VLOOKUP(A6,Macronutrients,10,FALSE)*E6+VLOOKUP(A7,Macronutrients,10,FALSE)*E7+VLOOKUP(A8,Macronutrients,10,FALSE)*E8+VLOOKUP(A9,Macronutrients,10,FALSE)*E9+VLOOKUP(A10,Macronutrients,10,FALSE)*E10+VLOOKUP(A11,Macronutrients,10,FALSE)*E11+VLOOKUP(A14,Micronutrients,10,FALSE)*E14+VLOOKUP(A15,Micronutrients,10,FALSE)*E15+VLOOKUP(A16,Micronutrients,10,FALSE)*E16+VLOOKUP(A17,Micronutrients,10,FALSE)*E17+VLOOKUP(A20,Lime,10,FALSE)*E20 -> 0 | U12: =VLOOKUP(M6,Macronutrients,8,FALSE)*Q6+VLOOKUP(M7,Macronutrients,8,FALSE)*Q7+VLOOKUP(M8,Macronutrients,8,FALSE)*Q8+VLOOKUP(M9,Macronutrients,8,FALSE)*Q9+VLOOKUP(M10,Macronutrients,8,FALSE)*Q10+VLOOKUP(M11,Macronutrients,8,FALSE)*Q11+VLOOKUP(M14,Micronutrients,8,FALSE)*Q14+VLOOKUP(M15,Micronutrients,8,FALSE)*Q15+VLOOKUP(M16,Micronutrients,8,FALSE)*Q16+VLOOKUP(M17,Micronutrients,8,FALSE)*Q17+VLOOKUP(M20,Lime,8,FALSE)*Q20 -> 0 | V12: =VLOOKUP(M6,Macronutrients,9,FALSE)*Q6+VLOOKUP(M7,Macronutrients,9,FALSE)*Q7+VLOOKUP(M8,Macronutrients,9,FALSE)*Q8+VLOOKUP(M9,Macronutrients,9,FALSE)*Q9+VLOOKUP(M10,Macronutrients,9,FALSE)*Q10+VLOOKUP(M11,Macronutrients,9,FALSE)*Q11+VLOOKUP(M14,Micronutrients,9,FALSE)*Q14+VLOOKUP(M15,Micronutrients,9,FALSE)*Q15+VLOOKUP(M16,Micronutrients,9,FALSE)*Q16+VLOOKUP(M17,Micronutrients,9,FALSE)*Q17+VLOOKUP(M20,Lime,9,FALSE)*Q20 -> 0 | W12: =VLOOKUP(M6,Macronutrients,10,FALSE)*Q6+VLOOKUP(M7,Macronutrients,10,FALSE)*Q7+VLOOKUP(M8,Macronutrients,10,FALSE)*Q8+VLOOKUP(M9,Macronutrients,10,FALSE)*Q9+VLOOKUP(M10,Macronutrients,10,FALSE)*Q10+VLOOKUP(M11,Macronutrients,10,FALSE)*Q11+VLOOKUP(M14,Micronutrients,10,FALSE)*Q14+VLOOKUP(M15,Micronutrients,10,FALSE)*Q15+VLOOKUP(M16,Micronutrients,10,FALSE)*Q16+VLOOKUP(M17,Micronutrients,10,FALSE)*Q17+VLOOKUP(M20,Lime,10,FALSE)*Q20 -> 0 | AG12: =VLOOKUP(Y6,Macronutrients,8,FALSE)*AC6+VLOOKUP(Y7,Macronutrients,8,FALSE)*AC7+VLOOKUP(Y8,Macronutrients,8,FALSE)*AC8+VLOOKUP(Y9,Macronutrients,8,FALSE)*AC9+VLOOKUP(Y10,Macronutrients,8,FALSE)*AC10+VLOOKUP(Y11,Macronutrients,8,FALSE)*AC11+VLOOKUP(Y14,Micronutrients,8,FALSE)*AC14+VLOOKUP(Y15,Micronutrients,8,FALSE)*AC15+VLOOKUP(Y16,Micronutrients,8,FALSE)*AC16+VLOOKUP(Y17,Micronutrients,8,FALSE)*AC17+VLOOKUP(Y20,Lime,8,FALSE)*AC20 -> 0 | AH12: =VLOOKUP(Y6,Macronutrients,9,FALSE)*AC6+VLOOKUP(Y7,Macronutrients,9,FALSE)*AC7+VLOOKUP(Y8,Macronutrients,9,FALSE)*AC8+VLOOKUP(Y9,Macronutrients,9,FALSE)*AC9+VLOOKUP(Y10,Macronutrients,9,FALSE)*AC10+VLOOKUP(Y11,Macronutrients,9,FALSE)*AC11+VLOOKUP(Y14,Micronutrients,9,FALSE)*AC14+VLOOKUP(Y15,Micronutrients,9,FALSE)*AC15+VLOOKUP(Y16,Micronutrients,9,FALSE)*AC16+VLOOKUP(Y17,Micronutrients,9,FALSE)*AC17+VLOOKUP(Y20,Lime,9,FALSE)*AC20 -> 0 | AI12: =VLOOKUP(Y6,Macronutrients,10,FALSE)*AC6+VLOOKUP(Y7,Macronutrients,10,FALSE)*AC7+VLOOKUP(Y8,Macronutrients,10,FALSE)*AC8+VLOOKUP(Y9,Macronutrients,10,FALSE)*AC9+VLOOKUP(Y10,Macronutrients,10,FALSE)*AC10+VLOOKUP(Y11,Macronutrients,10,FALSE)*AC11+VLOOKUP(Y14,Micronutrients,10,FALSE)*AC14+VLOOKUP(Y15,Micronutrients,10,FALSE)*AC15+VLOOKUP(Y16,Micronutrients,10,FALSE)*AC16+VLOOKUP(Y17,Micronutrients,10,FALSE)*AC17+VLOOKUP(Y20,Lime,10,FALSE)*AC20 -> 0
A13: Micronutrients (drop down menu) | M13: Micronutrients (drop down menu) | Y13: Micronutrients (drop down menu)
A14: None | B14: =VLOOKUP($A14,Micronutrients,14,FALSE) -> 0 | C14: =VLOOKUP(A14,Micronutrients,18,FALSE) -> 0 | D14: =VLOOKUP(A14,Micronutrients,16,FALSE) -> 1 | E14: 0 | F14: =VLOOKUP(A14,Micronutrients,15,FALSE) -> 0 | G14: =(E14*VLOOKUP(A14,Micronutrients,14,FALSE)/D14)*C14 -> 0 | I14: Cu | J14: Mo | K14: Fe | M14: None | N14: =VLOOKUP(M14,Micronutrients,14,FALSE) -> 0 | O14: =VLOOKUP(M14,Micronutrients,18,FALSE) -> 0 | P14: =VLOOKUP(M14,Micronutrients,16,FALSE) -> 1 | Q14: 0 | R14: =VLOOKUP(M14,Micronutrients,15,FALSE) -> 0 | S14: =(Q14*VLOOKUP(M14,Micronutrients,14,FALSE)/P14)*O14 -> 0 | U14: Cu | V14: Mo | W14: Fe | Y14: None | Z14: =VLOOKUP(Y14,Micronutrients,14,FALSE) -> 0 | AA14: =VLOOKUP(Y14,Micronutrients,18,FALSE) -> 0 | AB14: =VLOOKUP(Y14,Micronutrients,16,FALSE) -> 1 | AC14: 0 | AD14: =VLOOKUP(Y14,Micronutrients,15,FALSE) -> 0 | AE14: =(AC14*VLOOKUP(Y14,Micronutrients,14,FALSE)/AB14)*AA14 -> 0 | AG14: Cu | AH14: Mo | AI14: Fe
A15: None | B15: =VLOOKUP($A15,Micronutrients,14,FALSE) -> 0 | C15: =VLOOKUP(A15,Micronutrients,18,FALSE) -> 0 | D15: =VLOOKUP(A15,Micronutrients,16,FALSE) -> 1 | E15: 0 | F15: =VLOOKUP(A15,Micronutrients,15,FALSE) -> 0 | G15: =(E15*VLOOKUP(A15,Micronutrients,14,FALSE)/D15)*C15 -> 0 | I15: =VLOOKUP(A6,Macronutrients,11,FALSE)*E6+VLOOKUP(A7,Macronutrients,11,FALSE)*E7+VLOOKUP(A8,Macronutrients,11,FALSE)*E8+VLOOKUP(A9,Macronutrients,11,FALSE)*E9+VLOOKUP(A10,Macronutrients,11,FALSE)*E10+VLOOKUP(A11,Macronutrients,11,FALSE)*E11+VLOOKUP(A14,Micronutrients,11,FALSE)*E14+VLOOKUP(A15,Micronutrients,11,FALSE)*E15+VLOOKUP(A16,Micronutrients,11,FALSE)*E16+VLOOKUP(A17,Micronutrients,11,FALSE)*E17+VLOOKUP(A20,Lime,11,FALSE)*E20 -> 0 | J15: =VLOOKUP(A6,Macronutrients,12,FALSE)*E6+VLOOKUP(A7,Macronutrients,12,FALSE)*E7+VLOOKUP(A8,Macronutrients,12,FALSE)*E8+VLOOKUP(A9,Macronutrients,12,FALSE)*E9+VLOOKUP(A10,Macronutrients,12,FALSE)*E10+VLOOKUP(A11,Macronutrients,12,FALSE)*E11+VLOOKUP(A14,Micronutrients,12,FALSE)*E14+VLOOKUP(A15,Micronutrients,12,FALSE)*E15+VLOOKUP(A16,Micronutrients,12,FALSE)*E16+VLOOKUP(A17,Micronutrients,12,FALSE)*E17+VLOOKUP(A20,Lime,12,FALSE)*E20 -> 0 | K15: =VLOOKUP(A6,Macronutrients,13,FALSE)*E6+VLOOKUP(A7,Macronutrients,13,FALSE)*E7+VLOOKUP(A8,Macronutrients,13,FALSE)*E8+VLOOKUP(A9,Macronutrients,13,FALSE)*E9+VLOOKUP(A10,Macronutrients,13,FALSE)*E10+VLOOKUP(A11,Macronutrients,13,FALSE)*E11+VLOOKUP(A14,Micronutrients,13,FALSE)*E14+VLOOKUP(A15,Micronutrients,13,FALSE)*E15+VLOOKUP(A16,Micronutrients,13,FALSE)*E16+VLOOKUP(A17,Micronutrients,13,FALSE)*E17+VLOOKUP(A20,Lime,13,FALSE)*E20 -> 0 | M15: None | N15: =VLOOKUP(M15,Micronutrients,14,FALSE) -> 0 | O15: =VLOOKUP(M15,Micronutrients,18,FALSE) -> 0 | P15: =VLOOKUP(M15,Micronutrients,16,FALSE) -> 1 | Q15: 0 | R15: =VLOOKUP(M15,Micronutrients,15,FALSE) -> 0 | S15: =(Q15*VLOOKUP(M15,Micronutrients,14,FALSE)/P15)*O15 -> 0 | U15: =VLOOKUP(M6,Macronutrients,11,FALSE)*Q6+VLOOKUP(M7,Macronutrients,11,FALSE)*Q7+VLOOKUP(M8,Macronutrients,11,FALSE)*Q8+VLOOKUP(M9,Macronutrients,11,FALSE)*Q9+VLOOKUP(M10,Macronutrients,11,FALSE)*Q10+VLOOKUP(M11,Macronutrients,11,FALSE)*Q11+VLOOKUP(M14,Micronutrients,11,FALSE)*Q14+VLOOKUP(M15,Micronutrients,11,FALSE)*Q15+VLOOKUP(M16,Micronutrients,11,FALSE)*Q16+VLOOKUP(M17,Micronutrients,11,FALSE)*Q17+VLOOKUP(M20,Lime,11,FALSE)*Q20 -> 0 | V15: =VLOOKUP(M6,Macronutrients,12,FALSE)*Q6+VLOOKUP(M7,Macronutrients,12,FALSE)*Q7+VLOOKUP(M8,Macronutrients,12,FALSE)*Q8+VLOOKUP(M9,Macronutrients,12,FALSE)*Q9+VLOOKUP(M10,Macronutrients,12,FALSE)*Q10+VLOOKUP(M11,Macronutrients,12,FALSE)*Q11+VLOOKUP(M14,Micronutrients,12,FALSE)*Q14+VLOOKUP(M15,Micronutrients,12,FALSE)*Q15+VLOOKUP(M16,Micronutrients,12,FALSE)*Q16+VLOOKUP(M17,Micronutrients,12,FALSE)*Q17+VLOOKUP(M20,Lime,12,FALSE)*Q20 -> 0 | W15: =VLOOKUP(M6,Macronutrients,13,FALSE)*Q6+VLOOKUP(M7,Macronutrients,13,FALSE)*Q7+VLOOKUP(M8,Macronutrients,13,FALSE)*Q8+VLOOKUP(M9,Macronutrients,13,FALSE)*Q9+VLOOKUP(M10,Macronutrients,13,FALSE)*Q10+VLOOKUP(M11,Macronutrients,13,FALSE)*Q11+VLOOKUP(M14,Micronutrients,13,FALSE)*Q14+VLOOKUP(M15,Micronutrients,13,FALSE)*Q15+VLOOKUP(M16,Micronutrients,13,FALSE)*Q16+VLOOKUP(M17,Micronutrients,13,FALSE)*Q17+VLOOKUP(M20,Lime,13,FALSE)*Q20 -> 0 | Y15: None | Z15: =VLOOKUP(Y15,Micronutrients,14,FALSE) -> 0 | AA15: =VLOOKUP(Y15,Micronutrients,18,FALSE) -> 0 | AB15: =VLOOKUP(Y15,Micronutrients,16,FALSE) -> 1 | AC15: 0 | AD15: =VLOOKUP(Y15,Micronutrients,15,FALSE) -> 0 | AE15: =(AC15*VLOOKUP(Y15,Micronutrients,14,FALSE)/AB15)*AA15 -> 0 | AG15: =VLOOKUP(Y6,Macronutrients,11,FALSE)*AC6+VLOOKUP(Y7,Macronutrients,11,FALSE)*AC7+VLOOKUP(Y8,Macronutrients,11,FALSE)*AC8+VLOOKUP(Y9,Macronutrients,11,FALSE)*AC9+VLOOKUP(Y10,Macronutrients,11,FALSE)*AC10+VLOOKUP(Y11,Macronutrients,11,FALSE)*AC11+VLOOKUP(Y14,Micronutrients,11,FALSE)*AC14+VLOOKUP(Y15,Micronutrients,11,FALSE)*AC15+VLOOKUP(Y16,Micronutrients,11,FALSE)*AC16+VLOOKUP(Y17,Micronutrients,11,FALSE)*AC17+VLOOKUP(Y20,Lime,11,FALSE)*AC20 -> 0 | AH15: =VLOOKUP(Y6,Macronutrients,12,FALSE)*AC6+VLOOKUP(Y7,Macronutrients,12,FALSE)*AC7+VLOOKUP(Y8,Macronutrients,12,FALSE)*AC8+VLOOKUP(Y9,Macronutrients,12,FALSE)*AC9+VLOOKUP(Y10,Macronutrients,12,FALSE)*AC10+VLOOKUP(Y11,Macronutrients,12,FALSE)*AC11+VLOOKUP(Y14,Micronutrients,12,FALSE)*AC14+VLOOKUP(Y15,Micronutrients,12,FALSE)*AC15+VLOOKUP(Y16,Micronutrients,12,FALSE)*AC16+VLOOKUP(Y17,Micronutrients,12,FALSE)*AC17+VLOOKUP(Y20,Lime,12,FALSE)*AC20 -> 0 | AI15: =VLOOKUP(Y6,Macronutrients,13,FALSE)*AC6+VLOOKUP(Y7,Macronutrients,13,FALSE)*AC7+VLOOKUP(Y8,Macronutrients,13,FALSE)*AC8+VLOOKUP(Y9,Macronutrients,13,FALSE)*AC9+VLOOKUP(Y10,Macronutrients,13,FALSE)*AC10+VLOOKUP(Y11,Macronutrients,13,FALSE)*AC11+VLOOKUP(Y14,Micronutrients,13,FALSE)*AC14+VLOOKUP(Y15,Micronutrients,13,FALSE)*AC15+VLOOKUP(Y16,Micronutrients,13,FALSE)*AC16+VLOOKUP(Y17,Micronutrients,13,FALSE)*AC17+VLOOKUP(Y20,Lime,13,FALSE)*AC20 -> 0
A16: None | B16: =VLOOKUP($A16,Micronutrients,14,FALSE) -> 0 | C16: =VLOOKUP(A16,Micronutrients,18,FALSE) -> 0 | D16: =VLOOKUP(A16,Micronutrients,16,FALSE) -> 1 | E16: 0 | F16: =VLOOKUP(A16,Micronutrients,15,FALSE) -> 0 | G16: =(E16*VLOOKUP(A16,Micronutrients,14,FALSE)/D16)*C16 -> 0 | M16: None | N16: =VLOOKUP(M16,Micronutrients,14,FALSE) -> 0 | O16: =VLOOKUP(M16,Micronutrients,18,FALSE) -> 0 | P16: =VLOOKUP(M16,Micronutrients,16,FALSE) -> 1 | Q16: 0 | R16: =VLOOKUP(M16,Micronutrients,15,FALSE) -> 0 | S16: =(Q16*VLOOKUP(M16,Micronutrients,14,FALSE)/P16)*O16 -> 0 | Y16: None | Z16: =VLOOKUP(Y16,Micronutrients,14,FALSE) -> 0 | AA16: =VLOOKUP(Y16,Micronutrients,18,FALSE) -> 0 | AB16: =VLOOKUP(Y16,Micronutrients,16,FALSE) -> 1 | AC16: 0 | AD16: =VLOOKUP(Y16,Micronutrients,15,FALSE) -> 0 | AE16: =(AC16*VLOOKUP(Y16,Micronutrients,14,FALSE)/AB16)*AA16 -> 0
A17: None | B17: =VLOOKUP($A17,Micronutrients,14,FALSE) -> 0 | C17: =VLOOKUP(A17,Micronutrients,18,FALSE) -> 0 | D17: =VLOOKUP(A17,Micronutrients,16,FALSE) -> 1 | E17: 0 | F17: =VLOOKUP(A17,Micronutrients,15,FALSE) -> 0 | G17: =(E17*VLOOKUP(A17,Micronutrients,14,FALSE)/D17)*C17 -> 0 | M17: None | N17: =VLOOKUP(M17,Micronutrients,14,FALSE) -> 0 | O17: =VLOOKUP(M17,Micronutrients,18,FALSE) -> 0 | P17: =VLOOKUP(M17,Micronutrients,16,FALSE) -> 1 | Q17: 0 | R17: =VLOOKUP(M17,Micronutrients,15,FALSE) -> 0 | S17: =(Q17*VLOOKUP(M17,Micronutrients,14,FALSE)/P17)*O17 -> 0 | Y17: None | Z17: =VLOOKUP(Y17,Micronutrients,14,FALSE) -> 0 | AA17: =VLOOKUP(Y17,Micronutrients,18,FALSE) -> 0 | AB17: =VLOOKUP(Y17,Micronutrients,16,FALSE) -> 1 | AC17: 0 | AD17: =VLOOKUP(Y17,Micronutrients,15,FALSE) -> 0 | AE17: =(AC17*VLOOKUP(Y17,Micronutrients,14,FALSE)/AB17)*AA17 -> 0
A19: Lime (drop down menu) | M19: Lime (drop down menu) | Y19: Lime (drop down menu)
A20: None | B20: =VLOOKUP(A20,Lime,14,FALSE) -> 0 | C20: =VLOOKUP(A20,Lime,18,FALSE) -> 0 | D20: =VLOOKUP(A20,Lime,16,FALSE) -> 1 | E20: 0 | F20: =VLOOKUP(A20,Lime,15,FALSE) -> 0 | G20: =(E20*VLOOKUP(A20,Lime,14,FALSE)/D20)*C20 -> 0 | M20: None | N20: =VLOOKUP(M20,Lime,14,FALSE) -> 0 | O20: =VLOOKUP(M20,Lime,18,FALSE) -> 0 | P20: =VLOOKUP(M20,Lime,16,FALSE) -> 1 | Q20: 0 | R20: =VLOOKUP(M20,Lime,15,FALSE) -> 0 | S20: =(Q20*VLOOKUP(M20,Lime,14,FALSE)/P20)*O20 -> 0 | Y20: None | Z20: =VLOOKUP(Y20,Lime,14,FALSE) -> 0 | AA20: =VLOOKUP(Y20,Lime,18,FALSE) -> 0 | AB20: =VLOOKUP(Y20,Lime,16,FALSE) -> 1 | AC20: 0 | AD20: =VLOOKUP(Y20,Lime,15,FALSE) -> 0 | AE20: =(AC20*VLOOKUP(Y20,Lime,14,FALSE)/AB20)*AA20 -> 0
A22: Nitrogen Stabilizers (drop down menu) | M22: Nitrogen Stabilizers (drop down menu) | Y22: Nitrogen Stabilizers (drop down menu)
A23: None | B23: =VLOOKUP(A23,NitrogenStabilizers,14,FALSE) -> 0 | C23: =VLOOKUP(A23,NitrogenStabilizers,18,FALSE) -> 0 | D23: =VLOOKUP(A23,NitrogenStabilizers,16,FALSE) -> 1 | E23: 0 | F23: =VLOOKUP(A23,NitrogenStabilizers,15,FALSE) -> 0 | G23: =(E23*VLOOKUP(A23,NitrogenStabilizers,14,FALSE)/D23)*C23 -> 0 | M23: None | N23: =VLOOKUP(M23,NitrogenStabilizers,14,FALSE) -> 0 | O23: =VLOOKUP(M23,NitrogenStabilizers,18,FALSE) -> 0 | P23: =VLOOKUP(M23,NitrogenStabilizers,16,FALSE) -> 1 | Q23: 0 | R23: =VLOOKUP(M23,NitrogenStabilizers,15,FALSE) -> 0 | S23: =(Q23*VLOOKUP(M23,NitrogenStabilizers,14,FALSE)/P23)*O23 -> 0 | Y23: None | Z23: =VLOOKUP(Y23,NitrogenStabilizers,14,FALSE) -> 0 | AA23: =VLOOKUP(Y23,NitrogenStabilizers,18,FALSE) -> 0 | AB23: =VLOOKUP(Y23,NitrogenStabilizers,16,FALSE) -> 1 | AC23: 0 | AD23: =VLOOKUP(Y23,NitrogenStabilizers,15,FALSE) -> 0 | AE23: =(AC23*VLOOKUP(Y23,NitrogenStabilizers,14,FALSE)/AB23)*AA23 -> 0
A24: None | B24: =VLOOKUP(A24,NitrogenStabilizers,14,FALSE) -> 0 | C24: =VLOOKUP(A24,NitrogenStabilizers,18,FALSE) -> 0 | D24: =VLOOKUP(A24,NitrogenStabilizers,16,FALSE) -> 1 | E24: 0 | F24: =VLOOKUP(A24,NitrogenStabilizers,15,FALSE) -> 0 | G24: =(E24*VLOOKUP(A24,NitrogenStabilizers,14,FALSE)/D24)*C24 -> 0 | M24: None | N24: =VLOOKUP(M24,NitrogenStabilizers,14,FALSE) -> 0 | O24: =VLOOKUP(M24,NitrogenStabilizers,18,FALSE) -> 0 | P24: =VLOOKUP(M24,NitrogenStabilizers,16,FALSE) -> 1 | Q24: 0 | R24: =VLOOKUP(M24,NitrogenStabilizers,15,FALSE) -> 0 | S24: =(Q24*VLOOKUP(M24,NitrogenStabilizers,14,FALSE)/P24)*O24 -> 0 | Y24: None | Z24: =VLOOKUP(Y24,NitrogenStabilizers,14,FALSE) -> 0 | AA24: =VLOOKUP(Y24,NitrogenStabilizers,18,FALSE) -> 0 | AB24: =VLOOKUP(Y24,NitrogenStabilizers,16,FALSE) -> 1 | AC24: 0 | AD24: =VLOOKUP(Y24,NitrogenStabilizers,15,FALSE) -> 0 | AE24: =(AC24*VLOOKUP(Y24,NitrogenStabilizers,14,FALSE)/AB24)*AA24 -> 0
A25: 1st Application Fertilizer Cost/Acre | G25: =SUM(G6:G24) -> 0 | M25: 1st Application Fertilizer Cost/Acre | S25: =SUM(S6:S24) -> 0 | Y25: 1st Application Fertilizer Cost/Acre | AE25: =SUM(AE6:AE24) -> 0
A27: 2nd Application (i.e., Starter Fertilizer or Broadcast) | M27: 2nd Application (i.e., Starter Fertilizer or Broadcast) | Y27: 2nd Application (i.e., Starter Fertilizer or Broadcast)
A28: Fertilizer Source | B28: Purchase Units | C28: Package Price (Gals, Lbs, etc.) | D28: Units/Pkg | E28: Rate/Acre | F28: Units | G28: Cost | M28: Fertilizer Source | N28: Purchase Units | O28: Package Price (Gals, Lbs, etc.) | P28: Units/Pkg | Q28: Rate/Acre | R28: Units | S28: Cost | Y28: Fertilizer Source | Z28: Purchase Units | AA28: Package Price (Gals, Lbs, etc.) | AB28: Units/Pkg | AC28: Rate/Acre | AD28: Units | AE28: Cost
A29: Macronutrients (drop down menu) | E29: (Enter Below) | I29: N | J29: P | K29: K | M29: Macronutrients (drop down menu) | Q29: (Enter Below) | U29: N | V29: P | W29: K | Y29: Macronutrients (drop down menu) | AC29: (Enter Below) | AG29: N | AH29: P | AI29: K
A30: None | B30: =VLOOKUP(A30,Macronutrients,14,FALSE) -> 0 | C30: =VLOOKUP(A30,Macronutrients,18,FALSE) -> 0 | D30: =VLOOKUP(A30,Macronutrients,16,FALSE) -> 1 | E30: 0 | F30: =VLOOKUP(A30,Macronutrients,15,FALSE) -> 0 | G30: =(E30*VLOOKUP(A30,Macronutrients,14,FALSE)/D30)*C30 -> 0 | I30: =VLOOKUP(A30,Macronutrients,2,FALSE)*E30+VLOOKUP(A31,Macronutrients,2,FALSE)*E31+VLOOKUP(A32,Macronutrients,2,FALSE)*E32+VLOOKUP(A33,Macronutrients,2,FALSE)*E33+VLOOKUP(A34,Macronutrients,2,FALSE)*E34+VLOOKUP(A35,Macronutrients,2,FALSE)*E35+VLOOKUP(A38,Micronutrients,2,FALSE)*E38+VLOOKUP(A39,Micronutrients,2,FALSE)*E39+VLOOKUP(A40,Micronutrients,2,FALSE)*E40+VLOOKUP(A41,Micronutrients,2,FALSE)*E41 -> 0 | J30: =VLOOKUP(A30,Macronutrients,3,FALSE)*E30+VLOOKUP(A31,Macronutrients,3,FALSE)*E31+VLOOKUP(A32,Macronutrients,3,FALSE)*E32+VLOOKUP(A33,Macronutrients,3,FALSE)*E33+VLOOKUP(A34,Macronutrients,3,FALSE)*E34+VLOOKUP(A35,Macronutrients,3,FALSE)*E35+VLOOKUP(A38,Micronutrients,3,FALSE)*E38+VLOOKUP(A39,Micronutrients,3,FALSE)*E39+VLOOKUP(A40,Micronutrients,3,FALSE)*E40+VLOOKUP(A41,Micronutrients,3,FALSE)*E41 -> 0 | K30: =VLOOKUP(A30,Macronutrients,4,FALSE)*E30+VLOOKUP(A31,Macronutrients,4,FALSE)*E31+VLOOKUP(A32,Macronutrients,4,FALSE)*E32+VLOOKUP(A33,Macronutrients,4,FALSE)*E33+VLOOKUP(A34,Macronutrients,4,FALSE)*E34+VLOOKUP(A35,Macronutrients,4,FALSE)*E35+VLOOKUP(A38,Micronutrients,4,FALSE)*E38+VLOOKUP(A39,Micronutrients,4,FALSE)*E39+VLOOKUP(A40,Micronutrients,4,FALSE)*E40+VLOOKUP(A41,Micronutrients,4,FALSE)*E41 -> 0 | M30: None | N30: =VLOOKUP(M30,Macronutrients,14,FALSE) -> 0 | O30: =VLOOKUP(M30,Macronutrients,18,FALSE) -> 0 | P30: =VLOOKUP(M30,Macronutrients,16,FALSE) -> 1 | Q30: 0 | R30: =VLOOKUP(M30,Macronutrients,15,FALSE) -> 0 | S30: =(Q30*VLOOKUP(M30,Macronutrients,14,FALSE)/P30)*O30 -> 0 | U30: =VLOOKUP(M30,Macronutrients,2,FALSE)*Q30+VLOOKUP(M31,Macronutrients,2,FALSE)*Q31+VLOOKUP(M32,Macronutrients,2,FALSE)*Q32+VLOOKUP(M33,Macronutrients,2,FALSE)*Q33+VLOOKUP(M34,Macronutrients,2,FALSE)*Q34+VLOOKUP(M35,Macronutrients,2,FALSE)*Q35+VLOOKUP(M38,Micronutrients,2,FALSE)*Q38+VLOOKUP(M39,Micronutrients,2,FALSE)*Q39+VLOOKUP(M40,Micronutrients,2,FALSE)*Q40+VLOOKUP(M41,Micronutrients,2,FALSE)*Q41 -> 0 | V30: =VLOOKUP(M30,Macronutrients,3,FALSE)*Q30+VLOOKUP(M31,Macronutrients,3,FALSE)*Q31+VLOOKUP(M32,Macronutrients,3,FALSE)*Q32+VLOOKUP(M33,Macronutrients,3,FALSE)*Q33+VLOOKUP(M34,Macronutrients,3,FALSE)*Q34+VLOOKUP(M35,Macronutrients,3,FALSE)*Q35+VLOOKUP(M38,Micronutrients,3,FALSE)*Q38+VLOOKUP(M39,Micronutrients,3,FALSE)*Q39+VLOOKUP(M40,Micronutrients,3,FALSE)*Q40+VLOOKUP(M41,Micronutrients,3,FALSE)*Q41 -> 0 | W30: =VLOOKUP(M30,Macronutrients,4,FALSE)*Q30+VLOOKUP(M31,Macronutrients,4,FALSE)*Q31+VLOOKUP(M32,Macronutrients,4,FALSE)*Q32+VLOOKUP(M33,Macronutrients,4,FALSE)*Q33+VLOOKUP(M34,Macronutrients,4,FALSE)*Q34+VLOOKUP(M35,Macronutrients,4,FALSE)*Q35+VLOOKUP(M38,Micronutrients,4,FALSE)*Q38+VLOOKUP(M39,Micronutrients,4,FALSE)*Q39+VLOOKUP(M40,Micronutrients,4,FALSE)*Q40+VLOOKUP(M41,Micronutrients,4,FALSE)*Q41 -> 0 | Y30: None | Z30: =VLOOKUP(Y30,Macronutrients,14,FALSE) -> 0 | AA30: =VLOOKUP(Y30,Macronutrients,18,FALSE) -> 0 | AB30: =VLOOKUP(Y30,Macronutrients,16,FALSE) -> 1 | AC30: 0 | AD30: =VLOOKUP(Y30,Macronutrients,15,FALSE) -> 0 | AE30: =(AC30*VLOOKUP(Y30,Macronutrients,14,FALSE)/AB30)*AA30 -> 0 | AG30: =VLOOKUP(Y30,Macronutrients,2,FALSE)*AC30+VLOOKUP(Y31,Macronutrients,2,FALSE)*AC31+VLOOKUP(Y32,Macronutrients,2,FALSE)*AC32+VLOOKUP(Y33,Macronutrients,2,FALSE)*AC33+VLOOKUP(Y34,Macronutrients,2,FALSE)*AC34+VLOOKUP(Y35,Macronutrients,2,FALSE)*AC35+VLOOKUP(Y38,Micronutrients,2,FALSE)*AC38+VLOOKUP(Y39,Micronutrients,2,FALSE)*AC39+VLOOKUP(Y40,Micronutrients,2,FALSE)*AC40+VLOOKUP(Y41,Micronutrients,2,FALSE)*AC41 -> 0 | AH30: =VLOOKUP(Y30,Macronutrients,3,FALSE)*AC30+VLOOKUP(Y31,Macronutrients,3,FALSE)*AC31+VLOOKUP(Y32,Macronutrients,3,FALSE)*AC32+VLOOKUP(Y33,Macronutrients,3,FALSE)*AC33+VLOOKUP(Y34,Macronutrients,3,FALSE)*AC34+VLOOKUP(Y35,Macronutrients,3,FALSE)*AC35+VLOOKUP(Y38,Micronutrients,3,FALSE)*AC38+VLOOKUP(Y39,Micronutrients,3,FALSE)*AC39+VLOOKUP(Y40,Micronutrients,3,FALSE)*AC40+VLOOKUP(Y41,Micronutrients,3,FALSE)*AC41 -> 0 | AI30: =VLOOKUP(Y30,Macronutrients,4,FALSE)*AC30+VLOOKUP(Y31,Macronutrients,4,FALSE)*AC31+VLOOKUP(Y32,Macronutrients,4,FALSE)*AC32+VLOOKUP(Y33,Macronutrients,4,FALSE)*AC33+VLOOKUP(Y34,Macronutrients,4,FALSE)*AC34+VLOOKUP(Y35,Macronutrients,4,FALSE)*AC35+VLOOKUP(Y38,Micronutrients,4,FALSE)*AC38+VLOOKUP(Y39,Micronutrients,4,FALSE)*AC39+VLOOKUP(Y40,Micronutrients,4,FALSE)*AC40+VLOOKUP(Y41,Micronutrients,4,FALSE)*AC41 -> 0
A31: None | B31: 0 | C31: 0 | D31: 1 | E31: 0 | F31: 0 | G31: 0 | M31: None | N31: =VLOOKUP(M31,Macronutrients,14,FALSE) -> 0 | O31: 0 | P31: 1 | Q31: 0 | R31: 0 | S31: 0 | Y31: None | Z31: 0 | AA31: 0 | AB31: 1 | AC31: 0 | AD31: 0 | AE31: 0
A32: None | B32: 0 | C32: 0 | D32: 1 | E32: 0 | F32: 0 | G32: 0 | I32: S | J32: Ca | K32: Mg | M32: None | N32: 0 | O32: 0 | P32: 1 | Q32: 0 | R32: 0 | S32: 0 | U32: S | V32: Ca | W32: Mg | Y32: None | Z32: 0 | AA32: 0 | AB32: 1 | AC32: 0 | AD32: 0 | AE32: 0 | AG32: S | AH32: Ca | AI32: Mg
A33: None | B33: 0 | C33: 0 | D33: 1 | E33: 0 | F33: 0 | G33: 0 | I33: =VLOOKUP(A30,Macronutrients,5,FALSE)*E30+VLOOKUP(A31,Macronutrients,5,FALSE)*E31+VLOOKUP(A32,Macronutrients,5,FALSE)*E32+VLOOKUP(A33,Macronutrients,5,FALSE)*E33+VLOOKUP(A34,Macronutrients,5,FALSE)*E34+VLOOKUP(A35,Macronutrients,5,FALSE)*E35+VLOOKUP(A38,Micronutrients,5,FALSE)*E38+VLOOKUP(A39,Micronutrients,5,FALSE)*E39+VLOOKUP(A40,Micronutrients,5,FALSE)*E40+VLOOKUP(A41,Micronutrients,5,FALSE)*E41 -> 0 | J33: =VLOOKUP(A30,Macronutrients,7,FALSE)*E30+VLOOKUP(A31,Macronutrients,7,FALSE)*E31+VLOOKUP(A32,Macronutrients,7,FALSE)*E32+VLOOKUP(A33,Macronutrients,7,FALSE)*E33+VLOOKUP(A34,Macronutrients,7,FALSE)*E34+VLOOKUP(A35,Macronutrients,7,FALSE)*E35+VLOOKUP(A38,Micronutrients,7,FALSE)*E38+VLOOKUP(A39,Micronutrients,7,FALSE)*E39+VLOOKUP(A40,Micronutrients,7,FALSE)*E40+VLOOKUP(A41,Micronutrients,7,FALSE)*E41 -> 0 | K33: =VLOOKUP($A30,Macronutrients,6,FALSE)*$E$6+VLOOKUP($A31,Macronutrients,6,FALSE)*$E$7+VLOOKUP($A32,Macronutrients,6,FALSE)*$E$8+VLOOKUP($A33,Macronutrients,6,FALSE)*$E$9+VLOOKUP($A34,Macronutrients,6,FALSE)*$E$10+VLOOKUP($A35,Macronutrients,6,FALSE)*$E$11+VLOOKUP($A38,Micronutrients,6,FALSE)*$E$14+VLOOKUP($A39,Micronutrients,6,FALSE)*E39+VLOOKUP($A40,Micronutrients,6,FALSE)*$E$16+VLOOKUP($A41,Micronutrients,6,FALSE)*$E$17 -> 0 | M33: None | N33: 0 | O33: 0 | P33: 1 | Q33: 0 | R33: 0 | S33: 0 | U33: =VLOOKUP(M30,Macronutrients,5,FALSE)*Q30+VLOOKUP(M31,Macronutrients,5,FALSE)*Q31+VLOOKUP(M32,Macronutrients,5,FALSE)*Q32+VLOOKUP(M33,Macronutrients,5,FALSE)*Q33+VLOOKUP(M34,Macronutrients,5,FALSE)*Q34+VLOOKUP(M35,Macronutrients,5,FALSE)*Q35+VLOOKUP(M38,Micronutrients,5,FALSE)*Q38+VLOOKUP(M39,Micronutrients,5,FALSE)*Q39+VLOOKUP(M40,Micronutrients,5,FALSE)*Q40+VLOOKUP(M41,Micronutrients,5,FALSE)*Q41 -> 0 | V33: =VLOOKUP(M30,Macronutrients,7,FALSE)*Q30+VLOOKUP(M31,Macronutrients,7,FALSE)*Q31+VLOOKUP(M32,Macronutrients,7,FALSE)*Q32+VLOOKUP(M33,Macronutrients,7,FALSE)*Q33+VLOOKUP(M34,Macronutrients,7,FALSE)*Q34+VLOOKUP(M35,Macronutrients,7,FALSE)*Q35+VLOOKUP(M38,Micronutrients,7,FALSE)*Q38+VLOOKUP(M39,Micronutrients,7,FALSE)*Q39+VLOOKUP(M40,Micronutrients,7,FALSE)*Q40+VLOOKUP(M41,Micronutrients,7,FALSE)*Q41 -> 0 | W33: =VLOOKUP($A30,Macronutrients,6,FALSE)*$E$6+VLOOKUP($A31,Macronutrients,6,FALSE)*$E$7+VLOOKUP($A32,Macronutrients,6,FALSE)*$E$8+VLOOKUP($A33,Macronutrients,6,FALSE)*$E$9+VLOOKUP($A34,Macronutrients,6,FALSE)*$E$10+VLOOKUP($A35,Macronutrients,6,FALSE)*$E$11+VLOOKUP($A38,Micronutrients,6,FALSE)*$E$14+VLOOKUP($A39,Micronutrients,6,FALSE)*Q39+VLOOKUP($A40,Micronutrients,6,FALSE)*$E$16+VLOOKUP($A41,Micronutrients,6,FALSE)*$E$17 -> 0 | Y33: None | Z33: 0 | AA33: 0 | AB33: 1 | AC33: 0 | AD33: 0 | AE33: 0 | AG33: =VLOOKUP(Y30,Macronutrients,5,FALSE)*AC30+VLOOKUP(Y31,Macronutrients,5,FALSE)*AC31+VLOOKUP(Y32,Macronutrients,5,FALSE)*AC32+VLOOKUP(Y33,Macronutrients,5,FALSE)*AC33+VLOOKUP(Y34,Macronutrients,5,FALSE)*AC34+VLOOKUP(Y35,Macronutrients,5,FALSE)*AC35+VLOOKUP(Y38,Micronutrients,5,FALSE)*AC38+VLOOKUP(Y39,Micronutrients,5,FALSE)*AC39+VLOOKUP(Y40,Micronutrients,5,FALSE)*AC40+VLOOKUP(Y41,Micronutrients,5,FALSE)*AC41 -> 0 | AH33: =VLOOKUP(Y30,Macronutrients,7,FALSE)*AC30+VLOOKUP(Y31,Macronutrients,7,FALSE)*AC31+VLOOKUP(Y32,Macronutrients,7,FALSE)*AC32+VLOOKUP(Y33,Macronutrients,7,FALSE)*AC33+VLOOKUP(Y34,Macronutrients,7,FALSE)*AC34+VLOOKUP(Y35,Macronutrients,7,FALSE)*AC35+VLOOKUP(Y38,Micronutrients,7,FALSE)*AC38+VLOOKUP(Y39,Micronutrients,7,FALSE)*AC39+VLOOKUP(Y40,Micronutrients,7,FALSE)*AC40+VLOOKUP(Y41,Micronutrients,7,FALSE)*AC41 -> 0 | AI33: =VLOOKUP($A30,Macronutrients,6,FALSE)*$E$6+VLOOKUP($A31,Macronutrients,6,FALSE)*$E$7+VLOOKUP($A32,Macronutrients,6,FALSE)*$E$8+VLOOKUP($A33,Macronutrients,6,FALSE)*$E$9+VLOOKUP($A34,Macronutrients,6,FALSE)*$E$10+VLOOKUP($A35,Macronutrients,6,FALSE)*$E$11+VLOOKUP($A38,Micronutrients,6,FALSE)*$E$14+VLOOKUP($A39,Micronutrients,6,FALSE)*AC39+VLOOKUP($A40,Micronutrients,6,FALSE)*$E$16+VLOOKUP($A41,Micronutrients,6,FALSE)*$E$17 -> 0
A34: None | B34: 0 | C34: 0 | D34: 1 | E34: 0 | F34: 0 | G34: 0 | M34: None | N34: 0 | O34: 0 | P34: 1 | Q34: 0 | R34: 0 | S34: 0 | Y34: None | Z34: 0 | AA34: 0 | AB34: 1 | AC34: 0 | AD34: 0 | AE34: 0
A35: None | B35: 0 | C35: 0 | D35: 1 | E35: 0 | F35: 0 | G35: 0 | I35: Z | J35: B | K35: Mn | M35: None | N35: 0 | O35: 0 | P35: 1 | Q35: 0 | R35: 0 | S35: 0 | U35: Z | V35: B | W35: Mn | Y35: None | Z35: 0 | AA35: 0 | AB35: 1 | AC35: 0 | AD35: 0 | AE35: 0 | AG35: Z | AH35: B | AI35: Mn
I36: =VLOOKUP(A30,Macronutrients,8,FALSE)*E30+VLOOKUP(A31,Macronutrients,8,FALSE)*E31+VLOOKUP(A32,Macronutrients,8,FALSE)*E32+VLOOKUP(A33,Macronutrients,8,FALSE)*E33+VLOOKUP(A34,Macronutrients,8,FALSE)*E34+VLOOKUP(A35,Macronutrients,8,FALSE)*E35+VLOOKUP(A38,Micronutrients,8,FALSE)*E38+VLOOKUP(A39,Micronutrients,8,FALSE)*E39+VLOOKUP(A40,Micronutrients,8,FALSE)*E40+VLOOKUP(A41,Micronutrients,8,FALSE)*E41 -> 0 | J36: =VLOOKUP(A30,Macronutrients,9,FALSE)*E30+VLOOKUP(A31,Macronutrients,9,FALSE)*E31+VLOOKUP(A32,Macronutrients,9,FALSE)*E32+VLOOKUP(A33,Macronutrients,9,FALSE)*E33+VLOOKUP(A34,Macronutrients,9,FALSE)*E34+VLOOKUP(A35,Macronutrients,9,FALSE)*E35+VLOOKUP(A38,Micronutrients,9,FALSE)*E38+VLOOKUP(A39,Micronutrients,9,FALSE)*E39+VLOOKUP(A40,Micronutrients,9,FALSE)*E40+VLOOKUP(A41,Micronutrients,9,FALSE)*E41 -> 0 | K36: =VLOOKUP(A30,Macronutrients,10,FALSE)*E30+VLOOKUP(A31,Macronutrients,10,FALSE)*E31+VLOOKUP(A32,Macronutrients,10,FALSE)*E32+VLOOKUP(A33,Macronutrients,10,FALSE)*E33+VLOOKUP(A34,Macronutrients,10,FALSE)*E34+VLOOKUP(A35,Macronutrients,10,FALSE)*E35+VLOOKUP(A38,Micronutrients,10,FALSE)*E38+VLOOKUP(A39,Micronutrients,10,FALSE)*E39+VLOOKUP(A40,Micronutrients,10,FALSE)*E40+VLOOKUP(A41,Micronutrients,10,FALSE)*E41 -> 0 | U36: =VLOOKUP(M30,Macronutrients,8,FALSE)*Q30+VLOOKUP(M31,Macronutrients,8,FALSE)*Q31+VLOOKUP(M32,Macronutrients,8,FALSE)*Q32+VLOOKUP(M33,Macronutrients,8,FALSE)*Q33+VLOOKUP(M34,Macronutrients,8,FALSE)*Q34+VLOOKUP(M35,Macronutrients,8,FALSE)*Q35+VLOOKUP(M38,Micronutrients,8,FALSE)*Q38+VLOOKUP(M39,Micronutrients,8,FALSE)*Q39+VLOOKUP(M40,Micronutrients,8,FALSE)*Q40+VLOOKUP(M41,Micronutrients,8,FALSE)*Q41 -> 0 | V36: =VLOOKUP(M30,Macronutrients,9,FALSE)*Q30+VLOOKUP(M31,Macronutrients,9,FALSE)*Q31+VLOOKUP(M32,Macronutrients,9,FALSE)*Q32+VLOOKUP(M33,Macronutrients,9,FALSE)*Q33+VLOOKUP(M34,Macronutrients,9,FALSE)*Q34+VLOOKUP(M35,Macronutrients,9,FALSE)*Q35+VLOOKUP(M38,Micronutrients,9,FALSE)*Q38+VLOOKUP(M39,Micronutrients,9,FALSE)*Q39+VLOOKUP(M40,Micronutrients,9,FALSE)*Q40+VLOOKUP(M41,Micronutrients,9,FALSE)*Q41 -> 0 | W36: =VLOOKUP(M30,Macronutrients,10,FALSE)*Q30+VLOOKUP(M31,Macronutrients,10,FALSE)*Q31+VLOOKUP(M32,Macronutrients,10,FALSE)*Q32+VLOOKUP(M33,Macronutrients,10,FALSE)*Q33+VLOOKUP(M34,Macronutrients,10,FALSE)*Q34+VLOOKUP(M35,Macronutrients,10,FALSE)*Q35+VLOOKUP(M38,Micronutrients,10,FALSE)*Q38+VLOOKUP(M39,Micronutrients,10,FALSE)*Q39+VLOOKUP(M40,Micronutrients,10,FALSE)*Q40+VLOOKUP(M41,Micronutrients,10,FALSE)*Q41 -> 0 | AG36: =VLOOKUP(Y30,Macronutrients,8,FALSE)*AC30+VLOOKUP(Y31,Macronutrients,8,FALSE)*AC31+VLOOKUP(Y32,Macronutrients,8,FALSE)*AC32+VLOOKUP(Y33,Macronutrients,8,FALSE)*AC33+VLOOKUP(Y34,Macronutrients,8,FALSE)*AC34+VLOOKUP(Y35,Macronutrients,8,FALSE)*AC35+VLOOKUP(Y38,Micronutrients,8,FALSE)*AC38+VLOOKUP(Y39,Micronutrients,8,FALSE)*AC39+VLOOKUP(Y40,Micronutrients,8,FALSE)*AC40+VLOOKUP(Y41,Micronutrients,8,FALSE)*AC41 -> 0 | AH36: =VLOOKUP(Y30,Macronutrients,9,FALSE)*AC30+VLOOKUP(Y31,Macronutrients,9,FALSE)*AC31+VLOOKUP(Y32,Macronutrients,9,FALSE)*AC32+VLOOKUP(Y33,Macronutrients,9,FALSE)*AC33+VLOOKUP(Y34,Macronutrients,9,FALSE)*AC34+VLOOKUP(Y35,Macronutrients,9,FALSE)*AC35+VLOOKUP(Y38,Micronutrients,9,FALSE)*AC38+VLOOKUP(Y39,Micronutrients,9,FALSE)*AC39+VLOOKUP(Y40,Micronutrients,9,FALSE)*AC40+VLOOKUP(Y41,Micronutrients,9,FALSE)*AC41 -> 0 | AI36: =VLOOKUP(Y30,Macronutrients,10,FALSE)*AC30+VLOOKUP(Y31,Macronutrients,10,FALSE)*AC31+VLOOKUP(Y32,Macronutrients,10,FALSE)*AC32+VLOOKUP(Y33,Macronutrients,10,FALSE)*AC33+VLOOKUP(Y34,Macronutrients,10,FALSE)*AC34+VLOOKUP(Y35,Macronutrients,10,FALSE)*AC35+VLOOKUP(Y38,Micronutrients,10,FALSE)*AC38+VLOOKUP(Y39,Micronutrients,10,FALSE)*AC39+VLOOKUP(Y40,Micronutrients,10,FALSE)*AC40+VLOOKUP(Y41,Micronutrients,10,FALSE)*AC41 -> 0
A37: Micronutrients (drop down menu) | M37: Micronutrients (drop down menu) | Y37: Micronutrients (drop down menu)
A38: None | B38: =VLOOKUP($A38,Micronutrients,14,FALSE) -> 0 | C38: =VLOOKUP(A38,Micronutrients,18,FALSE) -> 0 | D38: =VLOOKUP(A38,Micronutrients,16,FALSE) -> 1 | E38: 0 | F38: =VLOOKUP(A38,Micronutrients,15,FALSE) -> 0 | G38: =(E38*VLOOKUP(A38,Micronutrients,14,FALSE)/D38)*C38 -> 0 | I38: Cu | J38: Mo | K38: Fe | M38: None | N38: =VLOOKUP($M38,Micronutrients,14,FALSE) -> 0 | O38: =VLOOKUP(M38,Micronutrients,18,FALSE) -> 0 | P38: =VLOOKUP(M38,Micronutrients,16,FALSE) -> 1 | Q38: 0 | R38: =VLOOKUP(M38,Micronutrients,15,FALSE) -> 0 | S38: =(Q38*VLOOKUP(M38,Micronutrients,14,FALSE)/P38)*O38 -> 0 | U38: Cu | V38: Mo | W38: Fe | Y38: None | Z38: =VLOOKUP(Y38,Micronutrients,14,FALSE) -> 0 | AA38: =VLOOKUP(Y38,Micronutrients,18,FALSE) -> 0 | AB38: =VLOOKUP(Y38,Micronutrients,16,FALSE) -> 1 | AC38: 0 | AD38: =VLOOKUP(Y38,Micronutrients,15,FALSE) -> 0 | AE38: =(AC38*VLOOKUP(Y38,Micronutrients,14,FALSE)/AB38)*AA38 -> 0 | AG38: Cu | AH38: Mo | AI38: Fe
A39: None | B39: =VLOOKUP($A39,Micronutrients,14,FALSE) -> 0 | C39: =VLOOKUP(A39,Micronutrients,18,FALSE) -> 0 | D39: =VLOOKUP(A39,Micronutrients,16,FALSE) -> 1 | E39: 0 | F39: =VLOOKUP(A39,Micronutrients,15,FALSE) -> 0 | G39: =(E39*VLOOKUP(A39,Micronutrients,14,FALSE)/D39)*C39 -> 0 | I39: =VLOOKUP(A30,Macronutrients,11,FALSE)*E30+VLOOKUP(A31,Macronutrients,11,FALSE)*E31+VLOOKUP(A32,Macronutrients,11,FALSE)*E32+VLOOKUP(A33,Macronutrients,11,FALSE)*E33+VLOOKUP(A34,Macronutrients,11,FALSE)*E34+VLOOKUP(A35,Macronutrients,11,FALSE)*E35+VLOOKUP(A38,Micronutrients,11,FALSE)*E38+VLOOKUP(A39,Micronutrients,11,FALSE)*E39+VLOOKUP(A40,Micronutrients,11,FALSE)*E40+VLOOKUP(A41,Micronutrients,11,FALSE)*E41 -> 0 | J39: =VLOOKUP(A30,Macronutrients,12,FALSE)*E30+VLOOKUP(A31,Macronutrients,12,FALSE)*E31+VLOOKUP(A32,Macronutrients,12,FALSE)*E32+VLOOKUP(A33,Macronutrients,12,FALSE)*E33+VLOOKUP(A34,Macronutrients,12,FALSE)*E34+VLOOKUP(A35,Macronutrients,12,FALSE)*E35+VLOOKUP(A38,Micronutrients,12,FALSE)*E38+VLOOKUP(A39,Micronutrients,12,FALSE)*E39+VLOOKUP(A40,Micronutrients,12,FALSE)*E40+VLOOKUP(A41,Micronutrients,12,FALSE)*E41 -> 0 | K39: =VLOOKUP(A30,Macronutrients,13,FALSE)*E30+VLOOKUP(A31,Macronutrients,13,FALSE)*E31+VLOOKUP(A32,Macronutrients,13,FALSE)*E32+VLOOKUP(A33,Macronutrients,13,FALSE)*E33+VLOOKUP(A34,Macronutrients,13,FALSE)*E34+VLOOKUP(A35,Macronutrients,13,FALSE)*E35+VLOOKUP(A38,Micronutrients,13,FALSE)*E38+VLOOKUP(A39,Micronutrients,13,FALSE)*E39+VLOOKUP(A40,Micronutrients,13,FALSE)*E40+VLOOKUP(A41,Micronutrients,13,FALSE)*E41 -> 0 | M39: None | N39: =VLOOKUP($M39,Micronutrients,14,FALSE) -> 0 | O39: =VLOOKUP(M39,Micronutrients,18,FALSE) -> 0 | P39: =VLOOKUP(M39,Micronutrients,16,FALSE) -> 1 | Q39: 0 | R39: =VLOOKUP(M39,Micronutrients,15,FALSE) -> 0 | S39: =(Q39*VLOOKUP(M39,Micronutrients,14,FALSE)/P39)*O39 -> 0 | U39: =VLOOKUP(M30,Macronutrients,11,FALSE)*Q30+VLOOKUP(M31,Macronutrients,11,FALSE)*Q31+VLOOKUP(M32,Macronutrients,11,FALSE)*Q32+VLOOKUP(M33,Macronutrients,11,FALSE)*Q33+VLOOKUP(M34,Macronutrients,11,FALSE)*Q34+VLOOKUP(M35,Macronutrients,11,FALSE)*Q35+VLOOKUP(M38,Micronutrients,11,FALSE)*Q38+VLOOKUP(M39,Micronutrients,11,FALSE)*Q39+VLOOKUP(M40,Micronutrients,11,FALSE)*Q40+VLOOKUP(M41,Micronutrients,11,FALSE)*Q41 -> 0 | V39: =VLOOKUP(M30,Macronutrients,12,FALSE)*Q30+VLOOKUP(M31,Macronutrients,12,FALSE)*Q31+VLOOKUP(M32,Macronutrients,12,FALSE)*Q32+VLOOKUP(M33,Macronutrients,12,FALSE)*Q33+VLOOKUP(M34,Macronutrients,12,FALSE)*Q34+VLOOKUP(M35,Macronutrients,12,FALSE)*Q35+VLOOKUP(M38,Micronutrients,12,FALSE)*Q38+VLOOKUP(M39,Micronutrients,12,FALSE)*Q39+VLOOKUP(M40,Micronutrients,12,FALSE)*Q40+VLOOKUP(M41,Micronutrients,12,FALSE)*Q41 -> 0 | W39: =VLOOKUP(M30,Macronutrients,13,FALSE)*Q30+VLOOKUP(M31,Macronutrients,13,FALSE)*Q31+VLOOKUP(M32,Macronutrients,13,FALSE)*Q32+VLOOKUP(M33,Macronutrients,13,FALSE)*Q33+VLOOKUP(M34,Macronutrients,13,FALSE)*Q34+VLOOKUP(M35,Macronutrients,13,FALSE)*Q35+VLOOKUP(M38,Micronutrients,13,FALSE)*Q38+VLOOKUP(M39,Micronutrients,13,FALSE)*Q39+VLOOKUP(M40,Micronutrients,13,FALSE)*Q40+VLOOKUP(M41,Micronutrients,13,FALSE)*Q41 -> 0 | Y39: None | Z39: =VLOOKUP(Y39,Micronutrients,14,FALSE) -> 0 | AA39: =VLOOKUP(Y39,Micronutrients,18,FALSE) -> 0 | AB39: =VLOOKUP(Y39,Micronutrients,16,FALSE) -> 1 | AC39: 0 | AD39: =VLOOKUP(Y39,Micronutrients,15,FALSE) -> 0 | AE39: =(AC39*VLOOKUP(Y39,Micronutrients,14,FALSE)/AB39)*AA39 -> 0 | AG39: =VLOOKUP(Y30,Macronutrients,11,FALSE)*AC30+VLOOKUP(Y31,Macronutrients,11,FALSE)*AC31+VLOOKUP(Y32,Macronutrients,11,FALSE)*AC32+VLOOKUP(Y33,Macronutrients,11,FALSE)*AC33+VLOOKUP(Y34,Macronutrients,11,FALSE)*AC34+VLOOKUP(Y35,Macronutrients,11,FALSE)*AC35+VLOOKUP(Y38,Micronutrients,11,FALSE)*AC38+VLOOKUP(Y39,Micronutrients,11,FALSE)*AC39+VLOOKUP(Y40,Micronutrients,11,FALSE)*AC40+VLOOKUP(Y41,Micronutrients,11,FALSE)*AC41 -> 0 | AH39: =VLOOKUP(Y30,Macronutrients,12,FALSE)*AC30+VLOOKUP(Y31,Macronutrients,12,FALSE)*AC31+VLOOKUP(Y32,Macronutrients,12,FALSE)*AC32+VLOOKUP(Y33,Macronutrients,12,FALSE)*AC33+VLOOKUP(Y34,Macronutrients,12,FALSE)*AC34+VLOOKUP(Y35,Macronutrients,12,FALSE)*AC35+VLOOKUP(Y38,Micronutrients,12,FALSE)*AC38+VLOOKUP(Y39,Micronutrients,12,FALSE)*AC39+VLOOKUP(Y40,Micronutrients,12,FALSE)*AC40+VLOOKUP(Y41,Micronutrients,12,FALSE)*AC41 -> 0 | AI39: =VLOOKUP(Y30,Macronutrients,13,FALSE)*AC30+VLOOKUP(Y31,Macronutrients,13,FALSE)*AC31+VLOOKUP(Y32,Macronutrients,13,FALSE)*AC32+VLOOKUP(Y33,Macronutrients,13,FALSE)*AC33+VLOOKUP(Y34,Macronutrients,13,FALSE)*AC34+VLOOKUP(Y35,Macronutrients,13,FALSE)*AC35+VLOOKUP(Y38,Micronutrients,13,FALSE)*AC38+VLOOKUP(Y39,Micronutrients,13,FALSE)*AC39+VLOOKUP(Y40,Micronutrients,13,FALSE)*AC40+VLOOKUP(Y41,Micronutrients,13,FALSE)*AC41 -> 0
A40: None | B40: =VLOOKUP($A40,Micronutrients,14,FALSE) -> 0 | C40: =VLOOKUP(A40,Micronutrients,18,FALSE) -> 0 | D40: =VLOOKUP(A40,Micronutrients,16,FALSE) -> 1 | E40: 0 | F40: =VLOOKUP(A40,Micronutrients,15,FALSE) -> 0 | G40: =(E40*VLOOKUP(A40,Micronutrients,14,FALSE)/D40)*C40 -> 0 | M40: None | N40: =VLOOKUP($M40,Micronutrients,14,FALSE) -> 0 | O40: =VLOOKUP(M40,Micronutrients,18,FALSE) -> 0 | P40: =VLOOKUP(M40,Micronutrients,16,FALSE) -> 1 | Q40: 0 | R40: =VLOOKUP(M40,Micronutrients,15,FALSE) -> 0 | S40: =(Q40*VLOOKUP(M40,Micronutrients,14,FALSE)/P40)*O40 -> 0 | Y40: None | Z40: =VLOOKUP(Y40,Micronutrients,14,FALSE) -> 0 | AA40: =VLOOKUP(Y40,Micronutrients,18,FALSE) -> 0 | AB40: =VLOOKUP(Y40,Micronutrients,16,FALSE) -> 1 | AC40: 0 | AD40: =VLOOKUP(Y40,Micronutrients,15,FALSE) -> 0 | AE40: =(AC40*VLOOKUP(Y40,Micronutrients,14,FALSE)/AB40)*AA40 -> 0
A41: None | B41: =VLOOKUP($A41,Micronutrients,14,FALSE) -> 0 | C41: =VLOOKUP(A41,Micronutrients,18,FALSE) -> 0 | D41: =VLOOKUP(A41,Micronutrients,16,FALSE) -> 1 | E41: 0 | F41: =VLOOKUP(A41,Micronutrients,15,FALSE) -> 0 | G41: =(E41*VLOOKUP(A41,Micronutrients,14,FALSE)/D41)*C41 -> 0 | M41: None | N41: =VLOOKUP($M41,Micronutrients,14,FALSE) -> 0 | O41: =VLOOKUP(M41,Micronutrients,18,FALSE) -> 0 | P41: =VLOOKUP(M41,Micronutrients,16,FALSE) -> 1 | Q41: 0 | R41: =VLOOKUP(M41,Micronutrients,15,FALSE) -> 0 | S41: =(Q41*VLOOKUP(M41,Micronutrients,14,FALSE)/P41)*O41 -> 0 | Y41: None | Z41: =VLOOKUP(Y41,Micronutrients,14,FALSE) -> 0 | AA41: =VLOOKUP(Y41,Micronutrients,18,FALSE) -> 0 | AB41: =VLOOKUP(Y41,Micronutrients,16,FALSE) -> 1 | AC41: 0 | AD41: =VLOOKUP(Y41,Micronutrients,15,FALSE) -> 0 | AE41: =(AC41*VLOOKUP(Y41,Micronutrients,14,FALSE)/AB41)*AA41 -> 0
A43: Nitrogen Stabilizers (drop down menu) | M43: Nitrogen Stabilizers (drop down menu) | Y43: Nitrogen Stabilizers (drop down menu)
A44: None | B44: =VLOOKUP(A44,NitrogenStabilizers,14,FALSE) -> 0 | C44: =VLOOKUP(A44,NitrogenStabilizers,18,FALSE) -> 0 | D44: =VLOOKUP(A44,NitrogenStabilizers,16,FALSE) -> 1 | E44: 0 | F44: =VLOOKUP(A44,NitrogenStabilizers,15,FALSE) -> 0 | G44: =(E44*VLOOKUP(A44,NitrogenStabilizers,14,FALSE)/D44)*C44 -> 0 | M44: None | N44: =VLOOKUP(M44,NitrogenStabilizers,14,FALSE) -> 0 | O44: =VLOOKUP(M44,NitrogenStabilizers,18,FALSE) -> 0 | P44: =VLOOKUP(M44,NitrogenStabilizers,16,FALSE) -> 1 | Q44: 0 | R44: =VLOOKUP(M44,NitrogenStabilizers,15,FALSE) -> 0 | S44: =(Q44*VLOOKUP(M44,NitrogenStabilizers,14,FALSE)/P44)*O44 -> 0 | Y44: None | Z44: =VLOOKUP(Y44,NitrogenStabilizers,14,FALSE) -> 0 | AA44: =VLOOKUP(Y44,NitrogenStabilizers,18,FALSE) -> 0 | AB44: =VLOOKUP(Y44,NitrogenStabilizers,16,FALSE) -> 1 | AC44: 0 | AD44: =VLOOKUP(Y44,NitrogenStabilizers,15,FALSE) -> 0 | AE44: =(AC44*VLOOKUP(Y44,NitrogenStabilizers,14,FALSE)/AB44)*AA44 -> 0
A45: None | B45: =VLOOKUP(A45,NitrogenStabilizers,14,FALSE) -> 0 | C45: =VLOOKUP(A45,NitrogenStabilizers,18,FALSE) -> 0 | D45: =VLOOKUP(A45,NitrogenStabilizers,16,FALSE) -> 1 | E45: 0 | F45: =VLOOKUP(A45,NitrogenStabilizers,15,FALSE) -> 0 | G45: =(E45*VLOOKUP(A45,NitrogenStabilizers,14,FALSE)/D45)*C45 -> 0 | K45: More | M45: None | N45: =VLOOKUP(M45,NitrogenStabilizers,14,FALSE) -> 0 | O45: =VLOOKUP(M45,NitrogenStabilizers,18,FALSE) -> 0 | P45: =VLOOKUP(M45,NitrogenStabilizers,16,FALSE) -> 1 | Q45: 0 | R45: =VLOOKUP(M45,NitrogenStabilizers,15,FALSE) -> 0 | S45: =(Q45*VLOOKUP(M45,NitrogenStabilizers,14,FALSE)/P45)*O45 -> 0 | W45: More | Y45: None | Z45: =VLOOKUP(Y45,NitrogenStabilizers,14,FALSE) -> 0 | AA45: =VLOOKUP(Y45,NitrogenStabilizers,18,FALSE) -> 0 | AB45: =VLOOKUP(Y45,NitrogenStabilizers,16,FALSE) -> 1 | AC45: 0 | AD45: =VLOOKUP(Y45,NitrogenStabilizers,15,FALSE) -> 0 | AE45: =(AC45*VLOOKUP(Y45,NitrogenStabilizers,14,FALSE)/AB45)*AA45 -> 0 | AI45: More
A46: 2nd Application Fertilizer Cost/Acre | G46: =SUM(G30:G45) -> 0 | K46: Below | M46: 2nd Application Fertilizer Cost/Acre | S46: =SUM(S30:S45) -> 0 | W46: Below | Y46: 2nd Application Fertilizer Cost/Acre | AE46: =SUM(AE30:AE45) -> 0 | AI46: Below
K47: ¯ | W47: ¯ | AI47: ¯
A48: 3rd Application (i.e., Side-Dress or Broadcast) | M48: 3rd Application (i.e., Side-Dress or Broadcast) | Y48: 3rd Application (i.e., Side-Dress or Broadcast)
A49: Fertilizer Source | B49: Purchase Units | C49: Package Price (Gals, Lbs, etc.) | D49: Units/Pkg | E49: Rate/Acre | F49: Units | G49: Cost | M49: Fertilizer Source | N49: Purchase Units | O49: Package Price (Gals, Lbs, etc.) | P49: Units/Pkg | Q49: Rate/Acre | R49: Units | S49: Cost | Y49: Fertilizer Source | Z49: Purchase Units | AA49: Package Price (Gals, Lbs, etc.) | AB49: Units/Pkg | AC49: Rate/Acre | AD49: Units | AE49: Cost
A50: Macronutrients (drop down menu) | E50: (Enter Below) | I50: N | J50: P | K50: K | M50: Macronutrients (drop down menu) | Q50: (Enter Below) | U50: N | V50: P | W50: K | Y50: Macronutrients (drop down menu) | AC50: (Enter Below) | AG50: N | AH50: P | AI50: K
A51: None | B51: =VLOOKUP(A51,Macronutrients,14,FALSE) -> 0 | C51: =VLOOKUP(A51,Macronutrients,18,FALSE) -> 0 | D51: =VLOOKUP(A51,Macronutrients,16,FALSE) -> 1 | E51: 0 | F51: =VLOOKUP(A51,Macronutrients,15,FALSE) -> 0 | G51: =(E51*VLOOKUP(A51,Macronutrients,14,FALSE)/D51)*C51 -> 0 | I51: =VLOOKUP(A51,Macronutrients,2,FALSE)*E51+VLOOKUP(A52,Macronutrients,2,FALSE)*E52+VLOOKUP(A53,Macronutrients,2,FALSE)*E53+VLOOKUP(A54,Macronutrients,2,FALSE)*E54+VLOOKUP(A55,Macronutrients,2,FALSE)*E55+VLOOKUP(A56,Macronutrients,2,FALSE)*E56+VLOOKUP(A59,Micronutrients,2,FALSE)*E59+VLOOKUP(A60,Micronutrients,2,FALSE)*E60+VLOOKUP(A61,Micronutrients,2,FALSE)*E61+VLOOKUP(A62,Micronutrients,2,FALSE)*E62 -> 0 | J51: =VLOOKUP(A51,Macronutrients,3,FALSE)*E51+VLOOKUP(A52,Macronutrients,3,FALSE)*E52+VLOOKUP(A53,Macronutrients,3,FALSE)*E53+VLOOKUP(A54,Macronutrients,3,FALSE)*E54+VLOOKUP(A55,Macronutrients,3,FALSE)*E55+VLOOKUP(A56,Macronutrients,3,FALSE)*E56+VLOOKUP(A59,Micronutrients,3,FALSE)*E59+VLOOKUP(A60,Micronutrients,3,FALSE)*E60+VLOOKUP(A61,Micronutrients,3,FALSE)*E61+VLOOKUP(A62,Micronutrients,3,FALSE)*E62 -> 0 | K51: =VLOOKUP(A51,Macronutrients,4,FALSE)*E51+VLOOKUP(A52,Macronutrients,4,FALSE)*E52+VLOOKUP(A53,Macronutrients,4,FALSE)*E53+VLOOKUP(A54,Macronutrients,4,FALSE)*E54+VLOOKUP(A55,Macronutrients,4,FALSE)*E55+VLOOKUP(A56,Macronutrients,4,FALSE)*E56+VLOOKUP(A59,Micronutrients,4,FALSE)*E59+VLOOKUP(A60,Micronutrients,4,FALSE)*E60+VLOOKUP(A61,Micronutrients,4,FALSE)*E61+VLOOKUP(A62,Micronutrients,4,FALSE)*E62 -> 0 | M51: None | N51: =VLOOKUP(M51,Macronutrients,14,FALSE) -> 0 | O51: =VLOOKUP(M51,Macronutrients,18,FALSE) -> 0 | P51: =VLOOKUP(M51,Macronutrients,16,FALSE) -> 1 | Q51: 0 | R51: =VLOOKUP(M51,Macronutrients,15,FALSE) -> 0 | S51: =(Q51*VLOOKUP(M51,Macronutrients,14,FALSE)/P51)*O51 -> 0 | U51: =VLOOKUP(M51,Macronutrients,2,FALSE)*Q51+VLOOKUP(M52,Macronutrients,2,FALSE)*Q52+VLOOKUP(M53,Macronutrients,2,FALSE)*Q53+VLOOKUP(M54,Macronutrients,2,FALSE)*Q54+VLOOKUP(M55,Macronutrients,2,FALSE)*Q55+VLOOKUP(M56,Macronutrients,2,FALSE)*Q56+VLOOKUP(M59,Micronutrients,2,FALSE)*Q59+VLOOKUP(M60,Micronutrients,2,FALSE)*Q60+VLOOKUP(M61,Micronutrients,2,FALSE)*Q61+VLOOKUP(M62,Micronutrients,2,FALSE)*Q62 -> 0 | V51: =VLOOKUP(M51,Macronutrients,3,FALSE)*Q51+VLOOKUP(M52,Macronutrients,3,FALSE)*Q52+VLOOKUP(M53,Macronutrients,3,FALSE)*Q53+VLOOKUP(M54,Macronutrients,3,FALSE)*Q54+VLOOKUP(M55,Macronutrients,3,FALSE)*Q55+VLOOKUP(M56,Macronutrients,3,FALSE)*Q56+VLOOKUP(M59,Micronutrients,3,FALSE)*Q59+VLOOKUP(M60,Micronutrients,3,FALSE)*Q60+VLOOKUP(M61,Micronutrients,3,FALSE)*Q61+VLOOKUP(M62,Micronutrients,3,FALSE)*Q62 -> 0 | W51: =VLOOKUP(M51,Macronutrients,4,FALSE)*Q51+VLOOKUP(M52,Macronutrients,4,FALSE)*Q52+VLOOKUP(M53,Macronutrients,4,FALSE)*Q53+VLOOKUP(M54,Macronutrients,4,FALSE)*Q54+VLOOKUP(M55,Macronutrients,4,FALSE)*Q55+VLOOKUP(M56,Macronutrients,4,FALSE)*Q56+VLOOKUP(M59,Micronutrients,4,FALSE)*Q59+VLOOKUP(M60,Micronutrients,4,FALSE)*Q60+VLOOKUP(M61,Micronutrients,4,FALSE)*Q61+VLOOKUP(M62,Micronutrients,4,FALSE)*Q62 -> 0 | Y51: None | Z51: =VLOOKUP(Y51,Macronutrients,14,FALSE) -> 0 | AA51: =VLOOKUP(Y51,Macronutrients,18,FALSE) -> 0 | AB51: =VLOOKUP(Y51,Macronutrients,16,FALSE) -> 1 | AC51: 0 | AD51: =VLOOKUP(Y51,Macronutrients,15,FALSE) -> 0 | AE51: =(AC51*VLOOKUP(Y51,Macronutrients,14,FALSE)/AB51)*AA51 -> 0 | AG51: =VLOOKUP(Y51,Macronutrients,2,FALSE)*AC51+VLOOKUP(Y52,Macronutrients,2,FALSE)*AC52+VLOOKUP(Y53,Macronutrients,2,FALSE)*AC53+VLOOKUP(Y54,Macronutrients,2,FALSE)*AC54+VLOOKUP(Y55,Macronutrients,2,FALSE)*AC55+VLOOKUP(Y56,Macronutrients,2,FALSE)*AC56+VLOOKUP(Y59,Micronutrients,2,FALSE)*AC59+VLOOKUP(Y60,Micronutrients,2,FALSE)*AC60+VLOOKUP(Y61,Micronutrients,2,FALSE)*AC61+VLOOKUP(Y62,Micronutrients,2,FALSE)*AC62 -> 0 | AH51: =VLOOKUP(Y51,Macronutrients,3,FALSE)*AC51+VLOOKUP(Y52,Macronutrients,3,FALSE)*AC52+VLOOKUP(Y53,Macronutrients,3,FALSE)*AC53+VLOOKUP(Y54,Macronutrients,3,FALSE)*AC54+VLOOKUP(Y55,Macronutrients,3,FALSE)*AC55+VLOOKUP(Y56,Macronutrients,3,FALSE)*AC56+VLOOKUP(Y59,Micronutrients,3,FALSE)*AC59+VLOOKUP(Y60,Micronutrients,3,FALSE)*AC60+VLOOKUP(Y61,Micronutrients,3,FALSE)*AC61+VLOOKUP(Y62,Micronutrients,3,FALSE)*AC62 -> 0 | AI51: =VLOOKUP(Y51,Macronutrients,4,FALSE)*AC51+VLOOKUP(Y52,Macronutrients,4,FALSE)*AC52+VLOOKUP(Y53,Macronutrients,4,FALSE)*AC53+VLOOKUP(Y54,Macronutrients,4,FALSE)*AC54+VLOOKUP(Y55,Macronutrients,4,FALSE)*AC55+VLOOKUP(Y56,Macronutrients,4,FALSE)*AC56+VLOOKUP(Y59,Micronutrients,4,FALSE)*AC59+VLOOKUP(Y60,Micronutrients,4,FALSE)*AC60+VLOOKUP(Y61,Micronutrients,4,FALSE)*AC61+VLOOKUP(Y62,Micronutrients,4,FALSE)*AC62 -> 0
A52: None | B52: 0 | C52: 0 | D52: 1 | E52: 0 | F52: 0 | G52: 0 | M52: None | N52: =VLOOKUP(M52,Macronutrients,14,FALSE) -> 0 | O52: 0 | P52: 1 | Q52: 0 | R52: 0 | S52: 0 | Y52: None | Z52: 0 | AA52: 0 | AB52: 1 | AC52: 0 | AD52: 0 | AE52: 0
A53: None | B53: 0 | C53: 0 | D53: 1 | E53: 0 | F53: 0 | G53: 0 | I53: S | J53: Ca | K53: Mg | M53: None | N53: 0 | O53: 0 | P53: 1 | Q53: 0 | R53: 0 | S53: 0 | U53: S | V53: Ca | W53: Mg | Y53: None | Z53: 0 | AA53: 0 | AB53: 1 | AC53: 0 | AD53: 0 | AE53: 0 | AG53: S | AH53: Ca | AI53: Mg
A54: None | B54: 0 | C54: 0 | D54: 1 | E54: 0 | F54: 0 | G54: 0 | I54: =VLOOKUP(A51,Macronutrients,5,FALSE)*E51+VLOOKUP(A52,Macronutrients,5,FALSE)*E52+VLOOKUP(A53,Macronutrients,5,FALSE)*E53+VLOOKUP(A54,Macronutrients,5,FALSE)*E54+VLOOKUP(A55,Macronutrients,5,FALSE)*E55+VLOOKUP(A56,Macronutrients,5,FALSE)*E56+VLOOKUP(A59,Micronutrients,5,FALSE)*E59+VLOOKUP(A60,Micronutrients,5,FALSE)*E60+VLOOKUP(A61,Micronutrients,5,FALSE)*E61+VLOOKUP(A62,Micronutrients,5,FALSE)*E62 -> 0 | J54: =VLOOKUP(A51,Macronutrients,7,FALSE)*E51+VLOOKUP(A52,Macronutrients,7,FALSE)*E52+VLOOKUP(A53,Macronutrients,7,FALSE)*E53+VLOOKUP(A54,Macronutrients,7,FALSE)*E54+VLOOKUP(A55,Macronutrients,7,FALSE)*E55+VLOOKUP(A56,Macronutrients,7,FALSE)*E56+VLOOKUP(A59,Micronutrients,7,FALSE)*E59+VLOOKUP(A60,Micronutrients,7,FALSE)*E60+VLOOKUP(A61,Micronutrients,7,FALSE)*E61+VLOOKUP(A62,Micronutrients,7,FALSE)*E62 -> 0 | K54: =VLOOKUP($A51,Macronutrients,6,FALSE)*$E$6+VLOOKUP($A52,Macronutrients,6,FALSE)*$E$7+VLOOKUP($A53,Macronutrients,6,FALSE)*$E$8+VLOOKUP($A54,Macronutrients,6,FALSE)*$E$9+VLOOKUP($A55,Macronutrients,6,FALSE)*$E$10+VLOOKUP($A56,Macronutrients,6,FALSE)*$E$11+VLOOKUP($A59,Micronutrients,6,FALSE)*$E$14+VLOOKUP($A60,Micronutrients,6,FALSE)*E60+VLOOKUP($A61,Micronutrients,6,FALSE)*$E$16+VLOOKUP($A62,Micronutrients,6,FALSE)*$E$17 -> 0 | M54: None | N54: 0 | O54: 0 | P54: 1 | Q54: 0 | R54: 0 | S54: 0 | U54: =VLOOKUP(M51,Macronutrients,5,FALSE)*Q51+VLOOKUP(M52,Macronutrients,5,FALSE)*Q52+VLOOKUP(M53,Macronutrients,5,FALSE)*Q53+VLOOKUP(M54,Macronutrients,5,FALSE)*Q54+VLOOKUP(M55,Macronutrients,5,FALSE)*Q55+VLOOKUP(M56,Macronutrients,5,FALSE)*Q56+VLOOKUP(M59,Micronutrients,5,FALSE)*Q59+VLOOKUP(M60,Micronutrients,5,FALSE)*Q60+VLOOKUP(M61,Micronutrients,5,FALSE)*Q61+VLOOKUP(M62,Micronutrients,5,FALSE)*Q62 -> 0 | V54: =VLOOKUP(M51,Macronutrients,7,FALSE)*Q51+VLOOKUP(M52,Macronutrients,7,FALSE)*Q52+VLOOKUP(M53,Macronutrients,7,FALSE)*Q53+VLOOKUP(M54,Macronutrients,7,FALSE)*Q54+VLOOKUP(M55,Macronutrients,7,FALSE)*Q55+VLOOKUP(M56,Macronutrients,7,FALSE)*Q56+VLOOKUP(M59,Micronutrients,7,FALSE)*Q59+VLOOKUP(M60,Micronutrients,7,FALSE)*Q60+VLOOKUP(M61,Micronutrients,7,FALSE)*Q61+VLOOKUP(M62,Micronutrients,7,FALSE)*Q62 -> 0 | W54: =VLOOKUP($A51,Macronutrients,6,FALSE)*$E$6+VLOOKUP($A52,Macronutrients,6,FALSE)*$E$7+VLOOKUP($A53,Macronutrients,6,FALSE)*$E$8+VLOOKUP($A54,Macronutrients,6,FALSE)*$E$9+VLOOKUP($A55,Macronutrients,6,FALSE)*$E$10+VLOOKUP($A56,Macronutrients,6,FALSE)*$E$11+VLOOKUP($A59,Micronutrients,6,FALSE)*$E$14+VLOOKUP($A60,Micronutrients,6,FALSE)*Q60+VLOOKUP($A61,Micronutrients,6,FALSE)*$E$16+VLOOKUP($A62,Micronutrients,6,FALSE)*$E$17 -> 0 | Y54: None | Z54: 0 | AA54: 0 | AB54: 1 | AC54: 0 | AD54: 0 | AE54: 0 | AG54: =VLOOKUP(Y51,Macronutrients,5,FALSE)*AC51+VLOOKUP(Y52,Macronutrients,5,FALSE)*AC52+VLOOKUP(Y53,Macronutrients,5,FALSE)*AC53+VLOOKUP(Y54,Macronutrients,5,FALSE)*AC54+VLOOKUP(Y55,Macronutrients,5,FALSE)*AC55+VLOOKUP(Y56,Macronutrients,5,FALSE)*AC56+VLOOKUP(Y59,Micronutrients,5,FALSE)*AC59+VLOOKUP(Y60,Micronutrients,5,FALSE)*AC60+VLOOKUP(Y61,Micronutrients,5,FALSE)*AC61+VLOOKUP(Y62,Micronutrients,5,FALSE)*AC62 -> 0 | AH54: =VLOOKUP(Y51,Macronutrients,7,FALSE)*AC51+VLOOKUP(Y52,Macronutrients,7,FALSE)*AC52+VLOOKUP(Y53,Macronutrients,7,FALSE)*AC53+VLOOKUP(Y54,Macronutrients,7,FALSE)*AC54+VLOOKUP(Y55,Macronutrients,7,FALSE)*AC55+VLOOKUP(Y56,Macronutrients,7,FALSE)*AC56+VLOOKUP(Y59,Micronutrients,7,FALSE)*AC59+VLOOKUP(Y60,Micronutrients,7,FALSE)*AC60+VLOOKUP(Y61,Micronutrients,7,FALSE)*AC61+VLOOKUP(Y62,Micronutrients,7,FALSE)*AC62 -> 0 | AI54: =VLOOKUP($A51,Macronutrients,6,FALSE)*$E$6+VLOOKUP($A52,Macronutrients,6,FALSE)*$E$7+VLOOKUP($A53,Macronutrients,6,FALSE)*$E$8+VLOOKUP($A54,Macronutrients,6,FALSE)*$E$9+VLOOKUP($A55,Macronutrients,6,FALSE)*$E$10+VLOOKUP($A56,Macronutrients,6,FALSE)*$E$11+VLOOKUP($A59,Micronutrients,6,FALSE)*$E$14+VLOOKUP($A60,Micronutrients,6,FALSE)*AC60+VLOOKUP($A61,Micronutrients,6,FALSE)*$E$16+VLOOKUP($A62,Micronutrients,6,FALSE)*$E$17 -> 0
A55: None | B55: 0 | C55: 0 | D55: 1 | E55: 0 | F55: 0 | G55: 0 | M55: None | N55: 0 | O55: 0 | P55: 1 | Q55: 0 | R55: 0 | S55: 0 | Y55: None | Z55: 0 | AA55: 0 | AB55: 1 | AC55: 0 | AD55: 0 | AE55: 0
A56: None | B56: 0 | C56: 0 | D56: 1 | E56: 0 | F56: 0 | G56: 0 | I56: Z | J56: B | K56: Mn | M56: None | N56: 0 | O56: 0 | P56: 1 | Q56: 0 | R56: 0 | S56: 0 | U56: Z | V56: B | W56: Mn | Y56: None | Z56: 0 | AA56: 0 | AB56: 1 | AC56: 0 | AD56: 0 | AE56: 0 | AG56: Z | AH56: B | AI56: Mn
I57: =VLOOKUP(A51,Macronutrients,8,FALSE)*E51+VLOOKUP(A52,Macronutrients,8,FALSE)*E52+VLOOKUP(A53,Macronutrients,8,FALSE)*E53+VLOOKUP(A54,Macronutrients,8,FALSE)*E54+VLOOKUP(A55,Macronutrients,8,FALSE)*E55+VLOOKUP(A56,Macronutrients,8,FALSE)*E56+VLOOKUP(A59,Micronutrients,8,FALSE)*E59+VLOOKUP(A60,Micronutrients,8,FALSE)*E60+VLOOKUP(A61,Micronutrients,8,FALSE)*E61+VLOOKUP(A62,Micronutrients,8,FALSE)*E62 -> 0 | J57: =VLOOKUP(A51,Macronutrients,9,FALSE)*E51+VLOOKUP(A52,Macronutrients,9,FALSE)*E52+VLOOKUP(A53,Macronutrients,9,FALSE)*E53+VLOOKUP(A54,Macronutrients,9,FALSE)*E54+VLOOKUP(A55,Macronutrients,9,FALSE)*E55+VLOOKUP(A56,Macronutrients,9,FALSE)*E56+VLOOKUP(A59,Micronutrients,9,FALSE)*E59+VLOOKUP(A60,Micronutrients,9,FALSE)*E60+VLOOKUP(A61,Micronutrients,9,FALSE)*E61+VLOOKUP(A62,Micronutrients,9,FALSE)*E62 -> 0 | K57: =VLOOKUP(A51,Macronutrients,10,FALSE)*E51+VLOOKUP(A52,Macronutrients,10,FALSE)*E52+VLOOKUP(A53,Macronutrients,10,FALSE)*E53+VLOOKUP(A54,Macronutrients,10,FALSE)*E54+VLOOKUP(A55,Macronutrients,10,FALSE)*E55+VLOOKUP(A56,Macronutrients,10,FALSE)*E56+VLOOKUP(A59,Micronutrients,10,FALSE)*E59+VLOOKUP(A60,Micronutrients,10,FALSE)*E60+VLOOKUP(A61,Micronutrients,10,FALSE)*E61+VLOOKUP(A62,Micronutrients,10,FALSE)*E62 -> 0 | U57: =VLOOKUP(M51,Macronutrients,8,FALSE)*Q51+VLOOKUP(M52,Macronutrients,8,FALSE)*Q52+VLOOKUP(M53,Macronutrients,8,FALSE)*Q53+VLOOKUP(M54,Macronutrients,8,FALSE)*Q54+VLOOKUP(M55,Macronutrients,8,FALSE)*Q55+VLOOKUP(M56,Macronutrients,8,FALSE)*Q56+VLOOKUP(M59,Micronutrients,8,FALSE)*Q59+VLOOKUP(M60,Micronutrients,8,FALSE)*Q60+VLOOKUP(M61,Micronutrients,8,FALSE)*Q61+VLOOKUP(M62,Micronutrients,8,FALSE)*Q62 -> 0 | V57: =VLOOKUP(M51,Macronutrients,9,FALSE)*Q51+VLOOKUP(M52,Macronutrients,9,FALSE)*Q52+VLOOKUP(M53,Macronutrients,9,FALSE)*Q53+VLOOKUP(M54,Macronutrients,9,FALSE)*Q54+VLOOKUP(M55,Macronutrients,9,FALSE)*Q55+VLOOKUP(M56,Macronutrients,9,FALSE)*Q56+VLOOKUP(M59,Micronutrients,9,FALSE)*Q59+VLOOKUP(M60,Micronutrients,9,FALSE)*Q60+VLOOKUP(M61,Micronutrients,9,FALSE)*Q61+VLOOKUP(M62,Micronutrients,9,FALSE)*Q62 -> 0 | W57: =VLOOKUP(M51,Macronutrients,10,FALSE)*Q51+VLOOKUP(M52,Macronutrients,10,FALSE)*Q52+VLOOKUP(M53,Macronutrients,10,FALSE)*Q53+VLOOKUP(M54,Macronutrients,10,FALSE)*Q54+VLOOKUP(M55,Macronutrients,10,FALSE)*Q55+VLOOKUP(M56,Macronutrients,10,FALSE)*Q56+VLOOKUP(M59,Micronutrients,10,FALSE)*Q59+VLOOKUP(M60,Micronutrients,10,FALSE)*Q60+VLOOKUP(M61,Micronutrients,10,FALSE)*Q61+VLOOKUP(M62,Micronutrients,10,FALSE)*Q62 -> 0 | AG57: =VLOOKUP(Y51,Macronutrients,8,FALSE)*AC51+VLOOKUP(Y52,Macronutrients,8,FALSE)*AC52+VLOOKUP(Y53,Macronutrients,8,FALSE)*AC53+VLOOKUP(Y54,Macronutrients,8,FALSE)*AC54+VLOOKUP(Y55,Macronutrients,8,FALSE)*AC55+VLOOKUP(Y56,Macronutrients,8,FALSE)*AC56+VLOOKUP(Y59,Micronutrients,8,FALSE)*AC59+VLOOKUP(Y60,Micronutrients,8,FALSE)*AC60+VLOOKUP(Y61,Micronutrients,8,FALSE)*AC61+VLOOKUP(Y62,Micronutrients,8,FALSE)*AC62 -> 0 | AH57: =VLOOKUP(Y51,Macronutrients,9,FALSE)*AC51+VLOOKUP(Y52,Macronutrients,9,FALSE)*AC52+VLOOKUP(Y53,Macronutrients,9,FALSE)*AC53+VLOOKUP(Y54,Macronutrients,9,FALSE)*AC54+VLOOKUP(Y55,Macronutrients,9,FALSE)*AC55+VLOOKUP(Y56,Macronutrients,9,FALSE)*AC56+VLOOKUP(Y59,Micronutrients,9,FALSE)*AC59+VLOOKUP(Y60,Micronutrients,9,FALSE)*AC60+VLOOKUP(Y61,Micronutrients,9,FALSE)*AC61+VLOOKUP(Y62,Micronutrients,9,FALSE)*AC62 -> 0 | AI57: =VLOOKUP(Y51,Macronutrients,10,FALSE)*AC51+VLOOKUP(Y52,Macronutrients,10,FALSE)*AC52+VLOOKUP(Y53,Macronutrients,10,FALSE)*AC53+VLOOKUP(Y54,Macronutrients,10,FALSE)*AC54+VLOOKUP(Y55,Macronutrients,10,FALSE)*AC55+VLOOKUP(Y56,Macronutrients,10,FALSE)*AC56+VLOOKUP(Y59,Micronutrients,10,FALSE)*AC59+VLOOKUP(Y60,Micronutrients,10,FALSE)*AC60+VLOOKUP(Y61,Micronutrients,10,FALSE)*AC61+VLOOKUP(Y62,Micronutrients,10,FALSE)*AC62 -> 0
A58: Micronutrients (drop down menu) | M58: Micronutrients (drop down menu) | Y58: Micronutrients (drop down menu)
A59: None | B59: =VLOOKUP($A59,Micronutrients,14,FALSE) -> 0 | C59: =VLOOKUP(A59,Micronutrients,18,FALSE) -> 0 | D59: =VLOOKUP(A59,Micronutrients,16,FALSE) -> 1 | E59: 0 | F59: =VLOOKUP(A59,Micronutrients,15,FALSE) -> 0 | G59: =(E59*VLOOKUP(A59,Micronutrients,14,FALSE)/D59)*C59 -> 0 | I59: Cu | J59: Mo | K59: Fe | M59: None | N59: =VLOOKUP($M59,Micronutrients,14,FALSE) -> 0 | O59: =VLOOKUP(M59,Micronutrients,18,FALSE) -> 0 | P59: =VLOOKUP(M59,Micronutrients,16,FALSE) -> 1 | Q59: 0 | R59: =VLOOKUP(M59,Micronutrients,15,FALSE) -> 0 | S59: =(Q59*VLOOKUP(M59,Micronutrients,14,FALSE)/P59)*O59 -> 0 | U59: Cu | V59: Mo | W59: Fe | Y59: None | Z59: =VLOOKUP(Y59,Micronutrients,14,FALSE) -> 0 | AA59: =VLOOKUP(Y59,Micronutrients,18,FALSE) -> 0 | AB59: =VLOOKUP(Y59,Micronutrients,16,FALSE) -> 1 | AC59: 0 | AD59: =VLOOKUP(Y59,Micronutrients,15,FALSE) -> 0 | AE59: =(AC59*VLOOKUP(Y59,Micronutrients,14,FALSE)/AB59)*AA59 -> 0 | AG59: Cu | AH59: Mo | AI59: Fe
A60: None | B60: =VLOOKUP($A60,Micronutrients,14,FALSE) -> 0 | C60: =VLOOKUP(A60,Micronutrients,18,FALSE) -> 0 | D60: =VLOOKUP(A60,Micronutrients,16,FALSE) -> 1 | E60: 0 | F60: =VLOOKUP(A60,Micronutrients,15,FALSE) -> 0 | G60: =(E60*VLOOKUP(A60,Micronutrients,14,FALSE)/D60)*C60 -> 0 | I60: =VLOOKUP(A51,Macronutrients,11,FALSE)*E51+VLOOKUP(A52,Macronutrients,11,FALSE)*E52+VLOOKUP(A53,Macronutrients,11,FALSE)*E53+VLOOKUP(A54,Macronutrients,11,FALSE)*E54+VLOOKUP(A55,Macronutrients,11,FALSE)*E55+VLOOKUP(A56,Macronutrients,11,FALSE)*E56+VLOOKUP(A59,Micronutrients,11,FALSE)*E59+VLOOKUP(A60,Micronutrients,11,FALSE)*E60+VLOOKUP(A61,Micronutrients,11,FALSE)*E61+VLOOKUP(A62,Micronutrients,11,FALSE)*E62 -> 0 | J60: =VLOOKUP(A51,Macronutrients,12,FALSE)*E51+VLOOKUP(A52,Macronutrients,12,FALSE)*E52+VLOOKUP(A53,Macronutrients,12,FALSE)*E53+VLOOKUP(A54,Macronutrients,12,FALSE)*E54+VLOOKUP(A55,Macronutrients,12,FALSE)*E55+VLOOKUP(A56,Macronutrients,12,FALSE)*E56+VLOOKUP(A59,Micronutrients,12,FALSE)*E59+VLOOKUP(A60,Micronutrients,12,FALSE)*E60+VLOOKUP(A61,Micronutrients,12,FALSE)*E61+VLOOKUP(A62,Micronutrients,12,FALSE)*E62 -> 0 | K60: =VLOOKUP(A51,Macronutrients,13,FALSE)*E51+VLOOKUP(A52,Macronutrients,13,FALSE)*E52+VLOOKUP(A53,Macronutrients,13,FALSE)*E53+VLOOKUP(A54,Macronutrients,13,FALSE)*E54+VLOOKUP(A55,Macronutrients,13,FALSE)*E55+VLOOKUP(A56,Macronutrients,13,FALSE)*E56+VLOOKUP(A59,Micronutrients,13,FALSE)*E59+VLOOKUP(A60,Micronutrients,13,FALSE)*E60+VLOOKUP(A61,Micronutrients,13,FALSE)*E61+VLOOKUP(A62,Micronutrients,13,FALSE)*E62 -> 0 | M60: None | N60: =VLOOKUP($M60,Micronutrients,14,FALSE) -> 0 | O60: =VLOOKUP(M60,Micronutrients,18,FALSE) -> 0 | P60: =VLOOKUP(M60,Micronutrients,16,FALSE) -> 1 | Q60: 0 | R60: =VLOOKUP(M60,Micronutrients,15,FALSE) -> 0 | S60: =(Q60*VLOOKUP(M60,Micronutrients,14,FALSE)/P60)*O60 -> 0 | U60: =VLOOKUP(M51,Macronutrients,11,FALSE)*Q51+VLOOKUP(M52,Macronutrients,11,FALSE)*Q52+VLOOKUP(M53,Macronutrients,11,FALSE)*Q53+VLOOKUP(M54,Macronutrients,11,FALSE)*Q54+VLOOKUP(M55,Macronutrients,11,FALSE)*Q55+VLOOKUP(M56,Macronutrients,11,FALSE)*Q56+VLOOKUP(M59,Micronutrients,11,FALSE)*Q59+VLOOKUP(M60,Micronutrients,11,FALSE)*Q60+VLOOKUP(M61,Micronutrients,11,FALSE)*Q61+VLOOKUP(M62,Micronutrients,11,FALSE)*Q62 -> 0 | V60: =VLOOKUP(M51,Macronutrients,12,FALSE)*Q51+VLOOKUP(M52,Macronutrients,12,FALSE)*Q52+VLOOKUP(M53,Macronutrients,12,FALSE)*Q53+VLOOKUP(M54,Macronutrients,12,FALSE)*Q54+VLOOKUP(M55,Macronutrients,12,FALSE)*Q55+VLOOKUP(M56,Macronutrients,12,FALSE)*Q56+VLOOKUP(M59,Micronutrients,12,FALSE)*Q59+VLOOKUP(M60,Micronutrients,12,FALSE)*Q60+VLOOKUP(M61,Micronutrients,12,FALSE)*Q61+VLOOKUP(M62,Micronutrients,12,FALSE)*Q62 -> 0 | W60: =VLOOKUP(M51,Macronutrients,13,FALSE)*Q51+VLOOKUP(M52,Macronutrients,13,FALSE)*Q52+VLOOKUP(M53,Macronutrients,13,FALSE)*Q53+VLOOKUP(M54,Macronutrients,13,FALSE)*Q54+VLOOKUP(M55,Macronutrients,13,FALSE)*Q55+VLOOKUP(M56,Macronutrients,13,FALSE)*Q56+VLOOKUP(M59,Micronutrients,13,FALSE)*Q59+VLOOKUP(M60,Micronutrients,13,FALSE)*Q60+VLOOKUP(M61,Micronutrients,13,FALSE)*Q61+VLOOKUP(M62,Micronutrients,13,FALSE)*Q62 -> 0 | Y60: None | Z60: =VLOOKUP(Y60,Micronutrients,14,FALSE) -> 0 | AA60: =VLOOKUP(Y60,Micronutrients,18,FALSE) -> 0 | AB60: =VLOOKUP(Y60,Micronutrients,16,FALSE) -> 1 | AC60: 0 | AD60: =VLOOKUP(Y60,Micronutrients,15,FALSE) -> 0 | AE60: =(AC60*VLOOKUP(Y60,Micronutrients,14,FALSE)/AB60)*AA60 -> 0 | AG60: =VLOOKUP(Y51,Macronutrients,11,FALSE)*AC51+VLOOKUP(Y52,Macronutrients,11,FALSE)*AC52+VLOOKUP(Y53,Macronutrients,11,FALSE)*AC53+VLOOKUP(Y54,Macronutrients,11,FALSE)*AC54+VLOOKUP(Y55,Macronutrients,11,FALSE)*AC55+VLOOKUP(Y56,Macronutrients,11,FALSE)*AC56+VLOOKUP(Y59,Micronutrients,11,FALSE)*AC59+VLOOKUP(Y60,Micronutrients,11,FALSE)*AC60+VLOOKUP(Y61,Micronutrients,11,FALSE)*AC61+VLOOKUP(Y62,Micronutrients,11,FALSE)*AC62 -> 0 | AH60: =VLOOKUP(Y51,Macronutrients,12,FALSE)*AC51+VLOOKUP(Y52,Macronutrients,12,FALSE)*AC52+VLOOKUP(Y53,Macronutrients,12,FALSE)*AC53+VLOOKUP(Y54,Macronutrients,12,FALSE)*AC54+VLOOKUP(Y55,Macronutrients,12,FALSE)*AC55+VLOOKUP(Y56,Macronutrients,12,FALSE)*AC56+VLOOKUP(Y59,Micronutrients,12,FALSE)*AC59+VLOOKUP(Y60,Micronutrients,12,FALSE)*AC60+VLOOKUP(Y61,Micronutrients,12,FALSE)*AC61+VLOOKUP(Y62,Micronutrients,12,FALSE)*AC62 -> 0 | AI60: =VLOOKUP(Y51,Macronutrients,13,FALSE)*AC51+VLOOKUP(Y52,Macronutrients,13,FALSE)*AC52+VLOOKUP(Y53,Macronutrients,13,FALSE)*AC53+VLOOKUP(Y54,Macronutrients,13,FALSE)*AC54+VLOOKUP(Y55,Macronutrients,13,FALSE)*AC55+VLOOKUP(Y56,Macronutrients,13,FALSE)*AC56+VLOOKUP(Y59,Micronutrients,13,FALSE)*AC59+VLOOKUP(Y60,Micronutrients,13,FALSE)*AC60+VLOOKUP(Y61,Micronutrients,13,FALSE)*AC61+VLOOKUP(Y62,Micronutrients,13,FALSE)*AC62 -> 0
A61: None | B61: =VLOOKUP($A61,Micronutrients,14,FALSE) -> 0 | C61: =VLOOKUP(A61,Micronutrients,18,FALSE) -> 0 | D61: =VLOOKUP(A61,Micronutrients,16,FALSE) -> 1 | E61: 0 | F61: =VLOOKUP(A61,Micronutrients,15,FALSE) -> 0 | G61: =(E61*VLOOKUP(A61,Micronutrients,14,FALSE)/D61)*C61 -> 0 | M61: None | N61: =VLOOKUP($M61,Micronutrients,14,FALSE) -> 0 | O61: =VLOOKUP(M61,Micronutrients,18,FALSE) -> 0 | P61: =VLOOKUP(M61,Micronutrients,16,FALSE) -> 1 | Q61: 0 | R61: =VLOOKUP(M61,Micronutrients,15,FALSE) -> 0 | S61: =(Q61*VLOOKUP(M61,Micronutrients,14,FALSE)/P61)*O61 -> 0 | Y61: None | Z61: =VLOOKUP(Y61,Micronutrients,14,FALSE) -> 0 | AA61: =VLOOKUP(Y61,Micronutrients,18,FALSE) -> 0 | AB61: =VLOOKUP(Y61,Micronutrients,16,FALSE) -> 1 | AC61: 0 | AD61: =VLOOKUP(Y61,Micronutrients,15,FALSE) -> 0 | AE61: =(AC61*VLOOKUP(Y61,Micronutrients,14,FALSE)/AB61)*AA61 -> 0
A62: None | B62: =VLOOKUP($A62,Micronutrients,14,FALSE) -> 0 | C62: =VLOOKUP(A62,Micronutrients,18,FALSE) -> 0 | D62: =VLOOKUP(A62,Micronutrients,16,FALSE) -> 1 | E62: 0 | F62: =VLOOKUP(A62,Micronutrients,15,FALSE) -> 0 | G62: =(E62*VLOOKUP(A62,Micronutrients,14,FALSE)/D62)*C62 -> 0 | M62: None | N62: =VLOOKUP($M62,Micronutrients,14,FALSE) -> 0 | O62: =VLOOKUP(M62,Micronutrients,18,FALSE) -> 0 | P62: =VLOOKUP(M62,Micronutrients,16,FALSE) -> 1 | Q62: 0 | R62: =VLOOKUP(M62,Micronutrients,15,FALSE) -> 0 | S62: =(Q62*VLOOKUP(M62,Micronutrients,14,FALSE)/P62)*O62 -> 0 | Y62: None | Z62: =VLOOKUP(Y62,Micronutrients,14,FALSE) -> 0 | AA62: =VLOOKUP(Y62,Micronutrients,18,FALSE) -> 0 | AB62: =VLOOKUP(Y62,Micronutrients,16,FALSE) -> 1 | AC62: 0 | AD62: =VLOOKUP(Y62,Micronutrients,15,FALSE) -> 0 | AE62: =(AC62*VLOOKUP(Y62,Micronutrients,14,FALSE)/AB62)*AA62 -> 0
A64: Nitrogen Stabilizers (drop down menu) | M64: Nitrogen Stabilizers (drop down menu) | Y64: Nitrogen Stabilizers (drop down menu)
A65: None | B65: =VLOOKUP(A65,NitrogenStabilizers,14,FALSE) -> 0 | C65: =VLOOKUP(A65,NitrogenStabilizers,18,FALSE) -> 0 | D65: =VLOOKUP(A65,NitrogenStabilizers,16,FALSE) -> 1 | E65: 0 | F65: =VLOOKUP(A65,NitrogenStabilizers,15,FALSE) -> 0 | G65: =(E65*VLOOKUP(A65,NitrogenStabilizers,14,FALSE)/D65)*C65 -> 0 | M65: None | N65: =VLOOKUP(M65,NitrogenStabilizers,14,FALSE) -> 0 | O65: =VLOOKUP(M65,NitrogenStabilizers,18,FALSE) -> 0 | P65: =VLOOKUP(M65,NitrogenStabilizers,16,FALSE) -> 1 | Q65: 0 | R65: =VLOOKUP(M65,NitrogenStabilizers,15,FALSE) -> 0 | S65: =(Q65*VLOOKUP(M65,NitrogenStabilizers,14,FALSE)/P65)*O65 -> 0 | Y65: None | Z65: =VLOOKUP(Y65,NitrogenStabilizers,14,FALSE) -> 0 | AA65: =VLOOKUP(Y65,NitrogenStabilizers,18,FALSE) -> 0 | AB65: =VLOOKUP(Y65,NitrogenStabilizers,16,FALSE) -> 1 | AC65: 0 | AD65: =VLOOKUP(Y65,NitrogenStabilizers,15,FALSE) -> 0 | AE65: =(AC65*VLOOKUP(Y65,NitrogenStabilizers,14,FALSE)/AB65)*AA65 -> 0
A66: None | B66: =VLOOKUP(A66,NitrogenStabilizers,14,FALSE) -> 0 | C66: =VLOOKUP(A66,NitrogenStabilizers,18,FALSE) -> 0 | D66: =VLOOKUP(A66,NitrogenStabilizers,16,FALSE) -> 1 | E66: 0 | F66: =VLOOKUP(A66,NitrogenStabilizers,15,FALSE) -> 0 | G66: =(E66*VLOOKUP(A66,NitrogenStabilizers,14,FALSE)/D66)*C66 -> 0 | K66: More | M66: None | N66: =VLOOKUP(M66,NitrogenStabilizers,14,FALSE) -> 0 | O66: =VLOOKUP(M66,NitrogenStabilizers,18,FALSE) -> 0 | P66: =VLOOKUP(M66,NitrogenStabilizers,16,FALSE) -> 1 | Q66: 0 | R66: =VLOOKUP(M66,NitrogenStabilizers,15,FALSE) -> 0 | S66: =(Q66*VLOOKUP(M66,NitrogenStabilizers,14,FALSE)/P66)*O66 -> 0 | W66: More | Y66: None | Z66: =VLOOKUP(Y66,NitrogenStabilizers,14,FALSE) -> 0 | AA66: =VLOOKUP(Y66,NitrogenStabilizers,18,FALSE) -> 0 | AB66: =VLOOKUP(Y66,NitrogenStabilizers,16,FALSE) -> 1 | AC66: 0 | AD66: =VLOOKUP(Y66,NitrogenStabilizers,15,FALSE) -> 0 | AE66: =(AC66*VLOOKUP(Y66,NitrogenStabilizers,14,FALSE)/AB66)*AA66 -> 0 | AI66: More
A67: 3rd Application Fertilizer Cost/Acre | G67: =SUM(G51:G66) -> 0 | K67: Below | M67: 3rd Application Fertilizer Cost/Acre | S67: =SUM(S51:S66) -> 0 | W67: Below | Y67: 3rd Application Fertilizer Cost/Acre | AE67: =SUM(AE51:AE66) -> 0 | AI67: Below
K68: ¯ | W68: ¯ | AI68: ¯
A69: Total Fertilizer Cost/Acre | G69: =G67+G46+G25 -> 0 | M69: Total Fertilizer Cost/Acre | S69: =S67+S46+S25 -> 0 | Y69: Total Fertilizer Cost/Acre | AE69: =AE67+AE46+AE25 -> 0
A71: 4th Application (i.e., Side-Dress or Broadcast) | M71: 4th Application (i.e., Side-Dress or Broadcast) | Y71: 4th Application (i.e., Side-Dress or Broadcast)
A72: Fertilizer Source | B72: Purchase Units | C72: Package Price (Gals, Lbs, etc.) | D72: Units/Pkg | E72: Rate/Acre | F72: Units | G72: Cost | M72: Fertilizer Source | N72: Purchase Units | O72: Package Price (Gals, Lbs, etc.) | P72: Units/Pkg | Q72: Rate/Acre | R72: Units | S72: Cost | Y72: Fertilizer Source | Z72: Purchase Units | AA72: Package Price (Gals, Lbs, etc.) | AB72: Units/Pkg | AC72: Rate/Acre | AD72: Units | AE72: Cost
A73: Macronutrients (drop down menu) | E73: (Enter Below) | I73: N | J73: P | K73: K | M73: Macronutrients (drop down menu) | Q73: (Enter Below) | U73: N | V73: P | W73: K | Y73: Macronutrients (drop down menu) | AC73: (Enter Below) | AG73: N | AH73: P | AI73: K
A74: None | B74: =VLOOKUP(A74,Macronutrients,14,FALSE) -> 0 | C74: =VLOOKUP(A74,Macronutrients,18,FALSE) -> 0 | D74: =VLOOKUP(A74,Macronutrients,16,FALSE) -> 1 | E74: 0 | F74: =VLOOKUP(A74,Macronutrients,15,FALSE) -> 0 | G74: =(E74*VLOOKUP(A74,Macronutrients,14,FALSE)/D74)*C74 -> 0 | I74: =VLOOKUP(A74,Macronutrients,2,FALSE)*E74+VLOOKUP(A75,Macronutrients,2,FALSE)*E75+VLOOKUP(A76,Macronutrients,2,FALSE)*E76+VLOOKUP(A77,Macronutrients,2,FALSE)*E77+VLOOKUP(A78,Macronutrients,2,FALSE)*E78+VLOOKUP(A79,Macronutrients,2,FALSE)*E79+VLOOKUP(A82,Micronutrients,2,FALSE)*E82+VLOOKUP(A83,Micronutrients,2,FALSE)*E83+VLOOKUP(A84,Micronutrients,2,FALSE)*E84+VLOOKUP(A85,Micronutrients,2,FALSE)*E85 -> 0 | J74: =VLOOKUP(A74,Macronutrients,3,FALSE)*E74+VLOOKUP(A75,Macronutrients,3,FALSE)*E75+VLOOKUP(A76,Macronutrients,3,FALSE)*E76+VLOOKUP(A77,Macronutrients,3,FALSE)*E77+VLOOKUP(A78,Macronutrients,3,FALSE)*E78+VLOOKUP(A79,Macronutrients,3,FALSE)*E79+VLOOKUP(A82,Micronutrients,3,FALSE)*E82+VLOOKUP(A83,Micronutrients,3,FALSE)*E83+VLOOKUP(A84,Micronutrients,3,FALSE)*E84+VLOOKUP(A85,Micronutrients,3,FALSE)*E85 -> 0 | K74: =VLOOKUP(A74,Macronutrients,4,FALSE)*E74+VLOOKUP(A75,Macronutrients,4,FALSE)*E75+VLOOKUP(A76,Macronutrients,4,FALSE)*E76+VLOOKUP(A77,Macronutrients,4,FALSE)*E77+VLOOKUP(A78,Macronutrients,4,FALSE)*E78+VLOOKUP(A79,Macronutrients,4,FALSE)*E79+VLOOKUP(A82,Micronutrients,4,FALSE)*E82+VLOOKUP(A83,Micronutrients,4,FALSE)*E83+VLOOKUP(A84,Micronutrients,4,FALSE)*E84+VLOOKUP(A85,Micronutrients,4,FALSE)*E85 -> 0 | M74: None | N74: =VLOOKUP(M74,Macronutrients,14,FALSE) -> 0 | O74: =VLOOKUP(M74,Macronutrients,18,FALSE) -> 0 | P74: =VLOOKUP(M74,Macronutrients,16,FALSE) -> 1 | Q74: 0 | R74: =VLOOKUP(M74,Macronutrients,15,FALSE) -> 0 | S74: =(Q74*VLOOKUP(M74,Macronutrients,14,FALSE)/P74)*O74 -> 0 | U74: =VLOOKUP(M74,Macronutrients,2,FALSE)*Q74+VLOOKUP(M75,Macronutrients,2,FALSE)*Q75+VLOOKUP(M76,Macronutrients,2,FALSE)*Q76+VLOOKUP(M77,Macronutrients,2,FALSE)*Q77+VLOOKUP(M78,Macronutrients,2,FALSE)*Q78+VLOOKUP(M79,Macronutrients,2,FALSE)*Q79+VLOOKUP(M82,Micronutrients,2,FALSE)*Q82+VLOOKUP(M83,Micronutrients,2,FALSE)*Q83+VLOOKUP(M84,Micronutrients,2,FALSE)*Q84+VLOOKUP(M85,Micronutrients,2,FALSE)*Q85 -> 0 | V74: =VLOOKUP(M74,Macronutrients,3,FALSE)*Q74+VLOOKUP(M75,Macronutrients,3,FALSE)*Q75+VLOOKUP(M76,Macronutrients,3,FALSE)*Q76+VLOOKUP(M77,Macronutrients,3,FALSE)*Q77+VLOOKUP(M78,Macronutrients,3,FALSE)*Q78+VLOOKUP(M79,Macronutrients,3,FALSE)*Q79+VLOOKUP(M82,Micronutrients,3,FALSE)*Q82+VLOOKUP(M83,Micronutrients,3,FALSE)*Q83+VLOOKUP(M84,Micronutrients,3,FALSE)*Q84+VLOOKUP(M85,Micronutrients,3,FALSE)*Q85 -> 0 | W74: =VLOOKUP(M74,Macronutrients,4,FALSE)*Q74+VLOOKUP(M75,Macronutrients,4,FALSE)*Q75+VLOOKUP(M76,Macronutrients,4,FALSE)*Q76+VLOOKUP(M77,Macronutrients,4,FALSE)*Q77+VLOOKUP(M78,Macronutrients,4,FALSE)*Q78+VLOOKUP(M79,Macronutrients,4,FALSE)*Q79+VLOOKUP(M82,Micronutrients,4,FALSE)*Q82+VLOOKUP(M83,Micronutrients,4,FALSE)*Q83+VLOOKUP(M84,Micronutrients,4,FALSE)*Q84+VLOOKUP(M85,Micronutrients,4,FALSE)*Q85 -> 0 | Y74: None | Z74: =VLOOKUP(Y74,Macronutrients,14,FALSE) -> 0 | AA74: =VLOOKUP(Y74,Macronutrients,18,FALSE) -> 0 | AB74: =VLOOKUP(Y74,Macronutrients,16,FALSE) -> 1 | AC74: 0 | AD74: =VLOOKUP(Y74,Macronutrients,15,FALSE) -> 0 | AE74: =(AC74*VLOOKUP(Y74,Macronutrients,14,FALSE)/AB74)*AA74 -> 0 | AG74: =VLOOKUP(Y74,Macronutrients,2,FALSE)*AC74+VLOOKUP(Y75,Macronutrients,2,FALSE)*AC75+VLOOKUP(Y76,Macronutrients,2,FALSE)*AC76+VLOOKUP(Y77,Macronutrients,2,FALSE)*AC77+VLOOKUP(Y78,Macronutrients,2,FALSE)*AC78+VLOOKUP(Y79,Macronutrients,2,FALSE)*AC79+VLOOKUP(Y82,Micronutrients,2,FALSE)*AC82+VLOOKUP(Y83,Micronutrients,2,FALSE)*AC83+VLOOKUP(Y84,Micronutrients,2,FALSE)*AC84+VLOOKUP(Y85,Micronutrients,2,FALSE)*AC85 -> 0 | AH74: =VLOOKUP(Y74,Macronutrients,3,FALSE)*AC74+VLOOKUP(Y75,Macronutrients,3,FALSE)*AC75+VLOOKUP(Y76,Macronutrients,3,FALSE)*AC76+VLOOKUP(Y77,Macronutrients,3,FALSE)*AC77+VLOOKUP(Y78,Macronutrients,3,FALSE)*AC78+VLOOKUP(Y79,Macronutrients,3,FALSE)*AC79+VLOOKUP(Y82,Micronutrients,3,FALSE)*AC82+VLOOKUP(Y83,Micronutrients,3,FALSE)*AC83+VLOOKUP(Y84,Micronutrients,3,FALSE)*AC84+VLOOKUP(Y85,Micronutrients,3,FALSE)*AC85 -> 0 | AI74: =VLOOKUP(Y74,Macronutrients,4,FALSE)*AC74+VLOOKUP(Y75,Macronutrients,4,FALSE)*AC75+VLOOKUP(Y76,Macronutrients,4,FALSE)*AC76+VLOOKUP(Y77,Macronutrients,4,FALSE)*AC77+VLOOKUP(Y78,Macronutrients,4,FALSE)*AC78+VLOOKUP(Y79,Macronutrients,4,FALSE)*AC79+VLOOKUP(Y82,Micronutrients,4,FALSE)*AC82+VLOOKUP(Y83,Micronutrients,4,FALSE)*AC83+VLOOKUP(Y84,Micronutrients,4,FALSE)*AC84+VLOOKUP(Y85,Micronutrients,4,FALSE)*AC85 -> 0
A75: None | B75: 0 | C75: 0 | D75: 1 | E75: 0 | F75: 0 | G75: 0 | M75: None | N75: 0 | O75: 0 | P75: 1 | Q75: 0 | R75: 0 | S75: 0 | Y75: None | Z75: 0 | AA75: 0 | AB75: 1 | AC75: 0 | AD75: 0 | AE75: 0
A76: None | B76: 0 | C76: 0 | D76: 1 | E76: 0 | F76: 0 | G76: 0 | I76: S | J76: Ca | K76: Mg | M76: None | N76: 0 | O76: 0 | P76: 1 | Q76: 0 | R76: 0 | S76: 0 | U76: S | V76: Ca | W76: Mg | Y76: None | Z76: 0 | AA76: 0 | AB76: 1 | AC76: 0 | AD76: 0 | AE76: 0 | AG76: S | AH76: Ca | AI76: Mg
A77: None | B77: 0 | C77: 0 | D77: 1 | E77: 0 | F77: 0 | G77: 0 | I77: =VLOOKUP(A74,Macronutrients,5,FALSE)*E74+VLOOKUP(A75,Macronutrients,5,FALSE)*E75+VLOOKUP(A76,Macronutrients,5,FALSE)*E76+VLOOKUP(A77,Macronutrients,5,FALSE)*E77+VLOOKUP(A78,Macronutrients,5,FALSE)*E78+VLOOKUP(A79,Macronutrients,5,FALSE)*E79+VLOOKUP(A82,Micronutrients,5,FALSE)*E82+VLOOKUP(A83,Micronutrients,5,FALSE)*E83+VLOOKUP(A84,Micronutrients,5,FALSE)*E84+VLOOKUP(A85,Micronutrients,5,FALSE)*E85 -> 0 | J77: =VLOOKUP(A74,Macronutrients,7,FALSE)*E74+VLOOKUP(A75,Macronutrients,7,FALSE)*E75+VLOOKUP(A76,Macronutrients,7,FALSE)*E76+VLOOKUP(A77,Macronutrients,7,FALSE)*E77+VLOOKUP(A78,Macronutrients,7,FALSE)*E78+VLOOKUP(A79,Macronutrients,7,FALSE)*E79+VLOOKUP(A82,Micronutrients,7,FALSE)*E82+VLOOKUP(A83,Micronutrients,7,FALSE)*E83+VLOOKUP(A84,Micronutrients,7,FALSE)*E84+VLOOKUP(A85,Micronutrients,7,FALSE)*E85 -> 0 | K77: =VLOOKUP($A74,Macronutrients,6,FALSE)*$E$6+VLOOKUP($A75,Macronutrients,6,FALSE)*$E$7+VLOOKUP($A76,Macronutrients,6,FALSE)*$E$8+VLOOKUP($A77,Macronutrients,6,FALSE)*$E$9+VLOOKUP($A78,Macronutrients,6,FALSE)*$E$10+VLOOKUP($A79,Macronutrients,6,FALSE)*$E$11+VLOOKUP($A82,Micronutrients,6,FALSE)*$E$14+VLOOKUP($A83,Micronutrients,6,FALSE)*E83+VLOOKUP($A84,Micronutrients,6,FALSE)*$E$16+VLOOKUP($A85,Micronutrients,6,FALSE)*$E$17 -> 0 | M77: None | N77: 0 | O77: 0 | P77: 1 | Q77: 0 | R77: 0 | S77: 0 | U77: =VLOOKUP(M74,Macronutrients,5,FALSE)*Q74+VLOOKUP(M75,Macronutrients,5,FALSE)*Q75+VLOOKUP(M76,Macronutrients,5,FALSE)*Q76+VLOOKUP(M77,Macronutrients,5,FALSE)*Q77+VLOOKUP(M78,Macronutrients,5,FALSE)*Q78+VLOOKUP(M79,Macronutrients,5,FALSE)*Q79+VLOOKUP(M82,Micronutrients,5,FALSE)*Q82+VLOOKUP(M83,Micronutrients,5,FALSE)*Q83+VLOOKUP(M84,Micronutrients,5,FALSE)*Q84+VLOOKUP(M85,Micronutrients,5,FALSE)*Q85 -> 0 | V77: =VLOOKUP(M74,Macronutrients,7,FALSE)*Q74+VLOOKUP(M75,Macronutrients,7,FALSE)*Q75+VLOOKUP(M76,Macronutrients,7,FALSE)*Q76+VLOOKUP(M77,Macronutrients,7,FALSE)*Q77+VLOOKUP(M78,Macronutrients,7,FALSE)*Q78+VLOOKUP(M79,Macronutrients,7,FALSE)*Q79+VLOOKUP(M82,Micronutrients,7,FALSE)*Q82+VLOOKUP(M83,Micronutrients,7,FALSE)*Q83+VLOOKUP(M84,Micronutrients,7,FALSE)*Q84+VLOOKUP(M85,Micronutrients,7,FALSE)*Q85 -> 0 | W77: =VLOOKUP($A74,Macronutrients,6,FALSE)*$E$6+VLOOKUP($A75,Macronutrients,6,FALSE)*$E$7+VLOOKUP($A76,Macronutrients,6,FALSE)*$E$8+VLOOKUP($A77,Macronutrients,6,FALSE)*$E$9+VLOOKUP($A78,Macronutrients,6,FALSE)*$E$10+VLOOKUP($A79,Macronutrients,6,FALSE)*$E$11+VLOOKUP($A82,Micronutrients,6,FALSE)*$E$14+VLOOKUP($A83,Micronutrients,6,FALSE)*Q83+VLOOKUP($A84,Micronutrients,6,FALSE)*$E$16+VLOOKUP($A85,Micronutrients,6,FALSE)*$E$17 -> 0 | Y77: None | Z77: 0 | AA77: 0 | AB77: 1 | AC77: 0 | AD77: 0 | AE77: 0 | AG77: =VLOOKUP(Y74,Macronutrients,5,FALSE)*AC74+VLOOKUP(Y75,Macronutrients,5,FALSE)*AC75+VLOOKUP(Y76,Macronutrients,5,FALSE)*AC76+VLOOKUP(Y77,Macronutrients,5,FALSE)*AC77+VLOOKUP(Y78,Macronutrients,5,FALSE)*AC78+VLOOKUP(Y79,Macronutrients,5,FALSE)*AC79+VLOOKUP(Y82,Micronutrients,5,FALSE)*AC82+VLOOKUP(Y83,Micronutrients,5,FALSE)*AC83+VLOOKUP(Y84,Micronutrients,5,FALSE)*AC84+VLOOKUP(Y85,Micronutrients,5,FALSE)*AC85 -> 0 | AH77: =VLOOKUP(Y74,Macronutrients,7,FALSE)*AC74+VLOOKUP(Y75,Macronutrients,7,FALSE)*AC75+VLOOKUP(Y76,Macronutrients,7,FALSE)*AC76+VLOOKUP(Y77,Macronutrients,7,FALSE)*AC77+VLOOKUP(Y78,Macronutrients,7,FALSE)*AC78+VLOOKUP(Y79,Macronutrients,7,FALSE)*AC79+VLOOKUP(Y82,Micronutrients,7,FALSE)*AC82+VLOOKUP(Y83,Micronutrients,7,FALSE)*AC83+VLOOKUP(Y84,Micronutrients,7,FALSE)*AC84+VLOOKUP(Y85,Micronutrients,7,FALSE)*AC85 -> 0 | AI77: =VLOOKUP($A74,Macronutrients,6,FALSE)*$E$6+VLOOKUP($A75,Macronutrients,6,FALSE)*$E$7+VLOOKUP($A76,Macronutrients,6,FALSE)*$E$8+VLOOKUP($A77,Macronutrients,6,FALSE)*$E$9+VLOOKUP($A78,Macronutrients,6,FALSE)*$E$10+VLOOKUP($A79,Macronutrients,6,FALSE)*$E$11+VLOOKUP($A82,Micronutrients,6,FALSE)*$E$14+VLOOKUP($A83,Micronutrients,6,FALSE)*AC83+VLOOKUP($A84,Micronutrients,6,FALSE)*$E$16+VLOOKUP($A85,Micronutrients,6,FALSE)*$E$17 -> 0
A78: None | B78: 0 | C78: 0 | D78: 1 | E78: 0 | F78: 0 | G78: 0 | M78: None | N78: 0 | O78: 0 | P78: 1 | Q78: 0 | R78: 0 | S78: 0 | Y78: None | Z78: 0 | AA78: 0 | AB78: 1 | AC78: 0 | AD78: 0 | AE78: 0
A79: None | B79: 0 | C79: 0 | D79: 1 | E79: 0 | F79: 0 | G79: 0 | I79: Z | J79: B | K79: Mn | M79: None | N79: 0 | O79: 0 | P79: 1 | Q79: 0 | R79: 0 | S79: 0 | U79: Z | V79: B | W79: Mn | Y79: None | Z79: 0 | AA79: 0 | AB79: 1 | AC79: 0 | AD79: 0 | AE79: 0 | AG79: Z | AH79: B | AI79: Mn
I80: =VLOOKUP(A74,Macronutrients,8,FALSE)*E74+VLOOKUP(A75,Macronutrients,8,FALSE)*E75+VLOOKUP(A76,Macronutrients,8,FALSE)*E76+VLOOKUP(A77,Macronutrients,8,FALSE)*E77+VLOOKUP(A78,Macronutrients,8,FALSE)*E78+VLOOKUP(A79,Macronutrients,8,FALSE)*E79+VLOOKUP(A82,Micronutrients,8,FALSE)*E82+VLOOKUP(A83,Micronutrients,8,FALSE)*E83+VLOOKUP(A84,Micronutrients,8,FALSE)*E84+VLOOKUP(A85,Micronutrients,8,FALSE)*E85 -> 0 | J80: =VLOOKUP(A74,Macronutrients,9,FALSE)*E74+VLOOKUP(A75,Macronutrients,9,FALSE)*E75+VLOOKUP(A76,Macronutrients,9,FALSE)*E76+VLOOKUP(A77,Macronutrients,9,FALSE)*E77+VLOOKUP(A78,Macronutrients,9,FALSE)*E78+VLOOKUP(A79,Macronutrients,9,FALSE)*E79+VLOOKUP(A82,Micronutrients,9,FALSE)*E82+VLOOKUP(A83,Micronutrients,9,FALSE)*E83+VLOOKUP(A84,Micronutrients,9,FALSE)*E84+VLOOKUP(A85,Micronutrients,9,FALSE)*E85 -> 0 | K80: =VLOOKUP(A74,Macronutrients,10,FALSE)*E74+VLOOKUP(A75,Macronutrients,10,FALSE)*E75+VLOOKUP(A76,Macronutrients,10,FALSE)*E76+VLOOKUP(A77,Macronutrients,10,FALSE)*E77+VLOOKUP(A78,Macronutrients,10,FALSE)*E78+VLOOKUP(A79,Macronutrients,10,FALSE)*E79+VLOOKUP(A82,Micronutrients,10,FALSE)*E82+VLOOKUP(A83,Micronutrients,10,FALSE)*E83+VLOOKUP(A84,Micronutrients,10,FALSE)*E84+VLOOKUP(A85,Micronutrients,10,FALSE)*E85 -> 0 | U80: =VLOOKUP(M74,Macronutrients,8,FALSE)*Q74+VLOOKUP(M75,Macronutrients,8,FALSE)*Q75+VLOOKUP(M76,Macronutrients,8,FALSE)*Q76+VLOOKUP(M77,Macronutrients,8,FALSE)*Q77+VLOOKUP(M78,Macronutrients,8,FALSE)*Q78+VLOOKUP(M79,Macronutrients,8,FALSE)*Q79+VLOOKUP(M82,Micronutrients,8,FALSE)*Q82+VLOOKUP(M83,Micronutrients,8,FALSE)*Q83+VLOOKUP(M84,Micronutrients,8,FALSE)*Q84+VLOOKUP(M85,Micronutrients,8,FALSE)*Q85 -> 0 | V80: =VLOOKUP(M74,Macronutrients,9,FALSE)*Q74+VLOOKUP(M75,Macronutrients,9,FALSE)*Q75+VLOOKUP(M76,Macronutrients,9,FALSE)*Q76+VLOOKUP(M77,Macronutrients,9,FALSE)*Q77+VLOOKUP(M78,Macronutrients,9,FALSE)*Q78+VLOOKUP(M79,Macronutrients,9,FALSE)*Q79+VLOOKUP(M82,Micronutrients,9,FALSE)*Q82+VLOOKUP(M83,Micronutrients,9,FALSE)*Q83+VLOOKUP(M84,Micronutrients,9,FALSE)*Q84+VLOOKUP(M85,Micronutrients,9,FALSE)*Q85 -> 0 | W80: =VLOOKUP(M74,Macronutrients,10,FALSE)*Q74+VLOOKUP(M75,Macronutrients,10,FALSE)*Q75+VLOOKUP(M76,Macronutrients,10,FALSE)*Q76+VLOOKUP(M77,Macronutrients,10,FALSE)*Q77+VLOOKUP(M78,Macronutrients,10,FALSE)*Q78+VLOOKUP(M79,Macronutrients,10,FALSE)*Q79+VLOOKUP(M82,Micronutrients,10,FALSE)*Q82+VLOOKUP(M83,Micronutrients,10,FALSE)*Q83+VLOOKUP(M84,Micronutrients,10,FALSE)*Q84+VLOOKUP(M85,Micronutrients,10,FALSE)*Q85 -> 0 | AG80: =VLOOKUP(Y74,Macronutrients,8,FALSE)*AC74+VLOOKUP(Y75,Macronutrients,8,FALSE)*AC75+VLOOKUP(Y76,Macronutrients,8,FALSE)*AC76+VLOOKUP(Y77,Macronutrients,8,FALSE)*AC77+VLOOKUP(Y78,Macronutrients,8,FALSE)*AC78+VLOOKUP(Y79,Macronutrients,8,FALSE)*AC79+VLOOKUP(Y82,Micronutrients,8,FALSE)*AC82+VLOOKUP(Y83,Micronutrients,8,FALSE)*AC83+VLOOKUP(Y84,Micronutrients,8,FALSE)*AC84+VLOOKUP(Y85,Micronutrients,8,FALSE)*AC85 -> 0 | AH80: =VLOOKUP(Y74,Macronutrients,9,FALSE)*AC74+VLOOKUP(Y75,Macronutrients,9,FALSE)*AC75+VLOOKUP(Y76,Macronutrients,9,FALSE)*AC76+VLOOKUP(Y77,Macronutrients,9,FALSE)*AC77+VLOOKUP(Y78,Macronutrients,9,FALSE)*AC78+VLOOKUP(Y79,Macronutrients,9,FALSE)*AC79+VLOOKUP(Y82,Micronutrients,9,FALSE)*AC82+VLOOKUP(Y83,Micronutrients,9,FALSE)*AC83+VLOOKUP(Y84,Micronutrients,9,FALSE)*AC84+VLOOKUP(Y85,Micronutrients,9,FALSE)*AC85 -> 0 | AI80: =VLOOKUP(Y74,Macronutrients,10,FALSE)*AC74+VLOOKUP(Y75,Macronutrients,10,FALSE)*AC75+VLOOKUP(Y76,Macronutrients,10,FALSE)*AC76+VLOOKUP(Y77,Macronutrients,10,FALSE)*AC77+VLOOKUP(Y78,Macronutrients,10,FALSE)*AC78+VLOOKUP(Y79,Macronutrients,10,FALSE)*AC79+VLOOKUP(Y82,Micronutrients,10,FALSE)*AC82+VLOOKUP(Y83,Micronutrients,10,FALSE)*AC83+VLOOKUP(Y84,Micronutrients,10,FALSE)*AC84+VLOOKUP(Y85,Micronutrients,10,FALSE)*AC85 -> 0
A81: Micronutrients (drop down menu) | M81: Micronutrients (drop down menu) | Y81: Micronutrients (drop down menu)
A82: None | B82: =VLOOKUP($A82,Micronutrients,14,FALSE) -> 0 | C82: =VLOOKUP(A82,Micronutrients,18,FALSE) -> 0 | D82: =VLOOKUP(A82,Micronutrients,16,FALSE) -> 1 | E82: 0 | F82: =VLOOKUP(A82,Micronutrients,15,FALSE) -> 0 | G82: =(E82*VLOOKUP(A82,Micronutrients,14,FALSE)/D82)*C82 -> 0 | I82: Cu | J82: Mo | K82: Fe | M82: None | N82: =VLOOKUP($M82,Micronutrients,14,FALSE) -> 0 | O82: =VLOOKUP(M82,Micronutrients,18,FALSE) -> 0 | P82: =VLOOKUP(M82,Micronutrients,16,FALSE) -> 1 | Q82: 0 | R82: =VLOOKUP(M82,Micronutrients,15,FALSE) -> 0 | S82: =(Q82*VLOOKUP(M82,Micronutrients,14,FALSE)/P82)*O82 -> 0 | U82: Cu | V82: Mo | W82: Fe | Y82: None | Z82: =VLOOKUP(Y82,Micronutrients,14,FALSE) -> 0 | AA82: =VLOOKUP(Y82,Micronutrients,18,FALSE) -> 0 | AB82: =VLOOKUP(Y82,Micronutrients,16,FALSE) -> 1 | AC82: 0 | AD82: =VLOOKUP(Y82,Micronutrients,15,FALSE) -> 0 | AE82: =(AC82*VLOOKUP(Y82,Micronutrients,14,FALSE)/AB82)*AA82 -> 0 | AG82: Cu | AH82: Mo | AI82: Fe
A83: None | B83: =VLOOKUP($A83,Micronutrients,14,FALSE) -> 0 | C83: =VLOOKUP(A83,Micronutrients,18,FALSE) -> 0 | D83: =VLOOKUP(A83,Micronutrients,16,FALSE) -> 1 | E83: 0 | F83: =VLOOKUP(A83,Micronutrients,15,FALSE) -> 0 | G83: =(E83*VLOOKUP(A83,Micronutrients,14,FALSE)/D83)*C83 -> 0 | I83: =VLOOKUP(A74,Macronutrients,11,FALSE)*E74+VLOOKUP(A75,Macronutrients,11,FALSE)*E75+VLOOKUP(A76,Macronutrients,11,FALSE)*E76+VLOOKUP(A77,Macronutrients,11,FALSE)*E77+VLOOKUP(A78,Macronutrients,11,FALSE)*E78+VLOOKUP(A79,Macronutrients,11,FALSE)*E79+VLOOKUP(A82,Micronutrients,11,FALSE)*E82+VLOOKUP(A83,Micronutrients,11,FALSE)*E83+VLOOKUP(A84,Micronutrients,11,FALSE)*E84+VLOOKUP(A85,Micronutrients,11,FALSE)*E85 -> 0 | J83: =VLOOKUP(A74,Macronutrients,12,FALSE)*E74+VLOOKUP(A75,Macronutrients,12,FALSE)*E75+VLOOKUP(A76,Macronutrients,12,FALSE)*E76+VLOOKUP(A77,Macronutrients,12,FALSE)*E77+VLOOKUP(A78,Macronutrients,12,FALSE)*E78+VLOOKUP(A79,Macronutrients,12,FALSE)*E79+VLOOKUP(A82,Micronutrients,12,FALSE)*E82+VLOOKUP(A83,Micronutrients,12,FALSE)*E83+VLOOKUP(A84,Micronutrients,12,FALSE)*E84+VLOOKUP(A85,Micronutrients,12,FALSE)*E85 -> 0 | K83: =VLOOKUP(A74,Macronutrients,13,FALSE)*E74+VLOOKUP(A75,Macronutrients,13,FALSE)*E75+VLOOKUP(A76,Macronutrients,13,FALSE)*E76+VLOOKUP(A77,Macronutrients,13,FALSE)*E77+VLOOKUP(A78,Macronutrients,13,FALSE)*E78+VLOOKUP(A79,Macronutrients,13,FALSE)*E79+VLOOKUP(A82,Micronutrients,13,FALSE)*E82+VLOOKUP(A83,Micronutrients,13,FALSE)*E83+VLOOKUP(A84,Micronutrients,13,FALSE)*E84+VLOOKUP(A85,Micronutrients,13,FALSE)*E85 -> 0 | M83: None | N83: =VLOOKUP($M83,Micronutrients,14,FALSE) -> 0 | O83: =VLOOKUP(M83,Micronutrients,18,FALSE) -> 0 | P83: =VLOOKUP(M83,Micronutrients,16,FALSE) -> 1 | Q83: 0 | R83: =VLOOKUP(M83,Micronutrients,15,FALSE) -> 0 | S83: =(Q83*VLOOKUP(M83,Micronutrients,14,FALSE)/P83)*O83 -> 0 | U83: =VLOOKUP(M74,Macronutrients,11,FALSE)*Q74+VLOOKUP(M75,Macronutrients,11,FALSE)*Q75+VLOOKUP(M76,Macronutrients,11,FALSE)*Q76+VLOOKUP(M77,Macronutrients,11,FALSE)*Q77+VLOOKUP(M78,Macronutrients,11,FALSE)*Q78+VLOOKUP(M79,Macronutrients,11,FALSE)*Q79+VLOOKUP(M82,Micronutrients,11,FALSE)*Q82+VLOOKUP(M83,Micronutrients,11,FALSE)*Q83+VLOOKUP(M84,Micronutrients,11,FALSE)*Q84+VLOOKUP(M85,Micronutrients,11,FALSE)*Q85 -> 0 | V83: =VLOOKUP(M74,Macronutrients,12,FALSE)*Q74+VLOOKUP(M75,Macronutrients,12,FALSE)*Q75+VLOOKUP(M76,Macronutrients,12,FALSE)*Q76+VLOOKUP(M77,Macronutrients,12,FALSE)*Q77+VLOOKUP(M78,Macronutrients,12,FALSE)*Q78+VLOOKUP(M79,Macronutrients,12,FALSE)*Q79+VLOOKUP(M82,Micronutrients,12,FALSE)*Q82+VLOOKUP(M83,Micronutrients,12,FALSE)*Q83+VLOOKUP(M84,Micronutrients,12,FALSE)*Q84+VLOOKUP(M85,Micronutrients,12,FALSE)*Q85 -> 0 | W83: =VLOOKUP(M74,Macronutrients,13,FALSE)*Q74+VLOOKUP(M75,Macronutrients,13,FALSE)*Q75+VLOOKUP(M76,Macronutrients,13,FALSE)*Q76+VLOOKUP(M77,Macronutrients,13,FALSE)*Q77+VLOOKUP(M78,Macronutrients,13,FALSE)*Q78+VLOOKUP(M79,Macronutrients,13,FALSE)*Q79+VLOOKUP(M82,Micronutrients,13,FALSE)*Q82+VLOOKUP(M83,Micronutrients,13,FALSE)*Q83+VLOOKUP(M84,Micronutrients,13,FALSE)*Q84+VLOOKUP(M85,Micronutrients,13,FALSE)*Q85 -> 0 | Y83: None | Z83: =VLOOKUP(Y83,Micronutrients,14,FALSE) -> 0 | AA83: =VLOOKUP(Y83,Micronutrients,18,FALSE) -> 0 | AB83: =VLOOKUP(Y83,Micronutrients,16,FALSE) -> 1 | AC83: 0 | AD83: =VLOOKUP(Y83,Micronutrients,15,FALSE) -> 0 | AE83: =(AC83*VLOOKUP(Y83,Micronutrients,14,FALSE)/AB83)*AA83 -> 0 | AG83: =VLOOKUP(Y74,Macronutrients,11,FALSE)*AC74+VLOOKUP(Y75,Macronutrients,11,FALSE)*AC75+VLOOKUP(Y76,Macronutrients,11,FALSE)*AC76+VLOOKUP(Y77,Macronutrients,11,FALSE)*AC77+VLOOKUP(Y78,Macronutrients,11,FALSE)*AC78+VLOOKUP(Y79,Macronutrients,11,FALSE)*AC79+VLOOKUP(Y82,Micronutrients,11,FALSE)*AC82+VLOOKUP(Y83,Micronutrients,11,FALSE)*AC83+VLOOKUP(Y84,Micronutrients,11,FALSE)*AC84+VLOOKUP(Y85,Micronutrients,11,FALSE)*AC85 -> 0 | AH83: =VLOOKUP(Y74,Macronutrients,12,FALSE)*AC74+VLOOKUP(Y75,Macronutrients,12,FALSE)*AC75+VLOOKUP(Y76,Macronutrients,12,FALSE)*AC76+VLOOKUP(Y77,Macronutrients,12,FALSE)*AC77+VLOOKUP(Y78,Macronutrients,12,FALSE)*AC78+VLOOKUP(Y79,Macronutrients,12,FALSE)*AC79+VLOOKUP(Y82,Micronutrients,12,FALSE)*AC82+VLOOKUP(Y83,Micronutrients,12,FALSE)*AC83+VLOOKUP(Y84,Micronutrients,12,FALSE)*AC84+VLOOKUP(Y85,Micronutrients,12,FALSE)*AC85 -> 0 | AI83: =VLOOKUP(Y74,Macronutrients,13,FALSE)*AC74+VLOOKUP(Y75,Macronutrients,13,FALSE)*AC75+VLOOKUP(Y76,Macronutrients,13,FALSE)*AC76+VLOOKUP(Y77,Macronutrients,13,FALSE)*AC77+VLOOKUP(Y78,Macronutrients,13,FALSE)*AC78+VLOOKUP(Y79,Macronutrients,13,FALSE)*AC79+VLOOKUP(Y82,Micronutrients,13,FALSE)*AC82+VLOOKUP(Y83,Micronutrients,13,FALSE)*AC83+VLOOKUP(Y84,Micronutrients,13,FALSE)*AC84+VLOOKUP(Y85,Micronutrients,13,FALSE)*AC85 -> 0
A84: None | B84: =VLOOKUP($A84,Micronutrients,14,FALSE) -> 0 | C84: =VLOOKUP(A84,Micronutrients,18,FALSE) -> 0 | D84: =VLOOKUP(A84,Micronutrients,16,FALSE) -> 1 | E84: 0 | F84: =VLOOKUP(A84,Micronutrients,15,FALSE) -> 0 | G84: =(E84*VLOOKUP(A84,Micronutrients,14,FALSE)/D84)*C84 -> 0 | M84: None | N84: =VLOOKUP($M84,Micronutrients,14,FALSE) -> 0 | O84: =VLOOKUP(M84,Micronutrients,18,FALSE) -> 0 | P84: =VLOOKUP(M84,Micronutrients,16,FALSE) -> 1 | Q84: 0 | R84: =VLOOKUP(M84,Micronutrients,15,FALSE) -> 0 | S84: =(Q84*VLOOKUP(M84,Micronutrients,14,FALSE)/P84)*O84 -> 0 | Y84: None | Z84: =VLOOKUP(Y84,Micronutrients,14,FALSE) -> 0 | AA84: =VLOOKUP(Y84,Micronutrients,18,FALSE) -> 0 | AB84: =VLOOKUP(Y84,Micronutrients,16,FALSE) -> 1 | AC84: 0 | AD84: =VLOOKUP(Y84,Micronutrients,15,FALSE) -> 0 | AE84: =(AC84*VLOOKUP(Y84,Micronutrients,14,FALSE)/AB84)*AA84 -> 0
A85: None | B85: =VLOOKUP($A85,Micronutrients,14,FALSE) -> 0 | C85: =VLOOKUP(A85,Micronutrients,18,FALSE) -> 0 | D85: =VLOOKUP(A85,Micronutrients,16,FALSE) -> 1 | E85: 0 | F85: =VLOOKUP(A85,Micronutrients,15,FALSE) -> 0 | G85: =(E85*VLOOKUP(A85,Micronutrients,14,FALSE)/D85)*C85 -> 0 | M85: None | N85: =VLOOKUP($M85,Micronutrients,14,FALSE) -> 0 | O85: =VLOOKUP(M85,Micronutrients,18,FALSE) -> 0 | P85: =VLOOKUP(M85,Micronutrients,16,FALSE) -> 1 | Q85: 0 | R85: =VLOOKUP(M85,Micronutrients,15,FALSE) -> 0 | S85: =(Q85*VLOOKUP(M85,Micronutrients,14,FALSE)/P85)*O85 -> 0 | Y85: None | Z85: =VLOOKUP(Y85,Micronutrients,14,FALSE) -> 0 | AA85: =VLOOKUP(Y85,Micronutrients,18,FALSE) -> 0 | AB85: =VLOOKUP(Y85,Micronutrients,16,FALSE) -> 1 | AC85: 0 | AD85: =VLOOKUP(Y85,Micronutrients,15,FALSE) -> 0 | AE85: =(AC85*VLOOKUP(Y85,Micronutrients,14,FALSE)/AB85)*AA85 -> 0
A87: Nitrogen Stabilizers (drop down menu) | M87: Nitrogen Stabilizers (drop down menu) | Y87: Nitrogen Stabilizers (drop down menu)
A88: None | B88: =VLOOKUP(A88,NitrogenStabilizers,14,FALSE) -> 0 | C88: =VLOOKUP(A88,NitrogenStabilizers,18,FALSE) -> 0 | D88: =VLOOKUP(A88,NitrogenStabilizers,16,FALSE) -> 1 | E88: 0 | F88: =VLOOKUP(A88,NitrogenStabilizers,15,FALSE) -> 0 | G88: =(E88*VLOOKUP(A88,NitrogenStabilizers,14,FALSE)/D88)*C88 -> 0 | M88: None | N88: =VLOOKUP(M88,NitrogenStabilizers,14,FALSE) -> 0 | O88: =VLOOKUP(M88,NitrogenStabilizers,18,FALSE) -> 0 | P88: =VLOOKUP(M88,NitrogenStabilizers,16,FALSE) -> 1 | Q88: 0 | R88: =VLOOKUP(M88,NitrogenStabilizers,15,FALSE) -> 0 | S88: =(Q88*VLOOKUP(M88,NitrogenStabilizers,14,FALSE)/P88)*O88 -> 0 | Y88: None | Z88: =VLOOKUP(Y88,NitrogenStabilizers,14,FALSE) -> 0 | AA88: =VLOOKUP(Y88,NitrogenStabilizers,18,FALSE) -> 0 | AB88: =VLOOKUP(Y88,NitrogenStabilizers,16,FALSE) -> 1 | AC88: 0 | AD88: =VLOOKUP(Y88,NitrogenStabilizers,15,FALSE) -> 0 | AE88: =(AC88*VLOOKUP(Y88,NitrogenStabilizers,14,FALSE)/AB88)*AA88 -> 0
A89: None | B89: =VLOOKUP(A89,NitrogenStabilizers,14,FALSE) -> 0 | C89: =VLOOKUP(A89,NitrogenStabilizers,18,FALSE) -> 0 | D89: =VLOOKUP(A89,NitrogenStabilizers,16,FALSE) -> 1 | E89: 0 | F89: =VLOOKUP(A89,NitrogenStabilizers,15,FALSE) -> 0 | G89: =(E89*VLOOKUP(A89,NitrogenStabilizers,14,FALSE)/D89)*C89 -> 0 | K89: More | M89: None | N89: =VLOOKUP(M89,NitrogenStabilizers,14,FALSE) -> 0 | O89: =VLOOKUP(M89,NitrogenStabilizers,18,FALSE) -> 0 | P89: =VLOOKUP(M89,NitrogenStabilizers,16,FALSE) -> 1 | Q89: 0 | R89: =VLOOKUP(M89,NitrogenStabilizers,15,FALSE) -> 0 | S89: =(Q89*VLOOKUP(M89,NitrogenStabilizers,14,FALSE)/P89)*O89 -> 0 | W89: More | Y89: None | Z89: =VLOOKUP(Y89,NitrogenStabilizers,14,FALSE) -> 0 | AA89: =VLOOKUP(Y89,NitrogenStabilizers,18,FALSE) -> 0 | AB89: =VLOOKUP(Y89,NitrogenStabilizers,16,FALSE) -> 1 | AC89: 0 | AD89: =VLOOKUP(Y89,NitrogenStabilizers,15,FALSE) -> 0 | AE89: =(AC89*VLOOKUP(Y89,NitrogenStabilizers,14,FALSE)/AB89)*AA89 -> 0 | AI89: More
A90: 4th Application Fertilizer Cost/Acre | G90: =SUM(G74:G89) -> 0 | K90: Below | M90: 4th Application Fertilizer Cost/Acre | S90: =SUM(S74:S89) -> 0 | W90: Below | Y90: 4th Application Fertilizer Cost/Acre | AE90: =SUM(AE74:AE89) -> 0 | AI90: Below
K91: ¯ | W91: ¯ | AI91: ¯
A92: Total Fertilizer Cost/Acre | G92: =G90+G69+G48 -> 0 | M92: Total Fertilizer Cost/Acre | S92: =S90+S69+S48 -> 0 | Y92: Total Fertilizer Cost/Acre | AE92: =AE90+AE69+AE48 -> 0
A94: 5th Application (i.e., Side-Dress or Broadcast) | M94: 5th Application (i.e., Side-Dress or Broadcast) | Y94: 5th Application (i.e., Side-Dress or Broadcast)
A95: Fertilizer Source | B95: Purchase Units | C95: Package Price (Gals, Lbs, etc.) | D95: Units/Pkg | E95: Rate/Acre | F95: Units | G95: Cost | M95: Fertilizer Source | N95: Purchase Units | O95: Package Price (Gals, Lbs, etc.) | P95: Units/Pkg | Q95: Rate/Acre | R95: Units | S95: Cost | Y95: Fertilizer Source | Z95: Purchase Units | AA95: Package Price (Gals, Lbs, etc.) | AB95: Units/Pkg | AC95: Rate/Acre | AD95: Units | AE95: Cost
A96: Macronutrients (drop down menu) | E96: (Enter Below) | I96: N | J96: P | K96: K | M96: Macronutrients (drop down menu) | Q96: (Enter Below) | U96: N | V96: P | W96: K | Y96: Macronutrients (drop down menu) | AC96: (Enter Below) | AG96: N | AH96: P | AI96: K
A97: None | B97: =VLOOKUP(A97,Macronutrients,14,FALSE) -> 0 | C97: =VLOOKUP(A97,Macronutrients,18,FALSE) -> 0 | D97: =VLOOKUP(A97,Macronutrients,16,FALSE) -> 1 | E97: 0 | F97: =VLOOKUP(A97,Macronutrients,15,FALSE) -> 0 | G97: =(E97*VLOOKUP(A97,Macronutrients,14,FALSE)/D97)*C97 -> 0 | I97: =VLOOKUP(A97,Macronutrients,2,FALSE)*E97+VLOOKUP(A98,Macronutrients,2,FALSE)*E98+VLOOKUP(A99,Macronutrients,2,FALSE)*E99+VLOOKUP(A100,Macronutrients,2,FALSE)*E100+VLOOKUP(A101,Macronutrients,2,FALSE)*E101+VLOOKUP(A102,Macronutrients,2,FALSE)*E102+VLOOKUP(A105,Micronutrients,2,FALSE)*E105+VLOOKUP(A106,Micronutrients,2,FALSE)*E106+VLOOKUP(A107,Micronutrients,2,FALSE)*E107+VLOOKUP(A108,Micronutrients,2,FALSE)*E108 -> 0 | J97: =VLOOKUP(A97,Macronutrients,3,FALSE)*E97+VLOOKUP(A98,Macronutrients,3,FALSE)*E98+VLOOKUP(A99,Macronutrients,3,FALSE)*E99+VLOOKUP(A100,Macronutrients,3,FALSE)*E100+VLOOKUP(A101,Macronutrients,3,FALSE)*E101+VLOOKUP(A102,Macronutrients,3,FALSE)*E102+VLOOKUP(A105,Micronutrients,3,FALSE)*E105+VLOOKUP(A106,Micronutrients,3,FALSE)*E106+VLOOKUP(A107,Micronutrients,3,FALSE)*E107+VLOOKUP(A108,Micronutrients,3,FALSE)*E108 -> 0 | K97: =VLOOKUP(A97,Macronutrients,4,FALSE)*E97+VLOOKUP(A98,Macronutrients,4,FALSE)*E98+VLOOKUP(A99,Macronutrients,4,FALSE)*E99+VLOOKUP(A100,Macronutrients,4,FALSE)*E100+VLOOKUP(A101,Macronutrients,4,FALSE)*E101+VLOOKUP(A102,Macronutrients,4,FALSE)*E102+VLOOKUP(A105,Micronutrients,4,FALSE)*E105+VLOOKUP(A106,Micronutrients,4,FALSE)*E106+VLOOKUP(A107,Micronutrients,4,FALSE)*E107+VLOOKUP(A108,Micronutrients,4,FALSE)*E108 -> 0 | M97: None | N97: =VLOOKUP(M97,Macronutrients,14,FALSE) -> 0 | O97: =VLOOKUP(M97,Macronutrients,18,FALSE) -> 0 | P97: =VLOOKUP(M97,Macronutrients,16,FALSE) -> 1 | Q97: 0 | R97: =VLOOKUP(M97,Macronutrients,15,FALSE) -> 0 | S97: =(Q97*VLOOKUP(M97,Macronutrients,14,FALSE)/P97)*O97 -> 0 | U97: =VLOOKUP(M97,Macronutrients,2,FALSE)*Q97+VLOOKUP(M98,Macronutrients,2,FALSE)*Q98+VLOOKUP(M99,Macronutrients,2,FALSE)*Q99+VLOOKUP(M100,Macronutrients,2,FALSE)*Q100+VLOOKUP(M101,Macronutrients,2,FALSE)*Q101+VLOOKUP(M102,Macronutrients,2,FALSE)*Q102+VLOOKUP(M105,Micronutrients,2,FALSE)*Q105+VLOOKUP(M106,Micronutrients,2,FALSE)*Q106+VLOOKUP(M107,Micronutrients,2,FALSE)*Q107+VLOOKUP(M108,Micronutrients,2,FALSE)*Q108 -> 0 | V97: =VLOOKUP(M97,Macronutrients,3,FALSE)*Q97+VLOOKUP(M98,Macronutrients,3,FALSE)*Q98+VLOOKUP(M99,Macronutrients,3,FALSE)*Q99+VLOOKUP(M100,Macronutrients,3,FALSE)*Q100+VLOOKUP(M101,Macronutrients,3,FALSE)*Q101+VLOOKUP(M102,Macronutrients,3,FALSE)*Q102+VLOOKUP(M105,Micronutrients,3,FALSE)*Q105+VLOOKUP(M106,Micronutrients,3,FALSE)*Q106+VLOOKUP(M107,Micronutrients,3,FALSE)*Q107+VLOOKUP(M108,Micronutrients,3,FALSE)*Q108 -> 0 | W97: =VLOOKUP(M97,Macronutrients,4,FALSE)*Q97+VLOOKUP(M98,Macronutrients,4,FALSE)*Q98+VLOOKUP(M99,Macronutrients,4,FALSE)*Q99+VLOOKUP(M100,Macronutrients,4,FALSE)*Q100+VLOOKUP(M101,Macronutrients,4,FALSE)*Q101+VLOOKUP(M102,Macronutrients,4,FALSE)*Q102+VLOOKUP(M105,Micronutrients,4,FALSE)*Q105+VLOOKUP(M106,Micronutrients,4,FALSE)*Q106+VLOOKUP(M107,Micronutrients,4,FALSE)*Q107+VLOOKUP(M108,Micronutrients,4,FALSE)*Q108 -> 0 | Y97: None | Z97: =VLOOKUP(Y97,Macronutrients,14,FALSE) -> 0 | AA97: =VLOOKUP(Y97,Macronutrients,18,FALSE) -> 0 | AB97: =VLOOKUP(Y97,Macronutrients,16,FALSE) -> 1 | AC97: 0 | AD97: =VLOOKUP(Y97,Macronutrients,15,FALSE) -> 0 | AE97: =(AC97*VLOOKUP(Y97,Macronutrients,14,FALSE)/AB97)*AA97 -> 0 | AG97: =VLOOKUP(Y97,Macronutrients,2,FALSE)*AC97+VLOOKUP(Y98,Macronutrients,2,FALSE)*AC98+VLOOKUP(Y99,Macronutrients,2,FALSE)*AC99+VLOOKUP(Y100,Macronutrients,2,FALSE)*AC100+VLOOKUP(Y101,Macronutrients,2,FALSE)*AC101+VLOOKUP(Y102,Macronutrients,2,FALSE)*AC102+VLOOKUP(Y105,Micronutrients,2,FALSE)*AC105+VLOOKUP(Y106,Micronutrients,2,FALSE)*AC106+VLOOKUP(Y107,Micronutrients,2,FALSE)*AC107+VLOOKUP(Y108,Micronutrients,2,FALSE)*AC108 -> 0 | AH97: =VLOOKUP(Y97,Macronutrients,3,FALSE)*AC97+VLOOKUP(Y98,Macronutrients,3,FALSE)*AC98+VLOOKUP(Y99,Macronutrients,3,FALSE)*AC99+VLOOKUP(Y100,Macronutrients,3,FALSE)*AC100+VLOOKUP(Y101,Macronutrients,3,FALSE)*AC101+VLOOKUP(Y102,Macronutrients,3,FALSE)*AC102+VLOOKUP(Y105,Micronutrients,3,FALSE)*AC105+VLOOKUP(Y106,Micronutrients,3,FALSE)*AC106+VLOOKUP(Y107,Micronutrients,3,FALSE)*AC107+VLOOKUP(Y108,Micronutrients,3,FALSE)*AC108 -> 0 | AI97: =VLOOKUP(Y97,Macronutrients,4,FALSE)*AC97+VLOOKUP(Y98,Macronutrients,4,FALSE)*AC98+VLOOKUP(Y99,Macronutrients,4,FALSE)*AC99+VLOOKUP(Y100,Macronutrients,4,FALSE)*AC100+VLOOKUP(Y101,Macronutrients,4,FALSE)*AC101+VLOOKUP(Y102,Macronutrients,4,FALSE)*AC102+VLOOKUP(Y105,Micronutrients,4,FALSE)*AC105+VLOOKUP(Y106,Micronutrients,4,FALSE)*AC106+VLOOKUP(Y107,Micronutrients,4,FALSE)*AC107+VLOOKUP(Y108,Micronutrients,4,FALSE)*AC108 -> 0
A98: None | B98: 0 | C98: 0 | D98: 1 | E98: 0 | F98: 0 | G98: 0 | M98: None | N98: 0 | O98: 0 | P98: 1 | Q98: 0 | R98: 0 | S98: 0 | Y98: None | Z98: 0 | AA98: 0 | AB98: 1 | AC98: 0 | AD98: 0 | AE98: 0
A99: None | B99: 0 | C99: 0 | D99: 1 | E99: 0 | F99: 0 | G99: 0 | I99: S | J99: Ca | K99: Mg | M99: None | N99: 0 | O99: 0 | P99: 1 | Q99: 0 | R99: 0 | S99: 0 | U99: S | V99: Ca | W99: Mg | Y99: None | Z99: 0 | AA99: 0 | AB99: 1 | AC99: 0 | AD99: 0 | AE99: 0 | AG99: S | AH99: Ca | AI99: Mg
A100: None | B100: 0 | C100: 0 | D100: 1 | E100: 0 | F100: 0 | G100: 0 | I100: =VLOOKUP(A97,Macronutrients,5,FALSE)*E97+VLOOKUP(A98,Macronutrients,5,FALSE)*E98+VLOOKUP(A99,Macronutrients,5,FALSE)*E99+VLOOKUP(A100,Macronutrients,5,FALSE)*E100+VLOOKUP(A101,Macronutrients,5,FALSE)*E101+VLOOKUP(A102,Macronutrients,5,FALSE)*E102+VLOOKUP(A105,Micronutrients,5,FALSE)*E105+VLOOKUP(A106,Micronutrients,5,FALSE)*E106+VLOOKUP(A107,Micronutrients,5,FALSE)*E107+VLOOKUP(A108,Micronutrients,5,FALSE)*E108 -> 0 | J100: =VLOOKUP(A97,Macronutrients,7,FALSE)*E97+VLOOKUP(A98,Macronutrients,7,FALSE)*E98+VLOOKUP(A99,Macronutrients,7,FALSE)*E99+VLOOKUP(A100,Macronutrients,7,FALSE)*E100+VLOOKUP(A101,Macronutrients,7,FALSE)*E101+VLOOKUP(A102,Macronutrients,7,FALSE)*E102+VLOOKUP(A105,Micronutrients,7,FALSE)*E105+VLOOKUP(A106,Micronutrients,7,FALSE)*E106+VLOOKUP(A107,Micronutrients,7,FALSE)*E107+VLOOKUP(A108,Micronutrients,7,FALSE)*E108 -> 0 | K100: =VLOOKUP($A97,Macronutrients,6,FALSE)*$E$6+VLOOKUP($A98,Macronutrients,6,FALSE)*$E$7+VLOOKUP($A99,Macronutrients,6,FALSE)*$E$8+VLOOKUP($A100,Macronutrients,6,FALSE)*$E$9+VLOOKUP($A101,Macronutrients,6,FALSE)*$E$10+VLOOKUP($A102,Macronutrients,6,FALSE)*$E$11+VLOOKUP($A105,Micronutrients,6,FALSE)*$E$14+VLOOKUP($A106,Micronutrients,6,FALSE)*E106+VLOOKUP($A107,Micronutrients,6,FALSE)*$E$16+VLOOKUP($A108,Micronutrients,6,FALSE)*$E$17 -> 0 | M100: None | N100: 0 | O100: 0 | P100: 1 | Q100: 0 | R100: 0 | S100: 0 | U100: =VLOOKUP(M97,Macronutrients,5,FALSE)*Q97+VLOOKUP(M98,Macronutrients,5,FALSE)*Q98+VLOOKUP(M99,Macronutrients,5,FALSE)*Q99+VLOOKUP(M100,Macronutrients,5,FALSE)*Q100+VLOOKUP(M101,Macronutrients,5,FALSE)*Q101+VLOOKUP(M102,Macronutrients,5,FALSE)*Q102+VLOOKUP(M105,Micronutrients,5,FALSE)*Q105+VLOOKUP(M106,Micronutrients,5,FALSE)*Q106+VLOOKUP(M107,Micronutrients,5,FALSE)*Q107+VLOOKUP(M108,Micronutrients,5,FALSE)*Q108 -> 0 | V100: =VLOOKUP(M97,Macronutrients,7,FALSE)*Q97+VLOOKUP(M98,Macronutrients,7,FALSE)*Q98+VLOOKUP(M99,Macronutrients,7,FALSE)*Q99+VLOOKUP(M100,Macronutrients,7,FALSE)*Q100+VLOOKUP(M101,Macronutrients,7,FALSE)*Q101+VLOOKUP(M102,Macronutrients,7,FALSE)*Q102+VLOOKUP(M105,Micronutrients,7,FALSE)*Q105+VLOOKUP(M106,Micronutrients,7,FALSE)*Q106+VLOOKUP(M107,Micronutrients,7,FALSE)*Q107+VLOOKUP(M108,Micronutrients,7,FALSE)*Q108 -> 0 | W100: =VLOOKUP($A97,Macronutrients,6,FALSE)*$E$6+VLOOKUP($A98,Macronutrients,6,FALSE)*$E$7+VLOOKUP($A99,Macronutrients,6,FALSE)*$E$8+VLOOKUP($A100,Macronutrients,6,FALSE)*$E$9+VLOOKUP($A101,Macronutrients,6,FALSE)*$E$10+VLOOKUP($A102,Macronutrients,6,FALSE)*$E$11+VLOOKUP($A105,Micronutrients,6,FALSE)*$E$14+VLOOKUP($A106,Micronutrients,6,FALSE)*Q106+VLOOKUP($A107,Micronutrients,6,FALSE)*$E$16+VLOOKUP($A108,Micronutrients,6,FALSE)*$E$17 -> 0 | Y100: None | Z100: 0 | AA100: 0 | AB100: 1 | AC100: 0 | AD100: 0 | AE100: 0 | AG100: =VLOOKUP(Y97,Macronutrients,5,FALSE)*AC97+VLOOKUP(Y98,Macronutrients,5,FALSE)*AC98+VLOOKUP(Y99,Macronutrients,5,FALSE)*AC99+VLOOKUP(Y100,Macronutrients,5,FALSE)*AC100+VLOOKUP(Y101,Macronutrients,5,FALSE)*AC101+VLOOKUP(Y102,Macronutrients,5,FALSE)*AC102+VLOOKUP(Y105,Micronutrients,5,FALSE)*AC105+VLOOKUP(Y106,Micronutrients,5,FALSE)*AC106+VLOOKUP(Y107,Micronutrients,5,FALSE)*AC107+VLOOKUP(Y108,Micronutrients,5,FALSE)*AC108 -> 0 | AH100: =VLOOKUP(Y97,Macronutrients,7,FALSE)*AC97+VLOOKUP(Y98,Macronutrients,7,FALSE)*AC98+VLOOKUP(Y99,Macronutrients,7,FALSE)*AC99+VLOOKUP(Y100,Macronutrients,7,FALSE)*AC100+VLOOKUP(Y101,Macronutrients,7,FALSE)*AC101+VLOOKUP(Y102,Macronutrients,7,FALSE)*AC102+VLOOKUP(Y105,Micronutrients,7,FALSE)*AC105+VLOOKUP(Y106,Micronutrients,7,FALSE)*AC106+VLOOKUP(Y107,Micronutrients,7,FALSE)*AC107+VLOOKUP(Y108,Micronutrients,7,FALSE)*AC108 -> 0 | AI100: =VLOOKUP($A97,Macronutrients,6,FALSE)*$E$6+VLOOKUP($A98,Macronutrients,6,FALSE)*$E$7+VLOOKUP($A99,Macronutrients,6,FALSE)*$E$8+VLOOKUP($A100,Macronutrients,6,FALSE)*$E$9+VLOOKUP($A101,Macronutrients,6,FALSE)*$E$10+VLOOKUP($A102,Macronutrients,6,FALSE)*$E$11+VLOOKUP($A105,Micronutrients,6,FALSE)*$E$14+VLOOKUP($A106,Micronutrients,6,FALSE)*AC106+VLOOKUP($A107,Micronutrients,6,FALSE)*$E$16+VLOOKUP($A108,Micronutrients,6,FALSE)*$E$17 -> 0
A101: None | B101: 0 | C101: 0 | D101: 1 | E101: 0 | F101: 0 | G101: 0 | M101: None | N101: 0 | O101: 0 | P101: 1 | Q101: 0 | R101: 0 | S101: 0 | Y101: None | Z101: 0 | AA101: 0 | AB101: 1 | AC101: 0 | AD101: 0 | AE101: 0
A102: None | B102: 0 | C102: 0 | D102: 1 | E102: 0 | F102: 0 | G102: 0 | I102: Z | J102: B | K102: Mn | M102: None | N102: 0 | O102: 0 | P102: 1 | Q102: 0 | R102: 0 | S102: 0 | U102: Z | V102: B | W102: Mn | Y102: None | Z102: 0 | AA102: 0 | AB102: 1 | AC102: 0 | AD102: 0 | AE102: 0 | AG102: Z | AH102: B | AI102: Mn
I103: =VLOOKUP(A97,Macronutrients,8,FALSE)*E97+VLOOKUP(A98,Macronutrients,8,FALSE)*E98+VLOOKUP(A99,Macronutrients,8,FALSE)*E99+VLOOKUP(A100,Macronutrients,8,FALSE)*E100+VLOOKUP(A101,Macronutrients,8,FALSE)*E101+VLOOKUP(A102,Macronutrients,8,FALSE)*E102+VLOOKUP(A105,Micronutrients,8,FALSE)*E105+VLOOKUP(A106,Micronutrients,8,FALSE)*E106+VLOOKUP(A107,Micronutrients,8,FALSE)*E107+VLOOKUP(A108,Micronutrients,8,FALSE)*E108 -> 0 | J103: =VLOOKUP(A97,Macronutrients,9,FALSE)*E97+VLOOKUP(A98,Macronutrients,9,FALSE)*E98+VLOOKUP(A99,Macronutrients,9,FALSE)*E99+VLOOKUP(A100,Macronutrients,9,FALSE)*E100+VLOOKUP(A101,Macronutrients,9,FALSE)*E101+VLOOKUP(A102,Macronutrients,9,FALSE)*E102+VLOOKUP(A105,Micronutrients,9,FALSE)*E105+VLOOKUP(A106,Micronutrients,9,FALSE)*E106+VLOOKUP(A107,Micronutrients,9,FALSE)*E107+VLOOKUP(A108,Micronutrients,9,FALSE)*E108 -> 0 | K103: =VLOOKUP(A97,Macronutrients,10,FALSE)*E97+VLOOKUP(A98,Macronutrients,10,FALSE)*E98+VLOOKUP(A99,Macronutrients,10,FALSE)*E99+VLOOKUP(A100,Macronutrients,10,FALSE)*E100+VLOOKUP(A101,Macronutrients,10,FALSE)*E101+VLOOKUP(A102,Macronutrients,10,FALSE)*E102+VLOOKUP(A105,Micronutrients,10,FALSE)*E105+VLOOKUP(A106,Micronutrients,10,FALSE)*E106+VLOOKUP(A107,Micronutrients,10,FALSE)*E107+VLOOKUP(A108,Micronutrients,10,FALSE)*E108 -> 0 | U103: =VLOOKUP(M97,Macronutrients,8,FALSE)*Q97+VLOOKUP(M98,Macronutrients,8,FALSE)*Q98+VLOOKUP(M99,Macronutrients,8,FALSE)*Q99+VLOOKUP(M100,Macronutrients,8,FALSE)*Q100+VLOOKUP(M101,Macronutrients,8,FALSE)*Q101+VLOOKUP(M102,Macronutrients,8,FALSE)*Q102+VLOOKUP(M105,Micronutrients,8,FALSE)*Q105+VLOOKUP(M106,Micronutrients,8,FALSE)*Q106+VLOOKUP(M107,Micronutrients,8,FALSE)*Q107+VLOOKUP(M108,Micronutrients,8,FALSE)*Q108 -> 0 | V103: =VLOOKUP(M97,Macronutrients,9,FALSE)*Q97+VLOOKUP(M98,Macronutrients,9,FALSE)*Q98+VLOOKUP(M99,Macronutrients,9,FALSE)*Q99+VLOOKUP(M100,Macronutrients,9,FALSE)*Q100+VLOOKUP(M101,Macronutrients,9,FALSE)*Q101+VLOOKUP(M102,Macronutrients,9,FALSE)*Q102+VLOOKUP(M105,Micronutrients,9,FALSE)*Q105+VLOOKUP(M106,Micronutrients,9,FALSE)*Q106+VLOOKUP(M107,Micronutrients,9,FALSE)*Q107+VLOOKUP(M108,Micronutrients,9,FALSE)*Q108 -> 0 | W103: =VLOOKUP(M97,Macronutrients,10,FALSE)*Q97+VLOOKUP(M98,Macronutrients,10,FALSE)*Q98+VLOOKUP(M99,Macronutrients,10,FALSE)*Q99+VLOOKUP(M100,Macronutrients,10,FALSE)*Q100+VLOOKUP(M101,Macronutrients,10,FALSE)*Q101+VLOOKUP(M102,Macronutrients,10,FALSE)*Q102+VLOOKUP(M105,Micronutrients,10,FALSE)*Q105+VLOOKUP(M106,Micronutrients,10,FALSE)*Q106+VLOOKUP(M107,Micronutrients,10,FALSE)*Q107+VLOOKUP(M108,Micronutrients,10,FALSE)*Q108 -> 0 | AG103: =VLOOKUP(Y97,Macronutrients,8,FALSE)*AC97+VLOOKUP(Y98,Macronutrients,8,FALSE)*AC98+VLOOKUP(Y99,Macronutrients,8,FALSE)*AC99+VLOOKUP(Y100,Macronutrients,8,FALSE)*AC100+VLOOKUP(Y101,Macronutrients,8,FALSE)*AC101+VLOOKUP(Y102,Macronutrients,8,FALSE)*AC102+VLOOKUP(Y105,Micronutrients,8,FALSE)*AC105+VLOOKUP(Y106,Micronutrients,8,FALSE)*AC106+VLOOKUP(Y107,Micronutrients,8,FALSE)*AC107+VLOOKUP(Y108,Micronutrients,8,FALSE)*AC108 -> 0 | AH103: =VLOOKUP(Y97,Macronutrients,9,FALSE)*AC97+VLOOKUP(Y98,Macronutrients,9,FALSE)*AC98+VLOOKUP(Y99,Macronutrients,9,FALSE)*AC99+VLOOKUP(Y100,Macronutrients,9,FALSE)*AC100+VLOOKUP(Y101,Macronutrients,9,FALSE)*AC101+VLOOKUP(Y102,Macronutrients,9,FALSE)*AC102+VLOOKUP(Y105,Micronutrients,9,FALSE)*AC105+VLOOKUP(Y106,Micronutrients,9,FALSE)*AC106+VLOOKUP(Y107,Micronutrients,9,FALSE)*AC107+VLOOKUP(Y108,Micronutrients,9,FALSE)*AC108 -> 0 | AI103: =VLOOKUP(Y97,Macronutrients,10,FALSE)*AC97+VLOOKUP(Y98,Macronutrients,10,FALSE)*AC98+VLOOKUP(Y99,Macronutrients,10,FALSE)*AC99+VLOOKUP(Y100,Macronutrients,10,FALSE)*AC100+VLOOKUP(Y101,Macronutrients,10,FALSE)*AC101+VLOOKUP(Y102,Macronutrients,10,FALSE)*AC102+VLOOKUP(Y105,Micronutrients,10,FALSE)*AC105+VLOOKUP(Y106,Micronutrients,10,FALSE)*AC106+VLOOKUP(Y107,Micronutrients,10,FALSE)*AC107+VLOOKUP(Y108,Micronutrients,10,FALSE)*AC108 -> 0
A104: Micronutrients (drop down menu) | M104: Micronutrients (drop down menu) | Y104: Micronutrients (drop down menu)
A105: None | B105: =VLOOKUP($A105,Micronutrients,14,FALSE) -> 0 | C105: =VLOOKUP(A105,Micronutrients,18,FALSE) -> 0 | D105: =VLOOKUP(A105,Micronutrients,16,FALSE) -> 1 | E105: 0 | F105: =VLOOKUP(A105,Micronutrients,15,FALSE) -> 0 | G105: =(E105*VLOOKUP(A105,Micronutrients,14,FALSE)/D105)*C105 -> 0 | I105: Cu | J105: Mo | K105: Fe | M105: None | N105: =VLOOKUP($M105,Micronutrients,14,FALSE) -> 0 | O105: =VLOOKUP(M105,Micronutrients,18,FALSE) -> 0 | P105: =VLOOKUP(M105,Micronutrients,16,FALSE) -> 1 | Q105: 0 | R105: =VLOOKUP(M105,Micronutrients,15,FALSE) -> 0 | S105: =(Q105*VLOOKUP(M105,Micronutrients,14,FALSE)/P105)*O105 -> 0 | U105: Cu | V105: Mo | W105: Fe | Y105: None | Z105: =VLOOKUP(Y105,Micronutrients,14,FALSE) -> 0 | AA105: =VLOOKUP(Y105,Micronutrients,18,FALSE) -> 0 | AB105: =VLOOKUP(Y105,Micronutrients,16,FALSE) -> 1 | AC105: 0 | AD105: =VLOOKUP(Y105,Micronutrients,15,FALSE) -> 0 | AE105: =(AC105*VLOOKUP(Y105,Micronutrients,14,FALSE)/AB105)*AA105 -> 0 | AG105: Cu | AH105: Mo | AI105: Fe
A106: None | B106: =VLOOKUP($A106,Micronutrients,14,FALSE) -> 0 | C106: =VLOOKUP(A106,Micronutrients,18,FALSE) -> 0 | D106: =VLOOKUP(A106,Micronutrients,16,FALSE) -> 1 | E106: 0 | F106: =VLOOKUP(A106,Micronutrients,15,FALSE) -> 0 | G106: =(E106*VLOOKUP(A106,Micronutrients,14,FALSE)/D106)*C106 -> 0 | I106: =VLOOKUP(A97,Macronutrients,11,FALSE)*E97+VLOOKUP(A98,Macronutrients,11,FALSE)*E98+VLOOKUP(A99,Macronutrients,11,FALSE)*E99+VLOOKUP(A100,Macronutrients,11,FALSE)*E100+VLOOKUP(A101,Macronutrients,11,FALSE)*E101+VLOOKUP(A102,Macronutrients,11,FALSE)*E102+VLOOKUP(A105,Micronutrients,11,FALSE)*E105+VLOOKUP(A106,Micronutrients,11,FALSE)*E106+VLOOKUP(A107,Micronutrients,11,FALSE)*E107+VLOOKUP(A108,Micronutrients,11,FALSE)*E108 -> 0 | J106: =VLOOKUP(A97,Macronutrients,12,FALSE)*E97+VLOOKUP(A98,Macronutrients,12,FALSE)*E98+VLOOKUP(A99,Macronutrients,12,FALSE)*E99+VLOOKUP(A100,Macronutrients,12,FALSE)*E100+VLOOKUP(A101,Macronutrients,12,FALSE)*E101+VLOOKUP(A102,Macronutrients,12,FALSE)*E102+VLOOKUP(A105,Micronutrients,12,FALSE)*E105+VLOOKUP(A106,Micronutrients,12,FALSE)*E106+VLOOKUP(A107,Micronutrients,12,FALSE)*E107+VLOOKUP(A108,Micronutrients,12,FALSE)*E108 -> 0 | K106: =VLOOKUP(A97,Macronutrients,13,FALSE)*E97+VLOOKUP(A98,Macronutrients,13,FALSE)*E98+VLOOKUP(A99,Macronutrients,13,FALSE)*E99+VLOOKUP(A100,Macronutrients,13,FALSE)*E100+VLOOKUP(A101,Macronutrients,13,FALSE)*E101+VLOOKUP(A102,Macronutrients,13,FALSE)*E102+VLOOKUP(A105,Micronutrients,13,FALSE)*E105+VLOOKUP(A106,Micronutrients,13,FALSE)*E106+VLOOKUP(A107,Micronutrients,13,FALSE)*E107+VLOOKUP(A108,Micronutrients,13,FALSE)*E108 -> 0 | M106: None | N106: =VLOOKUP($M106,Micronutrients,14,FALSE) -> 0 | O106: =VLOOKUP(M106,Micronutrients,18,FALSE) -> 0 | P106: =VLOOKUP(M106,Micronutrients,16,FALSE) -> 1 | Q106: 0 | R106: =VLOOKUP(M106,Micronutrients,15,FALSE) -> 0 | S106: =(Q106*VLOOKUP(M106,Micronutrients,14,FALSE)/P106)*O106 -> 0 | U106: =VLOOKUP(M97,Macronutrients,11,FALSE)*Q97+VLOOKUP(M98,Macronutrients,11,FALSE)*Q98+VLOOKUP(M99,Macronutrients,11,FALSE)*Q99+VLOOKUP(M100,Macronutrients,11,FALSE)*Q100+VLOOKUP(M101,Macronutrients,11,FALSE)*Q101+VLOOKUP(M102,Macronutrients,11,FALSE)*Q102+VLOOKUP(M105,Micronutrients,11,FALSE)*Q105+VLOOKUP(M106,Micronutrients,11,FALSE)*Q106+VLOOKUP(M107,Micronutrients,11,FALSE)*Q107+VLOOKUP(M108,Micronutrients,11,FALSE)*Q108 -> 0 | V106: =VLOOKUP(M97,Macronutrients,12,FALSE)*Q97+VLOOKUP(M98,Macronutrients,12,FALSE)*Q98+VLOOKUP(M99,Macronutrients,12,FALSE)*Q99+VLOOKUP(M100,Macronutrients,12,FALSE)*Q100+VLOOKUP(M101,Macronutrients,12,FALSE)*Q101+VLOOKUP(M102,Macronutrients,12,FALSE)*Q102+VLOOKUP(M105,Micronutrients,12,FALSE)*Q105+VLOOKUP(M106,Micronutrients,12,FALSE)*Q106+VLOOKUP(M107,Micronutrients,12,FALSE)*Q107+VLOOKUP(M108,Micronutrients,12,FALSE)*Q108 -> 0 | W106: =VLOOKUP(M97,Macronutrients,13,FALSE)*Q97+VLOOKUP(M98,Macronutrients,13,FALSE)*Q98+VLOOKUP(M99,Macronutrients,13,FALSE)*Q99+VLOOKUP(M100,Macronutrients,13,FALSE)*Q100+VLOOKUP(M101,Macronutrients,13,FALSE)*Q101+VLOOKUP(M102,Macronutrients,13,FALSE)*Q102+VLOOKUP(M105,Micronutrients,13,FALSE)*Q105+VLOOKUP(M106,Micronutrients,13,FALSE)*Q106+VLOOKUP(M107,Micronutrients,13,FALSE)*Q107+VLOOKUP(M108,Micronutrients,13,FALSE)*Q108 -> 0 | Y106: None | Z106: =VLOOKUP(Y106,Micronutrients,14,FALSE) -> 0 | AA106: =VLOOKUP(Y106,Micronutrients,18,FALSE) -> 0 | AB106: =VLOOKUP(Y106,Micronutrients,16,FALSE) -> 1 | AC106: 0 | AD106: =VLOOKUP(Y106,Micronutrients,15,FALSE) -> 0 | AE106: =(AC106*VLOOKUP(Y106,Micronutrients,14,FALSE)/AB106)*AA106 -> 0 | AG106: =VLOOKUP(Y97,Macronutrients,11,FALSE)*AC97+VLOOKUP(Y98,Macronutrients,11,FALSE)*AC98+VLOOKUP(Y99,Macronutrients,11,FALSE)*AC99+VLOOKUP(Y100,Macronutrients,11,FALSE)*AC100+VLOOKUP(Y101,Macronutrients,11,FALSE)*AC101+VLOOKUP(Y102,Macronutrients,11,FALSE)*AC102+VLOOKUP(Y105,Micronutrients,11,FALSE)*AC105+VLOOKUP(Y106,Micronutrients,11,FALSE)*AC106+VLOOKUP(Y107,Micronutrients,11,FALSE)*AC107+VLOOKUP(Y108,Micronutrients,11,FALSE)*AC108 -> 0 | AH106: =VLOOKUP(Y97,Macronutrients,12,FALSE)*AC97+VLOOKUP(Y98,Macronutrients,12,FALSE)*AC98+VLOOKUP(Y99,Macronutrients,12,FALSE)*AC99+VLOOKUP(Y100,Macronutrients,12,FALSE)*AC100+VLOOKUP(Y101,Macronutrients,12,FALSE)*AC101+VLOOKUP(Y102,Macronutrients,12,FALSE)*AC102+VLOOKUP(Y105,Micronutrients,12,FALSE)*AC105+VLOOKUP(Y106,Micronutrients,12,FALSE)*AC106+VLOOKUP(Y107,Micronutrients,12,FALSE)*AC107+VLOOKUP(Y108,Micronutrients,12,FALSE)*AC108 -> 0 | AI106: =VLOOKUP(Y97,Macronutrients,13,FALSE)*AC97+VLOOKUP(Y98,Macronutrients,13,FALSE)*AC98+VLOOKUP(Y99,Macronutrients,13,FALSE)*AC99+VLOOKUP(Y100,Macronutrients,13,FALSE)*AC100+VLOOKUP(Y101,Macronutrients,13,FALSE)*AC101+VLOOKUP(Y102,Macronutrients,13,FALSE)*AC102+VLOOKUP(Y105,Micronutrients,13,FALSE)*AC105+VLOOKUP(Y106,Micronutrients,13,FALSE)*AC106+VLOOKUP(Y107,Micronutrients,13,FALSE)*AC107+VLOOKUP(Y108,Micronutrients,13,FALSE)*AC108 -> 0
A107: None | B107: =VLOOKUP($A107,Micronutrients,14,FALSE) -> 0 | C107: =VLOOKUP(A107,Micronutrients,18,FALSE) -> 0 | D107: =VLOOKUP(A107,Micronutrients,16,FALSE) -> 1 | E107: 0 | F107: =VLOOKUP(A107,Micronutrients,15,FALSE) -> 0 | G107: =(E107*VLOOKUP(A107,Micronutrients,14,FALSE)/D107)*C107 -> 0 | M107: None | N107: =VLOOKUP($M107,Micronutrients,14,FALSE) -> 0 | O107: =VLOOKUP(M107,Micronutrients,18,FALSE) -> 0 | P107: =VLOOKUP(M107,Micronutrients,16,FALSE) -> 1 | Q107: 0 | R107: =VLOOKUP(M107,Micronutrients,15,FALSE) -> 0 | S107: =(Q107*VLOOKUP(M107,Micronutrients,14,FALSE)/P107)*O107 -> 0 | Y107: None | Z107: =VLOOKUP(Y107,Micronutrients,14,FALSE) -> 0 | AA107: =VLOOKUP(Y107,Micronutrients,18,FALSE) -> 0 | AB107: =VLOOKUP(Y107,Micronutrients,16,FALSE) -> 1 | AC107: 0 | AD107: =VLOOKUP(Y107,Micronutrients,15,FALSE) -> 0 | AE107: =(AC107*VLOOKUP(Y107,Micronutrients,14,FALSE)/AB107)*AA107 -> 0
A108: None | B108: =VLOOKUP($A108,Micronutrients,14,FALSE) -> 0 | C108: =VLOOKUP(A108,Micronutrients,18,FALSE) -> 0 | D108: =VLOOKUP(A108,Micronutrients,16,FALSE) -> 1 | E108: 0 | F108: =VLOOKUP(A108,Micronutrients,15,FALSE) -> 0 | G108: =(E108*VLOOKUP(A108,Micronutrients,14,FALSE)/D108)*C108 -> 0 | M108: None | N108: =VLOOKUP($M108,Micronutrients,14,FALSE) -> 0 | O108: =VLOOKUP(M108,Micronutrients,18,FALSE) -> 0 | P108: =VLOOKUP(M108,Micronutrients,16,FALSE) -> 1 | Q108: 0 | R108: =VLOOKUP(M108,Micronutrients,15,FALSE) -> 0 | S108: =(Q108*VLOOKUP(M108,Micronutrients,14,FALSE)/P108)*O108 -> 0 | Y108: None | Z108: =VLOOKUP(Y108,Micronutrients,14,FALSE) -> 0 | AA108: =VLOOKUP(Y108,Micronutrients,18,FALSE) -> 0 | AB108: =VLOOKUP(Y108,Micronutrients,16,FALSE) -> 1 | AC108: 0 | AD108: =VLOOKUP(Y108,Micronutrients,15,FALSE) -> 0 | AE108: =(AC108*VLOOKUP(Y108,Micronutrients,14,FALSE)/AB108)*AA108 -> 0
A110: Nitrogen Stabilizers (drop down menu) | M110: Nitrogen Stabilizers (drop down menu) | Y110: Nitrogen Stabilizers (drop down menu)
A111: None | B111: =VLOOKUP(A111,NitrogenStabilizers,14,FALSE) -> 0 | C111: =VLOOKUP(A111,NitrogenStabilizers,18,FALSE) -> 0 | D111: =VLOOKUP(A111,NitrogenStabilizers,16,FALSE) -> 1 | E111: 0 | F111: =VLOOKUP(A111,NitrogenStabilizers,15,FALSE) -> 0 | G111: =(E111*VLOOKUP(A111,NitrogenStabilizers,14,FALSE)/D111)*C111 -> 0 | M111: None | N111: =VLOOKUP(M111,NitrogenStabilizers,14,FALSE) -> 0 | O111: =VLOOKUP(M111,NitrogenStabilizers,18,FALSE) -> 0 | P111: =VLOOKUP(M111,NitrogenStabilizers,16,FALSE) -> 1 | Q111: 0 | R111: =VLOOKUP(M111,NitrogenStabilizers,15,FALSE) -> 0 | S111: =(Q111*VLOOKUP(M111,NitrogenStabilizers,14,FALSE)/P111)*O111 -> 0 | Y111: None | Z111: =VLOOKUP(Y111,NitrogenStabilizers,14,FALSE) -> 0 | AA111: =VLOOKUP(Y111,NitrogenStabilizers,18,FALSE) -> 0 | AB111: =VLOOKUP(Y111,NitrogenStabilizers,16,FALSE) -> 1 | AC111: 0 | AD111: =VLOOKUP(Y111,NitrogenStabilizers,15,FALSE) -> 0 | AE111: =(AC111*VLOOKUP(Y111,NitrogenStabilizers,14,FALSE)/AB111)*AA111 -> 0
A112: None | B112: =VLOOKUP(A112,NitrogenStabilizers,14,FALSE) -> 0 | C112: =VLOOKUP(A112,NitrogenStabilizers,18,FALSE) -> 0 | D112: =VLOOKUP(A112,NitrogenStabilizers,16,FALSE) -> 1 | E112: 0 | F112: =VLOOKUP(A112,NitrogenStabilizers,15,FALSE) -> 0 | G112: =(E112*VLOOKUP(A112,NitrogenStabilizers,14,FALSE)/D112)*C112 -> 0 | K112: More | M112: None | N112: =VLOOKUP(M112,NitrogenStabilizers,14,FALSE) -> 0 | O112: =VLOOKUP(M112,NitrogenStabilizers,18,FALSE) -> 0 | P112: =VLOOKUP(M112,NitrogenStabilizers,16,FALSE) -> 1 | Q112: 0 | R112: =VLOOKUP(M112,NitrogenStabilizers,15,FALSE) -> 0 | S112: =(Q112*VLOOKUP(M112,NitrogenStabilizers,14,FALSE)/P112)*O112 -> 0 | W112: More | Y112: None | Z112: =VLOOKUP(Y112,NitrogenStabilizers,14,FALSE) -> 0 | AA112: =VLOOKUP(Y112,NitrogenStabilizers,18,FALSE) -> 0 | AB112: =VLOOKUP(Y112,NitrogenStabilizers,16,FALSE) -> 1 | AC112: 0 | AD112: =VLOOKUP(Y112,NitrogenStabilizers,15,FALSE) -> 0 | AE112: =(AC112*VLOOKUP(Y112,NitrogenStabilizers,14,FALSE)/AB112)*AA112 -> 0 | AI112: More
A113: 5th Application Fertilizer Cost/Acre | G113: =SUM(G97:G112) -> 0 | K113: Below | M113: 5th Application Fertilizer Cost/Acre | S113: =SUM(S97:S112) -> 0 | W113: Below | Y113: 5th Application Fertilizer Cost/Acre | AE113: =SUM(AE97:AE112) -> 0 | AI113: Below
K114: ¯ | W114: ¯ | AI114: ¯
A115: Total Fertilizer Cost/Acre | G115: =G113+G92+G69+G46+G25 -> 0 | M115: Total Fertilizer Cost/Acre | S115: =S113+S92+S69+S46+S25 -> 0 | Y115: Total Fertilizer Cost/Acre | AE115: =AE113+AE92+AE69+AE46+AE25 -> 0
E117: Total Nutrient Needs | Q117: Total Nutrient Needs | AC117: Total Nutrient Needs
E118: Based on: | F118: Soil Test Based Recs | I118: Total Fertilizer Program | Q118: Based on: | R118: Soil Test Based Recs | U118: Total Fertilizer Program | AC118: Based on: | AD118: Soil Test Based Recs | AG118: Total Fertilizer Program
A119: Farm Name | E119: N | F119: P | G119: K | I119: N | J119: P | K119: K | M119: =A119 -> Farm Name | Q119: N | R119: P | S119: K | U119: N | V119: P | W119: K | Y119: =A119 -> Farm Name | AC119: N | AD119: P | AE119: K | AG119: N | AH119: P | AI119: K
A120: Farm Tract | E120: ='Nutrient Management'!$B$56 -> 0 | F120: ='Nutrient Management'!$C$56 -> 0 | G120: ='Nutrient Management'!$D$56 -> 0 | I120: =I6+I30+I51+I74+I97 -> 0 | J120: =J6+J30+J51+J74+J97 -> 0 | K120: 0 | M120: =A120 -> Farm Tract | Q120: ='Nutrient Management'!$B$56 -> 0 | R120: ='Nutrient Management'!$C$56 -> 0 | S120: ='Nutrient Management'!$D$56 -> 0 | U120: =U6+U30+U51+U74+U97 -> 0 | V120: =V6+V30+V51+V74+V97 -> 0 | W120: 0 | Y120: =A120 -> Farm Tract | AC120: ='Nutrient Management'!$B$56 -> 0 | AD120: ='Nutrient Management'!$C$56 -> 0 | AE120: ='Nutrient Management'!$D$56 -> 0 | AG120: =AG6+AG30+AG51+AG74+AG97 -> 0 | AH120: =AH6+AH30+AH51+AH74+AH97 -> 0 | AI120: 0
A121: Farm Number | E121: S | F121: Ca | G121: Mg | I121: S | J121: Ca | K121: Mg | M121: Farm Number | Q121: S | R121: Ca | S121: Mg | U121: S | V121: Ca | W121: Mg | Y121: Farm Number | AC121: S | AD121: Ca | AE121: Mg | AG121: S | AH121: Ca | AI121: Mg
E122: ='Nutrient Management'!$B$59 -> 0 | F122: ='Nutrient Management'!$C$59 -> 0 | G122: ='Nutrient Management'!$D$59 -> 0 | I122: =I9+I33+I54+I77+I100 -> 0 | J122: =J9+J33+J54+J77+J100 -> 0 | K122: 0 | Q122: ='Nutrient Management'!$B$59 -> 0 | R122: ='Nutrient Management'!$C$59 -> 0 | S122: ='Nutrient Management'!$D$59 -> 0 | U122: =U9+U33+U54+U77+U100 -> 0 | V122: =V9+V33+V54+V77+V100 -> 0 | W122: 0 | AC122: ='Nutrient Management'!$B$59 -> 0 | AD122: ='Nutrient Management'!$C$59 -> 0 | AE122: ='Nutrient Management'!$D$59 -> 0 | AG122: =AG9+AG33+AG54+AG77+AG100 -> 0 | AH122: =AH9+AH33+AH54+AH77+AH100 -> 0 | AI122: 0
E123: Z | F123: B | G123: Mn | I123: Zn | J123: B | K123: Mn | Q123: Z | R123: B | S123: Mn | U123: Zn | V123: B | W123: Mn | AC123: Z | AD123: B | AE123: Mn | AG123: Zn | AH123: B | AI123: Mn
E124: ='Nutrient Management'!$B$61 -> 0 | F124: ='Nutrient Management'!$C$61 -> 0 | G124: ='Nutrient Management'!$D$61 -> 0 | I124: =I12+I36+I57+I80+I103 -> 0 | J124: =J12+J36+J57+J80+J103 -> 0 | K124: 0 | Q124: ='Nutrient Management'!$B$61 -> 0 | R124: ='Nutrient Management'!$C$61 -> 0 | S124: ='Nutrient Management'!$D$61 -> 0 | U124: =U12+U36+U57+U80+U103 -> 0 | V124: =V12+V36+V57+V80+V103 -> 0 | W124: 0 | AC124: ='Nutrient Management'!$B$61 -> 0 | AD124: ='Nutrient Management'!$C$61 -> 0 | AE124: ='Nutrient Management'!$D$61 -> 0 | AG124: =AG12+AG36+AG57+AG80+AG103 -> 0 | AH124: =AH12+AH36+AH57+AH80+AH103 -> 0 | AI124: 0
E125: Cu | F125: Mo | G125: Fe | I125: Cu | J125: Mo | K125: Fe | Q125: Cu | R125: Mo | S125: Fe | U125: Cu | V125: Mo | W125: Fe | AC125: Cu | AD125: Mo | AE125: Fe | AG125: Cu | AH125: Mo | AI125: Fe
E126: ='Nutrient Management'!$B$63 -> 0 | F126: ='Nutrient Management'!$C$63 -> 0 | G126: ='Nutrient Management'!$D$63 -> 0 | I126: =I15+I39+I60+I83+I106 -> 0 | J126: =J15+J39+J60+J83+J106 -> 0 | K126: 0 | Q126: ='Nutrient Management'!$B$63 -> 0 | R126: ='Nutrient Management'!$C$63 -> 0 | S126: ='Nutrient Management'!$D$63 -> 0 | U126: =U15+U39+U60+U83+U106 -> 0 | V126: =V15+V39+V60+V83+V106 -> 0 | W126: 0 | AC126: ='Nutrient Management'!$B$63 -> 0 | AD126: ='Nutrient Management'!$C$63 -> 0 | AE126: ='Nutrient Management'!$D$63 -> 0 | AG126: =AG15+AG39+AG60+AG83+AG106 -> 0 | AH126: =AH15+AH39+AH60+AH83+AH106 -> 0 | AI126: 0
E127: * from Nutrient Management tab | Q127: * from Nutrient Management tab | AC127: * from Nutrient Management tab

Sheet Fertilizer Plan (Vegetable 2)
A1: ='Nutrient Management'!F2 -> Select Crop | M1: =A1 -> Select Crop | Y1: =A1 -> Select Crop
A2: Comparison Plan 1 | M2: Comparison Plan 2 | Y2: Comparison Plan 3
A3: 1st Application (i.e., Pre-Plant or Broadcast Fertilizer) | M3: 1st Application (i.e., Pre-Plant or Broadcast Fertilizer) | Y3: 1st Application (i.e., Pre-Plant or Broadcast Fertilizer)
A4: Fertilizer Source | B4: Purchase Units | C4: Package Price (Gals, Lbs, etc.) | D4: Units/Pkg | E4: Rate/Acre | F4: Units | G4: Cost | M4: Fertilizer Source | N4: Purchase Units | O4: Package Price (Gals, Lbs, etc.) | P4: Units/Pkg | Q4: Rate/Acre | R4: Units | S4: Cost | Y4: Fertilizer Source | Z4: Purchase Units | AA4: Package Price (Gals, Lbs, etc.) | AB4: Units/Pkg | AC4: Rate/Acre | AD4: Units | AE4: Cost
A5: Macronutrients (drop down menu) | E5: (Enter Below) | I5: N | J5: P | K5: K | M5: Macronutrients (drop down menu) | Q5: (Enter Below) | U5: N | V5: P | W5: K | Y5: Macronutrients (drop down menu) | AC5: (Enter Below) | AG5: N | AH5: P | AI5: K
A6: None | B6: =VLOOKUP(A6,Macronutrients,14,FALSE) -> 0 | C6: =VLOOKUP(A6,Macronutrients,18,FALSE) -> 0 | D6: =VLOOKUP(A6,Macronutrients,16,FALSE) -> 1 | E6: 0 | F6: =VLOOKUP(A6,Macronutrients,15,FALSE) -> 0 | G6: =(E6*VLOOKUP(A6,Macronutrients,14,FALSE)/D6)*C6 -> 0 | I6: =VLOOKUP(A6,Macronutrients,2,FALSE)*E6+VLOOKUP(A7,Macronutrients,2,FALSE)*E7+VLOOKUP(A8,Macronutrients,2,FALSE)*E8+VLOOKUP(A9,Macronutrients,2,FALSE)*E9+VLOOKUP(A10,Macronutrients,2,FALSE)*E10+VLOOKUP(A11,Macronutrients,2,FALSE)*E11+VLOOKUP(A14,Micronutrients,2,FALSE)*E14+VLOOKUP(A15,Micronutrients,2,FALSE)*E15+VLOOKUP(A16,Micronutrients,2,FALSE)*E16+VLOOKUP(A17,Micronutrients,2,FALSE)*E17 -> 0 | J6: =VLOOKUP(A6,Macronutrients,3,FALSE)*E6+VLOOKUP(A7,Macronutrients,3,FALSE)*E7+VLOOKUP(A8,Macronutrients,3,FALSE)*E8+VLOOKUP(A9,Macronutrients,3,FALSE)*E9+VLOOKUP(A10,Macronutrients,3,FALSE)*E10+VLOOKUP(A11,Macronutrients,3,FALSE)*E11+VLOOKUP(A14,Micronutrients,3,FALSE)*E14+VLOOKUP(A15,Micronutrients,3,FALSE)*E15+VLOOKUP(A16,Micronutrients,3,FALSE)*E16+VLOOKUP(A17,Micronutrients,3,FALSE)*E17 -> 0 | K6: =VLOOKUP(A6,Macronutrients,4,FALSE)*E6+VLOOKUP(A7,Macronutrients,4,FALSE)*E7+VLOOKUP(A8,Macronutrients,4,FALSE)*E8+VLOOKUP(A9,Macronutrients,4,FALSE)*E9+VLOOKUP(A10,Macronutrients,4,FALSE)*E10+VLOOKUP(A11,Macronutrients,4,FALSE)*E11+VLOOKUP(A14,Micronutrients,4,FALSE)*E14+VLOOKUP(A15,Micronutrients,4,FALSE)*E15+VLOOKUP(A16,Micronutrients,4,FALSE)*E16+VLOOKUP(A17,Micronutrients,4,FALSE)*E17 -> 0 | M6: None | N6: =VLOOKUP(M6,Macronutrients,14,FALSE) -> 0 | O6: =VLOOKUP(M6,Macronutrients,18,FALSE) -> 0 | P6: =VLOOKUP(M6,Macronutrients,16,FALSE) -> 1 | Q6: 0 | R6: =VLOOKUP(M6,Macronutrients,15,FALSE) -> 0 | S6: =(Q6*VLOOKUP(M6,Macronutrients,14,FALSE)/P6)*O6 -> 0 | U6: =VLOOKUP(M6,Macronutrients,2,FALSE)*Q6+VLOOKUP(M7,Macronutrients,2,FALSE)*Q7+VLOOKUP(M8,Macronutrients,2,FALSE)*Q8+VLOOKUP(M9,Macronutrients,2,FALSE)*Q9+VLOOKUP(M10,Macronutrients,2,FALSE)*Q10+VLOOKUP(M11,Macronutrients,2,FALSE)*Q11+VLOOKUP(M14,Micronutrients,2,FALSE)*Q14+VLOOKUP(M15,Micronutrients,2,FALSE)*Q15+VLOOKUP(M16,Micronutrients,2,FALSE)*Q16+VLOOKUP(M17,Micronutrients,2,FALSE)*Q17 -> 0 | V6: =VLOOKUP(M6,Macronutrients,3,FALSE)*Q6+VLOOKUP(M7,Macronutrients,3,FALSE)*Q7+VLOOKUP(M8,Macronutrients,3,FALSE)*Q8+VLOOKUP(M9,Macronutrients,3,FALSE)*Q9+VLOOKUP(M10,Macronutrients,3,FALSE)*Q10+VLOOKUP(M11,Macronutrients,3,FALSE)*Q11+VLOOKUP(M14,Micronutrients,3,FALSE)*Q14+VLOOKUP(M15,Micronutrients,3,FALSE)*Q15+VLOOKUP(M16,Micronutrients,3,FALSE)*Q16+VLOOKUP(M17,Micronutrients,3,FALSE)*Q17 -> 0 | W6: =VLOOKUP(M6,Macronutrients,4,FALSE)*Q6+VLOOKUP(M7,Macronutrients,4,FALSE)*Q7+VLOOKUP(M8,Macronutrients,4,FALSE)*Q8+VLOOKUP(M9,Macronutrients,4,FALSE)*Q9+VLOOKUP(M10,Macronutrients,4,FALSE)*Q10+VLOOKUP(M11,Macronutrients,4,FALSE)*Q11+VLOOKUP(M14,Micronutrients,4,FALSE)*Q14+VLOOKUP(M15,Micronutrients,4,FALSE)*Q15+VLOOKUP(M16,Micronutrients,4,FALSE)*Q16+VLOOKUP(M17,Micronutrients,4,FALSE)*Q17 -> 0 | Y6: None | Z6: =VLOOKUP(Y6,Macronutrients,14,FALSE) -> 0 | AA6: =VLOOKUP(Y6,Macronutrients,18,FALSE) -> 0 | AB6: =VLOOKUP(Y6,Macronutrients,16,FALSE) -> 1 | AC6: 0 | AD6: =VLOOKUP(Y6,Macronutrients,15,FALSE) -> 0 | AE6: =(AC6*VLOOKUP(Y6,Macronutrients,14,FALSE)/AB6)*AA6 -> 0 | AG6: =VLOOKUP(Y6,Macronutrients,2,FALSE)*AC6+VLOOKUP(Y7,Macronutrients,2,FALSE)*AC7+VLOOKUP(Y8,Macronutrients,2,FALSE)*AC8+VLOOKUP(Y9,Macronutrients,2,FALSE)*AC9+VLOOKUP(Y10,Macronutrients,2,FALSE)*AC10+VLOOKUP(Y11,Macronutrients,2,FALSE)*AC11+VLOOKUP(Y14,Micronutrients,2,FALSE)*AC14+VLOOKUP(Y15,Micronutrients,2,FALSE)*AC15+VLOOKUP(Y16,Micronutrients,2,FALSE)*AC16+VLOOKUP(Y17,Micronutrients,2,FALSE)*AC17 -> 0 | AH6: =VLOOKUP(Y6,Macronutrients,3,FALSE)*AC6+VLOOKUP(Y7,Macronutrients,3,FALSE)*AC7+VLOOKUP(Y8,Macronutrients,3,FALSE)*AC8+VLOOKUP(Y9,Macronutrients,3,FALSE)*AC9+VLOOKUP(Y10,Macronutrients,3,FALSE)*AC10+VLOOKUP(Y11,Macronutrients,3,FALSE)*AC11+VLOOKUP(Y14,Micronutrients,3,FALSE)*AC14+VLOOKUP(Y15,Micronutrients,3,FALSE)*AC15+VLOOKUP(Y16,Micronutrients,3,FALSE)*AC16+VLOOKUP(Y17,Micronutrients,3,FALSE)*AC17 -> 0 | AI6: =VLOOKUP(Y6,Macronutrients,4,FALSE)*AC6+VLOOKUP(Y7,Macronutrients,4,FALSE)*AC7+VLOOKUP(Y8,Macronutrients,4,FALSE)*AC8+VLOOKUP(Y9,Macronutrients,4,FALSE)*AC9+VLOOKUP(Y10,Macronutrients,4,FALSE)*AC10+VLOOKUP(Y11,Macronutrients,4,FALSE)*AC11+VLOOKUP(Y14,Micronutrients,4,FALSE)*AC14+VLOOKUP(Y15,Micronutrients,4,FALSE)*AC15+VLOOKUP(Y16,Micronutrients,4,FALSE)*AC16+VLOOKUP(Y17,Micronutrients,4,FALSE)*AC17 -> 0
A7: None | B7: 0 | C7: 0 | D7: 1 | E7: 0 | F7: 0 | G7: 0 | M7: None | N7: 0 | O7: 0 | P7: 1 | Q7: 0 | R7: 0 | S7: 0 | Y7: None | Z7: 0 | AA7: 0 | AB7: 1 | AC7: 0 | AD7: 0 | AE7: 0
A8: None | B8: 0 | C8: 0 | D8: 1 | E8: 0 | F8: 0 | G8: 0 | I8: S | J8: Ca | K8: Mg | M8: None | N8: 0 | O8: 0 | P8: 1 | Q8: 0 | R8: 0 | S8: 0 | U8: S | V8: Ca | W8: Mg | Y8: None | Z8: 0 | AA8: 0 | AB8: 1 | AC8: 0 | AD8: 0 | AE8: 0 | AG8: S | AH8: Ca | AI8: Mg
A9: None | B9: 0 | C9: 0 | D9: 1 | E9: 0 | F9: 0 | G9: 0 | I9: =VLOOKUP(A6,Macronutrients,5,FALSE)*E6+VLOOKUP(A7,Macronutrients,5,FALSE)*E7+VLOOKUP(A8,Macronutrients,5,FALSE)*E8+VLOOKUP(A9,Macronutrients,5,FALSE)*E9+VLOOKUP(A10,Macronutrients,5,FALSE)*E10+VLOOKUP(A11,Macronutrients,5,FALSE)*E11+VLOOKUP(A14,Micronutrients,5,FALSE)*E14+VLOOKUP(A15,Micronutrients,5,FALSE)*E15+VLOOKUP(A16,Micronutrients,5,FALSE)*E16+VLOOKUP(A17,Micronutrients,5,FALSE)*E17+VLOOKUP(A20,Lime,5,FALSE)*E20 -> 0 | J9: =VLOOKUP(A6,Macronutrients,7,FALSE)*E6+VLOOKUP(A7,Macronutrients,7,FALSE)*E7+VLOOKUP(A8,Macronutrients,7,FALSE)*E8+VLOOKUP(A9,Macronutrients,7,FALSE)*E9+VLOOKUP(A10,Macronutrients,7,FALSE)*E10+VLOOKUP(A11,Macronutrients,7,FALSE)*E11+VLOOKUP(A14,Micronutrients,7,FALSE)*E14+VLOOKUP(A15,Micronutrients,7,FALSE)*E15+VLOOKUP(A16,Micronutrients,7,FALSE)*E16+VLOOKUP(A17,Micronutrients,7,FALSE)*E17+VLOOKUP(A20,Lime,7,FALSE)*E20 -> 0 | K9: =VLOOKUP($A6,Macronutrients,6,FALSE)*$E$6+VLOOKUP($A7,Macronutrients,6,FALSE)*$E$7+VLOOKUP($A8,Macronutrients,6,FALSE)*$E$8+VLOOKUP($A9,Macronutrients,6,FALSE)*$E$9+VLOOKUP($A10,Macronutrients,6,FALSE)*$E$10+VLOOKUP($A11,Macronutrients,6,FALSE)*$E$11+VLOOKUP($A14,Micronutrients,6,FALSE)*$E$14+VLOOKUP($A15,Micronutrients,6,FALSE)*E15+VLOOKUP($A16,Micronutrients,6,FALSE)*$E$16+VLOOKUP($A17,Micronutrients,6,FALSE)*$E$17+VLOOKUP($A20,Lime,6,FALSE)*E20 -> 0 | M9: None | N9: 0 | O9: 0 | P9: 1 | Q9: 0 | R9: 0 | S9: 0 | U9: =VLOOKUP(M6,Macronutrients,5,FALSE)*Q6+VLOOKUP(M7,Macronutrients,5,FALSE)*Q7+VLOOKUP(M8,Macronutrients,5,FALSE)*Q8+VLOOKUP(M9,Macronutrients,5,FALSE)*Q9+VLOOKUP(M10,Macronutrients,5,FALSE)*Q10+VLOOKUP(M11,Macronutrients,5,FALSE)*Q11+VLOOKUP(M14,Micronutrients,5,FALSE)*Q14+VLOOKUP(M15,Micronutrients,5,FALSE)*Q15+VLOOKUP(M16,Micronutrients,5,FALSE)*Q16+VLOOKUP(M17,Micronutrients,5,FALSE)*Q17+VLOOKUP(M20,Lime,5,FALSE)*Q20 -> 0 | V9: =VLOOKUP(M6,Macronutrients,7,FALSE)*Q6+VLOOKUP(M7,Macronutrients,7,FALSE)*Q7+VLOOKUP(M8,Macronutrients,7,FALSE)*Q8+VLOOKUP(M9,Macronutrients,7,FALSE)*Q9+VLOOKUP(M10,Macronutrients,7,FALSE)*Q10+VLOOKUP(M11,Macronutrients,7,FALSE)*Q11+VLOOKUP(M14,Micronutrients,7,FALSE)*Q14+VLOOKUP(M15,Micronutrients,7,FALSE)*Q15+VLOOKUP(M16,Micronutrients,7,FALSE)*Q16+VLOOKUP(M17,Micronutrients,7,FALSE)*Q17+VLOOKUP(M20,Lime,7,FALSE)*Q20 -> 0 | W9: =VLOOKUP($A6,Macronutrients,6,FALSE)*$E$6+VLOOKUP($A7,Macronutrients,6,FALSE)*$E$7+VLOOKUP($A8,Macronutrients,6,FALSE)*$E$8+VLOOKUP($A9,Macronutrients,6,FALSE)*$E$9+VLOOKUP($A10,Macronutrients,6,FALSE)*$E$10+VLOOKUP($A11,Macronutrients,6,FALSE)*$E$11+VLOOKUP($A14,Micronutrients,6,FALSE)*$E$14+VLOOKUP($A15,Micronutrients,6,FALSE)*Q15+VLOOKUP($A16,Micronutrients,6,FALSE)*$E$16+VLOOKUP($A17,Micronutrients,6,FALSE)*$E$17+VLOOKUP($A20,Lime,6,FALSE)*Q20 -> 0 | Y9: None | Z9: 0 | AA9: 0 | AB9: 1 | AC9: 0 | AD9: 0 | AE9: 0 | AG9: =VLOOKUP(Y6,Macronutrients,5,FALSE)*AC6+VLOOKUP(Y7,Macronutrients,5,FALSE)*AC7+VLOOKUP(Y8,Macronutrients,5,FALSE)*AC8+VLOOKUP(Y9,Macronutrients,5,FALSE)*AC9+VLOOKUP(Y10,Macronutrients,5,FALSE)*AC10+VLOOKUP(Y11,Macronutrients,5,FALSE)*AC11+VLOOKUP(Y14,Micronutrients,5,FALSE)*AC14+VLOOKUP(Y15,Micronutrients,5,FALSE)*AC15+VLOOKUP(Y16,Micronutrients,5,FALSE)*AC16+VLOOKUP(Y17,Micronutrients,5,FALSE)*AC17+VLOOKUP(Y20,Lime,5,FALSE)*AC20 -> 0 | AH9: =VLOOKUP(Y6,Macronutrients,7,FALSE)*AC6+VLOOKUP(Y7,Macronutrients,7,FALSE)*AC7+VLOOKUP(Y8,Macronutrients,7,FALSE)*AC8+VLOOKUP(Y9,Macronutrients,7,FALSE)*AC9+VLOOKUP(Y10,Macronutrients,7,FALSE)*AC10+VLOOKUP(Y11,Macronutrients,7,FALSE)*AC11+VLOOKUP(Y14,Micronutrients,7,FALSE)*AC14+VLOOKUP(Y15,Micronutrients,7,FALSE)*AC15+VLOOKUP(Y16,Micronutrients,7,FALSE)*AC16+VLOOKUP(Y17,Micronutrients,7,FALSE)*AC17+VLOOKUP(Y20,Lime,7,FALSE)*AC20 -> 0 | AI9: =VLOOKUP($A6,Macronutrients,6,FALSE)*$E$6+VLOOKUP($A7,Macronutrients,6,FALSE)*$E$7+VLOOKUP($A8,Macronutrients,6,FALSE)*$E$8+VLOOKUP($A9,Macronutrients,6,FALSE)*$E$9+VLOOKUP($A10,Macronutrients,6,FALSE)*$E$10+VLOOKUP($A11,Macronutrients,6,FALSE)*$E$11+VLOOKUP($A14,Micronutrients,6,FALSE)*$E$14+VLOOKUP($A15,Micronutrients,6,FALSE)*AC15+VLOOKUP($A16,Micronutrients,6,FALSE)*$E$16+VLOOKUP($A17,Micronutrients,6,FALSE)*$E$17+VLOOKUP($A20,Lime,6,FALSE)*AC20 -> 0
A10: None | B10: 0 | C10: 0 | D10: 1 | E10: 0 | F10: 0 | G10: 0 | M10: None | N10: 0 | O10: 0 | P10: 1 | Q10: 0 | R10: 0 | S10: 0 | Y10: None | Z10: 0 | AA10: 0 | AB10: 1 | AC10: 0 | AD10: 0 | AE10: 0
A11: None | B11: 0 | C11: 0 | D11: 1 | E11: 0 | F11: 0 | G11: 0 | I11: Z | J11: B | K11: Mn | M11: None | N11: 0 | O11: 0 | P11: 1 | Q11: 0 | R11: 0 | S11: 0 | U11: Z | V11: B | W11: Mn | Y11: None | Z11: 0 | AA11: 0 | AB11: 1 | AC11: 0 | AD11: 0 | AE11: 0 | AG11: Z | AH11: B | AI11: Mn
I12: =VLOOKUP(A6,Macronutrients,8,FALSE)*E6+VLOOKUP(A7,Macronutrients,8,FALSE)*E7+VLOOKUP(A8,Macronutrients,8,FALSE)*E8+VLOOKUP(A9,Macronutrients,8,FALSE)*E9+VLOOKUP(A10,Macronutrients,8,FALSE)*E10+VLOOKUP(A11,Macronutrients,8,FALSE)*E11+VLOOKUP(A14,Micronutrients,8,FALSE)*E14+VLOOKUP(A15,Micronutrients,8,FALSE)*E15+VLOOKUP(A16,Micronutrients,8,FALSE)*E16+VLOOKUP(A17,Micronutrients,8,FALSE)*E17+VLOOKUP(A20,Lime,8,FALSE)*E20 -> 0 | J12: =VLOOKUP(A6,Macronutrients,9,FALSE)*E6+VLOOKUP(A7,Macronutrients,9,FALSE)*E7+VLOOKUP(A8,Macronutrients,9,FALSE)*E8+VLOOKUP(A9,Macronutrients,9,FALSE)*E9+VLOOKUP(A10,Macronutrients,9,FALSE)*E10+VLOOKUP(A11,Macronutrients,9,FALSE)*E11+VLOOKUP(A14,Micronutrients,9,FALSE)*E14+VLOOKUP(A15,Micronutrients,9,FALSE)*E15+VLOOKUP(A16,Micronutrients,9,FALSE)*E16+VLOOKUP(A17,Micronutrients,9,FALSE)*E17+VLOOKUP(A20,Lime,9,FALSE)*E20 -> 0 | K12: =VLOOKUP(A6,Macronutrients,10,FALSE)*E6+VLOOKUP(A7,Macronutrients,10,FALSE)*E7+VLOOKUP(A8,Macronutrients,10,FALSE)*E8+VLOOKUP(A9,Macronutrients,10,FALSE)*E9+VLOOKUP(A10,Macronutrients,10,FALSE)*E10+VLOOKUP(A11,Macronutrients,10,FALSE)*E11+VLOOKUP(A14,Micronutrients,10,FALSE)*E14+VLOOKUP(A15,Micronutrients,10,FALSE)*E15+VLOOKUP(A16,Micronutrients,10,FALSE)*E16+VLOOKUP(A17,Micronutrients,10,FALSE)*E17+VLOOKUP(A20,Lime,10,FALSE)*E20 -> 0 | U12: =VLOOKUP(M6,Macronutrients,8,FALSE)*Q6+VLOOKUP(M7,Macronutrients,8,FALSE)*Q7+VLOOKUP(M8,Macronutrients,8,FALSE)*Q8+VLOOKUP(M9,Macronutrients,8,FALSE)*Q9+VLOOKUP(M10,Macronutrients,8,FALSE)*Q10+VLOOKUP(M11,Macronutrients,8,FALSE)*Q11+VLOOKUP(M14,Micronutrients,8,FALSE)*Q14+VLOOKUP(M15,Micronutrients,8,FALSE)*Q15+VLOOKUP(M16,Micronutrients,8,FALSE)*Q16+VLOOKUP(M17,Micronutrients,8,FALSE)*Q17+VLOOKUP(M20,Lime,8,FALSE)*Q20 -> 0 | V12: =VLOOKUP(M6,Macronutrients,9,FALSE)*Q6+VLOOKUP(M7,Macronutrients,9,FALSE)*Q7+VLOOKUP(M8,Macronutrients,9,FALSE)*Q8+VLOOKUP(M9,Macronutrients,9,FALSE)*Q9+VLOOKUP(M10,Macronutrients,9,FALSE)*Q10+VLOOKUP(M11,Macronutrients,9,FALSE)*Q11+VLOOKUP(M14,Micronutrients,9,FALSE)*Q14+VLOOKUP(M15,Micronutrients,9,FALSE)*Q15+VLOOKUP(M16,Micronutrients,9,FALSE)*Q16+VLOOKUP(M17,Micronutrients,9,FALSE)*Q17+VLOOKUP(M20,Lime,9,FALSE)*Q20 -> 0 | W12: =VLOOKUP(M6,Macronutrients,10,FALSE)*Q6+VLOOKUP(M7,Macronutrients,10,FALSE)*Q7+VLOOKUP(M8,Macronutrients,10,FALSE)*Q8+VLOOKUP(M9,Macronutrients,10,FALSE)*Q9+VLOOKUP(M10,Macronutrients,10,FALSE)*Q10+VLOOKUP(M11,Macronutrients,10,FALSE)*Q11+VLOOKUP(M14,Micronutrients,10,FALSE)*Q14+VLOOKUP(M15,Micronutrients,10,FALSE)*Q15+VLOOKUP(M16,Micronutrients,10,FALSE)*Q16+VLOOKUP(M17,Micronutrients,10,FALSE)*Q17+VLOOKUP(M20,Lime,10,FALSE)*Q20 -> 0 | AG12: =VLOOKUP(Y6,Macronutrients,8,FALSE)*AC6+VLOOKUP(Y7,Macronutrients,8,FALSE)*AC7+VLOOKUP(Y8,Macronutrients,8,FALSE)*AC8+VLOOKUP(Y9,Macronutrients,8,FALSE)*AC9+VLOOKUP(Y10,Macronutrients,8,FALSE)*AC10+VLOOKUP(Y11,Macronutrients,8,FALSE)*AC11+VLOOKUP(Y14,Micronutrients,8,FALSE)*AC14+VLOOKUP(Y15,Micronutrients,8,FALSE)*AC15+VLOOKUP(Y16,Micronutrients,8,FALSE)*AC16+VLOOKUP(Y17,Micronutrients,8,FALSE)*AC17+VLOOKUP(Y20,Lime,8,FALSE)*AC20 -> 0 | AH12: =VLOOKUP(Y6,Macronutrients,9,FALSE)*AC6+VLOOKUP(Y7,Macronutrients,9,FALSE)*AC7+VLOOKUP(Y8,Macronutrients,9,FALSE)*AC8+VLOOKUP(Y9,Macronutrients,9,FALSE)*AC9+VLOOKUP(Y10,Macronutrients,9,FALSE)*AC10+VLOOKUP(Y11,Macronutrients,9,FALSE)*AC11+VLOOKUP(Y14,Micronutrients,9,FALSE)*AC14+VLOOKUP(Y15,Micronutrients,9,FALSE)*AC15+VLOOKUP(Y16,Micronutrients,9,FALSE)*AC16+VLOOKUP(Y17,Micronutrients,9,FALSE)*AC17+VLOOKUP(Y20,Lime,9,FALSE)*AC20 -> 0 | AI12: =VLOOKUP(Y6,Macronutrients,10,FALSE)*AC6+VLOOKUP(Y7,Macronutrients,10,FALSE)*AC7+VLOOKUP(Y8,Macronutrients,10,FALSE)*AC8+VLOOKUP(Y9,Macronutrients,10,FALSE)*AC9+VLOOKUP(Y10,Macronutrients,10,FALSE)*AC10+VLOOKUP(Y11,Macronutrients,10,FALSE)*AC11+VLOOKUP(Y14,Micronutrients,10,FALSE)*AC14+VLOOKUP(Y15,Micronutrients,10,FALSE)*AC15+VLOOKUP(Y16,Micronutrients,10,FALSE)*AC16+VLOOKUP(Y17,Micronutrients,10,FALSE)*AC17+VLOOKUP(Y20,Lime,10,FALSE)*AC20 -> 0
A13: Micronutrients (drop down menu) | M13: Micronutrients (drop down menu) | Y13: Micronutrients (drop down menu)
A14: None | B14: =VLOOKUP($A14,Micronutrients,14,FALSE) -> 0 | C14: =VLOOKUP(A14,Micronutrients,18,FALSE) -> 0 | D14: =VLOOKUP(A14,Micronutrients,16,FALSE) -> 1 | E14: 0 | F14: =VLOOKUP(A14,Micronutrients,15,FALSE) -> 0 | G14: =(E14*VLOOKUP(A14,Micronutrients,14,FALSE)/D14)*C14 -> 0 | I14: Cu | J14: Mo | K14: Fe | M14: None | N14: =VLOOKUP(M14,Micronutrients,14,FALSE) -> 0 | O14: =VLOOKUP(M14,Micronutrients,18,FALSE) -> 0 | P14: =VLOOKUP(M14,Micronutrients,16,FALSE) -> 1 | Q14: 0 | R14: =VLOOKUP(M14,Micronutrients,15,FALSE) -> 0 | S14: =(Q14*VLOOKUP(M14,Micronutrients,14,FALSE)/P14)*O14 -> 0 | U14: Cu | V14: Mo | W14: Fe | Y14: None | Z14: =VLOOKUP(Y14,Micronutrients,14,FALSE) -> 0 | AA14: =VLOOKUP(Y14,Micronutrients,18,FALSE) -> 0 | AB14: =VLOOKUP(Y14,Micronutrients,16,FALSE) -> 1 | AC14: 0 | AD14: =VLOOKUP(Y14,Micronutrients,15,FALSE) -> 0 | AE14: =(AC14*VLOOKUP(Y14,Micronutrients,14,FALSE)/AB14)*AA14 -> 0 | AG14: Cu | AH14: Mo | AI14: Fe
A15: None | B15: =VLOOKUP($A15,Micronutrients,14,FALSE) -> 0 | C15: =VLOOKUP(A15,Micronutrients,18,FALSE) -> 0 | D15: =VLOOKUP(A15,Micronutrients,16,FALSE) -> 1 | E15: 0 | F15: =VLOOKUP(A15,Micronutrients,15,FALSE) -> 0 | G15: =(E15*VLOOKUP(A15,Micronutrients,14,FALSE)/D15)*C15 -> 0 | I15: =VLOOKUP(A6,Macronutrients,11,FALSE)*E6+VLOOKUP(A7,Macronutrients,11,FALSE)*E7+VLOOKUP(A8,Macronutrients,11,FALSE)*E8+VLOOKUP(A9,Macronutrients,11,FALSE)*E9+VLOOKUP(A10,Macronutrients,11,FALSE)*E10+VLOOKUP(A11,Macronutrients,11,FALSE)*E11+VLOOKUP(A14,Micronutrients,11,FALSE)*E14+VLOOKUP(A15,Micronutrients,11,FALSE)*E15+VLOOKUP(A16,Micronutrients,11,FALSE)*E16+VLOOKUP(A17,Micronutrients,11,FALSE)*E17+VLOOKUP(A20,Lime,11,FALSE)*E20 -> 0 | J15: =VLOOKUP(A6,Macronutrients,12,FALSE)*E6+VLOOKUP(A7,Macronutrients,12,FALSE)*E7+VLOOKUP(A8,Macronutrients,12,FALSE)*E8+VLOOKUP(A9,Macronutrients,12,FALSE)*E9+VLOOKUP(A10,Macronutrients,12,FALSE)*E10+VLOOKUP(A11,Macronutrients,12,FALSE)*E11+VLOOKUP(A14,Micronutrients,12,FALSE)*E14+VLOOKUP(A15,Micronutrients,12,FALSE)*E15+VLOOKUP(A16,Micronutrients,12,FALSE)*E16+VLOOKUP(A17,Micronutrients,12,FALSE)*E17+VLOOKUP(A20,Lime,12,FALSE)*E20 -> 0 | K15: =VLOOKUP(A6,Macronutrients,13,FALSE)*E6+VLOOKUP(A7,Macronutrients,13,FALSE)*E7+VLOOKUP(A8,Macronutrients,13,FALSE)*E8+VLOOKUP(A9,Macronutrients,13,FALSE)*E9+VLOOKUP(A10,Macronutrients,13,FALSE)*E10+VLOOKUP(A11,Macronutrients,13,FALSE)*E11+VLOOKUP(A14,Micronutrients,13,FALSE)*E14+VLOOKUP(A15,Micronutrients,13,FALSE)*E15+VLOOKUP(A16,Micronutrients,13,FALSE)*E16+VLOOKUP(A17,Micronutrients,13,FALSE)*E17+VLOOKUP(A20,Lime,13,FALSE)*E20 -> 0 | M15: None | N15: =VLOOKUP(M15,Micronutrients,14,FALSE) -> 0 | O15: =VLOOKUP(M15,Micronutrients,18,FALSE) -> 0 | P15: =VLOOKUP(M15,Micronutrients,16,FALSE) -> 1 | Q15: 0 | R15: =VLOOKUP(M15,Micronutrients,15,FALSE) -> 0 | S15: =(Q15*VLOOKUP(M15,Micronutrients,14,FALSE)/P15)*O15 -> 0 | U15: =VLOOKUP(M6,Macronutrients,11,FALSE)*Q6+VLOOKUP(M7,Macronutrients,11,FALSE)*Q7+VLOOKUP(M8,Macronutrients,11,FALSE)*Q8+VLOOKUP(M9,Macronutrients,11,FALSE)*Q9+VLOOKUP(M10,Macronutrients,11,FALSE)*Q10+VLOOKUP(M11,Macronutrients,11,FALSE)*Q11+VLOOKUP(M14,Micronutrients,11,FALSE)*Q14+VLOOKUP(M15,Micronutrients,11,FALSE)*Q15+VLOOKUP(M16,Micronutrients,11,FALSE)*Q16+VLOOKUP(M17,Micronutrients,11,FALSE)*Q17+VLOOKUP(M20,Lime,11,FALSE)*Q20 -> 0 | V15: =VLOOKUP(M6,Macronutrients,12,FALSE)*Q6+VLOOKUP(M7,Macronutrients,12,FALSE)*Q7+VLOOKUP(M8,Macronutrients,12,FALSE)*Q8+VLOOKUP(M9,Macronutrients,12,FALSE)*Q9+VLOOKUP(M10,Macronutrients,12,FALSE)*Q10+VLOOKUP(M11,Macronutrients,12,FALSE)*Q11+VLOOKUP(M14,Micronutrients,12,FALSE)*Q14+VLOOKUP(M15,Micronutrients,12,FALSE)*Q15+VLOOKUP(M16,Micronutrients,12,FALSE)*Q16+VLOOKUP(M17,Micronutrients,12,FALSE)*Q17+VLOOKUP(M20,Lime,12,FALSE)*Q20 -> 0 | W15: =VLOOKUP(M6,Macronutrients,13,FALSE)*Q6+VLOOKUP(M7,Macronutrients,13,FALSE)*Q7+VLOOKUP(M8,Macronutrients,13,FALSE)*Q8+VLOOKUP(M9,Macronutrients,13,FALSE)*Q9+VLOOKUP(M10,Macronutrients,13,FALSE)*Q10+VLOOKUP(M11,Macronutrients,13,FALSE)*Q11+VLOOKUP(M14,Micronutrients,13,FALSE)*Q14+VLOOKUP(M15,Micronutrients,13,FALSE)*Q15+VLOOKUP(M16,Micronutrients,13,FALSE)*Q16+VLOOKUP(M17,Micronutrients,13,FALSE)*Q17+VLOOKUP(M20,Lime,13,FALSE)*Q20 -> 0 | Y15: None | Z15: =VLOOKUP(Y15,Micronutrients,14,FALSE) -> 0 | AA15: =VLOOKUP(Y15,Micronutrients,18,FALSE) -> 0 | AB15: =VLOOKUP(Y15,Micronutrients,16,FALSE) -> 1 | AC15: 0 | AD15: =VLOOKUP(Y15,Micronutrients,15,FALSE) -> 0 | AE15: =(AC15*VLOOKUP(Y15,Micronutrients,14,FALSE)/AB15)*AA15 -> 0 | AG15: =VLOOKUP(Y6,Macronutrients,11,FALSE)*AC6+VLOOKUP(Y7,Macronutrients,11,FALSE)*AC7+VLOOKUP(Y8,Macronutrients,11,FALSE)*AC8+VLOOKUP(Y9,Macronutrients,11,FALSE)*AC9+VLOOKUP(Y10,Macronutrients,11,FALSE)*AC10+VLOOKUP(Y11,Macronutrients,11,FALSE)*AC11+VLOOKUP(Y14,Micronutrients,11,FALSE)*AC14+VLOOKUP(Y15,Micronutrients,11,FALSE)*AC15+VLOOKUP(Y16,Micronutrients,11,FALSE)*AC16+VLOOKUP(Y17,Micronutrients,11,FALSE)*AC17+VLOOKUP(Y20,Lime,11,FALSE)*AC20 -> 0 | AH15: =VLOOKUP(Y6,Macronutrients,12,FALSE)*AC6+VLOOKUP(Y7,Macronutrients,12,FALSE)*AC7+VLOOKUP(Y8,Macronutrients,12,FALSE)*AC8+VLOOKUP(Y9,Macronutrients,12,FALSE)*AC9+VLOOKUP(Y10,Macronutrients,12,FALSE)*AC10+VLOOKUP(Y11,Macronutrients,12,FALSE)*AC11+VLOOKUP(Y14,Micronutrients,12,FALSE)*AC14+VLOOKUP(Y15,Micronutrients,12,FALSE)*AC15+VLOOKUP(Y16,Micronutrients,12,FALSE)*AC16+VLOOKUP(Y17,Micronutrients,12,FALSE)*AC17+VLOOKUP(Y20,Lime,12,FALSE)*AC20 -> 0 | AI15: =VLOOKUP(Y6,Macronutrients,13,FALSE)*AC6+VLOOKUP(Y7,Macronutrients,13,FALSE)*AC7+VLOOKUP(Y8,Macronutrients,13,FALSE)*AC8+VLOOKUP(Y9,Macronutrients,13,FALSE)*AC9+VLOOKUP(Y10,Macronutrients,13,FALSE)*AC10+VLOOKUP(Y11,Macronutrients,13,FALSE)*AC11+VLOOKUP(Y14,Micronutrients,13,FALSE)*AC14+VLOOKUP(Y15,Micronutrients,13,FALSE)*AC15+VLOOKUP(Y16,Micronutrients,13,FALSE)*AC16+VLOOKUP(Y17,Micronutrients,13,FALSE)*AC17+VLOOKUP(Y20,Lime,13,FALSE)*AC20 -> 0
A16: None | B16: =VLOOKUP($A16,Micronutrients,14,FALSE) -> 0 | C16: =VLOOKUP(A16,Micronutrients,18,FALSE) -> 0 | D16: =VLOOKUP(A16,Micronutrients,16,FALSE) -> 1 | E16: 0 | F16: =VLOOKUP(A16,Micronutrients,15,FALSE) -> 0 | G16: =(E16*VLOOKUP(A16,Micronutrients,14,FALSE)/D16)*C16 -> 0 | M16: None | N16: =VLOOKUP(M16,Micronutrients,14,FALSE) -> 0 | O16: =VLOOKUP(M16,Micronutrients,18,FALSE) -> 0 | P16: =VLOOKUP(M16,Micronutrients,16,FALSE) -> 1 | Q16: 0 | R16: =VLOOKUP(M16,Micronutrients,15,FALSE) -> 0 | S16: =(Q16*VLOOKUP(M16,Micronutrients,14,FALSE)/P16)*O16 -> 0 | Y16: None | Z16: =VLOOKUP(Y16,Micronutrients,14,FALSE) -> 0 | AA16: =VLOOKUP(Y16,Micronutrients,18,FALSE) -> 0 | AB16: =VLOOKUP(Y16,Micronutrients,16,FALSE) -> 1 | AC16: 0 | AD16: =VLOOKUP(Y16,Micronutrients,15,FALSE) -> 0 | AE16: =(AC16*VLOOKUP(Y16,Micronutrients,14,FALSE)/AB16)*AA16 -> 0
A17: None | B17: =VLOOKUP($A17,Micronutrients,14,FALSE) -> 0 | C17: =VLOOKUP(A17,Micronutrients,18,FALSE) -> 0 | D17: =VLOOKUP(A17,Micronutrients,16,FALSE) -> 1 | E17: 0 | F17: =VLOOKUP(A17,Micronutrients,15,FALSE) -> 0 | G17: =(E17*VLOOKUP(A17,Micronutrients,14,FALSE)/D17)*C17 -> 0 | M17: None | N17: =VLOOKUP(M17,Micronutrients,14,FALSE) -> 0 | O17: =VLOOKUP(M17,Micronutrients,18,FALSE) -> 0 | P17: =VLOOKUP(M17,Micronutrients,16,FALSE) -> 1 | Q17: 0 | R17: =VLOOKUP(M17,Micronutrients,15,FALSE) -> 0 | S17: =(Q17*VLOOKUP(M17,Micronutrients,14,FALSE)/P17)*O17 -> 0 | Y17: None | Z17: =VLOOKUP(Y17,Micronutrients,14,FALSE) -> 0 | AA17: =VLOOKUP(Y17,Micronutrients,18,FALSE) -> 0 | AB17: =VLOOKUP(Y17,Micronutrients,16,FALSE) -> 1 | AC17: 0 | AD17: =VLOOKUP(Y17,Micronutrients,15,FALSE) -> 0 | AE17: =(AC17*VLOOKUP(Y17,Micronutrients,14,FALSE)/AB17)*AA17 -> 0
A19: Lime (drop down menu) | M19: Lime (drop down menu) | Y19: Lime (drop down menu)
A20: None | B20: =VLOOKUP(A20,Lime,14,FALSE) -> 0 | C20: =VLOOKUP(A20,Lime,18,FALSE) -> 0 | D20: =VLOOKUP(A20,Lime,16,FALSE) -> 1 | E20: 0 | F20: =VLOOKUP(A20,Lime,15,FALSE) -> 0 | G20: =(E20*VLOOKUP(A20,Lime,14,FALSE)/D20)*C20 -> 0 | M20: None | N20: =VLOOKUP(M20,Lime,14,FALSE) -> 0 | O20: =VLOOKUP(M20,Lime,18,FALSE) -> 0 | P20: =VLOOKUP(M20,Lime,16,FALSE) -> 1 | Q20: 0 | R20: =VLOOKUP(M20,Lime,15,FALSE) -> 0 | S20: =(Q20*VLOOKUP(M20,Lime,14,FALSE)/P20)*O20 -> 0 | Y20: None | Z20: =VLOOKUP(Y20,Lime,14,FALSE) -> 0 | AA20: =VLOOKUP(Y20,Lime,18,FALSE) -> 0 | AB20: =VLOOKUP(Y20,Lime,16,FALSE) -> 1 | AC20: 0 | AD20: =VLOOKUP(Y20,Lime,15,FALSE) -> 0 | AE20: =(AC20*VLOOKUP(Y20,Lime,14,FALSE)/AB20)*AA20 -> 0
A22: Nitrogen Stabilizers (drop down menu) | M22: Nitrogen Stabilizers (drop down menu) | Y22: Nitrogen Stabilizers (drop down menu)
A23: None | B23: =VLOOKUP(A23,NitrogenStabilizers,14,FALSE) -> 0 | C23: =VLOOKUP(A23,NitrogenStabilizers,18,FALSE) -> 0 | D23: =VLOOKUP(A23,NitrogenStabilizers,16,FALSE) -> 1 | E23: 0 | F23: =VLOOKUP(A23,NitrogenStabilizers,15,FALSE) -> 0 | G23: =(E23*VLOOKUP(A23,NitrogenStabilizers,14,FALSE)/D23)*C23 -> 0 | M23: None | N23: =VLOOKUP(M23,NitrogenStabilizers,14,FALSE) -> 0 | O23: =VLOOKUP(M23,NitrogenStabilizers,18,FALSE) -> 0 | P23: =VLOOKUP(M23,NitrogenStabilizers,16,FALSE) -> 1 | Q23: 0 | R23: =VLOOKUP(M23,NitrogenStabilizers,15,FALSE) -> 0 | S23: =(Q23*VLOOKUP(M23,NitrogenStabilizers,14,FALSE)/P23)*O23 -> 0 | Y23: None | Z23: =VLOOKUP(Y23,NitrogenStabilizers,14,FALSE) -> 0 | AA23: =VLOOKUP(Y23,NitrogenStabilizers,18,FALSE) -> 0 | AB23: =VLOOKUP(Y23,NitrogenStabilizers,16,FALSE) -> 1 | AC23: 0 | AD23: =VLOOKUP(Y23,NitrogenStabilizers,15,FALSE) -> 0 | AE23: =(AC23*VLOOKUP(Y23,NitrogenStabilizers,14,FALSE)/AB23)*AA23 -> 0
A24: None | B24: =VLOOKUP(A24,NitrogenStabilizers,14,FALSE) -> 0 | C24: =VLOOKUP(A24,NitrogenStabilizers,18,FALSE) -> 0 | D24: =VLOOKUP(A24,NitrogenStabilizers,16,FALSE) -> 1 | E24: 0 | F24: =VLOOKUP(A24,NitrogenStabilizers,15,FALSE) -> 0 | G24: =(E24*VLOOKUP(A24,NitrogenStabilizers,14,FALSE)/D24)*C24 -> 0 | M24: None | N24: =VLOOKUP(M24,NitrogenStabilizers,14,FALSE) -> 0 | O24: =VLOOKUP(M24,NitrogenStabilizers,18,FALSE) -> 0 | P24: =VLOOKUP(M24,NitrogenStabilizers,16,FALSE) -> 1 | Q24: 0 | R24: =VLOOKUP(M24,NitrogenStabilizers,15,FALSE) -> 0 | S24: =(Q24*VLOOKUP(M24,NitrogenStabilizers,14,FALSE)/P24)*O24 -> 0 | Y24: None | Z24: =VLOOKUP(Y24,NitrogenStabilizers,14,FALSE) -> 0 | AA24: =VLOOKUP(Y24,NitrogenStabilizers,18,FALSE) -> 0 | AB24: =VLOOKUP(Y24,NitrogenStabilizers,16,FALSE) -> 1 | AC24: 0 | AD24: =VLOOKUP(Y24,NitrogenStabilizers,15,FALSE) -> 0 | AE24: =(AC24*VLOOKUP(Y24,NitrogenStabilizers,14,FALSE)/AB24)*AA24 -> 0
A25: 1st Application Fertilizer Cost/Acre | G25: =SUM(G6:G24) -> 0 | M25: 1st Application Fertilizer Cost/Acre | S25: =SUM(S6:S24) -> 0 | Y25: 1st Application Fertilizer Cost/Acre | AE25: =SUM(AE6:AE24) -> 0
A27: 2nd Application (i.e., Starter Fertilizer or Broadcast) | M27: 2nd Application (i.e., Starter Fertilizer or Broadcast) | Y27: 2nd Application (i.e., Starter Fertilizer or Broadcast)
A28: Fertilizer Source | B28: Purchase Units | C28: Package Price (Gals, Lbs, etc.) | D28: Units/Pkg | E28: Rate/Acre | F28: Units | G28: Cost | M28: Fertilizer Source | N28: Purchase Units | O28: Package Price (Gals, Lbs, etc.) | P28: Units/Pkg | Q28: Rate/Acre | R28: Units | S28: Cost | Y28: Fertilizer Source | Z28: Purchase Units | AA28: Package Price (Gals, Lbs, etc.) | AB28: Units/Pkg | AC28: Rate/Acre | AD28: Units | AE28: Cost
A29: Macronutrients (drop down menu) | E29: (Enter Below) | I29: N | J29: P | K29: K | M29: Macronutrients (drop down menu) | Q29: (Enter Below) | U29: N | V29: P | W29: K | Y29: Macronutrients (drop down menu) | AC29: (Enter Below) | AG29: N | AH29: P | AI29: K
A30: None | B30: =VLOOKUP(A30,Macronutrients,14,FALSE) -> 0 | C30: =VLOOKUP(A30,Macronutrients,18,FALSE) -> 0 | D30: =VLOOKUP(A30,Macronutrients,16,FALSE) -> 1 | E30: 0 | F30: =VLOOKUP(A30,Macronutrients,15,FALSE) -> 0 | G30: =(E30*VLOOKUP(A30,Macronutrients,14,FALSE)/D30)*C30 -> 0 | I30: =VLOOKUP(A30,Macronutrients,2,FALSE)*E30+VLOOKUP(A31,Macronutrients,2,FALSE)*E31+VLOOKUP(A32,Macronutrients,2,FALSE)*E32+VLOOKUP(A33,Macronutrients,2,FALSE)*E33+VLOOKUP(A34,Macronutrients,2,FALSE)*E34+VLOOKUP(A35,Macronutrients,2,FALSE)*E35+VLOOKUP(A38,Micronutrients,2,FALSE)*E38+VLOOKUP(A39,Micronutrients,2,FALSE)*E39+VLOOKUP(A40,Micronutrients,2,FALSE)*E40+VLOOKUP(A41,Micronutrients,2,FALSE)*E41 -> 0 | J30: =VLOOKUP(A30,Macronutrients,3,FALSE)*E30+VLOOKUP(A31,Macronutrients,3,FALSE)*E31+VLOOKUP(A32,Macronutrients,3,FALSE)*E32+VLOOKUP(A33,Macronutrients,3,FALSE)*E33+VLOOKUP(A34,Macronutrients,3,FALSE)*E34+VLOOKUP(A35,Macronutrients,3,FALSE)*E35+VLOOKUP(A38,Micronutrients,3,FALSE)*E38+VLOOKUP(A39,Micronutrients,3,FALSE)*E39+VLOOKUP(A40,Micronutrients,3,FALSE)*E40+VLOOKUP(A41,Micronutrients,3,FALSE)*E41 -> 0 | K30: =VLOOKUP(A30,Macronutrients,4,FALSE)*E30+VLOOKUP(A31,Macronutrients,4,FALSE)*E31+VLOOKUP(A32,Macronutrients,4,FALSE)*E32+VLOOKUP(A33,Macronutrients,4,FALSE)*E33+VLOOKUP(A34,Macronutrients,4,FALSE)*E34+VLOOKUP(A35,Macronutrients,4,FALSE)*E35+VLOOKUP(A38,Micronutrients,4,FALSE)*E38+VLOOKUP(A39,Micronutrients,4,FALSE)*E39+VLOOKUP(A40,Micronutrients,4,FALSE)*E40+VLOOKUP(A41,Micronutrients,4,FALSE)*E41 -> 0 | M30: None | N30: =VLOOKUP(M30,Macronutrients,14,FALSE) -> 0 | O30: =VLOOKUP(M30,Macronutrients,18,FALSE) -> 0 | P30: =VLOOKUP(M30,Macronutrients,16,FALSE) -> 1 | Q30: 0 | R30: =VLOOKUP(M30,Macronutrients,15,FALSE) -> 0 | S30: =(Q30*VLOOKUP(M30,Macronutrients,14,FALSE)/P30)*O30 -> 0 | U30: =VLOOKUP(M30,Macronutrients,2,FALSE)*Q30+VLOOKUP(M31,Macronutrients,2,FALSE)*Q31+VLOOKUP(M32,Macronutrients,2,FALSE)*Q32+VLOOKUP(M33,Macronutrients,2,FALSE)*Q33+VLOOKUP(M34,Macronutrients,2,FALSE)*Q34+VLOOKUP(M35,Macronutrients,2,FALSE)*Q35+VLOOKUP(M38,Micronutrients,2,FALSE)*Q38+VLOOKUP(M39,Micronutrients,2,FALSE)*Q39+VLOOKUP(M40,Micronutrients,2,FALSE)*Q40+VLOOKUP(M41,Micronutrients,2,FALSE)*Q41 -> 0 | V30: =VLOOKUP(M30,Macronutrients,3,FALSE)*Q30+VLOOKUP(M31,Macronutrients,3,FALSE)*Q31+VLOOKUP(M32,Macronutrients,3,FALSE)*Q32+VLOOKUP(M33,Macronutrients,3,FALSE)*Q33+VLOOKUP(M34,Macronutrients,3,FALSE)*Q34+VLOOKUP(M35,Macronutrients,3,FALSE)*Q35+VLOOKUP(M38,Micronutrients,3,FALSE)*Q38+VLOOKUP(M39,Micronutrients,3,FALSE)*Q39+VLOOKUP(M40,Micronutrients,3,FALSE)*Q40+VLOOKUP(M41,Micronutrients,3,FALSE)*Q41 -> 0 | W30: =VLOOKUP(M30,Macronutrients,4,FALSE)*Q30+VLOOKUP(M31,Macronutrients,4,FALSE)*Q31+VLOOKUP(M32,Macronutrients,4,FALSE)*Q32+VLOOKUP(M33,Macronutrients,4,FALSE)*Q33+VLOOKUP(M34,Macronutrients,4,FALSE)*Q34+VLOOKUP(M35,Macronutrients,4,FALSE)*Q35+VLOOKUP(M38,Micronutrients,4,FALSE)*Q38+VLOOKUP(M39,Micronutrients,4,FALSE)*Q39+VLOOKUP(M40,Micronutrients,4,FALSE)*Q40+VLOOKUP(M41,Micronutrients,4,FALSE)*Q41 -> 0 | Y30: None | Z30: =VLOOKUP(Y30,Macronutrients,14,FALSE) -> 0 | AA30: =VLOOKUP(Y30,Macronutrients,18,FALSE) -> 0 | AB30: =VLOOKUP(Y30,Macronutrients,16,FALSE) -> 1 | AC30: 0 | AD30: =VLOOKUP(Y30,Macronutrients,15,FALSE) -> 0 | AE30: =(AC30*VLOOKUP(Y30,Macronutrients,14,FALSE)/AB30)*AA30 -> 0 | AG30: =VLOOKUP(Y30,Macronutrients,2,FALSE)*AC30+VLOOKUP(Y31,Macronutrients,2,FALSE)*AC31+VLOOKUP(Y32,Macronutrients,2,FALSE)*AC32+VLOOKUP(Y33,Macronutrients,2,FALSE)*AC33+VLOOKUP(Y34,Macronutrients,2,FALSE)*AC34+VLOOKUP(Y35,Macronutrients,2,FALSE)*AC35+VLOOKUP(Y38,Micronutrients,2,FALSE)*AC38+VLOOKUP(Y39,Micronutrients,2,FALSE)*AC39+VLOOKUP(Y40,Micronutrients,2,FALSE)*AC40+VLOOKUP(Y41,Micronutrients,2,FALSE)*AC41 -> 0 | AH30: =VLOOKUP(Y30,Macronutrients,3,FALSE)*AC30+VLOOKUP(Y31,Macronutrients,3,FALSE)*AC31+VLOOKUP(Y32,Macronutrients,3,FALSE)*AC32+VLOOKUP(Y33,Macronutrients,3,FALSE)*AC33+VLOOKUP(Y34,Macronutrients,3,FALSE)*AC34+VLOOKUP(Y35,Macronutrients,3,FALSE)*AC35+VLOOKUP(Y38,Micronutrients,3,FALSE)*AC38+VLOOKUP(Y39,Micronutrients,3,FALSE)*AC39+VLOOKUP(Y40,Micronutrients,3,FALSE)*AC40+VLOOKUP(Y41,Micronutrients,3,FALSE)*AC41 -> 0 | AI30: =VLOOKUP(Y30,Macronutrients,4,FALSE)*AC30+VLOOKUP(Y31,Macronutrients,4,FALSE)*AC31+VLOOKUP(Y32,Macronutrients,4,FALSE)*AC32+VLOOKUP(Y33,Macronutrients,4,FALSE)*AC33+VLOOKUP(Y34,Macronutrients,4,FALSE)*AC34+VLOOKUP(Y35,Macronutrients,4,FALSE)*AC35+VLOOKUP(Y38,Micronutrients,4,FALSE)*AC38+VLOOKUP(Y39,Micronutrients,4,FALSE)*AC39+VLOOKUP(Y40,Micronutrients,4,FALSE)*AC40+VLOOKUP(Y41,Micronutrients,4,FALSE)*AC41 -> 0
A31: None | B31: 0 | C31: 0 | D31: 1 | E31: 0 | F31: 0 | G31: 0 | M31: None | N31: 0 | O31: 0 | P31: 1 | Q31: 0 | R31: 0 | S31: 0 | Y31: None | Z31: 0 | AA31: 0 | AB31: 1 | AC31: 0 | AD31: 0 | AE31: 0
A32: None | B32: 0 | C32: 0 | D32: 1 | E32: 0 | F32: 0 | G32: 0 | I32: S | J32: Ca | K32: Mg | M32: None | N32: 0 | O32: 0 | P32: 1 | Q32: 0 | R32: 0 | S32: 0 | U32: S | V32: Ca | W32: Mg | Y32: None | Z32: 0 | AA32: 0 | AB32: 1 | AC32: 0 | AD32: 0 | AE32: 0 | AG32: S | AH32: Ca | AI32: Mg
A33: None | B33: 0 | C33: 0 | D33: 1 | E33: 0 | F33: 0 | G33: 0 | I33: =VLOOKUP(A30,Macronutrients,5,FALSE)*E30+VLOOKUP(A31,Macronutrients,5,FALSE)*E31+VLOOKUP(A32,Macronutrients,5,FALSE)*E32+VLOOKUP(A33,Macronutrients,5,FALSE)*E33+VLOOKUP(A34,Macronutrients,5,FALSE)*E34+VLOOKUP(A35,Macronutrients,5,FALSE)*E35+VLOOKUP(A38,Micronutrients,5,FALSE)*E38+VLOOKUP(A39,Micronutrients,5,FALSE)*E39+VLOOKUP(A40,Micronutrients,5,FALSE)*E40+VLOOKUP(A41,Micronutrients,5,FALSE)*E41 -> 0 | J33: =VLOOKUP(A30,Macronutrients,7,FALSE)*E30+VLOOKUP(A31,Macronutrients,7,FALSE)*E31+VLOOKUP(A32,Macronutrients,7,FALSE)*E32+VLOOKUP(A33,Macronutrients,7,FALSE)*E33+VLOOKUP(A34,Macronutrients,7,FALSE)*E34+VLOOKUP(A35,Macronutrients,7,FALSE)*E35+VLOOKUP(A38,Micronutrients,7,FALSE)*E38+VLOOKUP(A39,Micronutrients,7,FALSE)*E39+VLOOKUP(A40,Micronutrients,7,FALSE)*E40+VLOOKUP(A41,Micronutrients,7,FALSE)*E41 -> 0 | K33: =VLOOKUP($A30,Macronutrients,6,FALSE)*$E$6+VLOOKUP($A31,Macronutrients,6,FALSE)*$E$7+VLOOKUP($A32,Macronutrients,6,FALSE)*$E$8+VLOOKUP($A33,Macronutrients,6,FALSE)*$E$9+VLOOKUP($A34,Macronutrients,6,FALSE)*$E$10+VLOOKUP($A35,Macronutrients,6,FALSE)*$E$11+VLOOKUP($A38,Micronutrients,6,FALSE)*$E$14+VLOOKUP($A39,Micronutrients,6,FALSE)*E39+VLOOKUP($A40,Micronutrients,6,FALSE)*$E$16+VLOOKUP($A41,Micronutrients,6,FALSE)*$E$17 -> 0 | M33: None | N33: 0 | O33: 0 | P33: 1 | Q33: 0 | R33: 0 | S33: 0 | U33: =VLOOKUP(M30,Macronutrients,5,FALSE)*Q30+VLOOKUP(M31,Macronutrients,5,FALSE)*Q31+VLOOKUP(M32,Macronutrients,5,FALSE)*Q32+VLOOKUP(M33,Macronutrients,5,FALSE)*Q33+VLOOKUP(M34,Macronutrients,5,FALSE)*Q34+VLOOKUP(M35,Macronutrients,5,FALSE)*Q35+VLOOKUP(M38,Micronutrients,5,FALSE)*Q38+VLOOKUP(M39,Micronutrients,5,FALSE)*Q39+VLOOKUP(M40,Micronutrients,5,FALSE)*Q40+VLOOKUP(M41,Micronutrients,5,FALSE)*Q41 -> 0 | V33: =VLOOKUP(M30,Macronutrients,7,FALSE)*Q30+VLOOKUP(M31,Macronutrients,7,FALSE)*Q31+VLOOKUP(M32,Macronutrients,7,FALSE)*Q32+VLOOKUP(M33,Macronutrients,7,FALSE)*Q33+VLOOKUP(M34,Macronutrients,7,FALSE)*Q34+VLOOKUP(M35,Macronutrients,7,FALSE)*Q35+VLOOKUP(M38,Micronutrients,7,FALSE)*Q38+VLOOKUP(M39,Micronutrients,7,FALSE)*Q39+VLOOKUP(M40,Micronutrients,7,FALSE)*Q40+VLOOKUP(M41,Micronutrients,7,FALSE)*Q41 -> 0 | W33: =VLOOKUP($A30,Macronutrients,6,FALSE)*$E$6+VLOOKUP($A31,Macronutrients,6,FALSE)*$E$7+VLOOKUP($A32,Macronutrients,6,FALSE)*$E$8+VLOOKUP($A33,Macronutrients,6,FALSE)*$E$9+VLOOKUP($A34,Macronutrients,6,FALSE)*$E$10+VLOOKUP($A35,Macronutrients,6,FALSE)*$E$11+VLOOKUP($A38,Micronutrients,6,FALSE)*$E$14+VLOOKUP($A39,Micronutrients,6,FALSE)*Q39+VLOOKUP($A40,Micronutrients,6,FALSE)*$E$16+VLOOKUP($A41,Micronutrients,6,FALSE)*$E$17 -> 0 | Y33: None | Z33: 0 | AA33: 0 | AB33: 1 | AC33: 0 | AD33: 0 | AE33: 0 | AG33: =VLOOKUP(Y30,Macronutrients,5,FALSE)*AC30+VLOOKUP(Y31,Macronutrients,5,FALSE)*AC31+VLOOKUP(Y32,Macronutrients,5,FALSE)*AC32+VLOOKUP(Y33,Macronutrients,5,FALSE)*AC33+VLOOKUP(Y34,Macronutrients,5,FALSE)*AC34+VLOOKUP(Y35,Macronutrients,5,FALSE)*AC35+VLOOKUP(Y38,Micronutrients,5,FALSE)*AC38+VLOOKUP(Y39,Micronutrients,5,FALSE)*AC39+VLOOKUP(Y40,Micronutrients,5,FALSE)*AC40+VLOOKUP(Y41,Micronutrients,5,FALSE)*AC41 -> 0 | AH33: =VLOOKUP(Y30,Macronutrients,7,FALSE)*AC30+VLOOKUP(Y31,Macronutrients,7,FALSE)*AC31+VLOOKUP(Y32,Macronutrients,7,FALSE)*AC32+VLOOKUP(Y33,Macronutrients,7,FALSE)*AC33+VLOOKUP(Y34,Macronutrients,7,FALSE)*AC34+VLOOKUP(Y35,Macronutrients,7,FALSE)*AC35+VLOOKUP(Y38,Micronutrients,7,FALSE)*AC38+VLOOKUP(Y39,Micronutrients,7,FALSE)*AC39+VLOOKUP(Y40,Micronutrients,7,FALSE)*AC40+VLOOKUP(Y41,Micronutrients,7,FALSE)*AC41 -> 0 | AI33: =VLOOKUP($A30,Macronutrients,6,FALSE)*$E$6+VLOOKUP($A31,Macronutrients,6,FALSE)*$E$7+VLOOKUP($A32,Macronutrients,6,FALSE)*$E$8+VLOOKUP($A33,Macronutrients,6,FALSE)*$E$9+VLOOKUP($A34,Macronutrients,6,FALSE)*$E$10+VLOOKUP($A35,Macronutrients,6,FALSE)*$E$11+VLOOKUP($A38,Micronutrients,6,FALSE)*$E$14+VLOOKUP($A39,Micronutrients,6,FALSE)*AC39+VLOOKUP($A40,Micronutrients,6,FALSE)*$E$16+VLOOKUP($A41,Micronutrients,6,FALSE)*$E$17 -> 0
A34: None | B34: 0 | C34: 0 | D34: 1 | E34: 0 | F34: 0 | G34: 0 | M34: None | N34: 0 | O34: 0 | P34: 1 | Q34: 0 | R34: 0 | S34: 0 | Y34: None | Z34: 0 | AA34: 0 | AB34: 1 | AC34: 0 | AD34: 0 | AE34: 0
A35: None | B35: 0 | C35: 0 | D35: 1 | E35: 0 | F35: 0 | G35: 0 | I35: Z | J35: B | K35: Mn | M35: None | N35: 0 | O35: 0 | P35: 1 | Q35: 0 | R35: 0 | S35: 0 | U35: Z | V35: B | W35: Mn | Y35: None | Z35: 0 | AA35: 0 | AB35: 1 | AC35: 0 | AD35: 0 | AE35: 0 | AG35: Z | AH35: B | AI35: Mn
I36: =VLOOKUP(A30,Macronutrients,8,FALSE)*E30+VLOOKUP(A31,Macronutrients,8,FALSE)*E31+VLOOKUP(A32,Macronutrients,8,FALSE)*E32+VLOOKUP(A33,Macronutrients,8,FALSE)*E33+VLOOKUP(A34,Macronutrients,8,FALSE)*E34+VLOOKUP(A35,Macronutrients,8,FALSE)*E35+VLOOKUP(A38,Micronutrients,8,FALSE)*E38+VLOOKUP(A39,Micronutrients,8,FALSE)*E39+VLOOKUP(A40,Micronutrients,8,FALSE)*E40+VLOOKUP(A41,Micronutrients,8,FALSE)*E41 -> 0 | J36: =VLOOKUP(A30,Macronutrients,9,FALSE)*E30+VLOOKUP(A31,Macronutrients,9,FALSE)*E31+VLOOKUP(A32,Macronutrients,9,FALSE)*E32+VLOOKUP(A33,Macronutrients,9,FALSE)*E33+VLOOKUP(A34,Macronutrients,9,FALSE)*E34+VLOOKUP(A35,Macronutrients,9,FALSE)*E35+VLOOKUP(A38,Micronutrients,9,FALSE)*E38+VLOOKUP(A39,Micronutrients,9,FALSE)*E39+VLOOKUP(A40,Micronutrients,9,FALSE)*E40+VLOOKUP(A41,Micronutrients,9,FALSE)*E41 -> 0 | K36: =VLOOKUP(A30,Macronutrients,10,FALSE)*E30+VLOOKUP(A31,Macronutrients,10,FALSE)*E31+VLOOKUP(A32,Macronutrients,10,FALSE)*E32+VLOOKUP(A33,Macronutrients,10,FALSE)*E33+VLOOKUP(A34,Macronutrients,10,FALSE)*E34+VLOOKUP(A35,Macronutrients,10,FALSE)*E35+VLOOKUP(A38,Micronutrients,10,FALSE)*E38+VLOOKUP(A39,Micronutrients,10,FALSE)*E39+VLOOKUP(A40,Micronutrients,10,FALSE)*E40+VLOOKUP(A41,Micronutrients,10,FALSE)*E41 -> 0 | U36: =VLOOKUP(M30,Macronutrients,8,FALSE)*Q30+VLOOKUP(M31,Macronutrients,8,FALSE)*Q31+VLOOKUP(M32,Macronutrients,8,FALSE)*Q32+VLOOKUP(M33,Macronutrients,8,FALSE)*Q33+VLOOKUP(M34,Macronutrients,8,FALSE)*Q34+VLOOKUP(M35,Macronutrients,8,FALSE)*Q35+VLOOKUP(M38,Micronutrients,8,FALSE)*Q38+VLOOKUP(M39,Micronutrients,8,FALSE)*Q39+VLOOKUP(M40,Micronutrients,8,FALSE)*Q40+VLOOKUP(M41,Micronutrients,8,FALSE)*Q41 -> 0 | V36: =VLOOKUP(M30,Macronutrients,9,FALSE)*Q30+VLOOKUP(M31,Macronutrients,9,FALSE)*Q31+VLOOKUP(M32,Macronutrients,9,FALSE)*Q32+VLOOKUP(M33,Macronutrients,9,FALSE)*Q33+VLOOKUP(M34,Macronutrients,9,FALSE)*Q34+VLOOKUP(M35,Macronutrients,9,FALSE)*Q35+VLOOKUP(M38,Micronutrients,9,FALSE)*Q38+VLOOKUP(M39,Micronutrients,9,FALSE)*Q39+VLOOKUP(M40,Micronutrients,9,FALSE)*Q40+VLOOKUP(M41,Micronutrients,9,FALSE)*Q41 -> 0 | W36: =VLOOKUP(M30,Macronutrients,10,FALSE)*Q30+VLOOKUP(M31,Macronutrients,10,FALSE)*Q31+VLOOKUP(M32,Macronutrients,10,FALSE)*Q32+VLOOKUP(M33,Macronutrients,10,FALSE)*Q33+VLOOKUP(M34,Macronutrients,10,FALSE)*Q34+VLOOKUP(M35,Macronutrients,10,FALSE)*Q35+VLOOKUP(M38,Micronutrients,10,FALSE)*Q38+VLOOKUP(M39,Micronutrients,10,FALSE)*Q39+VLOOKUP(M40,Micronutrients,10,FALSE)*Q40+VLOOKUP(M41,Micronutrients,10,FALSE)*Q41 -> 0 | AG36: =VLOOKUP(Y30,Macronutrients,8,FALSE)*AC30+VLOOKUP(Y31,Macronutrients,8,FALSE)*AC31+VLOOKUP(Y32,Macronutrients,8,FALSE)*AC32+VLOOKUP(Y33,Macronutrients,8,FALSE)*AC33+VLOOKUP(Y34,Macronutrients,8,FALSE)*AC34+VLOOKUP(Y35,Macronutrients,8,FALSE)*AC35+VLOOKUP(Y38,Micronutrients,8,FALSE)*AC38+VLOOKUP(Y39,Micronutrients,8,FALSE)*AC39+VLOOKUP(Y40,Micronutrients,8,FALSE)*AC40+VLOOKUP(Y41,Micronutrients,8,FALSE)*AC41 -> 0 | AH36: =VLOOKUP(Y30,Macronutrients,9,FALSE)*AC30+VLOOKUP(Y31,Macronutrients,9,FALSE)*AC31+VLOOKUP(Y32,Macronutrients,9,FALSE)*AC32+VLOOKUP(Y33,Macronutrients,9,FALSE)*AC33+VLOOKUP(Y34,Macronutrients,9,FALSE)*AC34+VLOOKUP(Y35,Macronutrients,9,FALSE)*AC35+VLOOKUP(Y38,Micronutrients,9,FALSE)*AC38+VLOOKUP(Y39,Micronutrients,9,FALSE)*AC39+VLOOKUP(Y40,Micronutrients,9,FALSE)*AC40+VLOOKUP(Y41,Micronutrients,9,FALSE)*AC41 -> 0 | AI36: =VLOOKUP(Y30,Macronutrients,10,FALSE)*AC30+VLOOKUP(Y31,Macronutrients,10,FALSE)*AC31+VLOOKUP(Y32,Macronutrients,10,FALSE)*AC32+VLOOKUP(Y33,Macronutrients,10,FALSE)*AC33+VLOOKUP(Y34,Macronutrients,10,FALSE)*AC34+VLOOKUP(Y35,Macronutrients,10,FALSE)*AC35+VLOOKUP(Y38,Micronutrients,10,FALSE)*AC38+VLOOKUP(Y39,Micronutrients,10,FALSE)*AC39+VLOOKUP(Y40,Micronutrients,10,FALSE)*AC40+VLOOKUP(Y41,Micronutrients,10,FALSE)*AC41 -> 0
A37: Micronutrients (drop down menu) | M37: Micronutrients (drop down menu) | Y37: Micronutrients (drop down menu)
A38: None | B38: =VLOOKUP($A38,Micronutrients,14,FALSE) -> 0 | C38: =VLOOKUP(A38,Micronutrients,18,FALSE) -> 0 | D38: =VLOOKUP(A38,Micronutrients,16,FALSE) -> 1 | E38: 0 | F38: =VLOOKUP(A38,Micronutrients,15,FALSE) -> 0 | G38: =(E38*VLOOKUP(A38,Micronutrients,14,FALSE)/D38)*C38 -> 0 | I38: Cu | J38: Mo | K38: Fe | M38: None | N38: =VLOOKUP($M38,Micronutrients,14,FALSE) -> 0 | O38: =VLOOKUP(M38,Micronutrients,18,FALSE) -> 0 | P38: =VLOOKUP(M38,Micronutrients,16,FALSE) -> 1 | Q38: 0 | R38: =VLOOKUP(M38,Micronutrients,15,FALSE) -> 0 | S38: =(Q38*VLOOKUP(M38,Micronutrients,14,FALSE)/P38)*O38 -> 0 | U38: Cu | V38: Mo | W38: Fe | Y38: None | Z38: =VLOOKUP(Y38,Micronutrients,14,FALSE) -> 0 | AA38: =VLOOKUP(Y38,Micronutrients,18,FALSE) -> 0 | AB38: =VLOOKUP(Y38,Micronutrients,16,FALSE) -> 1 | AC38: 0 | AD38: =VLOOKUP(Y38,Micronutrients,15,FALSE) -> 0 | AE38: =(AC38*VLOOKUP(Y38,Micronutrients,14,FALSE)/AB38)*AA38 -> 0 | AG38: Cu | AH38: Mo | AI38: Fe
A39: None | B39: =VLOOKUP($A39,Micronutrients,14,FALSE) -> 0 | C39: =VLOOKUP(A39,Micronutrients,18,FALSE) -> 0 | D39: =VLOOKUP(A39,Micronutrients,16,FALSE) -> 1 | E39: 0 | F39: =VLOOKUP(A39,Micronutrients,15,FALSE) -> 0 | G39: =(E39*VLOOKUP(A39,Micronutrients,14,FALSE)/D39)*C39 -> 0 | I39: =VLOOKUP(A30,Macronutrients,11,FALSE)*E30+VLOOKUP(A31,Macronutrients,11,FALSE)*E31+VLOOKUP(A32,Macronutrients,11,FALSE)*E32+VLOOKUP(A33,Macronutrients,11,FALSE)*E33+VLOOKUP(A34,Macronutrients,11,FALSE)*E34+VLOOKUP(A35,Macronutrients,11,FALSE)*E35+VLOOKUP(A38,Micronutrients,11,FALSE)*E38+VLOOKUP(A39,Micronutrients,11,FALSE)*E39+VLOOKUP(A40,Micronutrients,11,FALSE)*E40+VLOOKUP(A41,Micronutrients,11,FALSE)*E41 -> 0 | J39: =VLOOKUP(A30,Macronutrients,12,FALSE)*E30+VLOOKUP(A31,Macronutrients,12,FALSE)*E31+VLOOKUP(A32,Macronutrients,12,FALSE)*E32+VLOOKUP(A33,Macronutrients,12,FALSE)*E33+VLOOKUP(A34,Macronutrients,12,FALSE)*E34+VLOOKUP(A35,Macronutrients,12,FALSE)*E35+VLOOKUP(A38,Micronutrients,12,FALSE)*E38+VLOOKUP(A39,Micronutrients,12,FALSE)*E39+VLOOKUP(A40,Micronutrients,12,FALSE)*E40+VLOOKUP(A41,Micronutrients,12,FALSE)*E41 -> 0 | K39: =VLOOKUP(A30,Macronutrients,13,FALSE)*E30+VLOOKUP(A31,Macronutrients,13,FALSE)*E31+VLOOKUP(A32,Macronutrients,13,FALSE)*E32+VLOOKUP(A33,Macronutrients,13,FALSE)*E33+VLOOKUP(A34,Macronutrients,13,FALSE)*E34+VLOOKUP(A35,Macronutrients,13,FALSE)*E35+VLOOKUP(A38,Micronutrients,13,FALSE)*E38+VLOOKUP(A39,Micronutrients,13,FALSE)*E39+VLOOKUP(A40,Micronutrients,13,FALSE)*E40+VLOOKUP(A41,Micronutrients,13,FALSE)*E41 -> 0 | M39: None | N39: =VLOOKUP($M39,Micronutrients,14,FALSE) -> 0 | O39: =VLOOKUP(M39,Micronutrients,18,FALSE) -> 0 | P39: =VLOOKUP(M39,Micronutrients,16,FALSE) -> 1 | Q39: 0 | R39: =VLOOKUP(M39,Micronutrients,15,FALSE) -> 0 | S39: =(Q39*VLOOKUP(M39,Micronutrients,14,FALSE)/P39)*O39 -> 0 | U39: =VLOOKUP(M30,Macronutrients,11,FALSE)*Q30+VLOOKUP(M31,Macronutrients,11,FALSE)*Q31+VLOOKUP(M32,Macronutrients,11,FALSE)*Q32+VLOOKUP(M33,Macronutrients,11,FALSE)*Q33+VLOOKUP(M34,Macronutrients,11,FALSE)*Q34+VLOOKUP(M35,Macronutrients,11,FALSE)*Q35+VLOOKUP(M38,Micronutrients,11,FALSE)*Q38+VLOOKUP(M39,Micronutrients,11,FALSE)*Q39+VLOOKUP(M40,Micronutrients,11,FALSE)*Q40+VLOOKUP(M41,Micronutrients,11,FALSE)*Q41 -> 0 | V39: =VLOOKUP(M30,Macronutrients,12,FALSE)*Q30+VLOOKUP(M31,Macronutrients,12,FALSE)*Q31+VLOOKUP(M32,Macronutrients,12,FALSE)*Q32+VLOOKUP(M33,Macronutrients,12,FALSE)*Q33+VLOOKUP(M34,Macronutrients,12,FALSE)*Q34+VLOOKUP(M35,Macronutrients,12,FALSE)*Q35+VLOOKUP(M38,Micronutrients,12,FALSE)*Q38+VLOOKUP(M39,Micronutrients,12,FALSE)*Q39+VLOOKUP(M40,Micronutrients,12,FALSE)*Q40+VLOOKUP(M41,Micronutrients,12,FALSE)*Q41 -> 0 | W39: =VLOOKUP(M30,Macronutrients,13,FALSE)*Q30+VLOOKUP(M31,Macronutrients,13,FALSE)*Q31+VLOOKUP(M32,Macronutrients,13,FALSE)*Q32+VLOOKUP(M33,Macronutrients,13,FALSE)*Q33+VLOOKUP(M34,Macronutrients,13,FALSE)*Q34+VLOOKUP(M35,Macronutrients,13,FALSE)*Q35+VLOOKUP(M38,Micronutrients,13,FALSE)*Q38+VLOOKUP(M39,Micronutrients,13,FALSE)*Q39+VLOOKUP(M40,Micronutrients,13,FALSE)*Q40+VLOOKUP(M41,Micronutrients,13,FALSE)*Q41 -> 0 | Y39: None | Z39: =VLOOKUP(Y39,Micronutrients,14,FALSE) -> 0 | AA39: =VLOOKUP(Y39,Micronutrients,18,FALSE) -> 0 | AB39: =VLOOKUP(Y39,Micronutrients,16,FALSE) -> 1 | AC39: 0 | AD39: =VLOOKUP(Y39,Micronutrients,15,FALSE) -> 0 | AE39: =(AC39*VLOOKUP(Y39,Micronutrients,14,FALSE)/AB39)*AA39 -> 0 | AG39: =VLOOKUP(Y30,Macronutrients,11,FALSE)*AC30+VLOOKUP(Y31,Macronutrients,11,FALSE)*AC31+VLOOKUP(Y32,Macronutrients,11,FALSE)*AC32+VLOOKUP(Y33,Macronutrients,11,FALSE)*AC33+VLOOKUP(Y34,Macronutrients,11,FALSE)*AC34+VLOOKUP(Y35,Macronutrients,11,FALSE)*AC35+VLOOKUP(Y38,Micronutrients,11,FALSE)*AC38+VLOOKUP(Y39,Micronutrients,11,FALSE)*AC39+VLOOKUP(Y40,Micronutrients,11,FALSE)*AC40+VLOOKUP(Y41,Micronutrients,11,FALSE)*AC41 -> 0 | AH39: =VLOOKUP(Y30,Macronutrients,12,FALSE)*AC30+VLOOKUP(Y31,Macronutrients,12,FALSE)*AC31+VLOOKUP(Y32,Macronutrients,12,FALSE)*AC32+VLOOKUP(Y33,Macronutrients,12,FALSE)*AC33+VLOOKUP(Y34,Macronutrients,12,FALSE)*AC34+VLOOKUP(Y35,Macronutrients,12,FALSE)*AC35+VLOOKUP(Y38,Micronutrients,12,FALSE)*AC38+VLOOKUP(Y39,Micronutrients,12,FALSE)*AC39+VLOOKUP(Y40,Micronutrients,12,FALSE)*AC40+VLOOKUP(Y41,Micronutrients,12,FALSE)*AC41 -> 0 | AI39: =VLOOKUP(Y30,Macronutrients,13,FALSE)*AC30+VLOOKUP(Y31,Macronutrients,13,FALSE)*AC31+VLOOKUP(Y32,Macronutrients,13,FALSE)*AC32+VLOOKUP(Y33,Macronutrients,13,FALSE)*AC33+VLOOKUP(Y34,Macronutrients,13,FALSE)*AC34+VLOOKUP(Y35,Macronutrients,13,FALSE)*AC35+VLOOKUP(Y38,Micronutrients,13,FALSE)*AC38+VLOOKUP(Y39,Micronutrients,13,FALSE)*AC39+VLOOKUP(Y40,Micronutrients,13,FALSE)*AC40+VLOOKUP(Y41,Micronutrients,13,FALSE)*AC41 -> 0
A40: None | B40: =VLOOKUP($A40,Micronutrients,14,FALSE) -> 0 | C40: =VLOOKUP(A40,Micronutrients,18,FALSE) -> 0 | D40: =VLOOKUP(A40,Micronutrients,16,FALSE) -> 1 | E40: 0 | F40: =VLOOKUP(A40,Micronutrients,15,FALSE) -> 0 | G40: =(E40*VLOOKUP(A40,Micronutrients,14,FALSE)/D40)*C40 -> 0 | M40: None | N40: =VLOOKUP($M40,Micronutrients,14,FALSE) -> 0 | O40: =VLOOKUP(M40,Micronutrients,18,FALSE) -> 0 | P40: =VLOOKUP(M40,Micronutrients,16,FALSE) -> 1 | Q40: 0 | R40: =VLOOKUP(M40,Micronutrients,15,FALSE) -> 0 | S40: =(Q40*VLOOKUP(M40,Micronutrients,14,FALSE)/P40)*O40 -> 0 | Y40: None | Z40: =VLOOKUP(Y40,Micronutrients,14,FALSE) -> 0 | AA40: =VLOOKUP(Y40,Micronutrients,18,FALSE) -> 0 | AB40: =VLOOKUP(Y40,Micronutrients,16,FALSE) -> 1 | AC40: 0 | AD40: =VLOOKUP(Y40,Micronutrients,15,FALSE) -> 0 | AE40: =(AC40*VLOOKUP(Y40,Micronutrients,14,FALSE)/AB40)*AA40 -> 0
A41: None | B41: =VLOOKUP($A41,Micronutrients,14,FALSE) -> 0 | C41: =VLOOKUP(A41,Micronutrients,18,FALSE) -> 0 | D41: =VLOOKUP(A41,Micronutrients,16,FALSE) -> 1 | E41: 0 | F41: =VLOOKUP(A41,Micronutrients,15,FALSE) -> 0 | G41: =(E41*VLOOKUP(A41,Micronutrients,14,FALSE)/D41)*C41 -> 0 | M41: None | N41: =VLOOKUP($M41,Micronutrients,14,FALSE) -> 0 | O41: =VLOOKUP(M41,Micronutrients,18,FALSE) -> 0 | P41: =VLOOKUP(M41,Micronutrients,16,FALSE) -> 1 | Q41: 0 | R41: =VLOOKUP(M41,Micronutrients,15,FALSE) -> 0 | S41: =(Q41*VLOOKUP(M41,Micronutrients,14,FALSE)/P41)*O41 -> 0 | Y41: None | Z41: =VLOOKUP(Y41,Micronutrients,14,FALSE) -> 0 | AA41: =VLOOKUP(Y41,Micronutrients,18,FALSE) -> 0 | AB41: =VLOOKUP(Y41,Micronutrients,16,FALSE) -> 1 | AC41: 0 | AD41: =VLOOKUP(Y41,Micronutrients,15,FALSE) -> 0 | AE41: =(AC41*VLOOKUP(Y41,Micronutrients,14,FALSE)/AB41)*AA41 -> 0
A43: Nitrogen Stabilizers (drop down menu) | M43: Nitrogen Stabilizers (drop down menu) | Y43: Nitrogen Stabilizers (drop down menu)
A44: None | B44: =VLOOKUP(A44,NitrogenStabilizers,14,FALSE) -> 0 | C44: =VLOOKUP(A44,NitrogenStabilizers,18,FALSE) -> 0 | D44: =VLOOKUP(A44,NitrogenStabilizers,16,FALSE) -> 1 | E44: 0 | F44: =VLOOKUP(A44,NitrogenStabilizers,15,FALSE) -> 0 | G44: =(E44*VLOOKUP(A44,NitrogenStabilizers,14,FALSE)/D44)*C44 -> 0 | M44: None | N44: =VLOOKUP(M44,NitrogenStabilizers,14,FALSE) -> 0 | O44: =VLOOKUP(M44,NitrogenStabilizers,18,FALSE) -> 0 | P44: =VLOOKUP(M44,NitrogenStabilizers,16,FALSE) -> 1 | Q44: 0 | R44: =VLOOKUP(M44,NitrogenStabilizers,15,FALSE) -> 0 | S44: =(Q44*VLOOKUP(M44,NitrogenStabilizers,14,FALSE)/P44)*O44 -> 0 | Y44: None | Z44: =VLOOKUP(Y44,NitrogenStabilizers,14,FALSE) -> 0 | AA44: =VLOOKUP(Y44,NitrogenStabilizers,18,FALSE) -> 0 | AB44: =VLOOKUP(Y44,NitrogenStabilizers,16,FALSE) -> 1 | AC44: 0 | AD44: =VLOOKUP(Y44,NitrogenStabilizers,15,FALSE) -> 0 | AE44: =(AC44*VLOOKUP(Y44,NitrogenStabilizers,14,FALSE)/AB44)*AA44 -> 0
A45: None | B45: =VLOOKUP(A45,NitrogenStabilizers,14,FALSE) -> 0 | C45: =VLOOKUP(A45,NitrogenStabilizers,18,FALSE) -> 0 | D45: =VLOOKUP(A45,NitrogenStabilizers,16,FALSE) -> 1 | E45: 0 | F45: =VLOOKUP(A45,NitrogenStabilizers,15,FALSE) -> 0 | G45: =(E45*VLOOKUP(A45,NitrogenStabilizers,14,FALSE)/D45)*C45 -> 0 | K45: More | M45: None | N45: =VLOOKUP(M45,NitrogenStabilizers,14,FALSE) -> 0 | O45: =VLOOKUP(M45,NitrogenStabilizers,18,FALSE) -> 0 | P45: =VLOOKUP(M45,NitrogenStabilizers,16,FALSE) -> 1 | Q45: 0 | R45: =VLOOKUP(M45,NitrogenStabilizers,15,FALSE) -> 0 | S45: =(Q45*VLOOKUP(M45,NitrogenStabilizers,14,FALSE)/P45)*O45 -> 0 | W45: More | Y45: None | Z45: =VLOOKUP(Y45,NitrogenStabilizers,14,FALSE) -> 0 | AA45: =VLOOKUP(Y45,NitrogenStabilizers,18,FALSE) -> 0 | AB45: =VLOOKUP(Y45,NitrogenStabilizers,16,FALSE) -> 1 | AC45: 0 | AD45: =VLOOKUP(Y45,NitrogenStabilizers,15,FALSE) -> 0 | AE45: =(AC45*VLOOKUP(Y45,NitrogenStabilizers,14,FALSE)/AB45)*AA45 -> 0 | AI45: More
A46: 2nd Application Fertilizer Cost/Acre | G46: =SUM(G30:G45) -> 0 | K46: Below | M46: 2nd Application Fertilizer Cost/Acre | S46: =SUM(S30:S45) -> 0 | W46: Below | Y46: 2nd Application Fertilizer Cost/Acre | AE46: =SUM(AE30:AE45) -> 0 | AI46: Below
K47: ¯ | W47: ¯ | AI47: ¯
A48: 3rd Application (i.e., Side-Dress or Broadcast) | M48: 3rd Application (i.e., Side-Dress or Broadcast) | Y48: 3rd Application (i.e., Side-Dress or Broadcast)
A49: Fertilizer Source | B49: Purchase Units | C49: Package Price (Gals, Lbs, etc.) | D49: Units/Pkg | E49: Rate/Acre | F49: Units | G49: Cost | M49: Fertilizer Source | N49: Purchase Units | O49: Package Price (Gals, Lbs, etc.) | P49: Units/Pkg | Q49: Rate/Acre | R49: Units | S49: Cost | Y49: Fertilizer Source | Z49: Purchase Units | AA49: Package Price (Gals, Lbs, etc.) | AB49: Units/Pkg | AC49: Rate/Acre | AD49: Units | AE49: Cost
A50: Macronutrients (drop down menu) | E50: (Enter Below) | I50: N | J50: P | K50: K | M50: Macronutrients (drop down menu) | Q50: (Enter Below) | U50: N | V50: P | W50: K | Y50: Macronutrients (drop down menu) | AC50: (Enter Below) | AG50: N | AH50: P | AI50: K
A51: None | B51: =VLOOKUP(A51,Macronutrients,14,FALSE) -> 0 | C51: =VLOOKUP(A51,Macronutrients,18,FALSE) -> 0 | D51: =VLOOKUP(A51,Macronutrients,16,FALSE) -> 1 | E51: 0 | F51: =VLOOKUP(A51,Macronutrients,15,FALSE) -> 0 | G51: =(E51*VLOOKUP(A51,Macronutrients,14,FALSE)/D51)*C51 -> 0 | I51: =VLOOKUP(A51,Macronutrients,2,FALSE)*E51+VLOOKUP(A52,Macronutrients,2,FALSE)*E52+VLOOKUP(A53,Macronutrients,2,FALSE)*E53+VLOOKUP(A54,Macronutrients,2,FALSE)*E54+VLOOKUP(A55,Macronutrients,2,FALSE)*E55+VLOOKUP(A56,Macronutrients,2,FALSE)*E56+VLOOKUP(A59,Micronutrients,2,FALSE)*E59+VLOOKUP(A60,Micronutrients,2,FALSE)*E60+VLOOKUP(A61,Micronutrients,2,FALSE)*E61+VLOOKUP(A62,Micronutrients,2,FALSE)*E62 -> 0 | J51: =VLOOKUP(A51,Macronutrients,3,FALSE)*E51+VLOOKUP(A52,Macronutrients,3,FALSE)*E52+VLOOKUP(A53,Macronutrients,3,FALSE)*E53+VLOOKUP(A54,Macronutrients,3,FALSE)*E54+VLOOKUP(A55,Macronutrients,3,FALSE)*E55+VLOOKUP(A56,Macronutrients,3,FALSE)*E56+VLOOKUP(A59,Micronutrients,3,FALSE)*E59+VLOOKUP(A60,Micronutrients,3,FALSE)*E60+VLOOKUP(A61,Micronutrients,3,FALSE)*E61+VLOOKUP(A62,Micronutrients,3,FALSE)*E62 -> 0 | K51: =VLOOKUP(A51,Macronutrients,4,FALSE)*E51+VLOOKUP(A52,Macronutrients,4,FALSE)*E52+VLOOKUP(A53,Macronutrients,4,FALSE)*E53+VLOOKUP(A54,Macronutrients,4,FALSE)*E54+VLOOKUP(A55,Macronutrients,4,FALSE)*E55+VLOOKUP(A56,Macronutrients,4,FALSE)*E56+VLOOKUP(A59,Micronutrients,4,FALSE)*E59+VLOOKUP(A60,Micronutrients,4,FALSE)*E60+VLOOKUP(A61,Micronutrients,4,FALSE)*E61+VLOOKUP(A62,Micronutrients,4,FALSE)*E62 -> 0 | M51: None | N51: =VLOOKUP(M51,Macronutrients,14,FALSE) -> 0 | O51: =VLOOKUP(M51,Macronutrients,18,FALSE) -> 0 | P51: =VLOOKUP(M51,Macronutrients,16,FALSE) -> 1 | Q51: 0 | R51: =VLOOKUP(M51,Macronutrients,15,FALSE) -> 0 | S51: =(Q51*VLOOKUP(M51,Macronutrients,14,FALSE)/P51)*O51 -> 0 | U51: =VLOOKUP(M51,Macronutrients,2,FALSE)*Q51+VLOOKUP(M52,Macronutrients,2,FALSE)*Q52+VLOOKUP(M53,Macronutrients,2,FALSE)*Q53+VLOOKUP(M54,Macronutrients,2,FALSE)*Q54+VLOOKUP(M55,Macronutrients,2,FALSE)*Q55+VLOOKUP(M56,Macronutrients,2,FALSE)*Q56+VLOOKUP(M59,Micronutrients,2,FALSE)*Q59+VLOOKUP(M60,Micronutrients,2,FALSE)*Q60+VLOOKUP(M61,Micronutrients,2,FALSE)*Q61+VLOOKUP(M62,Micronutrients,2,FALSE)*Q62 -> 0 | V51: =VLOOKUP(M51,Macronutrients,3,FALSE)*Q51+VLOOKUP(M52,Macronutrients,3,FALSE)*Q52+VLOOKUP(M53,Macronutrients,3,FALSE)*Q53+VLOOKUP(M54,Macronutrients,3,FALSE)*Q54+VLOOKUP(M55,Macronutrients,3,FALSE)*Q55+VLOOKUP(M56,Macronutrients,3,FALSE)*Q56+VLOOKUP(M59,Micronutrients,3,FALSE)*Q59+VLOOKUP(M60,Micronutrients,3,FALSE)*Q60+VLOOKUP(M61,Micronutrients,3,FALSE)*Q61+VLOOKUP(M62,Micronutrients,3,FALSE)*Q62 -> 0 | W51: =VLOOKUP(M51,Macronutrients,4,FALSE)*Q51+VLOOKUP(M52,Macronutrients,4,FALSE)*Q52+VLOOKUP(M53,Macronutrients,4,FALSE)*Q53+VLOOKUP(M54,Macronutrients,4,FALSE)*Q54+VLOOKUP(M55,Macronutrients,4,FALSE)*Q55+VLOOKUP(M56,Macronutrients,4,FALSE)*Q56+VLOOKUP(M59,Micronutrients,4,FALSE)*Q59+VLOOKUP(M60,Micronutrients,4,FALSE)*Q60+VLOOKUP(M61,Micronutrients,4,FALSE)*Q61+VLOOKUP(M62,Micronutrients,4,FALSE)*Q62 -> 0 | Y51: None | Z51: =VLOOKUP(Y51,Macronutrients,14,FALSE) -> 0 | AA51: =VLOOKUP(Y51,Macronutrients,18,FALSE) -> 0 | AB51: =VLOOKUP(Y51,Macronutrients,16,FALSE) -> 1 | AC51: 0 | AD51: =VLOOKUP(Y51,Macronutrients,15,FALSE) -> 0 | AE51: =(AC51*VLOOKUP(Y51,Macronutrients,14,FALSE)/AB51)*AA51 -> 0 | AG51: =VLOOKUP(Y51,Macronutrients,2,FALSE)*AC51+VLOOKUP(Y52,Macronutrients,2,FALSE)*AC52+VLOOKUP(Y53,Macronutrients,2,FALSE)*AC53+VLOOKUP(Y54,Macronutrients,2,FALSE)*AC54+VLOOKUP(Y55,Macronutrients,2,FALSE)*AC55+VLOOKUP(Y56,Macronutrients,2,FALSE)*AC56+VLOOKUP(Y59,Micronutrients,2,FALSE)*AC59+VLOOKUP(Y60,Micronutrients,2,FALSE)*AC60+VLOOKUP(Y61,Micronutrients,2,FALSE)*AC61+VLOOKUP(Y62,Micronutrients,2,FALSE)*AC62 -> 0 | AH51: =VLOOKUP(Y51,Macronutrients,3,FALSE)*AC51+VLOOKUP(Y52,Macronutrients,3,FALSE)*AC52+VLOOKUP(Y53,Macronutrients,3,FALSE)*AC53+VLOOKUP(Y54,Macronutrients,3,FALSE)*AC54+VLOOKUP(Y55,Macronutrients,3,FALSE)*AC55+VLOOKUP(Y56,Macronutrients,3,FALSE)*AC56+VLOOKUP(Y59,Micronutrients,3,FALSE)*AC59+VLOOKUP(Y60,Micronutrients,3,FALSE)*AC60+VLOOKUP(Y61,Micronutrients,3,FALSE)*AC61+VLOOKUP(Y62,Micronutrients,3,FALSE)*AC62 -> 0 | AI51: =VLOOKUP(Y51,Macronutrients,4,FALSE)*AC51+VLOOKUP(Y52,Macronutrients,4,FALSE)*AC52+VLOOKUP(Y53,Macronutrients,4,FALSE)*AC53+VLOOKUP(Y54,Macronutrients,4,FALSE)*AC54+VLOOKUP(Y55,Macronutrients,4,FALSE)*AC55+VLOOKUP(Y56,Macronutrients,4,FALSE)*AC56+VLOOKUP(Y59,Micronutrients,4,FALSE)*AC59+VLOOKUP(Y60,Micronutrients,4,FALSE)*AC60+VLOOKUP(Y61,Micronutrients,4,FALSE)*AC61+VLOOKUP(Y62,Micronutrients,4,FALSE)*AC62 -> 0
A52: None | B52: 0 | C52: 0 | D52: 1 | E52: 0 | F52: 0 | G52: 0 | M52: None | N52: 0 | O52: 0 | P52: 1 | Q52: 0 | R52: 0 | S52: 0 | Y52: None | Z52: 0 | AA52: 0 | AB52: 1 | AC52: 0 | AD52: 0 | AE52: 0
A53: None | B53: 0 | C53: 0 | D53: 1 | E53: 0 | F53: 0 | G53: 0 | I53: S | J53: Ca | K53: Mg | M53: None | N53: 0 | O53: 0 | P53: 1 | Q53: 0 | R53: 0 | S53: 0 | U53: S | V53: Ca | W53: Mg | Y53: None | Z53: 0 | AA53: 0 | AB53: 1 | AC53: 0 | AD53: 0 | AE53: 0 | AG53: S | AH53: Ca | AI53: Mg
A54: None | B54: 0 | C54: 0 | D54: 1 | E54: 0 | F54: 0 | G54: 0 | I54: =VLOOKUP(A51,Macronutrients,5,FALSE)*E51+VLOOKUP(A52,Macronutrients,5,FALSE)*E52+VLOOKUP(A53,Macronutrients,5,FALSE)*E53+VLOOKUP(A54,Macronutrients,5,FALSE)*E54+VLOOKUP(A55,Macronutrients,5,FALSE)*E55+VLOOKUP(A56,Macronutrients,5,FALSE)*E56+VLOOKUP(A59,Micronutrients,5,FALSE)*E59+VLOOKUP(A60,Micronutrients,5,FALSE)*E60+VLOOKUP(A61,Micronutrients,5,FALSE)*E61+VLOOKUP(A62,Micronutrients,5,FALSE)*E62 -> 0 | J54: =VLOOKUP(A51,Macronutrients,7,FALSE)*E51+VLOOKUP(A52,Macronutrients,7,FALSE)*E52+VLOOKUP(A53,Macronutrients,7,FALSE)*E53+VLOOKUP(A54,Macronutrients,7,FALSE)*E54+VLOOKUP(A55,Macronutrients,7,FALSE)*E55+VLOOKUP(A56,Macronutrients,7,FALSE)*E56+VLOOKUP(A59,Micronutrients,7,FALSE)*E59+VLOOKUP(A60,Micronutrients,7,FALSE)*E60+VLOOKUP(A61,Micronutrients,7,FALSE)*E61+VLOOKUP(A62,Micronutrients,7,FALSE)*E62 -> 0 | K54: =VLOOKUP($A51,Macronutrients,6,FALSE)*$E$6+VLOOKUP($A52,Macronutrients,6,FALSE)*$E$7+VLOOKUP($A53,Macronutrients,6,FALSE)*$E$8+VLOOKUP($A54,Macronutrients,6,FALSE)*$E$9+VLOOKUP($A55,Macronutrients,6,FALSE)*$E$10+VLOOKUP($A56,Macronutrients,6,FALSE)*$E$11+VLOOKUP($A59,Micronutrients,6,FALSE)*$E$14+VLOOKUP($A60,Micronutrients,6,FALSE)*E60+VLOOKUP($A61,Micronutrients,6,FALSE)*$E$16+VLOOKUP($A62,Micronutrients,6,FALSE)*$E$17 -> 0 | M54: None | N54: 0 | O54: 0 | P54: 1 | Q54: 0 | R54: 0 | S54: 0 | U54: =VLOOKUP(M51,Macronutrients,5,FALSE)*Q51+VLOOKUP(M52,Macronutrients,5,FALSE)*Q52+VLOOKUP(M53,Macronutrients,5,FALSE)*Q53+VLOOKUP(M54,Macronutrients,5,FALSE)*Q54+VLOOKUP(M55,Macronutrients,5,FALSE)*Q55+VLOOKUP(M56,Macronutrients,5,FALSE)*Q56+VLOOKUP(M59,Micronutrients,5,FALSE)*Q59+VLOOKUP(M60,Micronutrients,5,FALSE)*Q60+VLOOKUP(M61,Micronutrients,5,FALSE)*Q61+VLOOKUP(M62,Micronutrients,5,FALSE)*Q62 -> 0 | V54: =VLOOKUP(M51,Macronutrients,7,FALSE)*Q51+VLOOKUP(M52,Macronutrients,7,FALSE)*Q52+VLOOKUP(M53,Macronutrients,7,FALSE)*Q53+VLOOKUP(M54,Macronutrients,7,FALSE)*Q54+VLOOKUP(M55,Macronutrients,7,FALSE)*Q55+VLOOKUP(M56,Macronutrients,7,FALSE)*Q56+VLOOKUP(M59,Micronutrients,7,FALSE)*Q59+VLOOKUP(M60,Micronutrients,7,FALSE)*Q60+VLOOKUP(M61,Micronutrients,7,FALSE)*Q61+VLOOKUP(M62,Micronutrients,7,FALSE)*Q62 -> 0 | W54: =VLOOKUP($A51,Macronutrients,6,FALSE)*$E$6+VLOOKUP($A52,Macronutrients,6,FALSE)*$E$7+VLOOKUP($A53,Macronutrients,6,FALSE)*$E$8+VLOOKUP($A54,Macronutrients,6,FALSE)*$E$9+VLOOKUP($A55,Macronutrients,6,FALSE)*$E$10+VLOOKUP($A56,Macronutrients,6,FALSE)*$E$11+VLOOKUP($A59,Micronutrients,6,FALSE)*$E$14+VLOOKUP($A60,Micronutrients,6,FALSE)*Q60+VLOOKUP($A61,Micronutrients,6,FALSE)*$E$16+VLOOKUP($A62,Micronutrients,6,FALSE)*$E$17 -> 0 | Y54: None | Z54: 0 | AA54: 0 | AB54: 1 | AC54: 0 | AD54: 0 | AE54: 0 | AG54: =VLOOKUP(Y51,Macronutrients,5,FALSE)*AC51+VLOOKUP(Y52,Macronutrients,5,FALSE)*AC52+VLOOKUP(Y53,Macronutrients,5,FALSE)*AC53+VLOOKUP(Y54,Macronutrients,5,FALSE)*AC54+VLOOKUP(Y55,Macronutrients,5,FALSE)*AC55+VLOOKUP(Y56,Macronutrients,5,FALSE)*AC56+VLOOKUP(Y59,Micronutrients,5,FALSE)*AC59+VLOOKUP(Y60,Micronutrients,5,FALSE)*AC60+VLOOKUP(Y61,Micronutrients,5,FALSE)*AC61+VLOOKUP(Y62,Micronutrients,5,FALSE)*AC62 -> 0 | AH54: =VLOOKUP(Y51,Macronutrients,7,FALSE)*AC51+VLOOKUP(Y52,Macronutrients,7,FALSE)*AC52+VLOOKUP(Y53,Macronutrients,7,FALSE)*AC53+VLOOKUP(Y54,Macronutrients,7,FALSE)*AC54+VLOOKUP(Y55,Macronutrients,7,FALSE)*AC55+VLOOKUP(Y56,Macronutrients,7,FALSE)*AC56+VLOOKUP(Y59,Micronutrients,7,FALSE)*AC59+VLOOKUP(Y60,Micronutrients,7,FALSE)*AC60+VLOOKUP(Y61,Micronutrients,7,FALSE)*AC61+VLOOKUP(Y62,Micronutrients,7,FALSE)*AC62 -> 0 | AI54: =VLOOKUP($A51,Macronutrients,6,FALSE)*$E$6+VLOOKUP($A52,Macronutrients,6,FALSE)*$E$7+VLOOKUP($A53,Macronutrients,6,FALSE)*$E$8+VLOOKUP($A54,Macronutrients,6,FALSE)*$E$9+VLOOKUP($A55,Macronutrients,6,FALSE)*$E$10+VLOOKUP($A56,Macronutrients,6,FALSE)*$E$11+VLOOKUP($A59,Micronutrients,6,FALSE)*$E$14+VLOOKUP($A60,Micronutrients,6,FALSE)*AC60+VLOOKUP($A61,Micronutrients,6,FALSE)*$E$16+VLOOKUP($A62,Micronutrients,6,FALSE)*$E$17 -> 0
A55: None | B55: 0 | C55: 0 | D55: 1 | E55: 0 | F55: 0 | G55: 0 | M55: None | N55: 0 | O55: 0 | P55: 1 | Q55: 0 | R55: 0 | S55: 0 | Y55: None | Z55: 0 | AA55: 0 | AB55: 1 | AC55: 0 | AD55: 0 | AE55: 0
A56: None | B56: 0 | C56: 0 | D56: 1 | E56: 0 | F56: 0 | G56: 0 | I56: Z | J56: B | K56: Mn | M56: None | N56: 0 | O56: 0 | P56: 1 | Q56: 0 | R56: 0 | S56: 0 | U56: Z | V56: B | W56: Mn | Y56: None | Z56: 0 | AA56: 0 | AB56: 1 | AC56: 0 | AD56: 0 | AE56: 0 | AG56: Z | AH56: B | AI56: Mn
I57: =VLOOKUP(A51,Macronutrients,8,FALSE)*E51+VLOOKUP(A52,Macronutrients,8,FALSE)*E52+VLOOKUP(A53,Macronutrients,8,FALSE)*E53+VLOOKUP(A54,Macronutrients,8,FALSE)*E54+VLOOKUP(A55,Macronutrients,8,FALSE)*E55+VLOOKUP(A56,Macronutrients,8,FALSE)*E56+VLOOKUP(A59,Micronutrients,8,FALSE)*E59+VLOOKUP(A60,Micronutrients,8,FALSE)*E60+VLOOKUP(A61,Micronutrients,8,FALSE)*E61+VLOOKUP(A62,Micronutrients,8,FALSE)*E62 -> 0 | J57: =VLOOKUP(A51,Macronutrients,9,FALSE)*E51+VLOOKUP(A52,Macronutrients,9,FALSE)*E52+VLOOKUP(A53,Macronutrients,9,FALSE)*E53+VLOOKUP(A54,Macronutrients,9,FALSE)*E54+VLOOKUP(A55,Macronutrients,9,FALSE)*E55+VLOOKUP(A56,Macronutrients,9,FALSE)*E56+VLOOKUP(A59,Micronutrients,9,FALSE)*E59+VLOOKUP(A60,Micronutrients,9,FALSE)*E60+VLOOKUP(A61,Micronutrients,9,FALSE)*E61+VLOOKUP(A62,Micronutrients,9,FALSE)*E62 -> 0 | K57: =VLOOKUP(A51,Macronutrients,10,FALSE)*E51+VLOOKUP(A52,Macronutrients,10,FALSE)*E52+VLOOKUP(A53,Macronutrients,10,FALSE)*E53+VLOOKUP(A54,Macronutrients,10,FALSE)*E54+VLOOKUP(A55,Macronutrients,10,FALSE)*E55+VLOOKUP(A56,Macronutrients,10,FALSE)*E56+VLOOKUP(A59,Micronutrients,10,FALSE)*E59+VLOOKUP(A60,Micronutrients,10,FALSE)*E60+VLOOKUP(A61,Micronutrients,10,FALSE)*E61+VLOOKUP(A62,Micronutrients,10,FALSE)*E62 -> 0 | U57: =VLOOKUP(M51,Macronutrients,8,FALSE)*Q51+VLOOKUP(M52,Macronutrients,8,FALSE)*Q52+VLOOKUP(M53,Macronutrients,8,FALSE)*Q53+VLOOKUP(M54,Macronutrients,8,FALSE)*Q54+VLOOKUP(M55,Macronutrients,8,FALSE)*Q55+VLOOKUP(M56,Macronutrients,8,FALSE)*Q56+VLOOKUP(M59,Micronutrients,8,FALSE)*Q59+VLOOKUP(M60,Micronutrients,8,FALSE)*Q60+VLOOKUP(M61,Micronutrients,8,FALSE)*Q61+VLOOKUP(M62,Micronutrients,8,FALSE)*Q62 -> 0 | V57: =VLOOKUP(M51,Macronutrients,9,FALSE)*Q51+VLOOKUP(M52,Macronutrients,9,FALSE)*Q52+VLOOKUP(M53,Macronutrients,9,FALSE)*Q53+VLOOKUP(M54,Macronutrients,9,FALSE)*Q54+VLOOKUP(M55,Macronutrients,9,FALSE)*Q55+VLOOKUP(M56,Macronutrients,9,FALSE)*Q56+VLOOKUP(M59,Micronutrients,9,FALSE)*Q59+VLOOKUP(M60,Micronutrients,9,FALSE)*Q60+VLOOKUP(M61,Micronutrients,9,FALSE)*Q61+VLOOKUP(M62,Micronutrients,9,FALSE)*Q62 -> 0 | W57: =VLOOKUP(M51,Macronutrients,10,FALSE)*Q51+VLOOKUP(M52,Macronutrients,10,FALSE)*Q52+VLOOKUP(M53,Macronutrients,10,FALSE)*Q53+VLOOKUP(M54,Macronutrients,10,FALSE)*Q54+VLOOKUP(M55,Macronutrients,10,FALSE)*Q55+VLOOKUP(M56,Macronutrients,10,FALSE)*Q56+VLOOKUP(M59,Micronutrients,10,FALSE)*Q59+VLOOKUP(M60,Micronutrients,10,FALSE)*Q60+VLOOKUP(M61,Micronutrients,10,FALSE)*Q61+VLOOKUP(M62,Micronutrients,10,FALSE)*Q62 -> 0 | AG57: =VLOOKUP(Y51,Macronutrients,8,FALSE)*AC51+VLOOKUP(Y52,Macronutrients,8,FALSE)*AC52+VLOOKUP(Y53,Macronutrients,8,FALSE)*AC53+VLOOKUP(Y54,Macronutrients,8,FALSE)*AC54+VLOOKUP(Y55,Macronutrients,8,FALSE)*AC55+VLOOKUP(Y56,Macronutrients,8,FALSE)*AC56+VLOOKUP(Y59,Micronutrients,8,FALSE)*AC59+VLOOKUP(Y60,Micronutrients,8,FALSE)*AC60+VLOOKUP(Y61,Micronutrients,8,FALSE)*AC61+VLOOKUP(Y62,Micronutrients,8,FALSE)*AC62 -> 0 | AH57: =VLOOKUP(Y51,Macronutrients,9,FALSE)*AC51+VLOOKUP(Y52,Macronutrients,9,FALSE)*AC52+VLOOKUP(Y53,Macronutrients,9,FALSE)*AC53+VLOOKUP(Y54,Macronutrients,9,FALSE)*AC54+VLOOKUP(Y55,Macronutrients,9,FALSE)*AC55+VLOOKUP(Y56,Macronutrients,9,FALSE)*AC56+VLOOKUP(Y59,Micronutrients,9,FALSE)*AC59+VLOOKUP(Y60,Micronutrients,9,FALSE)*AC60+VLOOKUP(Y61,Micronutrients,9,FALSE)*AC61+VLOOKUP(Y62,Micronutrients,9,FALSE)*AC62 -> 0 | AI57: =VLOOKUP(Y51,Macronutrients,10,FALSE)*AC51+VLOOKUP(Y52,Macronutrients,10,FALSE)*AC52+VLOOKUP(Y53,Macronutrients,10,FALSE)*AC53+VLOOKUP(Y54,Macronutrients,10,FALSE)*AC54+VLOOKUP(Y55,Macronutrients,10,FALSE)*AC55+VLOOKUP(Y56,Macronutrients,10,FALSE)*AC56+VLOOKUP(Y59,Micronutrients,10,FALSE)*AC59+VLOOKUP(Y60,Micronutrients,10,FALSE)*AC60+VLOOKUP(Y61,Micronutrients,10,FALSE)*AC61+VLOOKUP(Y62,Micronutrients,10,FALSE)*AC62 -> 0
A58: Micronutrients (drop down menu) | M58: Micronutrients (drop down menu) | Y58: Micronutrients (drop down menu)
A59: None | B59: =VLOOKUP($A59,Micronutrients,14,FALSE) -> 0 | C59: =VLOOKUP(A59,Micronutrients,18,FALSE) -> 0 | D59: =VLOOKUP(A59,Micronutrients,16,FALSE) -> 1 | E59: 0 | F59: =VLOOKUP(A59,Micronutrients,15,FALSE) -> 0 | G59: =(E59*VLOOKUP(A59,Micronutrients,14,FALSE)/D59)*C59 -> 0 | I59: Cu | J59: Mo | K59: Fe | M59: None | N59: =VLOOKUP($M59,Micronutrients,14,FALSE) -> 0 | O59: =VLOOKUP(M59,Micronutrients,18,FALSE) -> 0 | P59: =VLOOKUP(M59,Micronutrients,16,FALSE) -> 1 | Q59: 0 | R59: =VLOOKUP(M59,Micronutrients,15,FALSE) -> 0 | S59: =(Q59*VLOOKUP(M59,Micronutrients,14,FALSE)/P59)*O59 -> 0 | U59: Cu | V59: Mo | W59: Fe | Y59: None | Z59: =VLOOKUP(Y59,Micronutrients,14,FALSE) -> 0 | AA59: =VLOOKUP(Y59,Micronutrients,18,FALSE) -> 0 | AB59: =VLOOKUP(Y59,Micronutrients,16,FALSE) -> 1 | AC59: 0 | AD59: =VLOOKUP(Y59,Micronutrients,15,FALSE) -> 0 | AE59: =(AC59*VLOOKUP(Y59,Micronutrients,14,FALSE)/AB59)*AA59 -> 0 | AG59: Cu | AH59: Mo | AI59: Fe
A60: None | B60: =VLOOKUP($A60,Micronutrients,14,FALSE) -> 0 | C60: =VLOOKUP(A60,Micronutrients,18,FALSE) -> 0 | D60: =VLOOKUP(A60,Micronutrients,16,FALSE) -> 1 | E60: 0 | F60: =VLOOKUP(A60,Micronutrients,15,FALSE) -> 0 | G60: =(E60*VLOOKUP(A60,Micronutrients,14,FALSE)/D60)*C60 -> 0 | I60: =VLOOKUP(A51,Macronutrients,11,FALSE)*E51+VLOOKUP(A52,Macronutrients,11,FALSE)*E52+VLOOKUP(A53,Macronutrients,11,FALSE)*E53+VLOOKUP(A54,Macronutrients,11,FALSE)*E54+VLOOKUP(A55,Macronutrients,11,FALSE)*E55+VLOOKUP(A56,Macronutrients,11,FALSE)*E56+VLOOKUP(A59,Micronutrients,11,FALSE)*E59+VLOOKUP(A60,Micronutrients,11,FALSE)*E60+VLOOKUP(A61,Micronutrients,11,FALSE)*E61+VLOOKUP(A62,Micronutrients,11,FALSE)*E62 -> 0 | J60: =VLOOKUP(A51,Macronutrients,12,FALSE)*E51+VLOOKUP(A52,Macronutrients,12,FALSE)*E52+VLOOKUP(A53,Macronutrients,12,FALSE)*E53+VLOOKUP(A54,Macronutrients,12,FALSE)*E54+VLOOKUP(A55,Macronutrients,12,FALSE)*E55+VLOOKUP(A56,Macronutrients,12,FALSE)*E56+VLOOKUP(A59,Micronutrients,12,FALSE)*E59+VLOOKUP(A60,Micronutrients,12,FALSE)*E60+VLOOKUP(A61,Micronutrients,12,FALSE)*E61+VLOOKUP(A62,Micronutrients,12,FALSE)*E62 -> 0 | K60: =VLOOKUP(A51,Macronutrients,13,FALSE)*E51+VLOOKUP(A52,Macronutrients,13,FALSE)*E52+VLOOKUP(A53,Macronutrients,13,FALSE)*E53+VLOOKUP(A54,Macronutrients,13,FALSE)*E54+VLOOKUP(A55,Macronutrients,13,FALSE)*E55+VLOOKUP(A56,Macronutrients,13,FALSE)*E56+VLOOKUP(A59,Micronutrients,13,FALSE)*E59+VLOOKUP(A60,Micronutrients,13,FALSE)*E60+VLOOKUP(A61,Micronutrients,13,FALSE)*E61+VLOOKUP(A62,Micronutrients,13,FALSE)*E62 -> 0 | M60: None | N60: =VLOOKUP($M60,Micronutrients,14,FALSE) -> 0 | O60: =VLOOKUP(M60,Micronutrients,18,FALSE) -> 0 | P60: =VLOOKUP(M60,Micronutrients,16,FALSE) -> 1 | Q60: 0 | R60: =VLOOKUP(M60,Micronutrients,15,FALSE) -> 0 | S60: =(Q60*VLOOKUP(M60,Micronutrients,14,FALSE)/P60)*O60 -> 0 | U60: =VLOOKUP(M51,Macronutrients,11,FALSE)*Q51+VLOOKUP(M52,Macronutrients,11,FALSE)*Q52+VLOOKUP(M53,Macronutrients,11,FALSE)*Q53+VLOOKUP(M54,Macronutrients,11,FALSE)*Q54+VLOOKUP(M55,Macronutrients,11,FALSE)*Q55+VLOOKUP(M56,Macronutrients,11,FALSE)*Q56+VLOOKUP(M59,Micronutrients,11,FALSE)*Q59+VLOOKUP(M60,Micronutrients,11,FALSE)*Q60+VLOOKUP(M61,Micronutrients,11,FALSE)*Q61+VLOOKUP(M62,Micronutrients,11,FALSE)*Q62 -> 0 | V60: =VLOOKUP(M51,Macronutrients,12,FALSE)*Q51+VLOOKUP(M52,Macronutrients,12,FALSE)*Q52+VLOOKUP(M53,Macronutrients,12,FALSE)*Q53+VLOOKUP(M54,Macronutrients,12,FALSE)*Q54+VLOOKUP(M55,Macronutrients,12,FALSE)*Q55+VLOOKUP(M56,Macronutrients,12,FALSE)*Q56+VLOOKUP(M59,Micronutrients,12,FALSE)*Q59+VLOOKUP(M60,Micronutrients,12,FALSE)*Q60+VLOOKUP(M61,Micronutrients,12,FALSE)*Q61+VLOOKUP(M62,Micronutrients,12,FALSE)*Q62 -> 0 | W60: =VLOOKUP(M51,Macronutrients,13,FALSE)*Q51+VLOOKUP(M52,Macronutrients,13,FALSE)*Q52+VLOOKUP(M53,Macronutrients,13,FALSE)*Q53+VLOOKUP(M54,Macronutrients,13,FALSE)*Q54+VLOOKUP(M55,Macronutrients,13,FALSE)*Q55+VLOOKUP(M56,Macronutrients,13,FALSE)*Q56+VLOOKUP(M59,Micronutrients,13,FALSE)*Q59+VLOOKUP(M60,Micronutrients,13,FALSE)*Q60+VLOOKUP(M61,Micronutrients,13,FALSE)*Q61+VLOOKUP(M62,Micronutrients,13,FALSE)*Q62 -> 0 | Y60: None | Z60: =VLOOKUP(Y60,Micronutrients,14,FALSE) -> 0 | AA60: =VLOOKUP(Y60,Micronutrients,18,FALSE) -> 0 | AB60: =VLOOKUP(Y60,Micronutrients,16,FALSE) -> 1 | AC60: 0 | AD60: =VLOOKUP(Y60,Micronutrients,15,FALSE) -> 0 | AE60: =(AC60*VLOOKUP(Y60,Micronutrients,14,FALSE)/AB60)*AA60 -> 0 | AG60: =VLOOKUP(Y51,Macronutrients,11,FALSE)*AC51+VLOOKUP(Y52,Macronutrients,11,FALSE)*AC52+VLOOKUP(Y53,Macronutrients,11,FALSE)*AC53+VLOOKUP(Y54,Macronutrients,11,FALSE)*AC54+VLOOKUP(Y55,Macronutrients,11,FALSE)*AC55+VLOOKUP(Y56,Macronutrients,11,FALSE)*AC56+VLOOKUP(Y59,Micronutrients,11,FALSE)*AC59+VLOOKUP(Y60,Micronutrients,11,FALSE)*AC60+VLOOKUP(Y61,Micronutrients,11,FALSE)*AC61+VLOOKUP(Y62,Micronutrients,11,FALSE)*AC62 -> 0 | AH60: =VLOOKUP(Y51,Macronutrients,12,FALSE)*AC51+VLOOKUP(Y52,Macronutrients,12,FALSE)*AC52+VLOOKUP(Y53,Macronutrients,12,FALSE)*AC53+VLOOKUP(Y54,Macronutrients,12,FALSE)*AC54+VLOOKUP(Y55,Macronutrients,12,FALSE)*AC55+VLOOKUP(Y56,Macronutrients,12,FALSE)*AC56+VLOOKUP(Y59,Micronutrients,12,FALSE)*AC59+VLOOKUP(Y60,Micronutrients,12,FALSE)*AC60+VLOOKUP(Y61,Micronutrients,12,FALSE)*AC61+VLOOKUP(Y62,Micronutrients,12,FALSE)*AC62 -> 0 | AI60: =VLOOKUP(Y51,Macronutrients,13,FALSE)*AC51+VLOOKUP(Y52,Macronutrients,13,FALSE)*AC52+VLOOKUP(Y53,Macronutrients,13,FALSE)*AC53+VLOOKUP(Y54,Macronutrients,13,FALSE)*AC54+VLOOKUP(Y55,Macronutrients,13,FALSE)*AC55+VLOOKUP(Y56,Macronutrients,13,FALSE)*AC56+VLOOKUP(Y59,Micronutrients,13,FALSE)*AC59+VLOOKUP(Y60,Micronutrients,13,FALSE)*AC60+VLOOKUP(Y61,Micronutrients,13,FALSE)*AC61+VLOOKUP(Y62,Micronutrients,13,FALSE)*AC62 -> 0
A61: None | B61: =VLOOKUP($A61,Micronutrients,14,FALSE) -> 0 | C61: =VLOOKUP(A61,Micronutrients,18,FALSE) -> 0 | D61: =VLOOKUP(A61,Micronutrients,16,FALSE) -> 1 | E61: 0 | F61: =VLOOKUP(A61,Micronutrients,15,FALSE) -> 0 | G61: =(E61*VLOOKUP(A61,Micronutrients,14,FALSE)/D61)*C61 -> 0 | M61: None | N61: =VLOOKUP($M61,Micronutrients,14,FALSE) -> 0 | O61: =VLOOKUP(M61,Micronutrients,18,FALSE) -> 0 | P61: =VLOOKUP(M61,Micronutrients,16,FALSE) -> 1 | Q61: 0 | R61: =VLOOKUP(M61,Micronutrients,15,FALSE) -> 0 | S61: =(Q61*VLOOKUP(M61,Micronutrients,14,FALSE)/P61)*O61 -> 0 | Y61: None | Z61: =VLOOKUP(Y61,Micronutrients,14,FALSE) -> 0 | AA61: =VLOOKUP(Y61,Micronutrients,18,FALSE) -> 0 | AB61: =VLOOKUP(Y61,Micronutrients,16,FALSE) -> 1 | AC61: 0 | AD61: =VLOOKUP(Y61,Micronutrients,15,FALSE) -> 0 | AE61: =(AC61*VLOOKUP(Y61,Micronutrients,14,FALSE)/AB61)*AA61 -> 0
A62: None | B62: =VLOOKUP($A62,Micronutrients,14,FALSE) -> 0 | C62: =VLOOKUP(A62,Micronutrients,18,FALSE) -> 0 | D62: =VLOOKUP(A62,Micronutrients,16,FALSE) -> 1 | E62: 0 | F62: =VLOOKUP(A62,Micronutrients,15,FALSE) -> 0 | G62: =(E62*VLOOKUP(A62,Micronutrients,14,FALSE)/D62)*C62 -> 0 | M62: None | N62: =VLOOKUP($M62,Micronutrients,14,FALSE) -> 0 | O62: =VLOOKUP(M62,Micronutrients,18,FALSE) -> 0 | P62: =VLOOKUP(M62,Micronutrients,16,FALSE) -> 1 | Q62: 0 | R62: =VLOOKUP(M62,Micronutrients,15,FALSE) -> 0 | S62: =(Q62*VLOOKUP(M62,Micronutrients,14,FALSE)/P62)*O62 -> 0 | Y62: None | Z62: =VLOOKUP(Y62,Micronutrients,14,FALSE) -> 0 | AA62: =VLOOKUP(Y62,Micronutrients,18,FALSE) -> 0 | AB62: =VLOOKUP(Y62,Micronutrients,16,FALSE) -> 1 | AC62: 0 | AD62: =VLOOKUP(Y62,Micronutrients,15,FALSE) -> 0 | AE62: =(AC62*VLOOKUP(Y62,Micronutrients,14,FALSE)/AB62)*AA62 -> 0
A64: Nitrogen Stabilizers (drop down menu) | M64: Nitrogen Stabilizers (drop down menu) | Y64: Nitrogen Stabilizers (drop down menu)
A65: None | B65: =VLOOKUP(A65,NitrogenStabilizers,14,FALSE) -> 0 | C65: =VLOOKUP(A65,NitrogenStabilizers,18,FALSE) -> 0 | D65: =VLOOKUP(A65,NitrogenStabilizers,16,FALSE) -> 1 | E65: 0 | F65: =VLOOKUP(A65,NitrogenStabilizers,15,FALSE) -> 0 | G65: =(E65*VLOOKUP(A65,NitrogenStabilizers,14,FALSE)/D65)*C65 -> 0 | M65: None | N65: =VLOOKUP(M65,NitrogenStabilizers,14,FALSE) -> 0 | O65: =VLOOKUP(M65,NitrogenStabilizers,18,FALSE) -> 0 | P65: =VLOOKUP(M65,NitrogenStabilizers,16,FALSE) -> 1 | Q65: 0 | R65: =VLOOKUP(M65,NitrogenStabilizers,15,FALSE) -> 0 | S65: =(Q65*VLOOKUP(M65,NitrogenStabilizers,14,FALSE)/P65)*O65 -> 0 | Y65: None | Z65: =VLOOKUP(Y65,NitrogenStabilizers,14,FALSE) -> 0 | AA65: =VLOOKUP(Y65,NitrogenStabilizers,18,FALSE) -> 0 | AB65: =VLOOKUP(Y65,NitrogenStabilizers,16,FALSE) -> 1 | AC65: 0 | AD65: =VLOOKUP(Y65,NitrogenStabilizers,15,FALSE) -> 0 | AE65: =(AC65*VLOOKUP(Y65,NitrogenStabilizers,14,FALSE)/AB65)*AA65 -> 0
A66: None | B66: =VLOOKUP(A66,NitrogenStabilizers,14,FALSE) -> 0 | C66: =VLOOKUP(A66,NitrogenStabilizers,18,FALSE) -> 0 | D66: =VLOOKUP(A66,NitrogenStabilizers,16,FALSE) -> 1 | E66: 0 | F66: =VLOOKUP(A66,NitrogenStabilizers,15,FALSE) -> 0 | G66: =(E66*VLOOKUP(A66,NitrogenStabilizers,14,FALSE)/D66)*C66 -> 0 | K66: More | M66: None | N66: =VLOOKUP(M66,NitrogenStabilizers,14,FALSE) -> 0 | O66: =VLOOKUP(M66,NitrogenStabilizers,18,FALSE) -> 0 | P66: =VLOOKUP(M66,NitrogenStabilizers,16,FALSE) -> 1 | Q66: 0 | R66: =VLOOKUP(M66,NitrogenStabilizers,15,FALSE) -> 0 | S66: =(Q66*VLOOKUP(M66,NitrogenStabilizers,14,FALSE)/P66)*O66 -> 0 | W66: More | Y66: None | Z66: =VLOOKUP(Y66,NitrogenStabilizers,14,FALSE) -> 0 | AA66: =VLOOKUP(Y66,NitrogenStabilizers,18,FALSE) -> 0 | AB66: =VLOOKUP(Y66,NitrogenStabilizers,16,FALSE) -> 1 | AC66: 0 | AD66: =VLOOKUP(Y66,NitrogenStabilizers,15,FALSE) -> 0 | AE66: =(AC66*VLOOKUP(Y66,NitrogenStabilizers,14,FALSE)/AB66)*AA66 -> 0 | AI66: More
A67: 3rd Application Fertilizer Cost/Acre | G67: =SUM(G51:G66) -> 0 | K67: Below | M67: 3rd Application Fertilizer Cost/Acre | S67: =SUM(S51:S66) -> 0 | W67: Below | Y67: 3rd Application Fertilizer Cost/Acre | AE67: =SUM(AE51:AE66) -> 0 | AI67: Below
K68: ¯ | W68: ¯ | AI68: ¯
A69: Total Fertilizer Cost/Acre | G69: =G67+G46+G25 -> 0 | M69: Total Fertilizer Cost/Acre | S69: =S67+S46+S25 -> 0 | Y69: Total Fertilizer Cost/Acre | AE69: =AE67+AE46+AE25 -> 0
A71: 4th Application (i.e., Side-Dress or Broadcast) | M71: 4th Application (i.e., Side-Dress or Broadcast) | Y71: 4th Application (i.e., Side-Dress or Broadcast)
A72: Fertilizer Source | B72: Purchase Units | C72: Package Price (Gals, Lbs, etc.) | D72: Units/Pkg | E72: Rate/Acre | F72: Units | G72: Cost | M72: Fertilizer Source | N72: Purchase Units | O72: Package Price (Gals, Lbs, etc.) | P72: Units/Pkg | Q72: Rate/Acre | R72: Units | S72: Cost | Y72: Fertilizer Source | Z72: Purchase Units | AA72: Package Price (Gals, Lbs, etc.) | AB72: Units/Pkg | AC72: Rate/Acre | AD72: Units | AE72: Cost
A73: Macronutrients (drop down menu) | E73: (Enter Below) | I73: N | J73: P | K73: K | M73: Macronutrients (drop down menu) | Q73: (Enter Below) | U73: N | V73: P | W73: K | Y73: Macronutrients (drop down menu) | AC73: (Enter Below) | AG73: N | AH73: P | AI73: K
A74: None | B74: =VLOOKUP(A74,Macronutrients,14,FALSE) -> 0 | C74: =VLOOKUP(A74,Macronutrients,18,FALSE) -> 0 | D74: =VLOOKUP(A74,Macronutrients,16,FALSE) -> 1 | E74: 0 | F74: =VLOOKUP(A74,Macronutrients,15,FALSE) -> 0 | G74: =(E74*VLOOKUP(A74,Macronutrients,14,FALSE)/D74)*C74 -> 0 | I74: =VLOOKUP(A74,Macronutrients,2,FALSE)*E74+VLOOKUP(A75,Macronutrients,2,FALSE)*E75+VLOOKUP(A76,Macronutrients,2,FALSE)*E76+VLOOKUP(A77,Macronutrients,2,FALSE)*E77+VLOOKUP(A78,Macronutrients,2,FALSE)*E78+VLOOKUP(A79,Macronutrients,2,FALSE)*E79+VLOOKUP(A82,Micronutrients,2,FALSE)*E82+VLOOKUP(A83,Micronutrients,2,FALSE)*E83+VLOOKUP(A84,Micronutrients,2,FALSE)*E84+VLOOKUP(A85,Micronutrients,2,FALSE)*E85 -> 0 | J74: =VLOOKUP(A74,Macronutrients,3,FALSE)*E74+VLOOKUP(A75,Macronutrients,3,FALSE)*E75+VLOOKUP(A76,Macronutrients,3,FALSE)*E76+VLOOKUP(A77,Macronutrients,3,FALSE)*E77+VLOOKUP(A78,Macronutrients,3,FALSE)*E78+VLOOKUP(A79,Macronutrients,3,FALSE)*E79+VLOOKUP(A82,Micronutrients,3,FALSE)*E82+VLOOKUP(A83,Micronutrients,3,FALSE)*E83+VLOOKUP(A84,Micronutrients,3,FALSE)*E84+VLOOKUP(A85,Micronutrients,3,FALSE)*E85 -> 0 | K74: =VLOOKUP(A74,Macronutrients,4,FALSE)*E74+VLOOKUP(A75,Macronutrients,4,FALSE)*E75+VLOOKUP(A76,Macronutrients,4,FALSE)*E76+VLOOKUP(A77,Macronutrients,4,FALSE)*E77+VLOOKUP(A78,Macronutrients,4,FALSE)*E78+VLOOKUP(A79,Macronutrients,4,FALSE)*E79+VLOOKUP(A82,Micronutrients,4,FALSE)*E82+VLOOKUP(A83,Micronutrients,4,FALSE)*E83+VLOOKUP(A84,Micronutrients,4,FALSE)*E84+VLOOKUP(A85,Micronutrients,4,FALSE)*E85 -> 0 | M74: None | N74: =VLOOKUP(M74,Macronutrients,14,FALSE) -> 0 | O74: =VLOOKUP(M74,Macronutrients,18,FALSE) -> 0 | P74: =VLOOKUP(M74,Macronutrients,16,FALSE) -> 1 | Q74: 0 | R74: =VLOOKUP(M74,Macronutrients,15,FALSE) -> 0 | S74: =(Q74*VLOOKUP(M74,Macronutrients,14,FALSE)/P74)*O74 -> 0 | U74: =VLOOKUP(M74,Macronutrients,2,FALSE)*Q74+VLOOKUP(M75,Macronutrients,2,FALSE)*Q75+VLOOKUP(M76,Macronutrients,2,FALSE)*Q76+VLOOKUP(M77,Macronutrients,2,FALSE)*Q77+VLOOKUP(M78,Macronutrients,2,FALSE)*Q78+VLOOKUP(M79,Macronutrients,2,FALSE)*Q79+VLOOKUP(M82,Micronutrients,2,FALSE)*Q82+VLOOKUP(M83,Micronutrients,2,FALSE)*Q83+VLOOKUP(M84,Micronutrients,2,FALSE)*Q84+VLOOKUP(M85,Micronutrients,2,FALSE)*Q85 -> 0 | V74: =VLOOKUP(M74,Macronutrients,3,FALSE)*Q74+VLOOKUP(M75,Macronutrients,3,FALSE)*Q75+VLOOKUP(M76,Macronutrients,3,FALSE)*Q76+VLOOKUP(M77,Macronutrients,3,FALSE)*Q77+VLOOKUP(M78,Macronutrients,3,FALSE)*Q78+VLOOKUP(M79,Macronutrients,3,FALSE)*Q79+VLOOKUP(M82,Micronutrients,3,FALSE)*Q82+VLOOKUP(M83,Micronutrients,3,FALSE)*Q83+VLOOKUP(M84,Micronutrients,3,FALSE)*Q84+VLOOKUP(M85,Micronutrients,3,FALSE)*Q85 -> 0 | W74: =VLOOKUP(M74,Macronutrients,4,FALSE)*Q74+VLOOKUP(M75,Macronutrients,4,FALSE)*Q75+VLOOKUP(M76,Macronutrients,4,FALSE)*Q76+VLOOKUP(M77,Macronutrients,4,FALSE)*Q77+VLOOKUP(M78,Macronutrients,4,FALSE)*Q78+VLOOKUP(M79,Macronutrients,4,FALSE)*Q79+VLOOKUP(M82,Micronutrients,4,FALSE)*Q82+VLOOKUP(M83,Micronutrients,4,FALSE)*Q83+VLOOKUP(M84,Micronutrients,4,FALSE)*Q84+VLOOKUP(M85,Micronutrients,4,FALSE)*Q85 -> 0 | Y74: None | Z74: =VLOOKUP(Y74,Macronutrients,14,FALSE) -> 0 | AA74: =VLOOKUP(Y74,Macronutrients,18,FALSE) -> 0 | AB74: =VLOOKUP(Y74,Macronutrients,16,FALSE) -> 1 | AC74: 0 | AD74: =VLOOKUP(Y74,Macronutrients,15,FALSE) -> 0 | AE74: =(AC74*VLOOKUP(Y74,Macronutrients,14,FALSE)/AB74)*AA74 -> 0 | AG74: =VLOOKUP(Y74,Macronutrients,2,FALSE)*AC74+VLOOKUP(Y75,Macronutrients,2,FALSE)*AC75+VLOOKUP(Y76,Macronutrients,2,FALSE)*AC76+VLOOKUP(Y77,Macronutrients,2,FALSE)*AC77+VLOOKUP(Y78,Macronutrients,2,FALSE)*AC78+VLOOKUP(Y79,Macronutrients,2,FALSE)*AC79+VLOOKUP(Y82,Micronutrients,2,FALSE)*AC82+VLOOKUP(Y83,Micronutrients,2,FALSE)*AC83+VLOOKUP(Y84,Micronutrients,2,FALSE)*AC84+VLOOKUP(Y85,Micronutrients,2,FALSE)*AC85 -> 0 | AH74: =VLOOKUP(Y74,Macronutrients,3,FALSE)*AC74+VLOOKUP(Y75,Macronutrients,3,FALSE)*AC75+VLOOKUP(Y76,Macronutrients,3,FALSE)*AC76+VLOOKUP(Y77,Macronutrients,3,FALSE)*AC77+VLOOKUP(Y78,Macronutrients,3,FALSE)*AC78+VLOOKUP(Y79,Macronutrients,3,FALSE)*AC79+VLOOKUP(Y82,Micronutrients,3,FALSE)*AC82+VLOOKUP(Y83,Micronutrients,3,FALSE)*AC83+VLOOKUP(Y84,Micronutrients,3,FALSE)*AC84+VLOOKUP(Y85,Micronutrients,3,FALSE)*AC85 -> 0 | AI74: =VLOOKUP(Y74,Macronutrients,4,FALSE)*AC74+VLOOKUP(Y75,Macronutrients,4,FALSE)*AC75+VLOOKUP(Y76,Macronutrients,4,FALSE)*AC76+VLOOKUP(Y77,Macronutrients,4,FALSE)*AC77+VLOOKUP(Y78,Macronutrients,4,FALSE)*AC78+VLOOKUP(Y79,Macronutrients,4,FALSE)*AC79+VLOOKUP(Y82,Micronutrients,4,FALSE)*AC82+VLOOKUP(Y83,Micronutrients,4,FALSE)*AC83+VLOOKUP(Y84,Micronutrients,4,FALSE)*AC84+VLOOKUP(Y85,Micronutrients,4,FALSE)*AC85 -> 0
A75: None | B75: 0 | C75: 0 | D75: 1 | E75: 0 | F75: 0 | G75: 0 | M75: None | N75: 0 | O75: 0 | P75: 1 | Q75: 0 | R75: 0 | S75: 0 | Y75: None | Z75: 0 | AA75: 0 | AB75: 1 | AC75: 0 | AD75: 0 | AE75: 0
A76: None | B76: 0 | C76: 0 | D76: 1 | E76: 0 | F76: 0 | G76: 0 | I76: S | J76: Ca | K76: Mg | M76: None | N76: 0 | O76: 0 | P76: 1 | Q76: 0 | R76: 0 | S76: 0 | U76: S | V76: Ca | W76: Mg | Y76: None | Z76: 0 | AA76: 0 | AB76: 1 | AC76: 0 | AD76: 0 | AE76: 0 | AG76: S | AH76: Ca | AI76: Mg
A77: None | B77: 0 | C77: 0 | D77: 1 | E77: 0 | F77: 0 | G77: 0 | I77: =VLOOKUP(A74,Macronutrients,5,FALSE)*E74+VLOOKUP(A75,Macronutrients,5,FALSE)*E75+VLOOKUP(A76,Macronutrients,5,FALSE)*E76+VLOOKUP(A77,Macronutrients,5,FALSE)*E77+VLOOKUP(A78,Macronutrients,5,FALSE)*E78+VLOOKUP(A79,Macronutrients,5,FALSE)*E79+VLOOKUP(A82,Micronutrients,5,FALSE)*E82+VLOOKUP(A83,Micronutrients,5,FALSE)*E83+VLOOKUP(A84,Micronutrients,5,FALSE)*E84+VLOOKUP(A85,Micronutrients,5,FALSE)*E85 -> 0 | J77: =VLOOKUP(A74,Macronutrients,7,FALSE)*E74+VLOOKUP(A75,Macronutrients,7,FALSE)*E75+VLOOKUP(A76,Macronutrients,7,FALSE)*E76+VLOOKUP(A77,Macronutrients,7,FALSE)*E77+VLOOKUP(A78,Macronutrients,7,FALSE)*E78+VLOOKUP(A79,Macronutrients,7,FALSE)*E79+VLOOKUP(A82,Micronutrients,7,FALSE)*E82+VLOOKUP(A83,Micronutrients,7,FALSE)*E83+VLOOKUP(A84,Micronutrients,7,FALSE)*E84+VLOOKUP(A85,Micronutrients,7,FALSE)*E85 -> 0 | K77: =VLOOKUP($A74,Macronutrients,6,FALSE)*$E$6+VLOOKUP($A75,Macronutrients,6,FALSE)*$E$7+VLOOKUP($A76,Macronutrients,6,FALSE)*$E$8+VLOOKUP($A77,Macronutrients,6,FALSE)*$E$9+VLOOKUP($A78,Macronutrients,6,FALSE)*$E$10+VLOOKUP($A79,Macronutrients,6,FALSE)*$E$11+VLOOKUP($A82,Micronutrients,6,FALSE)*$E$14+VLOOKUP($A83,Micronutrients,6,FALSE)*E83+VLOOKUP($A84,Micronutrients,6,FALSE)*$E$16+VLOOKUP($A85,Micronutrients,6,FALSE)*$E$17 -> 0 | M77: None | N77: 0 | O77: 0 | P77: 1 | Q77: 0 | R77: 0 | S77: 0 | U77: =VLOOKUP(M74,Macronutrients,5,FALSE)*Q74+VLOOKUP(M75,Macronutrients,5,FALSE)*Q75+VLOOKUP(M76,Macronutrients,5,FALSE)*Q76+VLOOKUP(M77,Macronutrients,5,FALSE)*Q77+VLOOKUP(M78,Macronutrients,5,FALSE)*Q78+VLOOKUP(M79,Macronutrients,5,FALSE)*Q79+VLOOKUP(M82,Micronutrients,5,FALSE)*Q82+VLOOKUP(M83,Micronutrients,5,FALSE)*Q83+VLOOKUP(M84,Micronutrients,5,FALSE)*Q84+VLOOKUP(M85,Micronutrients,5,FALSE)*Q85 -> 0 | V77: =VLOOKUP(M74,Macronutrients,7,FALSE)*Q74+VLOOKUP(M75,Macronutrients,7,FALSE)*Q75+VLOOKUP(M76,Macronutrients,7,FALSE)*Q76+VLOOKUP(M77,Macronutrients,7,FALSE)*Q77+VLOOKUP(M78,Macronutrients,7,FALSE)*Q78+VLOOKUP(M79,Macronutrients,7,FALSE)*Q79+VLOOKUP(M82,Micronutrients,7,FALSE)*Q82+VLOOKUP(M83,Micronutrients,7,FALSE)*Q83+VLOOKUP(M84,Micronutrients,7,FALSE)*Q84+VLOOKUP(M85,Micronutrients,7,FALSE)*Q85 -> 0 | W77: =VLOOKUP($A74,Macronutrients,6,FALSE)*$E$6+VLOOKUP($A75,Macronutrients,6,FALSE)*$E$7+VLOOKUP($A76,Macronutrients,6,FALSE)*$E$8+VLOOKUP($A77,Macronutrients,6,FALSE)*$E$9+VLOOKUP($A78,Macronutrients,6,FALSE)*$E$10+VLOOKUP($A79,Macronutrients,6,FALSE)*$E$11+VLOOKUP($A82,Micronutrients,6,FALSE)*$E$14+VLOOKUP($A83,Micronutrients,6,FALSE)*Q83+VLOOKUP($A84,Micronutrients,6,FALSE)*$E$16+VLOOKUP($A85,Micronutrients,6,FALSE)*$E$17 -> 0 | Y77: None | Z77: 0 | AA77: 0 | AB77: 1 | AC77: 0 | AD77: 0 | AE77: 0 | AG77: =VLOOKUP(Y74,Macronutrients,5,FALSE)*AC74+VLOOKUP(Y75,Macronutrients,5,FALSE)*AC75+VLOOKUP(Y76,Macronutrients,5,FALSE)*AC76+VLOOKUP(Y77,Macronutrients,5,FALSE)*AC77+VLOOKUP(Y78,Macronutrients,5,FALSE)*AC78+VLOOKUP(Y79,Macronutrients,5,FALSE)*AC79+VLOOKUP(Y82,Micronutrients,5,FALSE)*AC82+VLOOKUP(Y83,Micronutrients,5,FALSE)*AC83+VLOOKUP(Y84,Micronutrients,5,FALSE)*AC84+VLOOKUP(Y85,Micronutrients,5,FALSE)*AC85 -> 0 | AH77: =VLOOKUP(Y74,Macronutrients,7,FALSE)*AC74+VLOOKUP(Y75,Macronutrients,7,FALSE)*AC75+VLOOKUP(Y76,Macronutrients,7,FALSE)*AC76+VLOOKUP(Y77,Macronutrients,7,FALSE)*AC77+VLOOKUP(Y78,Macronutrients,7,FALSE)*AC78+VLOOKUP(Y79,Macronutrients,7,FALSE)*AC79+VLOOKUP(Y82,Micronutrients,7,FALSE)*AC82+VLOOKUP(Y83,Micronutrients,7,FALSE)*AC83+VLOOKUP(Y84,Micronutrients,7,FALSE)*AC84+VLOOKUP(Y85,Micronutrients,7,FALSE)*AC85 -> 0 | AI77: =VLOOKUP($A74,Macronutrients,6,FALSE)*$E$6+VLOOKUP($A75,Macronutrients,6,FALSE)*$E$7+VLOOKUP($A76,Macronutrients,6,FALSE)*$E$8+VLOOKUP($A77,Macronutrients,6,FALSE)*$E$9+VLOOKUP($A78,Macronutrients,6,FALSE)*$E$10+VLOOKUP($A79,Macronutrients,6,FALSE)*$E$11+VLOOKUP($A82,Micronutrients,6,FALSE)*$E$14+VLOOKUP($A83,Micronutrients,6,FALSE)*AC83+VLOOKUP($A84,Micronutrients,6,FALSE)*$E$16+VLOOKUP($A85,Micronutrients,6,FALSE)*$E$17 -> 0
A78: None | B78: 0 | C78: 0 | D78: 1 | E78: 0 | F78: 0 | G78: 0 | M78: None | N78: 0 | O78: 0 | P78: 1 | Q78: 0 | R78: 0 | S78: 0 | Y78: None | Z78: 0 | AA78: 0 | AB78: 1 | AC78: 0 | AD78: 0 | AE78: 0
A79: None | B79: 0 | C79: 0 | D79: 1 | E79: 0 | F79: 0 | G79: 0 | I79: Z | J79: B | K79: Mn | M79: None | N79: 0 | O79: 0 | P79: 1 | Q79: 0 | R79: 0 | S79: 0 | U79: Z | V79: B | W79: Mn | Y79: None | Z79: 0 | AA79: 0 | AB79: 1 | AC79: 0 | AD79: 0 | AE79: 0 | AG79: Z | AH79: B | AI79: Mn
I80: =VLOOKUP(A74,Macronutrients,8,FALSE)*E74+VLOOKUP(A75,Macronutrients,8,FALSE)*E75+VLOOKUP(A76,Macronutrients,8,FALSE)*E76+VLOOKUP(A77,Macronutrients,8,FALSE)*E77+VLOOKUP(A78,Macronutrients,8,FALSE)*E78+VLOOKUP(A79,Macronutrients,8,FALSE)*E79+VLOOKUP(A82,Micronutrients,8,FALSE)*E82+VLOOKUP(A83,Micronutrients,8,FALSE)*E83+VLOOKUP(A84,Micronutrients,8,FALSE)*E84+VLOOKUP(A85,Micronutrients,8,FALSE)*E85 -> 0 | J80: =VLOOKUP(A74,Macronutrients,9,FALSE)*E74+VLOOKUP(A75,Macronutrients,9,FALSE)*E75+VLOOKUP(A76,Macronutrients,9,FALSE)*E76+VLOOKUP(A77,Macronutrients,9,FALSE)*E77+VLOOKUP(A78,Macronutrients,9,FALSE)*E78+VLOOKUP(A79,Macronutrients,9,FALSE)*E79+VLOOKUP(A82,Micronutrients,9,FALSE)*E82+VLOOKUP(A83,Micronutrients,9,FALSE)*E83+VLOOKUP(A84,Micronutrients,9,FALSE)*E84+VLOOKUP(A85,Micronutrients,9,FALSE)*E85 -> 0 | K80: =VLOOKUP(A74,Macronutrients,10,FALSE)*E74+VLOOKUP(A75,Macronutrients,10,FALSE)*E75+VLOOKUP(A76,Macronutrients,10,FALSE)*E76+VLOOKUP(A77,Macronutrients,10,FALSE)*E77+VLOOKUP(A78,Macronutrients,10,FALSE)*E78+VLOOKUP(A79,Macronutrients,10,FALSE)*E79+VLOOKUP(A82,Micronutrients,10,FALSE)*E82+VLOOKUP(A83,Micronutrients,10,FALSE)*E83+VLOOKUP(A84,Micronutrients,10,FALSE)*E84+VLOOKUP(A85,Micronutrients,10,FALSE)*E85 -> 0 | U80: =VLOOKUP(M74,Macronutrients,8,FALSE)*Q74+VLOOKUP(M75,Macronutrients,8,FALSE)*Q75+VLOOKUP(M76,Macronutrients,8,FALSE)*Q76+VLOOKUP(M77,Macronutrients,8,FALSE)*Q77+VLOOKUP(M78,Macronutrients,8,FALSE)*Q78+VLOOKUP(M79,Macronutrients,8,FALSE)*Q79+VLOOKUP(M82,Micronutrients,8,FALSE)*Q82+VLOOKUP(M83,Micronutrients,8,FALSE)*Q83+VLOOKUP(M84,Micronutrients,8,FALSE)*Q84+VLOOKUP(M85,Micronutrients,8,FALSE)*Q85 -> 0 | V80: =VLOOKUP(M74,Macronutrients,9,FALSE)*Q74+VLOOKUP(M75,Macronutrients,9,FALSE)*Q75+VLOOKUP(M76,Macronutrients,9,FALSE)*Q76+VLOOKUP(M77,Macronutrients,9,FALSE)*Q77+VLOOKUP(M78,Macronutrients,9,FALSE)*Q78+VLOOKUP(M79,Macronutrients,9,FALSE)*Q79+VLOOKUP(M82,Micronutrients,9,FALSE)*Q82+VLOOKUP(M83,Micronutrients,9,FALSE)*Q83+VLOOKUP(M84,Micronutrients,9,FALSE)*Q84+VLOOKUP(M85,Micronutrients,9,FALSE)*Q85 -> 0 | W80: =VLOOKUP(M74,Macronutrients,10,FALSE)*Q74+VLOOKUP(M75,Macronutrients,10,FALSE)*Q75+VLOOKUP(M76,Macronutrients,10,FALSE)*Q76+VLOOKUP(M77,Macronutrients,10,FALSE)*Q77+VLOOKUP(M78,Macronutrients,10,FALSE)*Q78+VLOOKUP(M79,Macronutrients,10,FALSE)*Q79+VLOOKUP(M82,Micronutrients,10,FALSE)*Q82+VLOOKUP(M83,Micronutrients,10,FALSE)*Q83+VLOOKUP(M84,Micronutrients,10,FALSE)*Q84+VLOOKUP(M85,Micronutrients,10,FALSE)*Q85 -> 0 | AG80: =VLOOKUP(Y74,Macronutrients,8,FALSE)*AC74+VLOOKUP(Y75,Macronutrients,8,FALSE)*AC75+VLOOKUP(Y76,Macronutrients,8,FALSE)*AC76+VLOOKUP(Y77,Macronutrients,8,FALSE)*AC77+VLOOKUP(Y78,Macronutrients,8,FALSE)*AC78+VLOOKUP(Y79,Macronutrients,8,FALSE)*AC79+VLOOKUP(Y82,Micronutrients,8,FALSE)*AC82+VLOOKUP(Y83,Micronutrients,8,FALSE)*AC83+VLOOKUP(Y84,Micronutrients,8,FALSE)*AC84+VLOOKUP(Y85,Micronutrients,8,FALSE)*AC85 -> 0 | AH80: =VLOOKUP(Y74,Macronutrients,9,FALSE)*AC74+VLOOKUP(Y75,Macronutrients,9,FALSE)*AC75+VLOOKUP(Y76,Macronutrients,9,FALSE)*AC76+VLOOKUP(Y77,Macronutrients,9,FALSE)*AC77+VLOOKUP(Y78,Macronutrients,9,FALSE)*AC78+VLOOKUP(Y79,Macronutrients,9,FALSE)*AC79+VLOOKUP(Y82,Micronutrients,9,FALSE)*AC82+VLOOKUP(Y83,Micronutrients,9,FALSE)*AC83+VLOOKUP(Y84,Micronutrients,9,FALSE)*AC84+VLOOKUP(Y85,Micronutrients,9,FALSE)*AC85 -> 0 | AI80: =VLOOKUP(Y74,Macronutrients,10,FALSE)*AC74+VLOOKUP(Y75,Macronutrients,10,FALSE)*AC75+VLOOKUP(Y76,Macronutrients,10,FALSE)*AC76+VLOOKUP(Y77,Macronutrients,10,FALSE)*AC77+VLOOKUP(Y78,Macronutrients,10,FALSE)*AC78+VLOOKUP(Y79,Macronutrients,10,FALSE)*AC79+VLOOKUP(Y82,Micronutrients,10,FALSE)*AC82+VLOOKUP(Y83,Micronutrients,10,FALSE)*AC83+VLOOKUP(Y84,Micronutrients,10,FALSE)*AC84+VLOOKUP(Y85,Micronutrients,10,FALSE)*AC85 -> 0
A81: Micronutrients (drop down menu) | M81: Micronutrients (drop down menu) | Y81: Micronutrients (drop down menu)
A82: None | B82: =VLOOKUP($A82,Micronutrients,14,FALSE) -> 0 | C82: =VLOOKUP(A82,Micronutrients,18,FALSE) -> 0 | D82: =VLOOKUP(A82,Micronutrients,16,FALSE) -> 1 | E82: 0 | F82: =VLOOKUP(A82,Micronutrients,15,FALSE) -> 0 | G82: =(E82*VLOOKUP(A82,Micronutrients,14,FALSE)/D82)*C82 -> 0 | I82: Cu | J82: Mo | K82: Fe | M82: None | N82: =VLOOKUP($M82,Micronutrients,14,FALSE) -> 0 | O82: =VLOOKUP(M82,Micronutrients,18,FALSE) -> 0 | P82: =VLOOKUP(M82,Micronutrients,16,FALSE) -> 1 | Q82: 0 | R82: =VLOOKUP(M82,Micronutrients,15,FALSE) -> 0 | S82: =(Q82*VLOOKUP(M82,Micronutrients,14,FALSE)/P82)*O82 -> 0 | U82: Cu | V82: Mo | W82: Fe | Y82: None | Z82: =VLOOKUP(Y82,Micronutrients,14,FALSE) -> 0 | AA82: =VLOOKUP(Y82,Micronutrients,18,FALSE) -> 0 | AB82: =VLOOKUP(Y82,Micronutrients,16,FALSE) -> 1 | AC82: 0 | AD82: =VLOOKUP(Y82,Micronutrients,15,FALSE) -> 0 | AE82: =(AC82*VLOOKUP(Y82,Micronutrients,14,FALSE)/AB82)*AA82 -> 0 | AG82: Cu | AH82: Mo | AI82: Fe
A83: None | B83: =VLOOKUP($A83,Micronutrients,14,FALSE) -> 0 | C83: =VLOOKUP(A83,Micronutrients,18,FALSE) -> 0 | D83: =VLOOKUP(A83,Micronutrients,16,FALSE) -> 1 | E83: 0 | F83: =VLOOKUP(A83,Micronutrients,15,FALSE) -> 0 | G83: =(E83*VLOOKUP(A83,Micronutrients,14,FALSE)/D83)*C83 -> 0 | I83: =VLOOKUP(A74,Macronutrients,11,FALSE)*E74+VLOOKUP(A75,Macronutrients,11,FALSE)*E75+VLOOKUP(A76,Macronutrients,11,FALSE)*E76+VLOOKUP(A77,Macronutrients,11,FALSE)*E77+VLOOKUP(A78,Macronutrients,11,FALSE)*E78+VLOOKUP(A79,Macronutrients,11,FALSE)*E79+VLOOKUP(A82,Micronutrients,11,FALSE)*E82+VLOOKUP(A83,Micronutrients,11,FALSE)*E83+VLOOKUP(A84,Micronutrients,11,FALSE)*E84+VLOOKUP(A85,Micronutrients,11,FALSE)*E85 -> 0 | J83: =VLOOKUP(A74,Macronutrients,12,FALSE)*E74+VLOOKUP(A75,Macronutrients,12,FALSE)*E75+VLOOKUP(A76,Macronutrients,12,FALSE)*E76+VLOOKUP(A77,Macronutrients,12,FALSE)*E77+VLOOKUP(A78,Macronutrients,12,FALSE)*E78+VLOOKUP(A79,Macronutrients,12,FALSE)*E79+VLOOKUP(A82,Micronutrients,12,FALSE)*E82+VLOOKUP(A83,Micronutrients,12,FALSE)*E83+VLOOKUP(A84,Micronutrients,12,FALSE)*E84+VLOOKUP(A85,Micronutrients,12,FALSE)*E85 -> 0 | K83: =VLOOKUP(A74,Macronutrients,13,FALSE)*E74+VLOOKUP(A75,Macronutrients,13,FALSE)*E75+VLOOKUP(A76,Macronutrients,13,FALSE)*E76+VLOOKUP(A77,Macronutrients,13,FALSE)*E77+VLOOKUP(A78,Macronutrients,13,FALSE)*E78+VLOOKUP(A79,Macronutrients,13,FALSE)*E79+VLOOKUP(A82,Micronutrients,13,FALSE)*E82+VLOOKUP(A83,Micronutrients,13,FALSE)*E83+VLOOKUP(A84,Micronutrients,13,FALSE)*E84+VLOOKUP(A85,Micronutrients,13,FALSE)*E85 -> 0 | M83: None | N83: =VLOOKUP($M83,Micronutrients,14,FALSE) -> 0 | O83: =VLOOKUP(M83,Micronutrients,18,FALSE) -> 0 | P83: =VLOOKUP(M83,Micronutrients,16,FALSE) -> 1 | Q83: 0 | R83: =VLOOKUP(M83,Micronutrients,15,FALSE) -> 0 | S83: =(Q83*VLOOKUP(M83,Micronutrients,14,FALSE)/P83)*O83 -> 0 | U83: =VLOOKUP(M74,Macronutrients,11,FALSE)*Q74+VLOOKUP(M75,Macronutrients,11,FALSE)*Q75+VLOOKUP(M76,Macronutrients,11,FALSE)*Q76+VLOOKUP(M77,Macronutrients,11,FALSE)*Q77+VLOOKUP(M78,Macronutrients,11,FALSE)*Q78+VLOOKUP(M79,Macronutrients,11,FALSE)*Q79+VLOOKUP(M82,Micronutrients,11,FALSE)*Q82+VLOOKUP(M83,Micronutrients,11,FALSE)*Q83+VLOOKUP(M84,Micronutrients,11,FALSE)*Q84+VLOOKUP(M85,Micronutrients,11,FALSE)*Q85 -> 0 | V83: =VLOOKUP(M74,Macronutrients,12,FALSE)*Q74+VLOOKUP(M75,Macronutrients,12,FALSE)*Q75+VLOOKUP(M76,Macronutrients,12,FALSE)*Q76+VLOOKUP(M77,Macronutrients,12,FALSE)*Q77+VLOOKUP(M78,Macronutrients,12,FALSE)*Q78+VLOOKUP(M79,Macronutrients,12,FALSE)*Q79+VLOOKUP(M82,Micronutrients,12,FALSE)*Q82+VLOOKUP(M83,Micronutrients,12,FALSE)*Q83+VLOOKUP(M84,Micronutrients,12,FALSE)*Q84+VLOOKUP(M85,Micronutrients,12,FALSE)*Q85 -> 0 | W83: =VLOOKUP(M74,Macronutrients,13,FALSE)*Q74+VLOOKUP(M75,Macronutrients,13,FALSE)*Q75+VLOOKUP(M76,Macronutrients,13,FALSE)*Q76+VLOOKUP(M77,Macronutrients,13,FALSE)*Q77+VLOOKUP(M78,Macronutrients,13,FALSE)*Q78+VLOOKUP(M79,Macronutrients,13,FALSE)*Q79+VLOOKUP(M82,Micronutrients,13,FALSE)*Q82+VLOOKUP(M83,Micronutrients,13,FALSE)*Q83+VLOOKUP(M84,Micronutrients,13,FALSE)*Q84+VLOOKUP(M85,Micronutrients,13,FALSE)*Q85 -> 0 | Y83: None | Z83: =VLOOKUP(Y83,Micronutrients,14,FALSE) -> 0 | AA83: =VLOOKUP(Y83,Micronutrients,18,FALSE) -> 0 | AB83: =VLOOKUP(Y83,Micronutrients,16,FALSE) -> 1 | AC83: 0 | AD83: =VLOOKUP(Y83,Micronutrients,15,FALSE) -> 0 | AE83: =(AC83*VLOOKUP(Y83,Micronutrients,14,FALSE)/AB83)*AA83 -> 0 | AG83: =VLOOKUP(Y74,Macronutrients,11,FALSE)*AC74+VLOOKUP(Y75,Macronutrients,11,FALSE)*AC75+VLOOKUP(Y76,Macronutrients,11,FALSE)*AC76+VLOOKUP(Y77,Macronutrients,11,FALSE)*AC77+VLOOKUP(Y78,Macronutrients,11,FALSE)*AC78+VLOOKUP(Y79,Macronutrients,11,FALSE)*AC79+VLOOKUP(Y82,Micronutrients,11,FALSE)*AC82+VLOOKUP(Y83,Micronutrients,11,FALSE)*AC83+VLOOKUP(Y84,Micronutrients,11,FALSE)*AC84+VLOOKUP(Y85,Micronutrients,11,FALSE)*AC85 -> 0 | AH83: =VLOOKUP(Y74,Macronutrients,12,FALSE)*AC74+VLOOKUP(Y75,Macronutrients,12,FALSE)*AC75+VLOOKUP(Y76,Macronutrients,12,FALSE)*AC76+VLOOKUP(Y77,Macronutrients,12,FALSE)*AC77+VLOOKUP(Y78,Macronutrients,12,FALSE)*AC78+VLOOKUP(Y79,Macronutrients,12,FALSE)*AC79+VLOOKUP(Y82,Micronutrients,12,FALSE)*AC82+VLOOKUP(Y83,Micronutrients,12,FALSE)*AC83+VLOOKUP(Y84,Micronutrients,12,FALSE)*AC84+VLOOKUP(Y85,Micronutrients,12,FALSE)*AC85 -> 0 | AI83: =VLOOKUP(Y74,Macronutrients,13,FALSE)*AC74+VLOOKUP(Y75,Macronutrients,13,FALSE)*AC75+VLOOKUP(Y76,Macronutrients,13,FALSE)*AC76+VLOOKUP(Y77,Macronutrients,13,FALSE)*AC77+VLOOKUP(Y78,Macronutrients,13,FALSE)*AC78+VLOOKUP(Y79,Macronutrients,13,FALSE)*AC79+VLOOKUP(Y82,Micronutrients,13,FALSE)*AC82+VLOOKUP(Y83,Micronutrients,13,FALSE)*AC83+VLOOKUP(Y84,Micronutrients,13,FALSE)*AC84+VLOOKUP(Y85,Micronutrients,13,FALSE)*AC85 -> 0
A84: None | B84: =VLOOKUP($A84,Micronutrients,14,FALSE) -> 0 | C84: =VLOOKUP(A84,Micronutrients,18,FALSE) -> 0 | D84: =VLOOKUP(A84,Micronutrients,16,FALSE) -> 1 | E84: 0 | F84: =VLOOKUP(A84,Micronutrients,15,FALSE) -> 0 | G84: =(E84*VLOOKUP(A84,Micronutrients,14,FALSE)/D84)*C84 -> 0 | M84: None | N84: =VLOOKUP($M84,Micronutrients,14,FALSE) -> 0 | O84: =VLOOKUP(M84,Micronutrients,18,FALSE) -> 0 | P84: =VLOOKUP(M84,Micronutrients,16,FALSE) -> 1 | Q84: 0 | R84: =VLOOKUP(M84,Micronutrients,15,FALSE) -> 0 | S84: =(Q84*VLOOKUP(M84,Micronutrients,14,FALSE)/P84)*O84 -> 0 | Y84: None | Z84: =VLOOKUP(Y84,Micronutrients,14,FALSE) -> 0 | AA84: =VLOOKUP(Y84,Micronutrients,18,FALSE) -> 0 | AB84: =VLOOKUP(Y84,Micronutrients,16,FALSE) -> 1 | AC84: 0 | AD84: =VLOOKUP(Y84,Micronutrients,15,FALSE) -> 0 | AE84: =(AC84*VLOOKUP(Y84,Micronutrients,14,FALSE)/AB84)*AA84 -> 0
A85: None | B85: =VLOOKUP($A85,Micronutrients,14,FALSE) -> 0 | C85: =VLOOKUP(A85,Micronutrients,18,FALSE) -> 0 | D85: =VLOOKUP(A85,Micronutrients,16,FALSE) -> 1 | E85: 0 | F85: =VLOOKUP(A85,Micronutrients,15,FALSE) -> 0 | G85: =(E85*VLOOKUP(A85,Micronutrients,14,FALSE)/D85)*C85 -> 0 | M85: None | N85: =VLOOKUP($M85,Micronutrients,14,FALSE) -> 0 | O85: =VLOOKUP(M85,Micronutrients,18,FALSE) -> 0 | P85: =VLOOKUP(M85,Micronutrients,16,FALSE) -> 1 | Q85: 0 | R85: =VLOOKUP(M85,Micronutrients,15,FALSE) -> 0 | S85: =(Q85*VLOOKUP(M85,Micronutrients,14,FALSE)/P85)*O85 -> 0 | Y85: None | Z85: =VLOOKUP(Y85,Micronutrients,14,FALSE) -> 0 | AA85: =VLOOKUP(Y85,Micronutrients,18,FALSE) -> 0 | AB85: =VLOOKUP(Y85,Micronutrients,16,FALSE) -> 1 | AC85: 0 | AD85: =VLOOKUP(Y85,Micronutrients,15,FALSE) -> 0 | AE85: =(AC85*VLOOKUP(Y85,Micronutrients,14,FALSE)/AB85)*AA85 -> 0
A87: Nitrogen Stabilizers (drop down menu) | M87: Nitrogen Stabilizers (drop down menu) | Y87: Nitrogen Stabilizers (drop down menu)
A88: None | B88: =VLOOKUP(A88,NitrogenStabilizers,14,FALSE) -> 0 | C88: =VLOOKUP(A88,NitrogenStabilizers,18,FALSE) -> 0 | D88: =VLOOKUP(A88,NitrogenStabilizers,16,FALSE) -> 1 | E88: 0 | F88: =VLOOKUP(A88,NitrogenStabilizers,15,FALSE) -> 0 | G88: =(E88*VLOOKUP(A88,NitrogenStabilizers,14,FALSE)/D88)*C88 -> 0 | M88: None | N88: =VLOOKUP(M88,NitrogenStabilizers,14,FALSE) -> 0 | O88: =VLOOKUP(M88,NitrogenStabilizers,18,FALSE) -> 0 | P88: =VLOOKUP(M88,NitrogenStabilizers,16,FALSE) -> 1 | Q88: 0 | R88: =VLOOKUP(M88,NitrogenStabilizers,15,FALSE) -> 0 | S88: =(Q88*VLOOKUP(M88,NitrogenStabilizers,14,FALSE)/P88)*O88 -> 0 | Y88: None | Z88: =VLOOKUP(Y88,NitrogenStabilizers,14,FALSE) -> 0 | AA88: =VLOOKUP(Y88,NitrogenStabilizers,18,FALSE) -> 0 | AB88: =VLOOKUP(Y88,NitrogenStabilizers,16,FALSE) -> 1 | AC88: 0 | AD88: =VLOOKUP(Y88,NitrogenStabilizers,15,FALSE) -> 0 | AE88: =(AC88*VLOOKUP(Y88,NitrogenStabilizers,14,FALSE)/AB88)*AA88 -> 0
A89: None | B89: =VLOOKUP(A89,NitrogenStabilizers,14,FALSE) -> 0 | C89: =VLOOKUP(A89,NitrogenStabilizers,18,FALSE) -> 0 | D89: =VLOOKUP(A89,NitrogenStabilizers,16,FALSE) -> 1 | E89: 0 | F89: =VLOOKUP(A89,NitrogenStabilizers,15,FALSE) -> 0 | G89: =(E89*VLOOKUP(A89,NitrogenStabilizers,14,FALSE)/D89)*C89 -> 0 | K89: More | M89: None | N89: =VLOOKUP(M89,NitrogenStabilizers,14,FALSE) -> 0 | O89: =VLOOKUP(M89,NitrogenStabilizers,18,FALSE) -> 0 | P89: =VLOOKUP(M89,NitrogenStabilizers,16,FALSE) -> 1 | Q89: 0 | R89: =VLOOKUP(M89,NitrogenStabilizers,15,FALSE) -> 0 | S89: =(Q89*VLOOKUP(M89,NitrogenStabilizers,14,FALSE)/P89)*O89 -> 0 | W89: More | Y89: None | Z89: =VLOOKUP(Y89,NitrogenStabilizers,14,FALSE) -> 0 | AA89: =VLOOKUP(Y89,NitrogenStabilizers,18,FALSE) -> 0 | AB89: =VLOOKUP(Y89,NitrogenStabilizers,16,FALSE) -> 1 | AC89: 0 | AD89: =VLOOKUP(Y89,NitrogenStabilizers,15,FALSE) -> 0 | AE89: =(AC89*VLOOKUP(Y89,NitrogenStabilizers,14,FALSE)/AB89)*AA89 -> 0 | AI89: More
A90: 4th Application Fertilizer Cost/Acre | G90: =SUM(G74:G89) -> 0 | K90: Below | M90: 4th Application Fertilizer Cost/Acre | S90: =SUM(S74:S89) -> 0 | W90: Below | Y90: 4th Application Fertilizer Cost/Acre | AE90: =SUM(AE74:AE89) -> 0 | AI90: Below
K91: ¯ | W91: ¯ | AI91: ¯
A92: Total Fertilizer Cost/Acre | G92: =G90+G69+G48 -> 0 | M92: Total Fertilizer Cost/Acre | S92: =S90+S69+S48 -> 0 | Y92: Total Fertilizer Cost/Acre | AE92: =AE90+AE69+AE48 -> 0
A94: 5th Application (i.e., Side-Dress or Broadcast) | M94: 5th Application (i.e., Side-Dress or Broadcast) | Y94: 5th Application (i.e., Side-Dress or Broadcast)
A95: Fertilizer Source | B95: Purchase Units | C95: Package Price (Gals, Lbs, etc.) | D95: Units/Pkg | E95: Rate/Acre | F95: Units | G95: Cost | M95: Fertilizer Source | N95: Purchase Units | O95: Package Price (Gals, Lbs, etc.) | P95: Units/Pkg | Q95: Rate/Acre | R95: Units | S95: Cost | Y95: Fertilizer Source | Z95: Purchase Units | AA95: Package Price (Gals, Lbs, etc.) | AB95: Units/Pkg | AC95: Rate/Acre | AD95: Units | AE95: Cost
A96: Macronutrients (drop down menu) | E96: (Enter Below) | I96: N | J96: P | K96: K | M96: Macronutrients (drop down menu) | Q96: (Enter Below) | U96: N | V96: P | W96: K | Y96: Macronutrients (drop down menu) | AC96: (Enter Below) | AG96: N | AH96: P | AI96: K
A97: None | B97: =VLOOKUP(A97,Macronutrients,14,FALSE) -> 0 | C97: =VLOOKUP(A97,Macronutrients,18,FALSE) -> 0 | D97: =VLOOKUP(A97,Macronutrients,16,FALSE) -> 1 | E97: 0 | F97: =VLOOKUP(A97,Macronutrients,15,FALSE) -> 0 | G97: =(E97*VLOOKUP(A97,Macronutrients,14,FALSE)/D97)*C97 -> 0 | I97: =VLOOKUP(A97,Macronutrients,2,FALSE)*E97+VLOOKUP(A98,Macronutrients,2,FALSE)*E98+VLOOKUP(A99,Macronutrients,2,FALSE)*E99+VLOOKUP(A100,Macronutrients,2,FALSE)*E100+VLOOKUP(A101,Macronutrients,2,FALSE)*E101+VLOOKUP(A102,Macronutrients,2,FALSE)*E102+VLOOKUP(A105,Micronutrients,2,FALSE)*E105+VLOOKUP(A106,Micronutrients,2,FALSE)*E106+VLOOKUP(A107,Micronutrients,2,FALSE)*E107+VLOOKUP(A108,Micronutrients,2,FALSE)*E108 -> 0 | J97: =VLOOKUP(A97,Macronutrients,3,FALSE)*E97+VLOOKUP(A98,Macronutrients,3,FALSE)*E98+VLOOKUP(A99,Macronutrients,3,FALSE)*E99+VLOOKUP(A100,Macronutrients,3,FALSE)*E100+VLOOKUP(A101,Macronutrients,3,FALSE)*E101+VLOOKUP(A102,Macronutrients,3,FALSE)*E102+VLOOKUP(A105,Micronutrients,3,FALSE)*E105+VLOOKUP(A106,Micronutrients,3,FALSE)*E106+VLOOKUP(A107,Micronutrients,3,FALSE)*E107+VLOOKUP(A108,Micronutrients,3,FALSE)*E108 -> 0 | K97: =VLOOKUP(A97,Macronutrients,4,FALSE)*E97+VLOOKUP(A98,Macronutrients,4,FALSE)*E98+VLOOKUP(A99,Macronutrients,4,FALSE)*E99+VLOOKUP(A100,Macronutrients,4,FALSE)*E100+VLOOKUP(A101,Macronutrients,4,FALSE)*E101+VLOOKUP(A102,Macronutrients,4,FALSE)*E102+VLOOKUP(A105,Micronutrients,4,FALSE)*E105+VLOOKUP(A106,Micronutrients,4,FALSE)*E106+VLOOKUP(A107,Micronutrients,4,FALSE)*E107+VLOOKUP(A108,Micronutrients,4,FALSE)*E108 -> 0 | M97: None | N97: =VLOOKUP(M97,Macronutrients,14,FALSE) -> 0 | O97: =VLOOKUP(M97,Macronutrients,18,FALSE) -> 0 | P97: =VLOOKUP(M97,Macronutrients,16,FALSE) -> 1 | Q97: 0 | R97: =VLOOKUP(M97,Macronutrients,15,FALSE) -> 0 | S97: =(Q97*VLOOKUP(M97,Macronutrients,14,FALSE)/P97)*O97 -> 0 | U97: =VLOOKUP(M97,Macronutrients,2,FALSE)*Q97+VLOOKUP(M98,Macronutrients,2,FALSE)*Q98+VLOOKUP(M99,Macronutrients,2,FALSE)*Q99+VLOOKUP(M100,Macronutrients,2,FALSE)*Q100+VLOOKUP(M101,Macronutrients,2,FALSE)*Q101+VLOOKUP(M102,Macronutrients,2,FALSE)*Q102+VLOOKUP(M105,Micronutrients,2,FALSE)*Q105+VLOOKUP(M106,Micronutrients,2,FALSE)*Q106+VLOOKUP(M107,Micronutrients,2,FALSE)*Q107+VLOOKUP(M108,Micronutrients,2,FALSE)*Q108 -> 0 | V97: =VLOOKUP(M97,Macronutrients,3,FALSE)*Q97+VLOOKUP(M98,Macronutrients,3,FALSE)*Q98+VLOOKUP(M99,Macronutrients,3,FALSE)*Q99+VLOOKUP(M100,Macronutrients,3,FALSE)*Q100+VLOOKUP(M101,Macronutrients,3,FALSE)*Q101+VLOOKUP(M102,Macronutrients,3,FALSE)*Q102+VLOOKUP(M105,Micronutrients,3,FALSE)*Q105+VLOOKUP(M106,Micronutrients,3,FALSE)*Q106+VLOOKUP(M107,Micronutrients,3,FALSE)*Q107+VLOOKUP(M108,Micronutrients,3,FALSE)*Q108 -> 0 | W97: =VLOOKUP(M97,Macronutrients,4,FALSE)*Q97+VLOOKUP(M98,Macronutrients,4,FALSE)*Q98+VLOOKUP(M99,Macronutrients,4,FALSE)*Q99+VLOOKUP(M100,Macronutrients,4,FALSE)*Q100+VLOOKUP(M101,Macronutrients,4,FALSE)*Q101+VLOOKUP(M102,Macronutrients,4,FALSE)*Q102+VLOOKUP(M105,Micronutrients,4,FALSE)*Q105+VLOOKUP(M106,Micronutrients,4,FALSE)*Q106+VLOOKUP(M107,Micronutrients,4,FALSE)*Q107+VLOOKUP(M108,Micronutrients,4,FALSE)*Q108 -> 0 | Y97: None | Z97: =VLOOKUP(Y97,Macronutrients,14,FALSE) -> 0 | AA97: =VLOOKUP(Y97,Macronutrients,18,FALSE) -> 0 | AB97: =VLOOKUP(Y97,Macronutrients,16,FALSE) -> 1 | AC97: 0 | AD97: =VLOOKUP(Y97,Macronutrients,15,FALSE) -> 0 | AE97: =(AC97*VLOOKUP(Y97,Macronutrients,14,FALSE)/AB97)*AA97 -> 0 | AG97: =VLOOKUP(Y97,Macronutrients,2,FALSE)*AC97+VLOOKUP(Y98,Macronutrients,2,FALSE)*AC98+VLOOKUP(Y99,Macronutrients,2,FALSE)*AC99+VLOOKUP(Y100,Macronutrients,2,FALSE)*AC100+VLOOKUP(Y101,Macronutrients,2,FALSE)*AC101+VLOOKUP(Y102,Macronutrients,2,FALSE)*AC102+VLOOKUP(Y105,Micronutrients,2,FALSE)*AC105+VLOOKUP(Y106,Micronutrients,2,FALSE)*AC106+VLOOKUP(Y107,Micronutrients,2,FALSE)*AC107+VLOOKUP(Y108,Micronutrients,2,FALSE)*AC108 -> 0 | AH97: =VLOOKUP(Y97,Macronutrients,3,FALSE)*AC97+VLOOKUP(Y98,Macronutrients,3,FALSE)*AC98+VLOOKUP(Y99,Macronutrients,3,FALSE)*AC99+VLOOKUP(Y100,Macronutrients,3,FALSE)*AC100+VLOOKUP(Y101,Macronutrients,3,FALSE)*AC101+VLOOKUP(Y102,Macronutrients,3,FALSE)*AC102+VLOOKUP(Y105,Micronutrients,3,FALSE)*AC105+VLOOKUP(Y106,Micronutrients,3,FALSE)*AC106+VLOOKUP(Y107,Micronutrients,3,FALSE)*AC107+VLOOKUP(Y108,Micronutrients,3,FALSE)*AC108 -> 0 | AI97: =VLOOKUP(Y97,Macronutrients,4,FALSE)*AC97+VLOOKUP(Y98,Macronutrients,4,FALSE)*AC98+VLOOKUP(Y99,Macronutrients,4,FALSE)*AC99+VLOOKUP(Y100,Macronutrients,4,FALSE)*AC100+VLOOKUP(Y101,Macronutrients,4,FALSE)*AC101+VLOOKUP(Y102,Macronutrients,4,FALSE)*AC102+VLOOKUP(Y105,Micronutrients,4,FALSE)*AC105+VLOOKUP(Y106,Micronutrients,4,FALSE)*AC106+VLOOKUP(Y107,Micronutrients,4,FALSE)*AC107+VLOOKUP(Y108,Micronutrients,4,FALSE)*AC108 -> 0
A98: None | B98: 0 | C98: 0 | D98: 1 | E98: 0 | F98: 0 | G98: 0 | M98: None | N98: 0 | O98: 0 | P98: 1 | Q98: 0 | R98: 0 | S98: 0 | Y98: None | Z98: 0 | AA98: 0 | AB98: 1 | AC98: 0 | AD98: 0 | AE98: 0
A99: None | B99: 0 | C99: 0 | D99: 1 | E99: 0 | F99: 0 | G99: 0 | I99: S | J99: Ca | K99: Mg | M99: None | N99: 0 | O99: 0 | P99: 1 | Q99: 0 | R99: 0 | S99: 0 | U99: S | V99: Ca | W99: Mg | Y99: None | Z99: 0 | AA99: 0 | AB99: 1 | AC99: 0 | AD99: 0 | AE99: 0 | AG99: S | AH99: Ca | AI99: Mg
A100: None | B100: 0 | C100: 0 | D100: 1 | E100: 0 | F100: 0 | G100: 0 | I100: =VLOOKUP(A97,Macronutrients,5,FALSE)*E97+VLOOKUP(A98,Macronutrients,5,FALSE)*E98+VLOOKUP(A99,Macronutrients,5,FALSE)*E99+VLOOKUP(A100,Macronutrients,5,FALSE)*E100+VLOOKUP(A101,Macronutrients,5,FALSE)*E101+VLOOKUP(A102,Macronutrients,5,FALSE)*E102+VLOOKUP(A105,Micronutrients,5,FALSE)*E105+VLOOKUP(A106,Micronutrients,5,FALSE)*E106+VLOOKUP(A107,Micronutrients,5,FALSE)*E107+VLOOKUP(A108,Micronutrients,5,FALSE)*E108 -> 0 | J100: =VLOOKUP(A97,Macronutrients,7,FALSE)*E97+VLOOKUP(A98,Macronutrients,7,FALSE)*E98+VLOOKUP(A99,Macronutrients,7,FALSE)*E99+VLOOKUP(A100,Macronutrients,7,FALSE)*E100+VLOOKUP(A101,Macronutrients,7,FALSE)*E101+VLOOKUP(A102,Macronutrients,7,FALSE)*E102+VLOOKUP(A105,Micronutrients,7,FALSE)*E105+VLOOKUP(A106,Micronutrients,7,FALSE)*E106+VLOOKUP(A107,Micronutrients,7,FALSE)*E107+VLOOKUP(A108,Micronutrients,7,FALSE)*E108 -> 0 | K100: =VLOOKUP($A97,Macronutrients,6,FALSE)*$E$6+VLOOKUP($A98,Macronutrients,6,FALSE)*$E$7+VLOOKUP($A99,Macronutrients,6,FALSE)*$E$8+VLOOKUP($A100,Macronutrients,6,FALSE)*$E$9+VLOOKUP($A101,Macronutrients,6,FALSE)*$E$10+VLOOKUP($A102,Macronutrients,6,FALSE)*$E$11+VLOOKUP($A105,Micronutrients,6,FALSE)*$E$14+VLOOKUP($A106,Micronutrients,6,FALSE)*E106+VLOOKUP($A107,Micronutrients,6,FALSE)*$E$16+VLOOKUP($A108,Micronutrients,6,FALSE)*$E$17 -> 0 | M100: None | N100: 0 | O100: 0 | P100: 1 | Q100: 0 | R100: 0 | S100: 0 | U100: =VLOOKUP(M97,Macronutrients,5,FALSE)*Q97+VLOOKUP(M98,Macronutrients,5,FALSE)*Q98+VLOOKUP(M99,Macronutrients,5,FALSE)*Q99+VLOOKUP(M100,Macronutrients,5,FALSE)*Q100+VLOOKUP(M101,Macronutrients,5,FALSE)*Q101+VLOOKUP(M102,Macronutrients,5,FALSE)*Q102+VLOOKUP(M105,Micronutrients,5,FALSE)*Q105+VLOOKUP(M106,Micronutrients,5,FALSE)*Q106+VLOOKUP(M107,Micronutrients,5,FALSE)*Q107+VLOOKUP(M108,Micronutrients,5,FALSE)*Q108 -> 0 | V100: =VLOOKUP(M97,Macronutrients,7,FALSE)*Q97+VLOOKUP(M98,Macronutrients,7,FALSE)*Q98+VLOOKUP(M99,Macronutrients,7,FALSE)*Q99+VLOOKUP(M100,Macronutrients,7,FALSE)*Q100+VLOOKUP(M101,Macronutrients,7,FALSE)*Q101+VLOOKUP(M102,Macronutrients,7,FALSE)*Q102+VLOOKUP(M105,Micronutrients,7,FALSE)*Q105+VLOOKUP(M106,Micronutrients,7,FALSE)*Q106+VLOOKUP(M107,Micronutrients,7,FALSE)*Q107+VLOOKUP(M108,Micronutrients,7,FALSE)*Q108 -> 0 | W100: =VLOOKUP($A97,Macronutrients,6,FALSE)*$E$6+VLOOKUP($A98,Macronutrients,6,FALSE)*$E$7+VLOOKUP($A99,Macronutrients,6,FALSE)*$E$8+VLOOKUP($A100,Macronutrients,6,FALSE)*$E$9+VLOOKUP($A101,Macronutrients,6,FALSE)*$E$10+VLOOKUP($A102,Macronutrients,6,FALSE)*$E$11+VLOOKUP($A105,Micronutrients,6,FALSE)*$E$14+VLOOKUP($A106,Micronutrients,6,FALSE)*Q106+VLOOKUP($A107,Micronutrients,6,FALSE)*$E$16+VLOOKUP($A108,Micronutrients,6,FALSE)*$E$17 -> 0 | Y100: None | Z100: 0 | AA100: 0 | AB100: 1 | AC100: 0 | AD100: 0 | AE100: 0 | AG100: =VLOOKUP(Y97,Macronutrients,5,FALSE)*AC97+VLOOKUP(Y98,Macronutrients,5,FALSE)*AC98+VLOOKUP(Y99,Macronutrients,5,FALSE)*AC99+VLOOKUP(Y100,Macronutrients,5,FALSE)*AC100+VLOOKUP(Y101,Macronutrients,5,FALSE)*AC101+VLOOKUP(Y102,Macronutrients,5,FALSE)*AC102+VLOOKUP(Y105,Micronutrients,5,FALSE)*AC105+VLOOKUP(Y106,Micronutrients,5,FALSE)*AC106+VLOOKUP(Y107,Micronutrients,5,FALSE)*AC107+VLOOKUP(Y108,Micronutrients,5,FALSE)*AC108 -> 0 | AH100: =VLOOKUP(Y97,Macronutrients,7,FALSE)*AC97+VLOOKUP(Y98,Macronutrients,7,FALSE)*AC98+VLOOKUP(Y99,Macronutrients,7,FALSE)*AC99+VLOOKUP(Y100,Macronutrients,7,FALSE)*AC100+VLOOKUP(Y101,Macronutrients,7,FALSE)*AC101+VLOOKUP(Y102,Macronutrients,7,FALSE)*AC102+VLOOKUP(Y105,Micronutrients,7,FALSE)*AC105+VLOOKUP(Y106,Micronutrients,7,FALSE)*AC106+VLOOKUP(Y107,Micronutrients,7,FALSE)*AC107+VLOOKUP(Y108,Micronutrients,7,FALSE)*AC108 -> 0 | AI100: =VLOOKUP($A97,Macronutrients,6,FALSE)*$E$6+VLOOKUP($A98,Macronutrients,6,FALSE)*$E$7+VLOOKUP($A99,Macronutrients,6,FALSE)*$E$8+VLOOKUP($A100,Macronutrients,6,FALSE)*$E$9+VLOOKUP($A101,Macronutrients,6,FALSE)*$E$10+VLOOKUP($A102,Macronutrients,6,FALSE)*$E$11+VLOOKUP($A105,Micronutrients,6,FALSE)*$E$14+VLOOKUP($A106,Micronutrients,6,FALSE)*AC106+VLOOKUP($A107,Micronutrients,6,FALSE)*$E$16+VLOOKUP($A108,Micronutrients,6,FALSE)*$E$17 -> 0
A101: None | B101: 0 | C101: 0 | D101: 1 | E101: 0 | F101: 0 | G101: 0 | M101: None | N101: 0 | O101: 0 | P101: 1 | Q101: 0 | R101: 0 | S101: 0 | Y101: None | Z101: 0 | AA101: 0 | AB101: 1 | AC101: 0 | AD101: 0 | AE101: 0
A102: None | B102: 0 | C102: 0 | D102: 1 | E102: 0 | F102: 0 | G102: 0 | I102: Z | J102: B | K102: Mn | M102: None | N102: 0 | O102: 0 | P102: 1 | Q102: 0 | R102: 0 | S102: 0 | U102: Z | V102: B | W102: Mn | Y102: None | Z102: 0 | AA102: 0 | AB102: 1 | AC102: 0 | AD102: 0 | AE102: 0 | AG102: Z | AH102: B | AI102: Mn
I103: =VLOOKUP(A97,Macronutrients,8,FALSE)*E97+VLOOKUP(A98,Macronutrients,8,FALSE)*E98+VLOOKUP(A99,Macronutrients,8,FALSE)*E99+VLOOKUP(A100,Macronutrients,8,FALSE)*E100+VLOOKUP(A101,Macronutrients,8,FALSE)*E101+VLOOKUP(A102,Macronutrients,8,FALSE)*E102+VLOOKUP(A105,Micronutrients,8,FALSE)*E105+VLOOKUP(A106,Micronutrients,8,FALSE)*E106+VLOOKUP(A107,Micronutrients,8,FALSE)*E107+VLOOKUP(A108,Micronutrients,8,FALSE)*E108 -> 0 | J103: =VLOOKUP(A97,Macronutrients,9,FALSE)*E97+VLOOKUP(A98,Macronutrients,9,FALSE)*E98+VLOOKUP(A99,Macronutrients,9,FALSE)*E99+VLOOKUP(A100,Macronutrients,9,FALSE)*E100+VLOOKUP(A101,Macronutrients,9,FALSE)*E101+VLOOKUP(A102,Macronutrients,9,FALSE)*E102+VLOOKUP(A105,Micronutrients,9,FALSE)*E105+VLOOKUP(A106,Micronutrients,9,FALSE)*E106+VLOOKUP(A107,Micronutrients,9,FALSE)*E107+VLOOKUP(A108,Micronutrients,9,FALSE)*E108 -> 0 | K103: =VLOOKUP(A97,Macronutrients,10,FALSE)*E97+VLOOKUP(A98,Macronutrients,10,FALSE)*E98+VLOOKUP(A99,Macronutrients,10,FALSE)*E99+VLOOKUP(A100,Macronutrients,10,FALSE)*E100+VLOOKUP(A101,Macronutrients,10,FALSE)*E101+VLOOKUP(A102,Macronutrients,10,FALSE)*E102+VLOOKUP(A105,Micronutrients,10,FALSE)*E105+VLOOKUP(A106,Micronutrients,10,FALSE)*E106+VLOOKUP(A107,Micronutrients,10,FALSE)*E107+VLOOKUP(A108,Micronutrients,10,FALSE)*E108 -> 0 | U103: =VLOOKUP(M97,Macronutrients,8,FALSE)*Q97+VLOOKUP(M98,Macronutrients,8,FALSE)*Q98+VLOOKUP(M99,Macronutrients,8,FALSE)*Q99+VLOOKUP(M100,Macronutrients,8,FALSE)*Q100+VLOOKUP(M101,Macronutrients,8,FALSE)*Q101+VLOOKUP(M102,Macronutrients,8,FALSE)*Q102+VLOOKUP(M105,Micronutrients,8,FALSE)*Q105+VLOOKUP(M106,Micronutrients,8,FALSE)*Q106+VLOOKUP(M107,Micronutrients,8,FALSE)*Q107+VLOOKUP(M108,Micronutrients,8,FALSE)*Q108 -> 0 | V103: =VLOOKUP(M97,Macronutrients,9,FALSE)*Q97+VLOOKUP(M98,Macronutrients,9,FALSE)*Q98+VLOOKUP(M99,Macronutrients,9,FALSE)*Q99+VLOOKUP(M100,Macronutrients,9,FALSE)*Q100+VLOOKUP(M101,Macronutrients,9,FALSE)*Q101+VLOOKUP(M102,Macronutrients,9,FALSE)*Q102+VLOOKUP(M105,Micronutrients,9,FALSE)*Q105+VLOOKUP(M106,Micronutrients,9,FALSE)*Q106+VLOOKUP(M107,Micronutrients,9,FALSE)*Q107+VLOOKUP(M108,Micronutrients,9,FALSE)*Q108 -> 0 | W103: =VLOOKUP(M97,Macronutrients,10,FALSE)*Q97+VLOOKUP(M98,Macronutrients,10,FALSE)*Q98+VLOOKUP(M99,Macronutrients,10,FALSE)*Q99+VLOOKUP(M100,Macronutrients,10,FALSE)*Q100+VLOOKUP(M101,Macronutrients,10,FALSE)*Q101+VLOOKUP(M102,Macronutrients,10,FALSE)*Q102+VLOOKUP(M105,Micronutrients,10,FALSE)*Q105+VLOOKUP(M106,Micronutrients,10,FALSE)*Q106+VLOOKUP(M107,Micronutrients,10,FALSE)*Q107+VLOOKUP(M108,Micronutrients,10,FALSE)*Q108 -> 0 | AG103: =VLOOKUP(Y97,Macronutrients,8,FALSE)*AC97+VLOOKUP(Y98,Macronutrients,8,FALSE)*AC98+VLOOKUP(Y99,Macronutrients,8,FALSE)*AC99+VLOOKUP(Y100,Macronutrients,8,FALSE)*AC100+VLOOKUP(Y101,Macronutrients,8,FALSE)*AC101+VLOOKUP(Y102,Macronutrients,8,FALSE)*AC102+VLOOKUP(Y105,Micronutrients,8,FALSE)*AC105+VLOOKUP(Y106,Micronutrients,8,FALSE)*AC106+VLOOKUP(Y107,Micronutrients,8,FALSE)*AC107+VLOOKUP(Y108,Micronutrients,8,FALSE)*AC108 -> 0 | AH103: =VLOOKUP(Y97,Macronutrients,9,FALSE)*AC97+VLOOKUP(Y98,Macronutrients,9,FALSE)*AC98+VLOOKUP(Y99,Macronutrients,9,FALSE)*AC99+VLOOKUP(Y100,Macronutrients,9,FALSE)*AC100+VLOOKUP(Y101,Macronutrients,9,FALSE)*AC101+VLOOKUP(Y102,Macronutrients,9,FALSE)*AC102+VLOOKUP(Y105,Micronutrients,9,FALSE)*AC105+VLOOKUP(Y106,Micronutrients,9,FALSE)*AC106+VLOOKUP(Y107,Micronutrients,9,FALSE)*AC107+VLOOKUP(Y108,Micronutrients,9,FALSE)*AC108 -> 0 | AI103: =VLOOKUP(Y97,Macronutrients,10,FALSE)*AC97+VLOOKUP(Y98,Macronutrients,10,FALSE)*AC98+VLOOKUP(Y99,Macronutrients,10,FALSE)*AC99+VLOOKUP(Y100,Macronutrients,10,FALSE)*AC100+VLOOKUP(Y101,Macronutrients,10,FALSE)*AC101+VLOOKUP(Y102,Macronutrients,10,FALSE)*AC102+VLOOKUP(Y105,Micronutrients,10,FALSE)*AC105+VLOOKUP(Y106,Micronutrients,10,FALSE)*AC106+VLOOKUP(Y107,Micronutrients,10,FALSE)*AC107+VLOOKUP(Y108,Micronutrients,10,FALSE)*AC108 -> 0
A104: Micronutrients (drop down menu) | M104: Micronutrients (drop down menu) | Y104: Micronutrients (drop down menu)
A105: None | B105: =VLOOKUP($A105,Micronutrients,14,FALSE) -> 0 | C105: =VLOOKUP(A105,Micronutrients,18,FALSE) -> 0 | D105: =VLOOKUP(A105,Micronutrients,16,FALSE) -> 1 | E105: 0 | F105: =VLOOKUP(A105,Micronutrients,15,FALSE) -> 0 | G105: =(E105*VLOOKUP(A105,Micronutrients,14,FALSE)/D105)*C105 -> 0 | I105: Cu | J105: Mo | K105: Fe | M105: None | N105: =VLOOKUP($M105,Micronutrients,14,FALSE) -> 0 | O105: =VLOOKUP(M105,Micronutrients,18,FALSE) -> 0 | P105: =VLOOKUP(M105,Micronutrients,16,FALSE) -> 1 | Q105: 0 | R105: =VLOOKUP(M105,Micronutrients,15,FALSE) -> 0 | S105: =(Q105*VLOOKUP(M105,Micronutrients,14,FALSE)/P105)*O105 -> 0 | U105: Cu | V105: Mo | W105: Fe | Y105: None | Z105: =VLOOKUP(Y105,Micronutrients,14,FALSE) -> 0 | AA105: =VLOOKUP(Y105,Micronutrients,18,FALSE) -> 0 | AB105: =VLOOKUP(Y105,Micronutrients,16,FALSE) -> 1 | AC105: 0 | AD105: =VLOOKUP(Y105,Micronutrients,15,FALSE) -> 0 | AE105: =(AC105*VLOOKUP(Y105,Micronutrients,14,FALSE)/AB105)*AA105 -> 0 | AG105: Cu | AH105: Mo | AI105: Fe
